Workbook

Sheet ChangeLog (hidden)
A1: Dato | B1: Person | C1: Ark | D1: Celler | E1: Ændring
A2: 2018-09-19 | B2: FGB | E2: Ændring i forklarende tekst til figur "Result: Levelised Cost of Energy" under UserSettings&Results. VBA kode til automatisk nulstilling af cellrange "TechYearsManual" ved ændring af Technology year under UserSettings&Results.
A3: 2018-09-20 | B3: FGB | E3: ChangeLog fane tilføjet for at give overblik over ændringer.
A4: 2018-09-28 | B4: MKA | E4: Ændret levetid og konstruktionstid for 01 kulværker og 02 LTE af kulværker i "TestTech".
A5: 2018-09-28 | B5: MKA | E5: Ændret effektiviteter for ombyggede kulværker til biomasse (03a, 03b, 03c) i "TestTech", så de er opdateret i overensstemmelse med LTE.
A6: 2018-10-01 | B6: Rin | C6: FuelPrices | E6: Ændret grønne fuelpricer Custumfuel2 og 3 - de trak til forkerte celler
A7: 2018-10-01 | B7: Rin | C7: FuelPrices | E7: Ændret gule fuelpricer i Custumfuel2 jeg tror det var sidsteårs priser - men det var ikke forklaret så jeg satte det hele til default
A8: 2018-10-01 | B8: Rin | C8: FuelPrices | D8: C110, C148, 246 | E8: Ny forklaring på default
A9: 2018-10-08 | B9: FGB | C9: Calculations | D9: D52 | E9: Enhed for var. O&M ændret fra DKK/MW/year til DKK/MWh
A10: 2018-10-08 | B10: FGB | C10: TechData | D10: O28 | E10: Enhed for var. O&M ændret fra DKK/MW/year til DKK/MWh
A11: 2018-10-08 | B11: FGB | C11: TestTech | D11: O63 | E11: Enhed for var. O&M ændret fra EUR/MWh/year til DKK/MWh
A12: 2018-10-11 | B12: MKA | C12: TestTech | D12: N72/O72-N82/O82 | E12: Ændret D&V for ombyggede kulværker til biomasse (03a, 03b, 03c) i "TestTech", så de er opdateret i overensstemmelse med LTE.
A13: 2018-10-16 | B13: Rin | C13: TestTech | D13: G68:H82 | E13: no investment cost in existing plant specified also in name
A14: 2018-10-16 | B14: Rin | C14: TestTech | D14: AP 72-82 | E14: Kommentar om O&M justeret
A15: 2018-10-16 | B15: Rin | C15: Tech data | D15: række 172-187 | E15: 02 og 03 kopieret over i Tech data
A16: 2018-10-16 | B16: Rin | C16: Tech data | D16: række 92-99 | E16: rækker slettet dupletter af 02 og 03
A17: 2018-10-16 | B17: Rin | C17: Tech data | D17: række 188-191 | E17: rækker slettet dupletter af 02 og 03
A18: 2018-10-16 | B18: Rin | C18: Tech data | D18: række 104-107 | E18: kul kopieret over fre test tech - ny levetid
A19: 2019-02-27 | B19: FGB | C19: Admin | D19: J22-J23 | E19: Mulighed for at vælge prisår 2018 og 2019 tilføjet.
A20: 2019-05-28 | B20: SWA | C20: FuelPrices | D20: D119-J141, M113-M141, S119-W141 | E20: Indsat opdaterede brændselspriser fra fremskrivningen i 2018 til brug for BF19.
A21: 2019-05-28 | B21: SWA | C21: EmissionPrices | D21: G116-G138, L116-M116 | E21: Indsat opdaterede kvotepriser og priser på emissioner fra fremskrivningen i 2018 til brug for BF19.
A22: 2019-05-28 | B22: SWA | C22: Admin | D22: AA4-AB39 | E22: Indsat opdateret deflator fra fremskrivningen af brædselspriser 2018 til brug for BF19, samt indsat formler i kolonnen Stigning i pct.
A23: 2019-05-29 | B23: SWA | C23: FuelPrices | D23: Række 142-176 | E23: De fremskrevne brændselspriser i 2040 fastholdes frem til 2075.
A24: 2019-05-29 | B24: SWA | C24: EmissionPrices | D24: D139-D173 | E24: De fremskrevne kvotepriser i 2040 fastholdes frem til 2075.
A25: 2019-05-29 | B25: CHWO | C25: Admin | D25: L7, L8 | E25: 2040 som TechYear tilføjet og 2050 rykket ned; formel til navnet "TechYears" tilsvarende tilpasset
A26: 2019-05-29 | B26: CHWO | C26: TestTech | D26: række 224:243 | E26: 2019 havvind og landvind Tech Kat data tilføjet
A27: 2019-05-29 | B27: CHWO | C27: Tech Data | D27: række 204:223 | E27: 2019 havvind og landvind Tech Kat data tilføjet via makro
A28: 2019-10-30 | B28: SWA | C28: FuelPrices | D28: D142:G161, H142:J151, M142:M151, S141:T161 og U142:W151 | E28: CustomFuel opdateret med brændselspriser fra fremskrivningen i 2018 forlænget frem til 2050 (biomassepriser) og 2060 (fossile priser)
A29: 2019-10-30 | B29: SWA | C29: FuelPrices | D29: Række 181-312 | E29: Ændre CustomFuel 2 og 3 til at være lig default pris (WEO 2015 New Policies Scenario)
A30: 2019-10-30 | B30: SWA | C30: FuelPrices | D30: Række 113-312 | E30: Opdatere farvekoder for priser i CustomFuel 1, 2 og 3: Grøn = default pris (WEO 2015 New Policies Scenario), Gul = ENS brændselsprisfremskrivning 2018 (til brug for BF19 og AF19), Orange = fastholdt ENS pris udenfor fremskrivningens periode.
A31: 2019-10-30 | B31: SWA | C31: EmissionPrices | D31: G117:G138 | E31: Opdatere kvotepriser, så de er lig den seneste fremskrivning fra FM fra september 2019, som også anvendes i AF19.
A32: 2019-10-30 | B32: SWA | C32: EmissionPrices | D32: H110:I173 | E32: Ændre CustomFuel 2 og 3 til at være lig default pris (WEO 2015 New Policies Scenario)
A33: 2019-10-30 | B33: SWA | C33: EmissionPrices | D33: G110:G173 og L110:N173 | E33: Opdatere farvekoder for priser: Grøn = default pris (WEO 2015 New Policies Scenario), Gul = ENS brændselsprisfremskrivning 2018 (til brug for BF19 og AF19), Orange = fastholdt ENS pris udenfor fremskrivningens periode.
A34: 2019-12-09 | B34: FGB | C34: UserSettings&Results | E34: Tilføjet mulighed for at se udvikling i LCoE (pivot-graf). Dertil er der tilføjet en makro som kan generere det nødvendige data (sub GetLcoeAllYears).
A35: 2019-12-09 | B35: FGB | C35: Techdata/oldtech | E35: Ældre teknologidata for vindmøller og solceller er flyttet fra techdata til oldtech, så der kun er et "current" datasæt for hver teknologi
A36: 2020-01-14 | B36: FGB | C36: Techdata | D36: rows(92:123) | E36: Total og elvirkningsgrader fikset - værdier var indsat som formel som gav error.

Sheet Introduction
B2: Introduction
B3: 2018 profil costs for Danish technologies are deleted in Techdata and Testtech, are depending on the energysystem and eletricitymarked and should rather be considered by the analyst using the results
B4: Hvert år opdateres brændselspriserne ( i 2018frem til år 2040) i forhold til Energistyrelsen fremskrivning af dansk brændselspriser det gøres i fanen fuelprices og i tabellen costum prices, det er de celler, der er farvet gult ( overvej om der skal opdateres i brændselsprisarket)
B5: Hvert år opdateres deflatoren i arket Brændselspriser kolonne AJ
B6: Hvert år opdateres CO2 priser og det tjekkes det hvorvidt emissionspriser skal opdateres arket emissionsprice gult
B7: Background
B9: This spreadsheet model was developed by Ea Energy Analyses to calculate the levelized cost of electricity production for a number of technologies. We have put effort in making assumptions and calculations comprehensible. However, especially discussions of different calculation options and the quality of data used in the calculations do not fit in a spreadsheet model. For explanations and discussions on the methods and assumptions applied, please see separate document: "LCOE Calculator - Methodology, assumption and guideline". Important sources for assumptions are: Danish Energy Agency 2012: Socio-economic assumptions. Samfundsøkonomiske beregningsforudsætninger 2012 (excel-sheets). Forudsætninger for samfundsøkonomiske analyser på energiområdet, april 2011. To tillægsblade fra september 2011 og juni 2013. Danish Energy Agency 2014: Preliminary update of socio-economic assumptions regarding fuel and CO2-prices. Danish Energy Agency and Energinet.dk 2014: Technology Data for Energy Plants, 2012 (certain updates 2013 and 2014)
B18: IEA, 2015. Projected Costs of Generating Electricity, 2015 edition.
B19: EPRI, 2012. Power Generation Technology Data for Integrated Ressource Plan of South Africa. Palo Alto, CA: EPRI
B21: Definitions
B22: Names in the sheets 'OldTech', 'TechData' and 'TestData' in collumn C follow the following system:
B25: Letter 1-2: | D25: Year data is made
B26: Letter 3-4: | D26: SMal, MEdium, LArge
B27: Letter 5-10: | D27: Type of technology. The used abbreviations stands for
D28: PVROOF? | E28: Forslag til roof top tech…
D29: PV | E29: PhotoVoltaics
D30: WINON | E30: On shore wind
D31: WINOF | E31: Off shore wind
D32: WIN_NS | E32: Near shore wind
D33: BP | E33: Back Pressure
D34: GT | E34: Gas turbine singel cycle
D35: GE | E35: Gas Engine
D36: AD
D37: ENG = Engine internal combustion
D38: STM = Steam turbine,
D39: CCY = Combined cycle
D40: DAM = Hydro Dam plant
D41: ROR = Hydro run or river
D42: CO | E42: Condensing plant
D43: EX = Extraction plant
B46: Letter 11-13: | D46: Type of fuel. The used abbreviations stands for
D47: WCH | E47: Wood chips
D48: WPE | E48: Wood pellets
D49: STR | E49: Straw
D50: COA | E50: Coal
D51: DSL | E51: Diesel
D52: NGA | E52: Natural gas
D53: WST | E53: Waste
D54: Geo | E54: Geothermal

Sheet UserGuide
B2: User Guide
B4: LCoE-calculations
B6: Basic user settings and result view
B8: The spreadsheet contains two sheets where the user has the option to see all input values and calculations. Also a number of parameters can be adjusted.
D10: On the calculation sheet all input values and calculation steps in the LCoE can be viewed.
D12: The user have the option to adjust a number of factors in the LCoE-calculations by use of the basic user settings. On the same sheet a graph with the results is found.
B15: Advanced user settings of existing data
B17: If the user wishes other input values than the predefined ones or wishes to change or update data, this can be done in the yellow data sheets.
B24: Inclusion of other technologies or fuels
B26: The user has the option of adding other technologies or new parameters than those already included in the LCOE-calculator. Moreover, new fuels can be defined. This is done in the TechData-sheet and FuelPrice-sheet respectively.
B30: Log-features
B32: The sheet offers some features to test, add and log technology updates. For this purpose, technology data is split into three "databases": TechData for main technology-assumptions, TestTech for evaluation of new technology data, and OldData for older technology definitions. New technology data can be added in the TestData sheet. When new technology-data is evaluated and confirmed, they can be transferred to the main database (TechData), where they can replace existing technologies, or added as new technology. After transferring data to the TechData-sheet, changes can be logged using the DataLog (accessible using ctrl-L). The logging feature compares the current TechData-values to the last time data was logged and any changes are logged in the datalog. Technologies logged in the DataLog can be accessed for evaluation using the OldData technology database.
B36: LCoEE-calculations
B38: In the LCOEE-sheets levelized costs for energy efficiency investments are performed and compared to the costs of production. In this way the costs of saving one unit is balanced against the price of producing one unit.
E41: In settings and results the user have the option to adjust a number of factors in the LCoEE-calculations by use of the basic user settings. Also a grapichal illustration of the results is given
E44: In the data and calculation sheet the default data is given and the costs for energy efficiencys calculated.

Sheet Admin
B1: Admin functions | F1: Definitions | Q1: Scenario defintions | V1: Currency conversion | Z1: Price adjustment | AJ1: Lists of technologies
Z2: Source: | AA2: LOFT27-fremskrivningen
B3: Remove data for TestTech and Datalog, hide sheets and publish the LCOE spreadsheet. Current Sheet will be saved. Published sheet is saved under new name in same directory. | F3: Fuel scenarios | G3: Tech scenarios | H3: FLH scenarios | I3: System integration cost scenarios | J3: Price years | K3: Calculation years | L3: Technology years | M3: TRUE/FALSE | N3: Value heat production | O3: Place | Q3: Scenario | R3: Price year | S3: Price adjustment factor | T3: Currency | V3: Currency (conversion to EUR) | AA3: ="Priceindex 2010 =1" -> Priceindex 2010 =1 | AB3: Stigning i % | AD3: For discounting of prices | AE3: Discountet amount for prices | AJ3: OldTech | AK3: CurrentTech | AL3: TestTech
F4: New Policy 2015 | G4: TechBase | H4: Low | I4: None | J4: 2000 | K4: 2012 | L4: 2015 | M4: YES | N4: Cost allocation | O4: Factory | V4: DKK | W4: =CurrencyRates!E15 -> 7.45 | Z4: 2000 | AA4: 0.7820685 | AD4: 1 | AE4: =NPV(DiscountRate,OFFSET(AD4,0,0,IF(ISNUMBER(DiscountHorizon),DiscountHorizon,20))) -> 14.2124033 | AJ4: 16WIN_ON_in onshorewind incl. Grid | AK4: 18Me BP WCH in_st 80 MW input, woodchips storage for 10 days
F5: 450ppm 2015 | G5: TechHigh | H5: Central | I5: Central | J5: 2001 | K5: 2013 | L5: 2020 | M5: NO | N5: Heat value | O5: Small entre-prise/private household | Q5: =F4 -> New Policy 2015 | R5: 2014 | S5: =VLOOKUP(PriceYear,PriceAdjust,2,FALSE)/VLOOKUP(R5,PriceAdjust,2,FALSE)*VLOOKUP(chosencurrency,Currency,2,FALSE)/VLOOKUP(T5,Currency,2,FALSE) -> 1.07695432 | T5: EUR | V5: EUR | W5: 1 | Z5: 2001 | AA5: 0.8013223 | AB5: =AA5/AA4-1 -> 0.02461907109 | AD5: 1 | AJ5: 17WIN_OF_in Offshore wind large DK incl. Grid | AK5: 18Me BP WPE in_st 80 MW input, woodpellets storage for 10 days
F6: Current Policies 2015 | G6: TechLow | H6: High | I6: Low | J6: 2002 | K6: 2014 | L6: 2025 | Q6: =F5 -> 450ppm 2015 | R6: 2014 | S6: 1.07695432 | T6: EUR | V6: USD | W6: =CurrencyRates!E16 -> 1.0776 | X6: US dollar | Z6: 2002 | AA6: 0.8194543 | AB6: =AA6/AA5-1 -> 0.02262759941 | AD6: 1 | AJ6: 17WIN_NS_in Wind Nearshore incl grid | AK6: 18La BP WPE in_st 800 MW input, woodpellets storage for 10 days
F7: CustomFuel | H7: CustomFLH | I7: High | J7: 2003 | K7: 2015 | L7: 2030 | Q7: =F6 -> Current Policies 2015 | R7: 2014 | S7: 1.07695432 | T7: EUR | V7: Source: ECB | W7: As of 7th May 2024 | Z7: 2003 | AA7: 0.8326482 | AB7: 0.01610083686 | AD7: 1 | AJ7: 17LaPV_IN Large Photo voltage incl. Grid | AK7: 18 Me BP STR 80MW input, Straw CHP Medium, 2 days storage
F8: CustomFuel2 | J8: 2004 | K8: 2016 | L8: 2040 | Q8: CustomFuel | R8: =FuelPrices!E22 -> 2023 | S8: =VLOOKUP(PriceYear,PriceAdjust,2,FALSE)/VLOOKUP(R8,PriceAdjust,2,FALSE)*VLOOKUP(chosencurrency,Currency,2,FALSE)/VLOOKUP(T8,Currency,2,FALSE) -> 0.9215586174 | T8: =FuelPrices!D22 -> EUR | Z8: 2004 | AA8: 0.8531698 | AB8: 0.02464618311 | AD8: 1 | AJ8: 17WIN_OF_ex Offshore wind large DK ex. Grid | AK8: 16 ME BP SC NGA - Gas Turbine Single Cycle, medium,natural gas
F9: CustomFuel3 | J9: 2005 | K9: 2017 | L9: 2050 | Q9: CustomFuel2 | R9: =FuelPrices!E23 -> 2014 | S9: =VLOOKUP(PriceYear,PriceAdjust,2,FALSE)/VLOOKUP(R9,PriceAdjust,2,FALSE)*VLOOKUP(chosencurrency,Currency,2,FALSE)/VLOOKUP(T9,Currency,2,FALSE) -> 1.07695432 | T9: =FuelPrices!D23 -> EUR | Z9: 2005 | AA9: 0.8762048 | AB9: 0.02699931479 | AD9: 1 | AJ9: 17WIN_NS_ex Wind nearshore ex grid | AK9: 16La EX CC NGA CC large CHP Gas Turbine combined Cycle natural Gas
J10: 2006 | K10: 2018 | Q10: CustomFuel3 | R10: =FuelPrices!E24 -> 2014 | S10: 1.07695432 | T10: =FuelPrices!D24 -> EUR | Z10: 2006 | AA10: 0.8945457 | AB10: 0.02093220672 | AD10: 1 | AJ10: 16WIN_ON_ex onshorewind excl. Grid | AK10: 17La_EX_COA CHP coal 400-700 MWwe
J11: 2007 | K11: 2019 | Q11: EEinput | R11: ='EETechData&Calculation'!D17 -> 2011 | S11: 1.131003915 | T11: ='EETechData&Calculation'!C17 -> EUR | Z11: 2007 | AA11: 0.9189743 | AB11: 0.02730838682 | AD11: 1 | AJ11: 15SmPV Small Photo Voltage residential systems | AK11: Coal FGD INT
J12: 2008 | K12: 2020 | Z12: 2008 | AA12: 0.9623343 | AB12: 0.04718303874 | AD12: 1 | AJ12: 15MePV Medium Photo Voltage commercial systems | AK12: Coal no FGD INT
J13: 2009 | K13: 2021 | Z13: 2009 | AA13: 0.9676917 | AB13: 0.005567088277 | AD13: 1 | AK13: Natural gas CCGT INT
J14: 2010 | K14: 2022 | Z14: 2010 | AA14: 1 | AB14: 0.03338697645 | AD14: 1 | AK14: Nuclear INT
J15: 2011 | K15: 2023 | Z15: 2011 | AA15: 1.004305 | AB15: 0.004305 | AD15: 1 | AK15: Solar PV INT
J16: 2012 | K16: 2024 | Z16: 2012 | AA16: 1.028743 | AB16: 0.02433324538 | AD16: 1 | AK16: Solar PV INT(/DK)*
J17: 2013 | K17: 2025 | Z17: 2013 | AA17: 1.040165 | AB17: 0.0111028702 | AD17: 1 | AK17: Wind onshore INT
J18: 2014 | K18: 2026 | Z18: 2014 | AA18: 1.054708512 | AB18: 0.01398192739 | AD18: 1 | AK18: Biomass plant INT
J19: 2015 | K19: 2027 | Z19: 2015 | AA19: 1.061184949 | AB19: 0.006140500019 | AD19: 1 | AK19: 18La BP WCH in_st 600 MW input, woodchips storage for 10 days
J20: 2016 | K20: 2028 | Z20: 2016 | AA20: 1.06461672 | AB20: 0.003233904563 | AD20: 1 | AK20: 16 La EX LTE COA no_inv_exipla - Coal CHP Life time extension of coal power plant no invest cost for existing plant
J21: 2017 | K21: 2029 | Z21: 2017 | AA21: 1.077838157 | AB21: 0.01241896436 | AD21: 1 | AK21: 16La REF_EX WPE_COA_exibo_no_inv_exipla Woodpellets CHP refurb. Coal plants, existing Boiler, no invest cost in existing plant
J22: 2018 | K22: 2030 | Z22: 2018 | AA22: 1.086173264 | AB22: 0.007733171525 | AD22: 1 | AK22: 16La REF_EX WCH_COA_Newboi_ no_inv_exipla Wood chips CHP refurb. Coal plants, new Boiler, no invest cost for existing plant
J23: 2019 | K23: 2031 | Z23: 2019 | AA23: 1.101228906 | AB23: 0.01386117889 | AD23: 1 | AK23: 16La REF_EX WCH_COA_exi_exibo_no_inv_exipla Wood chips CHP refurb. Coal plants, existing boiler, no invest cost for existing plant
J24: =IF(ISNUMBER(J23),IF(YEAR(NOW())>=J23+1,J23+1,""),"") -> 2020 | K24: 2032 | Z24: 2020 | AA24: 1.135872887 | AB24: 0.03145938215 | AD24: 1 | AK24: 18La_EX_EXI_COA ex_inv_cost - Coal CHP existing, no investment cost
J25: =IF(ISNUMBER(J24),IF(YEAR(NOW())>=J24+1,J24+1,""),"") -> 2021 | K25: 2033 | Z25: 2021 | AA25: 1.170499585 | AB25: 0.03048465936 | AD25: 1 | AK25: 18Sm_PV_roof
J26: =IF(ISNUMBER(J25),IF(YEAR(NOW())>=J25+1,J25+1,""),"") -> 2022 | K26: 2034 | V26: Specific factor | Z26: 2022 | AA26: 1.26920254 | AB26: 0.08432549341 | AD26: 1 | AK26: 18Me_PV_roof
J27: =IF(ISNUMBER(J26),IF(YEAR(NOW())>=J26+1,J26+1,""),"") -> 2023 | K27: 2035 | V27: DKK2015->DKK2011 | W27: =AA19/AA15 -> 1.056636131 | Z27: 2023 | AA27: 1.232556308 | AB27: -0.02887343116 | AD27: 1 | AK27: 19PV_La_Utility scale PV
J28: =IF(ISNUMBER(J27),IF(YEAR(NOW())>=J27+1,J27+1,""),"") -> 2024 | K28: 2036 | Z28: 2024 | AA28: 1.264176405 | AB28: 0.02565407908 | AD28: 1 | AK28: 19PV_La_Utility scale PV_tracker
J29: 2025 | K29: 2037 | Z29: 2025 | AA29: 1.292759441 | AB29: 0.022610006 | AD29: 1 | AK29: 19WIN_ON_in Onshore wind incl. Grid
K30: 2038 | Z30: 2026 | AA30: 1.32117848 | AB30: 0.02198323831 | AD30: 1 | AK30: 24WIN_ON_in Onshore wind incl. Grid
K31: 2039 | Z31: 2027 | AA31: 1.348838869 | AB31: 0.02093614873 | AD31: 1 | AK31: 19WIN_OF_in Offshore wind incl. Grid
K32: 2040 | Z32: 2028 | AA32: 1.375703746 | AB32: 0.01991703896 | AD32: 1 | AK32: 19WIN_OF_ex Offshore wind excl. Grid
K33: 2041 | Z33: 2029 | AA33: 1.401435504 | AB33: 0.0187044329 | AD33: 1 | AK33: 19WIN_NS_in Nearshore wind incl. Grid
K34: 2042 | Z34: 2030 | AA34: 1.428521776 | AB34: 0.01932751943 | AD34: 1 | AK34: 19WIN_NS_ex Nearshore wind excl. Grid
K35: 2043 | Z35: 2031 | AA35: 1.458250507 | AB35: 0.02081083479 | AD35: 1 | AK35: 22PV_Sm_roof residential
K36: 2044 | Z36: 2032 | AA36: 1.488405437 | AB36: 0.02067884115 | AD36: 1 | AK36: 22PV_Me_roof commercial industrial
K37: 2045 | Z37: 2033 | AA37: 1.5192301 | AB37: 0.02070985601 | AD37: 1 | AK37: 22PV_La_Utility scale PV
K38: 2046 | Z38: 2034 | AA38: 1.550545738 | AB38: 0.02061283461 | AD38: 1 | AK38: 22PV_La_Utility scale PV_tracker
K39: 2047 | Z39: 2035 | AA39: 1.582359289 | AB39: 0.02051764699 | AD39: 1 | AK39: 25WIN_OF_in Offshore wind AC incl. Grid
K40: 2048 | Z40: 2036 | AA40: 1.614865835 | AB40: 0.02054308814 | AD40: 1 | AK40: 25WIN_OF_ex Offshore wind AC excl. Grid
K41: 2049 | Z41: 2037 | AA41: 1.647987757 | AB41: 0.02051063407 | AD41: 1 | AK41: 25WIN_NS_in Nearshore wind incl. Grid
K42: 2050 | Z42: 2038 | AA42: 1.681750559 | AB42: 0.02048728952 | AD42: 1 | AK42: 25WIN_NS_ex Nearshore wind excl. Grid
K43: 2051 | Z43: 2039 | AA43: 1.71619282 | AB43: 0.02048000527 | AD43: 1 | AK43: 25WIN_FOA_in Floating offshore AC incl. Grid
K44: 2052 | Z44: 2040 | AA44: 1.751202844 | AB44: 0.02039982 | AD44: 1 | AK44: 25WIN_FOA_ex Floating offshore AC excl. Grid
K45: 2053 | Z45: 2041 | AA45: 1.786963429 | AB45: 0.0204205842 | AD45: 1 | AK45: 25WIN_FSA_in Far Offshore AC incl. Grid
K46: 2054 | Z46: 2042 | AA46: 1.823483806 | AB46: 0.02043711482 | AD46: 1 | AK46: 25WIN_FSA_ex Far Offshore AC excl. Grid
K47: 2055 | Z47: 2043 | AA47: 1.860713605 | AB47: 0.0204168521 | AD47: 1 | AK47: 25WIN_FSA_in Far Offshore DC incl. Grid
K48: 2056 | Z48: 2044 | AA48: 1.898549458 | AB48: 0.02033405503 | AD48: 1 | AK48: 25WIN_FSA_ex Far Offshore DC excl. Grid
K49: 2057 | Z49: 2045 | AA49: 1.936949882 | AB49: 0.02022619081 | AD49: 1 | AK49: 25WIN_OF_in Offshore wind incl. Grid
K50: 2058 | Z50: 2046 | AA50: 1.976134092 | AB50: 0.02022985237 | AD50: 1 | AK50: 22WIN_OF_in Offshore wind incl. Grid
K51: 2059 | Z51: 2047 | AA51: 2.0160232 | AB51: 0.02018542584 | AD51: 1 | AK51: 22WIN_NS_ex Nearshore wind incl. Grid
K52: 2060 | Z52: 2048 | AA52: 2.056740737 | AB52: 0.02019695825 | AD52: 1 | AK52: 22WIN_OF_in Offshore wind excl. Grid
K53: 2061 | Z53: 2049 | AA53: 2.098188861 | AB53: 0.02015233292 | AD53: 1 | AK53: 22WIN_NS_ex Nearshore wind excl. Grid
K54: 2062 | Z54: 2050 | AA54: 2.140448032 | AB54: 0.02014078546
K55: 2063
K56: 2064
K57: 2065
K58: 2066
K59: 2067
K60: 2068
K61: 2069
K62: 2070
K63: 2071
K64: 2072
K65: 2073
K66: 2074
K67: 2075
K68: 2076
K69: 2077
K70: 2078
K71: 2079
K72: 2080
K73: 2081
K74: 2082
K75: 2083
K76: 2084
K77: 2085

Sheet UserSettings&Results
B2: Basic user settings and result view
B4: User instruction
B5: In this sheet the levelized cost of energy (LCoE) is visible in two graphs. The left figure is a stacked column graph that shows the cost elements for selected technologies for certain years, together with a table with the cost element.
B6: A summery table of the LCoE-results gives the data input for the graph (from Row 61)
B7: The right figure is a pivotchart. By default it shows projected development in LCOE for the technologies chosen in the pivotchart filter. This can be altered as desired, just like other pivotchart setup in the PivotTable Fields menu.
B8: Note that data for the pivotchart is not automatically re-calculated when altering the Basic user settings below. To re-calculate data for the pivotchart the "Update pivotchart data" must be clicked.
B9: Functions:
C11: In this table the user can adjust a number of the input parameters; some of them according to predefined options and others are free to set.
C13: The user can choose which technologies and cost elements to be viewed in the graph.
C15: In the calculation table, the technology in each column can be changed in the drop down function and thereby the order of the technologies can be swapped around in order to compare them better. Changes in the order will also appear in the graph in UserSettings&Results
C16: The user can save the current scneario results and re-establish it later. The saved scenarios will appear in the sheet "ScenarioResults"
C17: The user can re-establish the options from a previously saved scenario
B19: Basic user settings
C20: Default value | D20: Override | E20: Current value | F20: Explanation
B21: Result view
B22: Currency | C22: EUR | E22: =IF(ISBLANK(D22),C22,D22) -> EUR | F22: (Predefined) | G22: The results can be viewed in number of currencies.
B23: Price year | C23: 2020 | E23: =IF(ISBLANK(D23),C23,D23) -> 2020 | F23: (Predefined) | G23: Price year for results
B24: Financial settings
B25: First year of production | C25: =YEAR(NOW()) -> 2025 | E25: =IF(ISBLANK(D25),C25,D25) -> 2025 | F25: (Predefined) | G25: The first year of production should be related to the technology year.
B26: Lookout period (years) | C26: Technical | E26: Technical | F26: (Predefined) | G26: Period for discounting fuel and CO2 prices. If you choose "Technical" the lookout period equals the technical lifetime of the specific technology
B27: Depreciation period (years) | C27: Technical | E27: Technical | F27: (Predefined) | G27: Period for depreciation of investment cost. If you choose "Technical" the period equals the technical lifetime of the specific technology
B28: Discount rate | C28: 0.035 | E28: 0.035 | F28: (Free to set) | G28: Set discount rate. Used for annuation of capital costs and discounting fuel and CO2-prices. The value 0 will not work. Choose instead a very small value
B29: Discount prices | C29: YES | E29: YES | F29: (Predefined) | G29: Choose YES to discount prices for fuel, CO2-prices etc. through lookout period
B30: Interest during construction | C30: YES | E30: YES | F30: (Predefined) | G30: Set to YES to take into account interest during construction
B31: Scenarios
B32: Fuel and CO2-price scenario | C32: New Policy 2015 | D32: CustomFuel | E32: =IF(ISBLANK(D32),C32,D32) -> CustomFuel | F32: (Predefined) | G32: Choose scenario for future fuel and CO2-prices. The IEA fuel and CO2 price projections (World Energy Outlook 2015) are predefined in the sheet "FuelPrices" and custom fuel and CO2-prices can be set
B33: Technology scenario | C33: TechBase | E33: =IF(ISBLANK(D33),C33,D33) -> TechBase | F33: (Predefined) | G33: Choose scenario for technical data. See the TechData sheet for further information
B34: Technology year | C34: 2020 | D34: 2030 | E34: =IF(ISBLANK(D34),C34,D34) -> 2030 | F34: (Predefined) | G34: Year for technology data. Changing this value resets the manual settings for individual technologies in row 63
B35: Heat value
B36: Set methodology to value heat production | C36: Cost allocation | E36: =IF(ISBLANK(D36),C36,D36) -> Cost allocation | F36: (Predefined) | G36: Choose method to value heat from combined heat and power plants. Set to YES to use a cost allocation methodology. Otherwise a heat price will be used
B37: Heat efficiency if cost allocation is selected | C37: 1.25 | E37: =IF(ISBLANK(D37),C37,D37) -> 1.25 | F37: (Free to set) | G37: Set the efficiency of heat production used for allocation of fuel and CO2 costs. It is by default set to 125%. Other often used efficiencies are 150% and 200%.
B38: Heat price (EUR/GJ) if heat price is selected | C38: 6.7114 | E38: =IF(ISBLANK(D38),C38,D38)*IF(C22=chosencurrency,1,VLOOKUP(chosencurrency,Currency,2,FALSE)) -> 6.7114 | F38: (Free to set) | G38: ="Choose the price of heat. New values should be typed in the currency and price year shown in cell "&ADDRESS(ROW(chosencurrency),COLUMN(chosencurrency),4,1)&" and "&ADDRESS(ROW(PriceYear),COLUMN(PriceYear),4,1)&" (currently "&chosencurrency&PriceYear&")/GJ. " -> Choose the price of heat. New values should be typed in the currency and price year shown in cell E22 and E23 (currently EUR2020)/GJ.
B39: Inclusion of costs
B40: Include air pollution | C40: YES | E40: =IF(ISBLANK(D40),C40,D40) -> YES | F40: (Predefined) | G40: Set to YES to include air pollution in the LCOE calculation
B41: Profile cost | C41: NO | E41: =IF(ISBLANK(D41),C41,D41) -> NO | F41: (Predefined) | G41: Set to YES to include profile cost. Profile cost have to be defined in the technology data and try to take into account the value of different generation patterns
B42: Graph options
B43: Show grid cost for RES explicitly | C43: NO | E43: =IF(ISBLANK(D43),C43,D43) -> NO | F43: (Predefined) | G43: Set to YES to show grid cost part of investment for Renewable Energy Sources (Offshore Wind, Nearshore Wind, Onshore Wind, Solar PV) as explicit number
B44: Pivot chart
B45: Update data for pivot chart (calculation time ca. 10 seconds) | F45: (Button) | G45: By clicking this button the LCoE calculations are performed for alle technologies and the data for the Pivot chart below for projection of LCoE is updated. All LCoE calculations will use the chosen parameters in Basic user settings (to the left). NB: calculculation time is appr. 30 seconds, depending on computer speed
B61: Summary of the LCoE-calculation | C61: Database | D61: CurrentTech | E61: CurrentTech | F61: CurrentTech | G61: CurrentTech | H61: CurrentTech | I61: CurrentTech | J61: CurrentTech | K61: CurrentTech | L61: CurrentTech | M61: CurrentTech | N61: CurrentTech | O61: CurrentTech | P61: CurrentTech | Q61: CurrentTech | R61: CurrentTech | S61: CurrentTech | T61: CurrentTech | U61: CurrentTech
C62: Technology | D62: 25WIN_OF_in Offshore wind AC incl. Grid | E62: 25WIN_NS_in Nearshore wind incl. Grid | F62: 24WIN_ON_in Onshore wind incl. Grid | G62: 22PV_La_Utility scale PV | H62: 22PV_La_Utility scale PV_tracker | I62: 22PV_Me_roof commercial industrial | J62: 22PV_Sm_roof residential | K62: 18Me BP WPE in_st 80 MW input, woodpellets storage for 10 days | L62: 18Me BP WCH in_st 80 MW input, woodchips storage for 10 days | M62: 16La REF_EX WCH_COA_Newboi_ no_inv_exipla Wood chips CHP refurb. Coal plants, new Boiler, no invest cost for existing plant | N62: 16La REF_EX WCH_COA_exi_exibo_no_inv_exipla Wood chips CHP refurb. Coal plants, existing boiler, no invest cost for existing plant | O62: 17La_EX_COA CHP coal 400-700 MWwe | P62: 16 La EX LTE COA no_inv_exipla - Coal CHP Life time extension of coal power plant no invest cost for existing plant | Q62: 16La EX CC NGA CC large CHP Gas Turbine combined Cycle natural Gas | R62: Nuclear INT | S62: Coal FGD INT | T62: Natural gas CCGT INT | U62: 19WIN_ON_in Onshore wind incl. Grid
C63: Technology year if not standard
C64: First year of operation if not standard
C65: Presentation name for graph (custom)
C66: Reference | D66: =Calculation!E35 -> Tech Cat 2025 Update | E66: =Calculation!F35 -> Tech Cat 2025 Update | F66: =Calculation!G35 -> Tech Cat 2024 Update | G66: =Calculation!H35 -> Tech Cat 2022 Update | H66: =Calculation!I35 -> Tech Cat 2022 Update | I66: =Calculation!J35 -> Tech Cat 2022 Update | J66: =Calculation!K35 -> Tech Cat 2022 Update | K66: =Calculation!L35 -> Tech Cat 2018 Update | L66: =Calculation!M35 -> Tech Cat 2018 Update | M66: =Calculation!N35 -> Tech Cat Aug 2016, Coal Update 2017 | P66: =Calculation!Q35 -> Tech Cat Aug 2016, coal note 2017 data for ex. Plant | Q66: =Calculation!R35 -> Tech Cat 2016 | R66: =Calculation!S35 -> IEA, 2015, Projected cost of generating electricity 2015” | S66: =Calculation!T35 -> IEA 2015, Projected cost of generating electricity 2015 | T66: =Calculation!U35 -> IEA, 2015, Projected cost of generating electricity 2015” | U66: =Calculation!V35 -> Tech Cat 2019 Update | V66: =Calculation!W35 ->  | W66: =Calculation!X35 ->  | X66: =Calculation!Y35 ->  | Y66: =Calculation!Z35 ->  | Z66: =Calculation!AA35 ->  | AA66: =Calculation!AB35 ->  | AB66: =Calculation!AC35 ->  | AC66: =Calculation!AD35 ->  | AD66: =Calculation!AE35 -> 
B67: =PriceYear&"-"&chosencurrency&"/MWh" -> 2020-EUR/MWh | C67: Presentation name | D67: =IF(D65<>"",D65,D62) -> 25WIN_OF_in Offshore wind AC incl. Grid | E67: 25WIN_NS_in Nearshore wind incl. Grid | F67: =IF(F65<>"",F65,F62) -> 24WIN_ON_in Onshore wind incl. Grid | G67: 22PV_La_Utility scale PV | H67: 22PV_La_Utility scale PV_tracker | I67: 22PV_Me_roof commercial industrial | J67: 22PV_Sm_roof residential | K67: 18Me BP WPE in_st 80 MW input, woodpellets storage for 10 days | L67: 18Me BP WCH in_st 80 MW input, woodchips storage for 10 days | M67: 16La REF_EX WCH_COA_Newboi_ no_inv_exipla Wood chips CHP refurb. Coal plants, new Boiler, no invest cost for existing plant | N67: =IF(N65<>"",N65,N62) -> 16La REF_EX WCH_COA_exi_exibo_no_inv_exipla Wood chips CHP refurb. Coal plants, existing boiler, no invest cost for existing plant | O67: 17La_EX_COA CHP coal 400-700 MWwe | P67: 16 La EX LTE COA no_inv_exipla - Coal CHP Life time extension of coal power plant no invest cost for existing plant | Q67: =IF(Q65<>"",Q65,Q62) -> 16La EX CC NGA CC large CHP Gas Turbine combined Cycle natural Gas | R67: Nuclear INT | S67: Coal FGD INT | T67: Natural gas CCGT INT | U67: 19WIN_ON_in Onshore wind incl. Grid | V67: 0 | W67: 0 | X67: 0 | Y67: 0 | Z67: 0 | AA67: 0 | AB67: 0 | AC67: 0 | AD67: 0
B68: =IF(GridCostView="YES","Capital cost","Capital cost incl. grid cost") -> Capital cost incl. grid cost | D68: =IF(D62<>"",IF(GridCostView="YES",Calculation!E17,Calculation!E17+Calculation!E18),"") -> 30.39319979 | E68: =IF(E62<>"",IF(GridCostView="YES",Calculation!F17,Calculation!F17+Calculation!F18),"") -> 21.44338486 | F68: =IF(F62<>"",IF(GridCostView="YES",Calculation!G17,Calculation!G17+Calculation!G18),"") -> 17.77430737 | G68: =IF(G62<>"",IF(GridCostView="YES",Calculation!H17,Calculation!H17+Calculation!H18),"") -> 12.21570758 | H68: =IF(H62<>"",IF(GridCostView="YES",Calculation!I17,Calculation!I17+Calculation!I18),"") -> 12.53860192 | I68: =IF(I62<>"",IF(GridCostView="YES",Calculation!J17,Calculation!J17+Calculation!J18),"") -> 25.27791477 | J68: =IF(J62<>"",IF(GridCostView="YES",Calculation!K17,Calculation!K17+Calculation!K18),"") -> 33.86168138 | K68: =IF(K62<>"",IF(GridCostView="YES",Calculation!L17,Calculation!L17+Calculation!L18),"") -> 52.21282405 | L68: =IF(L62<>"",IF(GridCostView="YES",Calculation!M17,Calculation!M17+Calculation!M18),"") -> 61.24651552 | M68: =IF(M62<>"",IF(GridCostView="YES",Calculation!N17,Calculation!N17+Calculation!N18),"") -> 36.38326622 | N68: =IF(N62<>"",IF(GridCostView="YES",Calculation!O17,Calculation!O17+Calculation!O18),"") -> 36.06769737 | O68: =IF(O62<>"",IF(GridCostView="YES",Calculation!P17,Calculation!P17+Calculation!P18),"") -> 29.15494289 | P68: =IF(P62<>"",IF(GridCostView="YES",Calculation!Q17,Calculation!Q17+Calculation!Q18),"") -> 5.2012482 | Q68: =IF(Q62<>"",IF(GridCostView="YES",Calculation!R17,Calculation!R17+Calculation!R18),"") -> 11.45751147 | R68: =IF(R62<>"",IF(GridCostView="YES",Calculation!S17,Calculation!S17+Calculation!S18),"") -> 27.32200231 | S68: =IF(S62<>"",IF(GridCostView="YES",Calculation!T17,Calculation!T17+Calculation!T18),"") -> 19.16901892 | T68: =IF(T62<>"",IF(GridCostView="YES",Calculation!U17,Calculation!U17+Calculation!U18),"") -> 9.047238537 | U68: =IF(U62<>"",IF(GridCostView="YES",Calculation!V17,Calculation!V17+Calculation!V18),"") -> 17.25582522 | V68: =IF(V62<>"",IF(GridCostView="YES",Calculation!W17,Calculation!W17+Calculation!W18),"") ->  | W68: =IF(W62<>"",IF(GridCostView="YES",Calculation!X17,Calculation!X17+Calculation!X18),"") ->  | X68: =IF(X62<>"",IF(GridCostView="YES",Calculation!Y17,Calculation!Y17+Calculation!Y18),"") ->  | Y68: =IF(Y62<>"",IF(GridCostView="YES",Calculation!Z17,Calculation!Z17+Calculation!Z18),"") ->  | Z68: =IF(Z62<>"",IF(GridCostView="YES",Calculation!AA17,Calculation!AA17+Calculation!AA18),"") ->  | AA68: =IF(AA62<>"",IF(GridCostView="YES",Calculation!AB17,Calculation!AB17+Calculation!AB18),"") ->  | AB68: =IF(AB62<>"",IF(GridCostView="YES",Calculation!AC17,Calculation!AC17+Calculation!AC18),"") ->  | AC68: =IF(AC62<>"",IF(GridCostView="YES",Calculation!AD17,Calculation!AD17+Calculation!AD18),"") ->  | AD68: =IF(AD62<>"",IF(GridCostView="YES",Calculation!AE17,Calculation!AE17+Calculation!AE18),"") -> 
B69: =IF(GridCostView="YES","Capital cost grid","") ->  | D69: =IF(D62<>"",IF(GridCostView="YES",Calculation!E18,0),"") -> 0 | E69: =IF(E62<>"",IF(GridCostView="YES",Calculation!F18,0),"") -> 0 | F69: =IF(F62<>"",IF(GridCostView="YES",Calculation!G18,0),"") -> 0 | G69: =IF(G62<>"",IF(GridCostView="YES",Calculation!H18,0),"") -> 0 | H69: =IF(H62<>"",IF(GridCostView="YES",Calculation!I18,0),"") -> 0 | I69: =IF(I62<>"",IF(GridCostView="YES",Calculation!J18,0),"") -> 0 | J69: =IF(J62<>"",IF(GridCostView="YES",Calculation!K18,0),"") -> 0 | K69: =IF(K62<>"",IF(GridCostView="YES",Calculation!L18,0),"") -> 0 | L69: =IF(L62<>"",IF(GridCostView="YES",Calculation!M18,0),"") -> 0 | M69: =IF(M62<>"",IF(GridCostView="YES",Calculation!N18,0),"") -> 0 | N69: =IF(N62<>"",IF(GridCostView="YES",Calculation!O18,0),"") -> 0 | O69: =IF(O62<>"",IF(GridCostView="YES",Calculation!P18,0),"") -> 0 | P69: =IF(P62<>"",IF(GridCostView="YES",Calculation!Q18,0),"") -> 0 | Q69: =IF(Q62<>"",IF(GridCostView="YES",Calculation!R18,0),"") -> 0 | R69: =IF(R62<>"",IF(GridCostView="YES",Calculation!S18,0),"") -> 0 | S69: =IF(S62<>"",IF(GridCostView="YES",Calculation!T18,0),"") -> 0 | T69: =IF(T62<>"",IF(GridCostView="YES",Calculation!U18,0),"") -> 0 | U69: =IF(U62<>"",IF(GridCostView="YES",Calculation!V18,0),"") -> 0 | V69: =IF(V62<>"",IF(GridCostView="YES",Calculation!W18,0),"") ->  | W69: =IF(W62<>"",IF(GridCostView="YES",Calculation!X18,0),"") ->  | X69: =IF(X62<>"",IF(GridCostView="YES",Calculation!Y18,0),"") ->  | Y69: =IF(Y62<>"",IF(GridCostView="YES",Calculation!Z18,0),"") ->  | Z69: =IF(Z62<>"",IF(GridCostView="YES",Calculation!AA18,0),"") ->  | AA69: =IF(AA62<>"",IF(GridCostView="YES",Calculation!AB18,0),"") ->  | AB69: =IF(AB62<>"",IF(GridCostView="YES",Calculation!AC18,0),"") ->  | AC69: =IF(AC62<>"",IF(GridCostView="YES",Calculation!AD18,0),"") ->  | AD69: =IF(AD62<>"",IF(GridCostView="YES",Calculation!AE18,0),"") -> 
B70: O&M costs | D70: =IF(D$62<>"",Calculation!E19,"") -> 10.91922621 | E70: =IF(E$62<>"",Calculation!F19,"") -> 11.64277108 | F70: =IF(F$62<>"",Calculation!G19,"") -> 6.603703366 | G70: =IF(G$62<>"",Calculation!H19,"") -> 6.402253593 | H70: =IF(H$62<>"",Calculation!I19,"") -> 6.059676866 | I70: =IF(I$62<>"",Calculation!J19,"") -> 7.257674319 | J70: =IF(J$62<>"",Calculation!K19,"") -> 9.139293586 | K70: =IF(K$62<>"",Calculation!L19,"") -> 34.83380415 | L70: =IF(L$62<>"",Calculation!M19,"") -> 42.61607063 | M70: =IF(M$62<>"",Calculation!N19,"") -> 13.63516543 | N70: =IF(N$62<>"",Calculation!O19,"") -> 15.81839286 | O70: =IF(O$62<>"",Calculation!P19,"") -> 10.28765046 | P70: =IF(P$62<>"",Calculation!Q19,"") -> 10.80551688 | Q70: =IF(Q$62<>"",Calculation!R19,"") -> 10.55182816 | R70: =IF(R$62<>"",Calculation!S19,"") -> 14.4035425 | S70: =IF(S$62<>"",Calculation!T19,"") -> 8.550006186 | T70: =IF(T$62<>"",Calculation!U19,"") -> 6.883733407 | U70: =IF(U$62<>"",Calculation!V19,"") -> 5.191350959 | V70: =IF(V$62<>"",Calculation!W19,"") ->  | W70: =IF(W$62<>"",Calculation!X19,"") ->  | X70: =IF(X$62<>"",Calculation!Y19,"") ->  | Y70: =IF(Y$62<>"",Calculation!Z19,"") ->  | Z70: =IF(Z$62<>"",Calculation!AA19,"") ->  | AA70: =IF(AA$62<>"",Calculation!AB19,"") ->  | AB70: =IF(AB$62<>"",Calculation!AC19,"") ->  | AC70: =IF(AC$62<>"",Calculation!AD19,"") ->  | AD70: =IF(AD$62<>"",Calculation!AE19,"") -> 
B71: Other costs | D71: =IF(D$62<>"",Calculation!E20,"") -> 0 | E71: =IF(E$62<>"",Calculation!F20,"") -> 0 | F71: =IF(F$62<>"",Calculation!G20,"") -> 0 | G71: =IF(G$62<>"",Calculation!H20,"") -> 0 | H71: =IF(H$62<>"",Calculation!I20,"") -> 0 | I71: =IF(I$62<>"",Calculation!J20,"") -> 0 | J71: =IF(J$62<>"",Calculation!K20,"") -> 0 | K71: =IF(K$62<>"",Calculation!L20,"") -> 0 | L71: =IF(L$62<>"",Calculation!M20,"") -> 0 | M71: =IF(M$62<>"",Calculation!N20,"") -> 0 | N71: =IF(N$62<>"",Calculation!O20,"") -> 0 | O71: =IF(O$62<>"",Calculation!P20,"") -> 0 | P71: =IF(P$62<>"",Calculation!Q20,"") -> 0 | Q71: =IF(Q$62<>"",Calculation!R20,"") -> 0 | R71: =IF(R$62<>"",Calculation!S20,"") -> 4.524015662 | S71: =IF(S$62<>"",Calculation!T20,"") -> 0 | T71: =IF(T$62<>"",Calculation!U20,"") -> 0 | U71: =IF(U$62<>"",Calculation!V20,"") -> 0 | V71: =IF(V$62<>"",Calculation!W20,"") ->  | W71: =IF(W$62<>"",Calculation!X20,"") ->  | X71: =IF(X$62<>"",Calculation!Y20,"") ->  | Y71: =IF(Y$62<>"",Calculation!Z20,"") ->  | Z71: =IF(Z$62<>"",Calculation!AA20,"") ->  | AA71: =IF(AA$62<>"",Calculation!AB20,"") ->  | AB71: =IF(AB$62<>"",Calculation!AC20,"") ->  | AC71: =IF(AC$62<>"",Calculation!AD20,"") ->  | AD71: =IF(AD$62<>"",Calculation!AE20,"") -> 
B72: Fuel cost | D72: =IF(D$62<>"",Calculation!E21,"") -> 0 | E72: =IF(E$62<>"",Calculation!F21,"") -> 0 | F72: =IF(F$62<>"",Calculation!G21,"") -> 0 | G72: =IF(G$62<>"",Calculation!H21,"") -> 0 | H72: =IF(H$62<>"",Calculation!I21,"") -> 0 | I72: =IF(I$62<>"",Calculation!J21,"") -> 0 | J72: =IF(J$62<>"",Calculation!K21,"") -> 0 | K72: =IF(K$62<>"",Calculation!L21,"") -> 61.74019535 | L72: =IF(L$62<>"",Calculation!M21,"") -> 35.76419137 | M72: =IF(M$62<>"",Calculation!N21,"") -> 51.35592459 | N72: =IF(N$62<>"",Calculation!O21,"") -> 55.0805282 | O72: =IF(O$62<>"",Calculation!P21,"") -> 18.69089327 | P72: =IF(P$62<>"",Calculation!Q21,"") -> 21.99921553 | Q72: =IF(Q$62<>"",Calculation!R21,"") -> 47.39349027 | R72: =IF(R$62<>"",Calculation!S21,"") -> 6.640745384 | S72: =IF(S$62<>"",Calculation!T21,"") -> 26.56299795 | T72: =IF(T$62<>"",Calculation!U21,"") -> 57.01795381 | U72: =IF(U$62<>"",Calculation!V21,"") -> 0 | V72: =IF(V$62<>"",Calculation!W21,"") ->  | W72: =IF(W$62<>"",Calculation!X21,"") ->  | X72: =IF(X$62<>"",Calculation!Y21,"") ->  | Y72: =IF(Y$62<>"",Calculation!Z21,"") ->  | Z72: =IF(Z$62<>"",Calculation!AA21,"") ->  | AA72: =IF(AA$62<>"",Calculation!AB21,"") ->  | AB72: =IF(AB$62<>"",Calculation!AC21,"") ->  | AC72: =IF(AC$62<>"",Calculation!AD21,"") ->  | AD72: =IF(AD$62<>"",Calculation!AE21,"") -> 
B73: Climate externalities | D73: =IF(D$62<>"",Calculation!E22,"") -> 0 | E73: =IF(E$62<>"",Calculation!F22,"") -> 0 | F73: =IF(F$62<>"",Calculation!G22,"") -> 0 | G73: =IF(G$62<>"",Calculation!H22,"") -> 0 | H73: =IF(H$62<>"",Calculation!I22,"") -> 0 | I73: =IF(I$62<>"",Calculation!J22,"") -> 0 | J73: =IF(J$62<>"",Calculation!K22,"") -> 0 | K73: =IF(K$62<>"",Calculation!L22,"") -> 0.1650782109 | L73: =IF(L$62<>"",Calculation!M22,"") -> 0.08120579789 | M73: =IF(M$62<>"",Calculation!N22,"") -> 0.7479984798 | N73: =IF(N$62<>"",Calculation!O22,"") -> 0.9960681002 | O73: =IF(O$62<>"",Calculation!P22,"") -> 50.4137191 | P73: =IF(P$62<>"",Calculation!Q22,"") -> 46.79566626 | Q73: =IF(Q$62<>"",Calculation!R22,"") -> 28.69155544 | R73: =IF(R$62<>"",Calculation!S22,"") -> 0 | S73: =IF(S$62<>"",Calculation!T22,"") -> 87.69020283 | T73: =IF(T$62<>"",Calculation!U22,"") -> 37.32961878 | U73: =IF(U$62<>"",Calculation!V22,"") -> 0 | V73: =IF(V$62<>"",Calculation!W22,"") ->  | W73: =IF(W$62<>"",Calculation!X22,"") ->  | X73: =IF(X$62<>"",Calculation!Y22,"") ->  | Y73: =IF(Y$62<>"",Calculation!Z22,"") ->  | Z73: =IF(Z$62<>"",Calculation!AA22,"") ->  | AA73: =IF(AA$62<>"",Calculation!AB22,"") ->  | AB73: =IF(AB$62<>"",Calculation!AC22,"") ->  | AC73: =IF(AC$62<>"",Calculation!AD22,"") ->  | AD73: =IF(AD$62<>"",Calculation!AE22,"") -> 
B74: Air pollution | D74: =IF(D$62<>"",Calculation!E23,"") -> 0 | E74: =IF(E$62<>"",Calculation!F23,"") -> 0 | F74: =IF(F$62<>"",Calculation!G23,"") -> 0 | G74: =IF(G$62<>"",Calculation!H23,"") -> 0 | H74: =IF(H$62<>"",Calculation!I23,"") -> 0 | I74: =IF(I$62<>"",Calculation!J23,"") -> 0 | J74: =IF(J$62<>"",Calculation!K23,"") -> 0 | K74: =IF(K$62<>"",Calculation!L23,"") -> 4.454102823 | L74: =IF(L$62<>"",Calculation!M23,"") -> 3.913527361 | M74: =IF(M$62<>"",Calculation!N23,"") -> 4.903707027 | N74: =IF(N$62<>"",Calculation!O23,"") -> 5.245144835 | O74: =IF(O$62<>"",Calculation!P23,"") -> 5.73307559 | P74: =IF(P$62<>"",Calculation!Q23,"") -> 6.511890325 | Q74: =IF(Q$62<>"",Calculation!R23,"") -> 1.11777299 | R74: =IF(R$62<>"",Calculation!S23,"") -> 0 | S74: =IF(S$62<>"",Calculation!T23,"") -> 43.09374732 | T74: =IF(T$62<>"",Calculation!U23,"") -> 5.203324391 | U74: =IF(U$62<>"",Calculation!V23,"") -> 0 | V74: =IF(V$62<>"",Calculation!W23,"") ->  | W74: =IF(W$62<>"",Calculation!X23,"") ->  | X74: =IF(X$62<>"",Calculation!Y23,"") ->  | Y74: =IF(Y$62<>"",Calculation!Z23,"") ->  | Z74: =IF(Z$62<>"",Calculation!AA23,"") ->  | AA74: =IF(AA$62<>"",Calculation!AB23,"") ->  | AB74: =IF(AB$62<>"",Calculation!AC23,"") ->  | AC74: =IF(AC$62<>"",Calculation!AD23,"") ->  | AD74: =IF(AD$62<>"",Calculation!AE23,"") -> 
B75: System costs | D75: =IF(D$62<>"",Calculation!E24,"") -> 0 | E75: =IF(E$62<>"",Calculation!F24,"") -> 0 | F75: =IF(F$62<>"",Calculation!G24,"") -> 0 | G75: =IF(G$62<>"",Calculation!H24,"") -> 0 | H75: =IF(H$62<>"",Calculation!I24,"") -> 0 | I75: =IF(I$62<>"",Calculation!J24,"") -> 0 | J75: =IF(J$62<>"",Calculation!K24,"") -> 0 | K75: =IF(K$62<>"",Calculation!L24,"") -> 0 | L75: =IF(L$62<>"",Calculation!M24,"") -> 0 | M75: =IF(M$62<>"",Calculation!N24,"") -> 0 | N75: =IF(N$62<>"",Calculation!O24,"") -> 0 | O75: =IF(O$62<>"",Calculation!P24,"") -> 0 | P75: =IF(P$62<>"",Calculation!Q24,"") -> 0 | Q75: =IF(Q$62<>"",Calculation!R24,"") -> 0 | R75: =IF(R$62<>"",Calculation!S24,"") -> 0 | S75: =IF(S$62<>"",Calculation!T24,"") -> 0 | T75: =IF(T$62<>"",Calculation!U24,"") -> 0 | U75: =IF(U$62<>"",Calculation!V24,"") -> 0 | V75: =IF(V$62<>"",Calculation!W24,"") ->  | W75: =IF(W$62<>"",Calculation!X24,"") ->  | X75: =IF(X$62<>"",Calculation!Y24,"") ->  | Y75: =IF(Y$62<>"",Calculation!Z24,"") ->  | Z75: =IF(Z$62<>"",Calculation!AA24,"") ->  | AA75: =IF(AA$62<>"",Calculation!AB24,"") ->  | AB75: =IF(AB$62<>"",Calculation!AC24,"") ->  | AC75: =IF(AC$62<>"",Calculation!AD24,"") ->  | AD75: =IF(AD$62<>"",Calculation!AE24,"") -> 
B76: Heat revenue | D76: =IF(D$62<>"",Calculation!E25,"") -> 0 | E76: =IF(E$62<>"",Calculation!F25,"") -> 0 | F76: =IF(F$62<>"",Calculation!G25,"") -> 0 | G76: =IF(G$62<>"",Calculation!H25,"") -> 0 | H76: =IF(H$62<>"",Calculation!I25,"") -> 0 | I76: =IF(I$62<>"",Calculation!J25,"") -> 0 | J76: =IF(J$62<>"",Calculation!K25,"") -> 0 | K76: =IF(K$62<>"",Calculation!L25,"") -> 0 | L76: =IF(L$62<>"",Calculation!M25,"") -> 0 | M76: =IF(M$62<>"",Calculation!N25,"") -> 0 | N76: =IF(N$62<>"",Calculation!O25,"") -> 0 | O76: =IF(O$62<>"",Calculation!P25,"") -> 0 | P76: =IF(P$62<>"",Calculation!Q25,"") -> 0 | Q76: =IF(Q$62<>"",Calculation!R25,"") -> 0 | R76: =IF(R$62<>"",Calculation!S25,"") -> 0 | S76: =IF(S$62<>"",Calculation!T25,"") -> 0 | T76: =IF(T$62<>"",Calculation!U25,"") -> 0 | U76: =IF(U$62<>"",Calculation!V25,"") -> 0 | V76: =IF(V$62<>"",Calculation!W25,"") ->  | W76: =IF(W$62<>"",Calculation!X25,"") ->  | X76: =IF(X$62<>"",Calculation!Y25,"") ->  | Y76: =IF(Y$62<>"",Calculation!Z25,"") ->  | Z76: =IF(Z$62<>"",Calculation!AA25,"") ->  | AA76: =IF(AA$62<>"",Calculation!AB25,"") ->  | AB76: =IF(AB$62<>"",Calculation!AC25,"") ->  | AC76: =IF(AC$62<>"",Calculation!AD25,"") ->  | AD76: =IF(AD$62<>"",Calculation!AE25,"") -> 
B77: ="Levelized cost of electricity production, "&PriceYear&"-"&chosencurrency&"/MWh" -> Levelized cost of electricity production, 2020-EUR/MWh | D77: =IF(D62<>"",SUM(D68:D76),"") -> 41.312426 | E77: 33.08615595 | F77: =IF(F62<>"",SUM(F68:F76),"") -> 24.37801073 | G77: =IF(G62<>"",SUM(G68:G76),"") -> 18.61796118 | H77: 18.59827879 | I77: 32.53558909 | J77: 43.00097497 | K77: 153.4060046 | L77: 143.6215107 | M77: 107.0260618 | N77: =IF(N62<>"",SUM(N68:N76),"") -> 113.2078314 | O77: 114.2802813 | P77: 91.31353719 | Q77: =IF(Q62<>"",SUM(Q68:Q76),"") -> 99.21215833 | R77: 52.89030586 | S77: 185.0659732 | T77: 115.4818689 | U77: 22.44717618

Sheet ScenarioResults
B2: Scenariosetting
B4: Basic user settings
B5: Scenario slot number | C5: 1 | D5: 2 | E5: 3 | F5: 4 | G5: 5 | H5: 6 | I5: 7 | J5: 8 | K5: 9 | L5: 10 | M5: 11 | N5: 12 | O5: 13 | P5: 14 | Q5: 15 | R5: 16 | S5: 17 | T5: 18 | U5: 19 | V5: 20
B6: Custom name | C6: toke ole | D6: VE vs. Kul 2030 | E6: UserSce | F6: UserSce | G6: UserSce | H6: UserSce | I6: UserSce | J6: UserSce | K6: UserSce | L6: UserSce | M6: Toke ole | N6: UserSce | O6: UserSce | P6: UserSce | Q6: UserSce | R6: UserSce | S6: UserSce | T6: UserSce | U6: UserSce | V6: UserSce
B7: =IF('UserSettings&Results'!B21<>"",'UserSettings&Results'!B21,"") -> Result view
B8: =IF('UserSettings&Results'!B22<>"",'UserSettings&Results'!B22,"") -> Currency | C8: EUR | D8: EUR | M8: EUR
B9: =IF('UserSettings&Results'!B23<>"",'UserSettings&Results'!B23,"") -> Price year | C9: 2017 | D9: 2015 | M9: 2017
B10: =IF('UserSettings&Results'!B24<>"",'UserSettings&Results'!B24,"") -> Financial settings
B11: =IF('UserSettings&Results'!B25<>"",'UserSettings&Results'!B25,"") -> First year of production | C11: 2022 | D11: 2030 | M11: 2022
B12: =IF('UserSettings&Results'!B26<>"",'UserSettings&Results'!B26,"") -> Lookout period (years) | C12: 20 | D12: Technical | M12: 20
B13: =IF('UserSettings&Results'!B27<>"",'UserSettings&Results'!B27,"") -> Depreciation period (years) | C13: Technical | D13: Technical | M13: Technical
B14: =IF('UserSettings&Results'!B28<>"",'UserSettings&Results'!B28,"") -> Discount rate | C14: 0.04 | D14: 0.04 | M14: 0.04
B15: =IF('UserSettings&Results'!B29<>"",'UserSettings&Results'!B29,"") -> Discount prices | C15: YES | D15: YES | M15: YES
B16: =IF('UserSettings&Results'!B30<>"",'UserSettings&Results'!B30,"") -> Interest during construction | C16: YES | D16: YES | M16: YES
B17: =IF('UserSettings&Results'!B31<>"",'UserSettings&Results'!B31,"") -> Scenarios
B18: =IF('UserSettings&Results'!B32<>"",'UserSettings&Results'!B32,"") -> Fuel and CO2-price scenario | C18: CustomFuel2 | D18: CustomFuel | M18: CustomFuel2
B19: =IF('UserSettings&Results'!B33<>"",'UserSettings&Results'!B33,"") -> Technology scenario | C19: TechBase | D19: TechBase | M19: TechBase
B20: =IF('UserSettings&Results'!B34<>"",'UserSettings&Results'!B34,"") -> Technology year | C20: 2020 | D20: 2030 | M20: 2020
B21: =IF('UserSettings&Results'!B35<>"",'UserSettings&Results'!B35,"") -> Heat value
B22: =IF('UserSettings&Results'!B36<>"",'UserSettings&Results'!B36,"") -> Set methodology to value heat production | C22: Cost allocation | D22: Cost allocation | M22: Cost allocation
B23: =IF('UserSettings&Results'!B37<>"",'UserSettings&Results'!B37,"") -> Heat efficiency if cost allocation is selected | C23: 1.25 | D23: 1.25 | M23: 1.25
B24: =IF('UserSettings&Results'!B38<>"",'UserSettings&Results'!B38,"") -> Heat price (EUR/GJ) if heat price is selected | C24: 6.7114 | D24: 6.7114 | M24: 6.7114
B25: =IF('UserSettings&Results'!B39<>"",'UserSettings&Results'!B39,"") -> Inclusion of costs
B26: =IF('UserSettings&Results'!B40<>"",'UserSettings&Results'!B40,"") -> Include air pollution | C26: YES | D26: YES | M26: YES
B27: =IF('UserSettings&Results'!B41<>"",'UserSettings&Results'!B41,"") -> Profile cost | C27: NO | D27: NO | M27: NO
B28: =IF('UserSettings&Results'!B42<>"",'UserSettings&Results'!B42,"") -> Graph options
B29: =IF('UserSettings&Results'!B43<>"",'UserSettings&Results'!B43,"") -> Show grid cost for RES explicitly | C29: NO | D29: NO | M29: NO
A33: 1 | B33: Database | C33: CurrentTech | D33: CurrentTech | E33: CurrentTech | F33: CurrentTech | G33: CurrentTech | H33: CurrentTech | I33: OldTech | J33: OldTech | K33: CurrentTech | L33: CurrentTech | M33: CurrentTech | N33: CurrentTech | O33: CurrentTech | P33: CurrentTech
A34: toke ole | B34: Technology | C34: 16WIN_ON_in onshorewind incl. Grid | D34: 17WIN_OF_in Offshore wind large DK incl. Grid | E34: 17LaPV_IN Large Photo voltage incl. Grid | F34: 16La REF_EX WPE_COA_exibo_no_inv_exipla Woodpellets CHP refurb. Coal plants, existing Boiler, no invest cost in existing plant | G34: 17La_EX_COA CHP coal 400-700 MWwe | H34: 16La EX CC NGA CC large CHP Gas Turbine combined Cycle natural Gas | I34: 17La EX WPE 800 MW input_2018-02-03 | J34: Large CHP - wood pellets_2017-08-01 | K34: 17La_EX_COA CHP coal 400-700 MWwe | L34: 16La EX CC NGA CC large CHP Gas Turbine combined Cycle natural Gas | M34: 16 La EX LTE COA no_inv_exipla - Coal CHP Life time extension of coal power plant no invest cost for existing plant | N34: 16La REF_EX WPE_COA_exibo_no_inv_exipla Woodpellets CHP refurb. Coal plants, existing Boiler, no invest cost in existing plant | O34: 16La REF_EX WCH_COA_exi_exibo_no_inv_exipla Wood chips CHP refurb. Coal plants, existing boiler, no invest cost for existing plant | P34: 16La REF_EX WCH_COA_Newboi_ no_inv_exipla Wood chips CHP refurb. Coal plants, new Boiler, no invest cost for existing plant
B35: Technology year if not standard
B36: First year of operation if not standard
B37: Presentation name for graph (custom)
B38: Reference | C38: Tech Cat Aug 2016update | D38: Tech Cat Update June 2017 | E38: Tech Cat October 2017 | F38: Tech Cat Aug 2016, Coal Update 2017 | G38: Tech Cat Oct. 2017 update | H38: Tech Cat 2016 | I38: 0 | J38: 0 | K38: Tech Cat Oct. 2017 update | L38: Tech Cat 2016 | O38: Tech Cat Aug 2016, Coal Update 2017 | P38: Tech Cat Aug 2016, Coal Update 2017
A39: 2017-EUR/MWh | B39: Presentation name | C39: 16WIN_ON_in onshorewind incl. Grid | D39: 17WIN_OF_in Offshore wind large DK incl. Grid | E39: 17LaPV_IN Large Photo voltage incl. Grid | F39: 16La REF_EX WPE_COA_exibo_no_inv_exipla Woodpellets CHP refurb. Coal plants, existing Boiler, no invest cost in existing plant | G39: 17La_EX_COA CHP coal 400-700 MWwe | H39: 16La EX CC NGA CC large CHP Gas Turbine combined Cycle natural Gas | I39: 17La EX WPE 800 MW input_2018-02-03 | J39: Large CHP - wood pellets_2017-08-01 | K39: 17La_EX_COA CHP coal 400-700 MWwe | L39: 16La EX CC NGA CC large CHP Gas Turbine combined Cycle natural Gas | M39: 16 La EX LTE COA no_inv_exipla - Coal CHP Life time extension of coal power plant no invest cost for existing plant | N39: 16La REF_EX WPE_COA_exibo_no_inv_exipla Woodpellets CHP refurb. Coal plants, existing Boiler, no invest cost in existing plant | O39: 16La REF_EX WCH_COA_exi_exibo_no_inv_exipla Wood chips CHP refurb. Coal plants, existing boiler, no invest cost for existing plant | P39: 16La REF_EX WCH_COA_Newboi_ no_inv_exipla Wood chips CHP refurb. Coal plants, new Boiler, no invest cost for existing plant | Q39: 0 | R39: 0 | S39: 0 | T39: 0 | U39: 0 | V39: 0 | W39: 0 | X39: 0 | Y39: 0 | Z39: 0 | AA39: 0 | AB39: 0 | AC39: 0
A40: Capital cost incl. grid cost | C40: 20.01335974 | D40: 33.35773702 | E40: 33.05307131 | F40: 12.4780757 | G40: 30.70718582 | H40: 12.27669944 | I40: 40.45738095 | J40: 27.31763928 | K40: 30.70718582 | L40: 12.27669944 | M40: 5.169818106 | N40: 12.4780757 | O40: 36.06427964 | P40: 36.4248875
C41: 0 | D41: 0 | E41: 0 | F41: 0 | G41: 0 | H41: 0 | I41: 0 | J41: 0 | K41: 0 | L41: 0 | M41: 0 | N41: 0 | O41: 0 | P41: 0
A42: O&M costs | C42: 10.23081262 | D42: 13.33144915 | E42: 7.824036089 | F42: 11.83814795 | G42: 10.09680366 | H42: 10.53952687 | I42: 18.08555246 | J42: 17.35385756 | K42: 10.09680366 | L42: 10.53952687 | M42: 10.65946686 | N42: 11.83814795 | O42: 15.63079328 | P42: 13.46300466
A43: Other costs | C43: 0 | D43: 0 | E43: 0 | F43: 0 | G43: 0 | H43: 0 | I43: 0 | J43: 0 | K43: 0 | L43: 0 | M43: 0 | N43: 0 | O43: 0 | P43: 0
A44: Fuel cost | C44: 0 | D44: 0 | E44: 0 | F44: 65.44780098 | G44: 17.97784892 | H44: 37.72911618 | I44: 60.98078522 | J44: 56.44533192 | K44: 17.97784892 | L44: 37.72911618 | M44: 20.2840651 | N44: 65.44780098 | O44: 54.56638178 | P44: 50.64816086
A45: Climate externalities | C45: 0 | D45: 0 | E45: 0 | F45: 0.05607782634 | G45: 14.47954785 | H45: 8.024122039 | I45: 0.04928965323 | J45: 0.04836421505 | K45: 14.47954785 | L45: 8.024122039 | M45: 16.33699851 | O45: 0.4606515639 | P45: 0.2609911092
A46: Air pollution | C46: 0 | D46: 0 | E46: 0 | F46: 2.738039417 | G46: 3.055976654 | H46: 0.8211682473 | I46: 1.384547404 | J46: 3.029258518 | K46: 3.055976654 | L46: 0.8211682473 | M46: 3.44800035 | N46: 2.738039417 | O46: 2.606677233 | P46: 2.431351036
A47: System costs | C47: 0 | D47: 0 | E47: 0 | F47: 0 | G47: 0 | H47: 0 | I47: 0 | J47: 0 | K47: 0 | L47: 0 | M47: 0 | N47: 0 | O47: 0 | P47: 0
A48: Heat revenue | C48: 0 | D48: 0 | E48: 0 | F48: 0 | G48: 0 | H48: 0 | I48: 0 | J48: 0 | K48: 0 | L48: 0 | M48: 0 | N48: 0 | O48: 0 | P48: 0
A49: Levelized cost of electricity production, 2017-EUR/MWh | C49: 30.24417236 | D49: 46.68918617 | E49: 40.8771074 | F49: 92.55814188 | G49: 76.31736291 | H49: 69.39063277 | I49: 120.9575557 | J49: 104.1944515 | K49: 76.31736291 | L49: 69.39063277 | M49: 55.89834893 | N49: 92.50206405 | O49: 109.3287835 | P49: 103.2283952
A52: 2 | B52: Database | C52: CurrentTech | D52: CurrentTech | E52: CurrentTech | F52: CurrentTech | G52: TestTech | H52: TestTech | I52: CurrentTech | J52: CurrentTech | K52: CurrentTech | L52: CurrentTech
A53: VE vs. Kul 2030 | B53: Technology | C53: 16WIN_ON_in onshorewind incl. Grid | D53: 17WIN_OF_in Offshore wind large DK incl. Grid | E53: 17WIN_NS_in Wind Nearshore incl grid | F53: 17LaPV_IN Large Photo voltage incl. Grid | G53: 17La_EX_COA CHP coal 400-700 MWwe | H53: 16 La EX LTE COA ex_inv_cost - Coal CHP Life time extension of coal power plant no invest cost exist | I53: New Technology 78 | J53: New Technology 78 | K53: New Technology 78 | L53: New Technology 86
B54: Technology year if not standard
B55: First year of operation if not standard
B56: Presentation name for graph (custom)
B57: Reference | C57: Tech Cat Aug 2016update | D57: Tech Cat Update June 2017 | E57: Tech Cat Update June 2017 | F57: Tech Cat October 2017 | G57: Tech Cat Oct. 2017 update | H57: Tech Cat Aug 2016, coal note 2017 data for ex. Plant
A58: 2015-EUR/MWh | B58: Presentation name | C58: 16WIN_ON_in onshorewind incl. Grid | D58: 17WIN_OF_in Offshore wind large DK incl. Grid | E58: 17WIN_NS_in Wind Nearshore incl grid | F58: 17LaPV_IN Large Photo voltage incl. Grid | G58: 17La_EX_COA CHP coal 400-700 MWwe | H58: 16 La EX LTE COA ex_inv_cost - Coal CHP Life time extension of coal power plant no invest cost exist | I58: New Technology 78 | J58: New Technology 78 | K58: New Technology 78 | L58: New Technology 86 | M58: 0 | N58: 0 | O58: 0 | P58: 0 | Q58: 0 | R58: 0 | S58: 0 | T58: 0 | U58: 0 | V58: 0 | W58: 0 | X58: 0 | Y58: 0 | Z58: 0 | AA58: 0 | AB58: 0 | AC58: 0
A59: Capital cost | C59: 16.87572283 | D59: 26.00610795 | E59: 22.60403971 | F59: 24.57723699 | G59: 22.93591227 | H59: 3.066041754
C60: 0 | D60: 0 | E60: 0 | F60: 0 | G60: 0 | H60: 0 | I60: 0 | J60: 0 | K60: 0 | L60: 0
A61: O&M costs | C61: 9.26875 | D61: 10.82903226 | E61: 9.716129032 | F61: 6.018518519 | G61: 9.611198533 | H61: 10.09501328
A62: Other costs | C62: 0 | D62: 0 | E62: 0 | F62: 0 | G62: 0 | H62: 0
A63: Fuel cost | C63: 0 | D63: 0 | E63: 0 | F63: 0 | G63: 18.25267739 | H63: 20.73222853
A64: Climate externalities | C64: 0 | D64: 0 | E64: 0 | F64: 0 | G64: 16.83830577 | H64: 19.12572034
A65: Air pollution | C65: 0 | D65: 0 | E65: 0 | F65: 0 | G65: 2.861517267 | H65: 3.250242616
A66: System costs | C66: 0 | D66: 0 | E66: 0 | F66: 0 | G66: 0 | H66: 0
A67: Heat revenue | C67: 0 | D67: 0 | E67: 0 | F67: 0 | G67: 0 | H67: 0 | I67: 0 | J67: 0 | K67: 0 | L67: 0
A68: Levelized cost of electricity production, 2015-EUR/MWh | C68: 26.14447283 | D68: 36.83514021 | E68: 32.32016874 | F68: 30.59575551 | G68: 70.49961123 | H68: 56.26924652
A71: 3 | B71: Database
B72: Technology
B73: Technology year
B74: First year of operation
B75: Presentation name (custom)
B76: Reference
A77: 2015-EUR/MWh | B77: Presentation name | O77: 0 | P77: 0 | Q77: 0 | R77: 0 | S77: 0 | T77: 0 | U77: 0 | V77: 0 | W77: 0 | X77: 0 | Y77: 0 | Z77: 0 | AA77: 0 | AB77: 0 | AC77: 0
A78: Capital cost
A79: Capital cost grid
A80: O&M costs
A81: Other costs
A82: Fuel cost
A83: Climate externalities
A84: Air pollution
A85: System costs
A86: Heat revenue
A87: Levelized cost of electricity production, 2015-EUR/MWh
A90: 4 | B90: Database
B91: Technology
B92: Technology year
B93: First year of operation
B94: Presentation name (custom)
B95: Reference
A96: 2015-EUR/MWh | B96: Presentation name
A97: Capital cost
A98: Capital cost grid
A99: O&M costs
A100: Other costs
A101: Fuel cost
A102: Climate externalities
A103: Air pollution
A104: System costs
A105: Heat revenue
A106: Levelized cost of electricity production, 2015-EUR/MWh
A109: 5 | B109: Database
B110: Technology
B111: Technology year
B112: First year of operation
B113: Presentation name (custom)
B114: Reference
A115: 2015-DKK/MWh | B115: Presentation name
A116: Capital cost
A117: Capital cost grid
A118: O&M costs
A119: Other costs
A120: Fuel cost
A121: Climate externalities
A122: Air pollution
A123: System costs
A124: Heat revenue
A125: Levelized cost of electricity production, 2015-DKK/MWh
A128: 6 | B128: Database
B129: Technology
B130: Technology year
B131: First year of operation
B132: Presentation name (custom)
B133: Reference
B134: Presentation name
A135: Capital cost
A136: Capital cost grid
A137: O&M costs
A138: Other costs
A139: Fuel cost
A140: Climate externalities
A141: Air pollution
A142: System costs
A143: Heat revenue
A147: 7 | B147: Database
B148: Technology
B149: Technology year
B150: First year of operation
B151: Presentation name (custom)
B152: Reference
B153: Presentation name
A154: Capital cost
A155: Capital cost grid
A156: O&M costs
A157: Other costs
A158: Fuel cost
A159: Climate externalities
A160: Air pollution
A161: System costs
A162: Heat revenue
A166: 8 | B166: Database
B167: Technology
B168: Technology year
B169: First year of operation
B170: Presentation name (custom)
B171: Reference
B172: Presentation name
A173: Capital cost
A174: Capital cost grid
A175: O&M costs
A176: Other costs
A177: Fuel cost
A178: Climate externalities
A179: Air pollution
A180: System costs
A181: Heat revenue
A185: 9 | B185: Database
B186: Technology
B187: Technology year
B188: First year of operation
B189: Presentation name (custom)
B190: Reference
B191: Presentation name
A192: Capital cost
A193: Capital cost grid
A194: O&M costs
A195: Other costs
A196: Fuel cost
A197: Climate externalities
A198: Air pollution
A199: System costs
A200: Heat revenue
A204: 10 | B204: Database
B205: Technology
B206: Technology year
B207: First year of operation
B208: Presentation name (custom)
B209: Reference
B210: Presentation name
A211: Capital cost
A212: Capital cost grid
A213: O&M costs
A214: Other costs
A215: Fuel cost
A216: Climate externalities
A217: Air pollution
A218: System costs
A219: Heat revenue
A223: 11 | B223: Database | C223: CurrentTech | D223: CurrentTech | E223: CurrentTech | F223: CurrentTech | G223: CurrentTech | H223: CurrentTech | I223: OldTech | J223: OldTech | K223: CurrentTech | L223: CurrentTech | M223: CurrentTech | N223: CurrentTech | O223: CurrentTech | P223: CurrentTech
A224: Toke ole | B224: Technology | C224: 16WIN_ON_in onshorewind incl. Grid | D224: 17WIN_OF_in Offshore wind large DK incl. Grid | E224: 17LaPV_IN Large Photo voltage incl. Grid | F224: 16La REF_EX WPE_COA_exibo_no_inv_exipla Woodpellets CHP refurb. Coal plants, existing Boiler, no invest cost in existing plant | G224: 17La_EX_COA CHP coal 400-700 MWwe | H224: 16La EX CC NGA CC large CHP Gas Turbine combined Cycle natural Gas | I224: 17La EX WPE 800 MW input_2018-02-03 | J224: Large CHP - wood pellets_2017-08-01 | K224: 17La_EX_COA CHP coal 400-700 MWwe | L224: 16La EX CC NGA CC large CHP Gas Turbine combined Cycle natural Gas | M224: 16 La EX LTE COA no_inv_exipla - Coal CHP Life time extension of coal power plant no invest cost for existing plant | N224: 16La REF_EX WPE_COA_exibo_no_inv_exipla Woodpellets CHP refurb. Coal plants, existing Boiler, no invest cost in existing plant | O224: 16La REF_EX WCH_COA_exi_exibo_no_inv_exipla Wood chips CHP refurb. Coal plants, existing boiler, no invest cost for existing plant | P224: 16La REF_EX WCH_COA_Newboi_ no_inv_exipla Wood chips CHP refurb. Coal plants, new Boiler, no invest cost for existing plant
B225: Technology year if not standard
B226: First year of operation if not standard
B227: Presentation name for graph (custom)
B228: Reference | C228: Tech Cat Aug 2016update | D228: Tech Cat Update June 2017 | E228: Tech Cat October 2017 | F228: Tech Cat Aug 2016, Coal Update 2017 | G228: Tech Cat Oct. 2017 update | H228: Tech Cat 2016 | I228: 0 | J228: 0 | K228: Tech Cat Oct. 2017 update | L228: Tech Cat 2016 | O228: Tech Cat Aug 2016, Coal Update 2017 | P228: Tech Cat Aug 2016, Coal Update 2017
A229: 2017-EUR/MWh | B229: Presentation name | C229: 16WIN_ON_in onshorewind incl. Grid | D229: 17WIN_OF_in Offshore wind large DK incl. Grid | E229: 17LaPV_IN Large Photo voltage incl. Grid | F229: 16La REF_EX WPE_COA_exibo_no_inv_exipla Woodpellets CHP refurb. Coal plants, existing Boiler, no invest cost in existing plant | G229: 17La_EX_COA CHP coal 400-700 MWwe | H229: 16La EX CC NGA CC large CHP Gas Turbine combined Cycle natural Gas | I229: 17La EX WPE 800 MW input_2018-02-03 | J229: Large CHP - wood pellets_2017-08-01 | K229: 17La_EX_COA CHP coal 400-700 MWwe | L229: 16La EX CC NGA CC large CHP Gas Turbine combined Cycle natural Gas | M229: 16 La EX LTE COA no_inv_exipla - Coal CHP Life time extension of coal power plant no invest cost for existing plant | N229: 16La REF_EX WPE_COA_exibo_no_inv_exipla Woodpellets CHP refurb. Coal plants, existing Boiler, no invest cost in existing plant | O229: 16La REF_EX WCH_COA_exi_exibo_no_inv_exipla Wood chips CHP refurb. Coal plants, existing boiler, no invest cost for existing plant | P229: 16La REF_EX WCH_COA_Newboi_ no_inv_exipla Wood chips CHP refurb. Coal plants, new Boiler, no invest cost for existing plant | Q229: 0 | R229: 0 | S229: 0 | T229: 0 | U229: 0 | V229: 0 | W229: 0 | X229: 0 | Y229: 0 | Z229: 0 | AA229: 0 | AB229: 0 | AC229: 0
A230: Capital cost incl. grid cost | C230: 20.01335974 | D230: 33.35773702 | E230: 33.05307131 | F230: 12.4780757 | G230: 30.70718582 | H230: 12.27669944 | I230: 40.45738095 | J230: 27.31763928 | K230: 30.70718582 | L230: 12.27669944 | M230: 5.169818106 | N230: 12.4780757 | O230: 36.06427964 | P230: 36.4248875
... 154 more rows

Sheet ResultsAllYears
A1: Technology name | B1: Year | C1: Capital cost | D1: Capital cost grid | E1: O&M costs | F1: Other costs | G1: Fuel cost | H1: Climate externalities | I1: Air pollution | J1: System costs | K1: Heat revenue | L1: LCoE
A2: 18Me BP WCH in_st 80 MW input, woodchips storage for 10 days | B2: 2015 | C2: 64.77344665 | D2: 0 | E2: 46.48513517 | F2: 0 | G2: 36.11589192 | H2: 0.1007548953 | I2: 8.845075928 | J2: 0 | K2: 0 | L2: 156.3203046 | Q2: Sum of LCoE | R2: Column Labels
A3: 18Me BP WCH in_st 80 MW input, woodchips storage for 10 days | B3: 2020 | C3: 63.07780669 | D3: 0 | E3: 45.20067721 | F3: 0 | G3: 36.5851764 | H3: 0.09736946566 | I3: 6.875175925 | J3: 0 | K3: 0 | L3: 151.8362057 | Q3: Row Labels | R3: 22PV_La_Utility scale PV | S3: 22PV_La_Utility scale PV_tracker | T3: 22PV_Sm_roof residential | U3: 22PV_Me_roof commercial industrial
A4: 18Me BP WCH in_st 80 MW input, woodchips storage for 10 days | B4: 2030 | C4: 61.24651552 | D4: 0 | E4: 42.61607063 | F4: 0 | G4: 36.22399514 | H4: 0.1102818988 | I4: 3.913527361 | J4: 0 | K4: 0 | L4: 144.1103905 | Q4: 2020 | R4: 29.49513598 | S4: 29.0826968 | T4: 71.71457972 | U4: 49.08913948
A5: 18Me BP WCH in_st 80 MW input, woodchips storage for 10 days | B5: 2050 | C5: 57.7195844 | D5: 0 | E5: 39.69490703 | F5: 0 | G5: 35.40704823 | H5: 0.2372069666 | I5: 2.274196473 | J5: 0 | K5: 0 | L5: 135.3329431 | Q5: 2025 | R5: 23.64450579 | S5: 23.43387461 | T5: 56.24322806 | U5: 40.57494475
A6: 18Me BP WPE in_st 80 MW input, woodpellets storage for 10 days | B6: 2015 | C6: 53.88743808 | D6: 0 | E6: 36.81975304 | F6: 0 | G6: 62.76740384 | H6: 0.1236517143 | I6: 10.12874902 | J6: 0 | K6: 0 | L6: 163.7269957 | Q6: 2030 | R6: 18.61796118 | S6: 18.59827879 | T6: 43.00097497 | U6: 32.53558909
A7: 18Me BP WPE in_st 80 MW input, woodpellets storage for 10 days | B7: 2020 | C7: 52.55534332 | D7: 0 | E7: 35.81476105 | F7: 0 | G7: 62.65828686 | H7: 0.1540422067 | I7: 7.814038727 | J7: 0 | K7: 0 | L7: 158.9964722 | Q7: 2040 | R7: 15.52532506 | S7: 15.96428923 | T7: 35.95636735 | U7: 24.00746318
A8: 18Me BP WPE in_st 80 MW input, woodpellets storage for 10 days | B8: 2030 | C8: 52.21282405 | D8: 0 | E8: 34.83380415 | F8: 0 | G8: 61.63335302 | H8: 0.2241852062 | I8: 4.454102823 | J8: 0 | K8: 0 | L8: 153.3582692 | Q8: 2050 | R8: 13.98955406 | S8: 14.72239443 | T8: 32.55983151 | U8: 21.56459961
A9: 18Me BP WPE in_st 80 MW input, woodpellets storage for 10 days | B9: 2050 | C9: 47.39585004 | D9: 0 | E9: 31.48485396 | F9: 0 | G9: 59.17112092 | H9: 0 | I9: 2.596211538 | J9: 0 | K9: 0 | L9: 140.6480364
A10: 18La BP WPE in_st 800 MW input, woodpellets storage for 10 days | B10: 2015 | C10: 43.54051505 | D10: 0 | E10: 19.70824984 | F10: 0 | G10: 65.32872864 | H10: 0.1540289517 | I10: 2.819880794 | J10: 0 | K10: 0 | L10: 131.5514033
A11: 18La BP WPE in_st 800 MW input, woodpellets storage for 10 days | B11: 2020 | C11: 42.25593604 | D11: 0 | E11: 19.24894868 | F11: 0 | G11: 63.63455458 | H11: 0.1807041122 | I11: 2.937399506 | J11: 0 | K11: 0 | L11: 128.2575429
A12: 18La BP WPE in_st 800 MW input, woodpellets storage for 10 days | B12: 2030 | C12: 38.73511796 | D12: 0 | E12: 17.82890352 | F12: 0 | G12: 64.26329948 | H12: 0.2637180284 | I12: 2.531530066 | J12: 0 | K12: 0 | L12: 123.6225691
A13: 18La BP WPE in_st 800 MW input, woodpellets storage for 10 days | B13: 2050 | C13: 35.16372913 | D13: 0 | E13: 16.48665358 | F13: 0 | G13: 57.64598475 | H13: 0 | I13: 1.403212708 | J13: 0 | K13: 0 | L13: 110.6995802
A14: 18 Me BP STR 80MW input, Straw CHP Medium, 2 days storage | B14: 2015 | C14: 63.38451489 | D14: 0 | E14: 42.30730553 | F14: 0 | G14: 36.26458694 | H14: 0.1354951602 | I14: 11.82037806 | J14: 0 | K14: 0 | L14: 153.9122806
A15: 18 Me BP STR 80MW input, Straw CHP Medium, 2 days storage | B15: 2020 | C15: 64.36172406 | D15: 0 | E15: 42.22743283 | F15: 0 | G15: 36.79242125 | H15: 0.169874248 | I15: 9.519764918 | J15: 0 | K15: 0 | L15: 153.0712173
A16: 18 Me BP STR 80MW input, Straw CHP Medium, 2 days storage | B16: 2030 | C16: 61.1149411 | D16: 0 | E16: 39.84655054 | F16: 0 | G16: 36.42135381 | H16: 0.2472278956 | I16: 6.584075443 | J16: 0 | K16: 0 | L16: 144.2141488
A17: 18 Me BP STR 80MW input, Straw CHP Medium, 2 days storage | B17: 2050 | C17: 55.44366473 | D17: 0 | E17: 35.8846156 | F17: 0 | G17: 35.40347636 | H17: 0.3216663795 | I17: 3.837299947 | J17: 0 | K17: 0 | L17: 130.890723
A18: 16 ME BP SC NGA - Gas Turbine Single Cycle, medium,natural gas | B18: 2015 | C18: 7.998693437 | D18: 0 | E18: 9.098243949 | F18: 0 | G18: 71.98354001 | H18: 26.34423876 | I18: 2.785776827 | J18: 0 | K18: 0 | L18: 118.210493
A19: 16 ME BP SC NGA - Gas Turbine Single Cycle, medium,natural gas | B19: 2020 | C19: 7.865381879 | D19: 0 | E19: 8.884167621 | F19: 0 | G19: 74.28937175 | H19: 33.25622229 | I19: 2.140672488 | J19: 0 | K19: 0 | L19: 126.435816
A20: 16 ME BP SC NGA - Gas Turbine Single Cycle, medium,natural gas | B20: 2030 | C20: 7.465447208 | D20: 0 | E20: 8.477422597 | F20: 0 | G20: 55.46968506 | H20: 47.23532212 | I20: 1.400408006 | J20: 0 | K20: 0 | L20: 120.048285
A21: 16 ME BP SC NGA - Gas Turbine Single Cycle, medium,natural gas | B21: 2050 | C21: 6.932200978 | D21: 0 | E21: 8.134900472 | F21: 0 | G21: 62.15516457 | H21: 61.17896054 | I21: 1.278414062 | J21: 0 | K21: 0 | L21: 139.6796406
A22: 16La EX CC NGA CC large CHP Gas Turbine combined Cycle natural Gas | B22: 2015 | C22: 12.518652 | D22: 0 | E22: 11.40210479 | F22: 0 | G22: 57.70721717 | H22: 22.27457496 | I22: 2.273890063 | J22: 0 | K22: 0 | L22: 106.176439
A23: 16La EX CC NGA CC large CHP Gas Turbine combined Cycle natural Gas | B23: 2020 | C23: 12.2055594 | D23: 0 | E23: 11.12306926 | F23: 0 | G23: 51.65212415 | H23: 27.41412238 | I23: 1.719097763 | J23: 0 | K23: 0 | L23: 104.113973
A24: 16La EX CC NGA CC large CHP Gas Turbine combined Cycle natural Gas | B24: 2030 | C24: 11.45751147 | D24: 0 | E24: 10.55182816 | F24: 0 | G24: 44.69686403 | H24: 38.96469581 | I24: 1.11777299 | J24: 0 | K24: 0 | L24: 106.7886725
A25: 16La EX CC NGA CC large CHP Gas Turbine combined Cycle natural Gas | B25: 2050 | C25: 11.001909 | D25: 0 | E25: 9.924349539 | F25: 0 | G25: 50.26843118 | H25: 49.41969569 | I25: 0.8261511256 | J25: 0 | K25: 0 | L25: 121.4405365
A26: 17La_EX_COA CHP coal 400-700 MWwe | B26: 2015 | C26: 31.28736103 | D26: 0 | E26: 10.938477 | F26: 0 | G26: 23.33681921 | H26: 47.25094287 | I26: 6.672323803 | J26: 0 | K26: 0 | L26: 119.4859239
A27: 17La_EX_COA CHP coal 400-700 MWwe | B27: 2020 | C27: 30.37618722 | D27: 0 | E27: 10.65583379 | F27: 0 | G27: 19.68106492 | H27: 53.08444405 | I27: 6.036791886 | J27: 0 | K27: 0 | L27: 119.8343219
A28: 17La_EX_COA CHP coal 400-700 MWwe | B28: 2030 | C28: 29.15494289 | D28: 0 | E28: 10.28765046 | F28: 0 | G28: 17.03253258 | H28: 72.81291277 | I28: 5.73307559 | J28: 0 | K28: 0 | L28: 135.0211143
A29: 17La_EX_COA CHP coal 400-700 MWwe | B29: 2040 | D29: 0 | K29: 0
A30: 17La_EX_COA CHP coal 400-700 MWwe | B30: 2050 | C30: 27.95455914 | D30: 0 | E30: 9.864081513 | F30: 0 | G30: 14.54444554 | H30: 80.52284119 | I30: 4.911656066 | J30: 0 | K30: 0 | L30: 137.7975835
A31: Coal FGD INT | B31: 2015 | C31: 19.88535588 | D31: 0 | E31: 8.875681834 | F31: 0 | G31: 29.02870028 | H31: 74.15316177 | I31: 42.39150912 | J31: 0 | K31: 0 | L31: 174.3344089
A32: Coal FGD INT | B32: 2020 | C32: 19.57625709 | D32: 0 | E32: 8.73164766 | F32: 0 | G32: 26.85379056 | H32: 85.16308429 | I32: 43.09374732 | J32: 0 | K32: 0 | L32: 183.4185269
A33: Coal FGD INT | B33: 2030 | C33: 19.16901892 | D33: 0 | E33: 8.550006186 | F33: 0 | G33: 24.72725357 | H33: 110.386266 | I33: 43.09374732 | J33: 0 | K33: 0 | L33: 205.926292
A34: Coal FGD INT | B34: 2050 | C34: 18.37978126 | D34: 0 | E34: 8.19798051 | F34: 0 | G34: 23.53042865 | H34: 98.86205423 | I34: 35.22063995 | J34: 0 | K34: 0 | L34: 184.1908846
A35: Coal no FGD INT | B35: 2015 | C35: 16.9025525 | D35: 0 | E35: 7.544329559 | F35: 0 | G35: 29.02870028 | H35: 74.20969248 | I35: 80.40959145 | J35: 0 | K35: 0 | L35: 208.0948663
A36: Coal no FGD INT | B36: 2020 | C36: 16.63981852 | D36: 0 | E36: 7.421900511 | F36: 0 | G36: 26.85379056 | H36: 85.22800842 | I36: 78.83440877 | J36: 0 | K36: 0 | L36: 214.9779268
A37: Coal no FGD INT | B37: 2030 | C37: 16.29366608 | D37: 0 | E37: 7.267505258 | F37: 0 | G37: 24.72725357 | H37: 110.4704191 | I37: 78.83440877 | J37: 0 | K37: 0 | L37: 237.5932527
A38: Coal no FGD INT | B38: 2050 | C38: 15.62281407 | D38: 0 | E38: 6.968283433 | F38: 0 | G38: 23.53042865 | H38: 98.93742178 | I38: 66.55953666 | J38: 0 | K38: 0 | L38: 211.6184846
A39: Natural gas CCGT INT | B39: 2015 | C39: 9.693469861 | D39: 0 | E39: 7.39353148 | F39: 0 | G39: 63.06850939 | H39: 26.07389711 | I39: 4.89904397 | J39: 0 | K39: 0 | L39: 111.1284518
A40: Natural gas CCGT INT | B40: 2020 | C40: 9.53191203 | D40: 0 | E40: 7.215150802 | F40: 0 | G40: 67.93321939 | H40: 34.21444887 | I40: 5.218785584 | J40: 0 | K40: 0 | L40: 124.1135167
A41: Natural gas CCGT INT | B41: 2030 | C41: 9.047238537 | D41: 0 | E41: 6.883733407 | F41: 0 | G41: 54.11437245 | H41: 46.96961839 | I41: 5.203324391 | J41: 0 | K41: 0 | L41: 122.2182872
A42: Natural gas CCGT INT | B42: 2050 | C42: 8.401007213 | D42: 0 | E42: 6.628347897 | F42: 0 | G42: 56.63610029 | H42: 55.75873183 | I42: 4.543099697 | J42: 0 | K42: 0 | L42: 131.9672869
A43: Nuclear INT | B43: 2015 | C43: 27.32200231 | D43: 0 | E43: 14.4035425 | F43: 4.524015662 | G43: 6.629403266 | H43: 0 | I43: 0 | J43: 0 | K43: 0 | L43: 52.87896374
A44: Nuclear INT | B44: 2020 | C44: 27.32200231 | D44: 0 | E44: 14.4035425 | F44: 4.524015662 | G44: 6.648983857 | H44: 0 | I44: 0 | J44: 0 | K44: 0 | L44: 52.89854434
A45: Nuclear INT | B45: 2030 | C45: 27.32200231 | D45: 0 | E45: 14.4035425 | F45: 4.524015662 | G45: 6.699859815 | H45: 0 | I45: 0 | J45: 0 | K45: 0 | L45: 52.94942029
A46: Nuclear INT | B46: 2050 | C46: 27.32200231 | D46: 0 | E46: 14.4035425 | F46: 4.524015662 | G46: 6.872857794 | H46: 0 | I46: 0 | J46: 0 | K46: 0 | L46: 53.12241827
A47: Solar PV INT | B47: 2015 | C47: 49.28715291 | D47: 0 | E47: 7.983557051 | F47: 0 | G47: 0 | H47: 0 | I47: 0 | J47: 0 | K47: 0 | L47: 57.27070996
A48: Solar PV INT | B48: 2020 | C48: 50.0470208 | D48: 0 | E48: 7.961851748 | F48: 0 | G48: 0 | H48: 0 | I48: 0 | J48: 0 | K48: 0 | L48: 58.00887255
A49: Solar PV INT | B49: 2030 | C49: 47.52235546 | D49: 0 | E49: 7.490657739 | F49: 0 | G49: 0 | H49: 0 | I49: 0 | J49: 0 | K49: 0 | L49: 55.0130132
A50: Solar PV INT | B50: 2050 | C50: 43.11242874 | D50: 0 | E50: 6.704504529 | F50: 0 | G50: 0 | H50: 0 | I50: 0 | J50: 0 | K50: 0 | L50: 49.81693327
A51: Solar PV INT(/DK)* | B51: 2015 | C51: 41.98080714 | D51: 0 | E51: 5.981544465 | F51: 0 | G51: 0 | H51: 0 | I51: 0 | J51: 0 | K51: 0 | L51: 47.96235161
A52: Solar PV INT(/DK)* | B52: 2020 | C52: 24.10009299 | D52: 0 | E52: 5.100053702 | F52: 0 | G52: 0 | H52: 0 | I52: 0 | J52: 0 | K52: 0 | L52: 29.20014669
A53: Solar PV INT(/DK)* | B53: 2030 | C53: 19.82427004 | D53: 0 | E53: 4.092635687 | F53: 0 | G53: 0 | H53: 0 | I53: 0 | J53: 0 | K53: 0 | L53: 23.91690573
A54: Solar PV INT(/DK)* | B54: 2050 | C54: 15.93715827 | D54: 0 | E54: 3.462999427 | F54: 0 | G54: 0 | H54: 0 | I54: 0 | J54: 0 | K54: 0 | L54: 19.40015769
A55: Wind onshore INT | B55: 2015 | C55: 30.8644522 | D55: 0 | E55: 17.7105127 | F55: 0 | G55: 0 | H55: 0 | I55: 0 | J55: 0 | K55: 0 | L55: 48.5749649
A56: Wind onshore INT | B56: 2020 | C56: 27.99222338 | D56: 0 | E56: 16.14031146 | F56: 0 | G56: 0 | H56: 0 | I56: 0 | J56: 0 | K56: 0 | L56: 44.13253484
A57: Wind onshore INT | B57: 2030 | C57: 22.59101048 | D57: 0 | E57: 14.83139437 | F57: 0 | G57: 0 | H57: 0 | I57: 0 | J57: 0 | K57: 0 | L57: 37.42240485
A58: Wind onshore INT | B58: 2050 | C58: 18.50486901 | D58: 0 | E58: 13.63572595 | F58: 0 | G58: 0 | H58: 0 | I58: 0 | J58: 0 | K58: 0 | L58: 32.14059496
A59: Biomass plant INT | B59: 2015 | C59: 28.68786425 | D59: 0 | E59: 22.30209208 | F59: 0 | G59: 63.8017644 | H59: 0.3278177108 | I59: 18.6114106 | J59: 0 | K59: 0 | L59: 133.730949
A60: Biomass plant INT | B60: 2020 | C60: 27.97870169 | D60: 0 | E60: 21.7772287 | F60: 0 | G60: 64.98343828 | H60: 0.3764905861 | I60: 19.28131565 | J60: 0 | K60: 0 | L60: 134.3971749
A61: Biomass plant INT | B61: 2030 | C61: 27.79635592 | D61: 0 | E61: 21.29792385 | F61: 0 | G61: 66.66706884 | H61: 0.4879977086 | I61: 19.28131565 | J61: 0 | K61: 0 | L61: 135.530662
A62: Biomass plant INT | B62: 2050 | C62: 25.23196055 | D62: 0 | E62: 19.5489136 | F62: 0 | G62: 57.76657462 | H62: 0.3817107972 | I62: 15.61874208 | J62: 0 | K62: 0 | L62: 118.5479016
A63: 18La BP WCH in_st 600 MW input, woodchips storage for 10 days | B63: 2015 | C63: 50.74386111 | D63: 0 | E63: 25.58212122 | F63: 0 | G63: 35.95022695 | H63: 1.075133358 | I63: 2.836812518 | J63: 0 | K63: 0 | L63: 116.1881552
A64: 18La BP WCH in_st 600 MW input, woodchips storage for 10 days | B64: 2020 | C64: 49.32643482 | D64: 0 | E64: 24.96129987 | F64: 0 | G64: 34.97885826 | H64: 1.002463386 | I64: 2.300450546 | J64: 0 | K64: 0 | L64: 112.5695069
A65: 18La BP WCH in_st 600 MW input, woodchips storage for 10 days | B65: 2030 | C65: 46.37818814 | D65: 0 | E65: 23.71965717 | F65: 0 | G65: 35.55406951 | H65: 1.092132043 | I65: 1.93033911 | J65: 0 | K65: 0 | L65: 108.674386
A66: 18La BP WCH in_st 600 MW input, woodchips storage for 10 days | B66: 2050 | C66: 43.42994146 | D66: 0 | E66: 22.54223736 | F66: 0 | G66: 32.53905505 | H66: 1.041869082 | I66: 1.071600026 | J66: 0 | K66: 0 | L66: 100.624703
A67: 16 La EX LTE COA no_inv_exipla - Coal CHP Life time extension of coal power plant no invest cost for existing plant | B67: 2015 | C67: 5.305918631 | D67: 0 | E67: 11.67401012 | F67: 0 | G67: 26.61892688 | H67: 32.90677639 | I67: 6.799730034 | J67: 0 | K67: 0 | L67: 83.30536205
A68: 16 La EX LTE COA no_inv_exipla - Coal CHP Life time extension of coal power plant no invest cost for existing plant | B68: 2020 | C68: 5.260512303 | D68: 0 | E68: 11.24964998 | F68: 0 | G68: 28.02244284 | H68: 45.24193324 | I68: 6.776691282 | J68: 0 | K68: 0 | L68: 96.55122964
A69: 16 La EX LTE COA no_inv_exipla - Coal CHP Life time extension of coal power plant no invest cost for existing plant | B69: 2030 | C69: 5.2012482 | D69: 0 | E69: 10.80551688 | F69: 0 | G69: 19.33926033 | H69: 60.38005938 | I69: 6.511890325 | J69: 0 | K69: 0 | L69: 102.2379751
A70: 16 La EX LTE COA no_inv_exipla - Coal CHP Life time extension of coal power plant no invest cost for existing plant | B70: 2050 | D70: 0 | K70: 0
A71: 16La REF_EX WPE_COA_exibo_no_inv_exipla Woodpellets CHP refurb. Coal plants, existing Boiler, no invest cost in existing plant | B71: 2015 | C71: 12.99376016 | D71: 0 | E71: 12.9722802 | F71: 0 | G71: 73.06206164 | H71: 0.1243147712 | I71: 6.228948461 | J71: 0 | K71: 0 | L71: 105.3813652
A72: 16La REF_EX WPE_COA_exibo_no_inv_exipla Woodpellets CHP refurb. Coal plants, existing Boiler, no invest cost in existing plant | B72: 2020 | C72: 12.65046756 | D72: 0 | E72: 12.49359115 | F72: 0 | G72: 73.16327981 | H72: 0.1573699429 | I72: 6.058663941 | J72: 0 | K72: 0 | L72: 104.5233724
A73: 16La REF_EX WPE_COA_exibo_no_inv_exipla Woodpellets CHP refurb. Coal plants, existing Boiler, no invest cost in existing plant | B73: 2030 | C73: 12.27731223 | D73: 0 | E73: 11.99120453 | F73: 0 | G73: 64.87393448 | H73: 0.2163860836 | I73: 5.784637935 | J73: 0 | K73: 0 | L73: 95.14347525
A74: 16La REF_EX WPE_COA_exibo_no_inv_exipla Woodpellets CHP refurb. Coal plants, existing Boiler, no invest cost in existing plant | B74: 2050 | D74: 0 | F74: 0 | J74: 0 | K74: 0
A75: 16La REF_EX WCH_COA_Newboi_ no_inv_exipla Wood chips CHP refurb. Coal plants, new Boiler, no invest cost for existing plant | B75: 2015 | C75: 37.27066296 | D75: 0 | E75: 14.75679829 | F75: 0 | G75: 58.03128258 | H75: 0.6322720001 | I75: 8.179425779 | J75: 0 | K75: 0 | L75: 118.8704416
A76: 16La REF_EX WCH_COA_Newboi_ no_inv_exipla Wood chips CHP refurb. Coal plants, new Boiler, no invest cost for existing plant | B76: 2020 | C76: 36.88242688 | D76: 0 | E76: 14.20841137 | F76: 0 | G76: 55.52420776 | H76: 0.7412154612 | I76: 5.126244004 | J76: 0 | K76: 0 | L76: 112.4825055
A77: 16La REF_EX WCH_COA_Newboi_ no_inv_exipla Wood chips CHP refurb. Coal plants, new Boiler, no invest cost for existing plant | B77: 2030 | C77: 36.38326622 | D77: 0 | E77: 13.63516543 | F77: 0 | G77: 51.8572935 | H77: 1.055328458 | I77: 4.903707027 | J77: 0 | K77: 0 | L77: 107.8347606
A78: 16La REF_EX WCH_COA_Newboi_ no_inv_exipla Wood chips CHP refurb. Coal plants, new Boiler, no invest cost for existing plant | B78: 2050 | D78: 0 | F78: 0 | J78: 0 | K78: 0
A79: 16La REF_EX WCH_COA_exi_exibo_no_inv_exipla Wood chips CHP refurb. Coal plants, existing boiler, no invest cost for existing plant | B79: 2015 | C79: 36.9473973 | D79: 0 | E79: 17.14202512 | F79: 0 | G79: 61.18699787 | H79: 1.272773731 | I79: 5.835350352 | J79: 0 | K79: 0 | L79: 122.3845444
A80: 16La REF_EX WCH_COA_exi_exibo_no_inv_exipla Wood chips CHP refurb. Coal plants, existing boiler, no invest cost for existing plant | B80: 2020 | C80: 36.56252858 | D80: 0 | E80: 16.49622403 | F80: 0 | G80: 62.02124028 | H80: 1.292716124 | I80: 5.50790166 | J80: 0 | K80: 0 | L80: 121.8806107
A81: 16La REF_EX WCH_COA_exi_exibo_no_inv_exipla Wood chips CHP refurb. Coal plants, existing boiler, no invest cost for existing plant | B81: 2030 | C81: 36.06769737 | D81: 0 | E81: 15.81839286 | F81: 0 | G81: 55.45299676 | H81: 1.343625101 | I81: 5.245144835 | J81: 0 | K81: 0 | L81: 113.9278569
A82: 16La REF_EX WCH_COA_exi_exibo_no_inv_exipla Wood chips CHP refurb. Coal plants, existing boiler, no invest cost for existing plant | B82: 2050 | D82: 0 | F82: 0 | J82: 0 | K82: 0
A83: 18La_EX_EXI_COA ex_inv_cost - Coal CHP existing, no investment cost | B83: 2015 | D83: 0 | K83: 0
A84: 18La_EX_EXI_COA ex_inv_cost - Coal CHP existing, no investment cost | B84: 2020 | D84: 0 | G84: 21.67902856 | H84: 71.56716326 | I84: 6.797732023 | K84: 0
A85: 18La_EX_EXI_COA ex_inv_cost - Coal CHP existing, no investment cost | B85: 2030 | D85: 0 | G85: 19.53795087 | H85: 89.11651767 | I85: 6.580038015 | K85: 0
A86: 18La_EX_EXI_COA ex_inv_cost - Coal CHP existing, no investment cost | B86: 2050 | D86: 0 | K86: 0
A87: 18Sm_PV_roof | B87: 2015 | C87: 94.5100008 | D87: 0 | E87: 17.17702705 | F87: 0 | G87: 0 | H87: 0 | I87: 0 | J87: 0 | K87: 0 | L87: 111.6870278
A88: 18Sm_PV_roof | B88: 2020 | C88: 58.43541729 | D88: 0 | E88: 13.79943055 | F88: 0 | G88: 0 | H88: 0 | I88: 0 | J88: 0 | K88: 0 | L88: 72.23484784
A89: 18Sm_PV_roof | B89: 2030 | C89: 40.81324174 | D89: 0 | E89: 10.74724051 | F89: 0 | G89: 0 | H89: 0 | I89: 0 | J89: 0 | K89: 0 | L89: 51.56048225
A90: 18Sm_PV_roof | B90: 2050 | C90: 26.41915736 | D90: 0 | E90: 8.696422452 | F90: 0 | G90: 0 | H90: 0 | I90: 0 | J90: 0 | K90: 0 | L90: 35.11557981
A91: 18Me_PV_roof | B91: 2015 | C91: 75.4739724 | D91: 0 | E91: 13.73738798 | F91: 0 | G91: 0 | H91: 0 | I91: 0 | J91: 0 | K91: 0 | L91: 89.21136038
A92: 18Me_PV_roof | B92: 2020 | C92: 38.41814571 | D92: 0 | E92: 10.84240972 | F92: 0 | G92: 0 | H92: 0 | I92: 0 | J92: 0 | K92: 0 | L92: 49.26055543
A93: 18Me_PV_roof | B93: 2030 | C93: 27.39149667 | D93: 0 | E93: 8.482006291 | F93: 0 | G93: 0 | H93: 0 | I93: 0 | J93: 0 | K93: 0 | L93: 35.87350296
A94: 18Me_PV_roof | B94: 2050 | C94: 20.76081458 | D94: 0 | E94: 6.947668173 | F94: 0 | G94: 0 | H94: 0 | I94: 0 | J94: 0 | K94: 0 | L94: 27.70848275
A95: 19PV_La_Utility scale PV | B95: 2015 | C95: 64.63185759 | D95: 0 | E95: 10.36557145 | F95: 0 | G95: 0 | H95: 0 | I95: 0 | J95: 0 | K95: 0 | L95: 74.99742904
A96: 19PV_La_Utility scale PV | B96: 2020 | C96: 21.26208581 | D96: 0 | E96: 6.969926965 | F96: 0 | G96: 0 | H96: 0 | I96: 0 | J96: 0 | K96: 0 | L96: 28.23201278
A97: 19PV_La_Utility scale PV | B97: 2030 | C97: 12.8228606 | D97: 0 | E97: 5.230171456 | F97: 0 | G97: 0 | H97: 0 | I97: 0 | J97: 0 | K97: 0 | L97: 18.05303206
A98: 19PV_La_Utility scale PV | B98: 2040 | C98: 11.10661582 | D98: 0 | E98: 4.727518915 | F98: 0 | G98: 0 | H98: 0 | I98: 0 | J98: 0 | K98: 0 | L98: 15.83413473
A99: 19PV_La_Utility scale PV | B99: 2050 | C99: 10.06610576 | D99: 0 | E99: 4.415765846 | F99: 0 | G99: 0 | H99: 0 | I99: 0 | J99: 0 | K99: 0 | L99: 14.48187161
A100: 19PV_La_Utility scale PV_tracker | B100: 2015 | D100: 0 | F100: 0 | J100: 0 | K100: 0
A101: 19PV_La_Utility scale PV_tracker | B101: 2020 | C101: 22.32668155 | D101: 0 | E101: 6.639416718 | F101: 0 | G101: 0 | H101: 0 | I101: 0 | J101: 0 | K101: 0 | L101: 28.96609827
A102: 19PV_La_Utility scale PV_tracker | B102: 2030 | C102: 13.47911544 | D102: 0 | E102: 5.035179192 | F102: 0 | G102: 0 | H102: 0 | I102: 0 | J102: 0 | K102: 0 | L102: 18.51429463
A103: 19PV_La_Utility scale PV_tracker | B103: 2040 | C103: 11.78495398 | D103: 0 | E103: 4.580461978 | F103: 0 | G103: 0 | H103: 0 | I103: 0 | J103: 0 | K103: 0 | L103: 16.36541596
A104: 19PV_La_Utility scale PV_tracker | B104: 2050 | C104: 10.74916042 | D104: 0 | E104: 4.29744302 | F104: 0 | G104: 0 | H104: 0 | I104: 0 | J104: 0 | K104: 0 | L104: 15.04660344
A105: 19WIN_ON_in Onshore wind incl. Grid | B105: 2020 | C105: 20.93608577 | D105: 0 | E105: 6.013026278 | F105: 0 | G105: 0 | H105: 0 | I105: 0 | J105: 0 | K105: 0 | L105: 26.94911204
A106: 19WIN_ON_in Onshore wind incl. Grid | B106: 2025 | C106: 18.98803191 | D106: 0 | E106: 5.592744075 | F106: 0 | G106: 0 | H106: 0 | I106: 0 | J106: 0 | K106: 0 | L106: 24.58077598
A107: 19WIN_ON_in Onshore wind incl. Grid | B107: 2030 | C107: 17.25582522 | D107: 0 | E107: 5.191350959 | F107: 0 | G107: 0 | H107: 0 | I107: 0 | J107: 0 | K107: 0 | L107: 22.44717618
A108: 19WIN_ON_in Onshore wind incl. Grid | B108: 2040 | C108: 15.82082936 | D108: 0 | E108: 4.680749987 | F108: 0 | G108: 0 | H108: 0 | I108: 0 | J108: 0 | K108: 0 | L108: 20.50157935
A109: 19WIN_ON_in Onshore wind incl. Grid | B109: 2050 | C109: 15.09011436 | D109: 0 | E109: 4.500109763 | F109: 0 | G109: 0 | H109: 0 | I109: 0 | J109: 0 | K109: 0 | L109: 19.59022413
A110: 24WIN_ON_in Onshore wind incl. Grid | B110: 2020 | C110: 19.30647609 | D110: 0 | E110: 6.935895448 | F110: 0 | G110: 0 | H110: 0 | I110: 0 | J110: 0 | K110: 0 | L110: 26.24237154
A111: 24WIN_ON_in Onshore wind incl. Grid | B111: 2025 | C111: 20.09708842 | D111: 0 | E111: 7.028612747 | F111: 0 | G111: 0 | H111: 0 | I111: 0 | J111: 0 | K111: 0 | L111: 27.12570117
A112: 24WIN_ON_in Onshore wind incl. Grid | B112: 2030 | C112: 17.77430737 | D112: 0 | E112: 6.603703366 | F112: 0 | G112: 0 | H112: 0 | I112: 0 | J112: 0 | K112: 0 | L112: 24.37801073
A113: 24WIN_ON_in Onshore wind incl. Grid | B113: 2040 | C113: 16.73656633 | D113: 0 | E113: 6.207489989 | F113: 0 | G113: 0 | H113: 0 | I113: 0 | J113: 0 | K113: 0 | L113: 22.94405632
A114: 24WIN_ON_in Onshore wind incl. Grid | B114: 2050 | C114: 16.01120243 | D114: 0 | E114: 5.955269345 | F114: 0 | G114: 0 | H114: 0 | I114: 0 | J114: 0 | K114: 0 | L114: 21.96647177
A115: 19WIN_OF_in Offshore wind incl. Grid | B115: 2015 | C115: 44.47346454 | D115: 0 | E115: 18.54192925 | F115: 0 | G115: 0 | H115: 0 | I115: 0 | J115: 0 | K115: 0 | L115: 63.01539378
A116: 19WIN_OF_in Offshore wind incl. Grid | B116: 2020 | C116: 30.61112579 | D116: 0 | E116: 12.73968229 | F116: 0 | G116: 0 | H116: 0 | I116: 0 | J116: 0 | K116: 0 | L116: 43.35080809
A117: 19WIN_OF_in Offshore wind incl. Grid | B117: 2030 | C117: 25.22696938 | D117: 0 | E117: 11.18905609 | F117: 0 | G117: 0 | H117: 0 | I117: 0 | J117: 0 | K117: 0 | L117: 36.41602547
A118: 19WIN_OF_in Offshore wind incl. Grid | B118: 2040 | C118: 23.40676748 | D118: 0 | E118: 10.22988786 | F118: 0 | G118: 0 | H118: 0 | I118: 0 | J118: 0 | K118: 0 | L118: 33.63665534
A119: 19WIN_OF_in Offshore wind incl. Grid | B119: 2050 | C119: 21.88776308 | D119: 0 | E119: 9.657026855 | F119: 0 | G119: 0 | H119: 0 | I119: 0 | J119: 0 | K119: 0 | L119: 31.54478993
A120: 19WIN_OF_ex Offshore wind excl. Grid | B120: 2015 | C120: 38.25339957 | D120: 0 | E120: 18.54192925 | F120: 0 | G120: 0 | H120: 0 | I120: 0 | J120: 0 | K120: 0 | L120: 56.79532881
A121: 19WIN_OF_ex Offshore wind excl. Grid | B121: 2020 | C121: 25.14998598 | D121: 0 | E121: 12.73968229 | F121: 0 | G121: 0 | H121: 0 | I121: 0 | J121: 0 | K121: 0 | L121: 37.88966827
A122: 19WIN_OF_ex Offshore wind excl. Grid | B122: 2030 | C122: 20.52142069 | D122: 0 | E122: 11.18905609 | F122: 0 | G122: 0 | H122: 0 | I122: 0 | J122: 0 | K122: 0 | L122: 31.71047678
A123: 19WIN_OF_ex Offshore wind excl. Grid | B123: 2040 | C123: 18.75127782 | D123: 0 | E123: 10.22988786 | F123: 0 | G123: 0 | H123: 0 | I123: 0 | J123: 0 | K123: 0 | L123: 28.98116567
A124: 19WIN_OF_ex Offshore wind excl. Grid | B124: 2050 | C124: 17.46102448 | D124: 0 | E124: 9.657026855 | F124: 0 | G124: 0 | H124: 0 | I124: 0 | J124: 0 | K124: 0 | L124: 27.11805133
A125: 19WIN_NS_in Nearshore wind incl. Grid | B125: 2015 | C125: 38.20302039 | D125: 0 | E125: 16.71984777 | F125: 0 | G125: 0 | H125: 0 | I125: 0 | J125: 0 | K125: 0 | L125: 54.92286816
A126: 19WIN_NS_in Nearshore wind incl. Grid | B126: 2020 | C126: 24.93184855 | D126: 0 | E126: 11.46569028 | F126: 0 | G126: 0 | H126: 0 | I126: 0 | J126: 0 | K126: 0 | L126: 36.39753883
A127: 19WIN_NS_in Nearshore wind incl. Grid | B127: 2030 | C127: 21.50961277 | D127: 0 | E127: 11.09513873 | F127: 0 | G127: 0 | H127: 0 | I127: 0 | J127: 0 | K127: 0 | L127: 32.6047515
A128: 19WIN_NS_in Nearshore wind incl. Grid | B128: 2040 | C128: 20.51160202 | D128: 0 | E128: 10.05703261 | F128: 0 | G128: 0 | H128: 0 | I128: 0 | J128: 0 | K128: 0 | L128: 30.56863463
A129: 19WIN_NS_in Nearshore wind incl. Grid | B129: 2050 | C129: 19.42846386 | D129: 0 | E129: 9.676686926 | F129: 0 | G129: 0 | H129: 0 | I129: 0 | J129: 0 | K129: 0 | L129: 29.10515078
A130: 19WIN_NS_ex Nearshore wind excl. Grid | B130: 2015 | C130: 33.92428211 | D130: 0 | E130: 16.71984777 | F130: 0 | G130: 0 | H130: 0 | I130: 0 | J130: 0 | K130: 0 | L130: 50.64412988
A131: 19WIN_NS_ex Nearshore wind excl. Grid | B131: 2020 | C131: 21.08522049 | D131: 0 | E131: 11.46569028 | F131: 0 | G131: 0 | H131: 0 | I131: 0 | J131: 0 | K131: 0 | L131: 32.55091077
A132: 19WIN_NS_ex Nearshore wind excl. Grid | B132: 2030 | C132: 18.27021325 | D132: 0 | E132: 11.09513873 | F132: 0 | G132: 0 | H132: 0 | I132: 0 | J132: 0 | K132: 0 | L132: 29.36535199
A133: 19WIN_NS_ex Nearshore wind excl. Grid | B133: 2040 | C133: 17.30666421 | D133: 0 | E133: 10.05703261 | F133: 0 | G133: 0 | H133: 0 | I133: 0 | J133: 0 | K133: 0 | L133: 27.36369682
A134: 19WIN_NS_ex Nearshore wind excl. Grid | B134: 2050 | C134: 16.4404153 | D134: 0 | E134: 9.676686926 | F134: 0 | G134: 0 | H134: 0 | I134: 0 | J134: 0 | K134: 0 | L134: 26.11710223
A135: 22PV_Sm_roof residential | B135: 2020 | C135: 59.04542673 | D135: 0 | E135: 12.66915299 | F135: 0 | G135: 0 | H135: 0 | I135: 0 | J135: 0 | K135: 0 | L135: 71.71457972
A136: 22PV_Sm_roof residential | B136: 2025 | C136: 45.42676371 | D136: 0 | E136: 10.81646435 | F136: 0 | G136: 0 | H136: 0 | I136: 0 | J136: 0 | K136: 0 | L136: 56.24322806
A137: 22PV_Sm_roof residential | B137: 2030 | C137: 33.86168138 | D137: 0 | E137: 9.139293586 | F137: 0 | G137: 0 | H137: 0 | I137: 0 | J137: 0 | K137: 0 | L137: 43.00097497
A138: 22PV_Sm_roof residential | B138: 2040 | C138: 27.88761806 | D138: 0 | E138: 8.068749291 | F138: 0 | G138: 0 | H138: 0 | I138: 0 | J138: 0 | K138: 0 | L138: 35.95636735
A139: 22PV_Sm_roof residential | B139: 2050 | C139: 25.10078606 | D139: 0 | E139: 7.459045453 | F139: 0 | G139: 0 | H139: 0 | I139: 0 | J139: 0 | K139: 0 | L139: 32.55983151
A140: 22PV_Me_roof commercial industrial | B140: 2020 | C140: 39.58727474 | D140: 0 | E140: 9.501864741 | F140: 0 | G140: 0 | H140: 0 | I140: 0 | J140: 0 | K140: 0 | L140: 49.08913948
A141: 22PV_Me_roof commercial industrial | B141: 2025 | C141: 32.25097 | D141: 0 | E141: 8.32397474 | F141: 0 | G141: 0 | H141: 0 | I141: 0 | J141: 0 | K141: 0 | L141: 40.57494475
A142: 22PV_Me_roof commercial industrial | B142: 2030 | C142: 25.27791477 | D142: 0 | E142: 7.257674319 | F142: 0 | G142: 0 | H142: 0 | I142: 0 | J142: 0 | K142: 0 | L142: 32.53558909
A143: 22PV_Me_roof commercial industrial | B143: 2040 | C143: 17.53473024 | D143: 0 | E143: 6.472732947 | F143: 0 | G143: 0 | H143: 0 | I143: 0 | J143: 0 | K143: 0 | L143: 24.00746318
A144: 22PV_Me_roof commercial industrial | B144: 2050 | C144: 15.59736325 | D144: 0 | E144: 5.967236362 | F144: 0 | G144: 0 | H144: 0 | I144: 0 | J144: 0 | K144: 0 | L144: 21.56459961
A145: 22PV_La_Utility scale PV | B145: 2020 | C145: 21.12009495 | D145: 0 | E145: 8.375041038 | F145: 0 | G145: 0 | H145: 0 | I145: 0 | J145: 0 | K145: 0 | L145: 29.49513598
A146: 22PV_La_Utility scale PV | B146: 2025 | C146: 16.30490568 | D146: 0 | E146: 7.339600114 | F146: 0 | G146: 0 | H146: 0 | I146: 0 | J146: 0 | K146: 0 | L146: 23.64450579
A147: 22PV_La_Utility scale PV | B147: 2030 | C147: 12.21570758 | D147: 0 | E147: 6.402253593 | F147: 0 | G147: 0 | H147: 0 | I147: 0 | J147: 0 | K147: 0 | L147: 18.61796118
A148: 22PV_La_Utility scale PV | B148: 2040 | C148: 10.10675106 | D148: 0 | E148: 5.418574005 | F148: 0 | G148: 0 | H148: 0 | I148: 0 | J148: 0 | K148: 0 | L148: 15.52532506
A149: 22PV_La_Utility scale PV | B149: 2050 | C149: 9.121861246 | D149: 0 | E149: 4.867692809 | F149: 0 | G149: 0 | H149: 0 | I149: 0 | J149: 0 | K149: 0 | L149: 13.98955406
A150: 22PV_La_Utility scale PV_tracker | B150: 2020 | C150: 21.23362452 | D150: 0 | E150: 7.849072277 | F150: 0 | G150: 0 | H150: 0 | I150: 0 | J150: 0 | K150: 0 | L150: 29.0826968
A151: 22PV_La_Utility scale PV_tracker | B151: 2025 | C151: 16.5254776 | D151: 0 | E151: 6.908397005 | F151: 0 | G151: 0 | H151: 0 | I151: 0 | J151: 0 | K151: 0 | L151: 23.43387461
A152: 22PV_La_Utility scale PV_tracker | B152: 2030 | C152: 12.53860192 | D152: 0 | E152: 6.059676866 | F152: 0 | G152: 0 | H152: 0 | I152: 0 | J152: 0 | K152: 0 | L152: 18.59827879
A153: 22PV_La_Utility scale PV_tracker | B153: 2040 | C153: 10.5275929 | D153: 0 | E153: 5.436696326 | F153: 0 | G153: 0 | H153: 0 | I153: 0 | J153: 0 | K153: 0 | L153: 15.96428923
A154: 22PV_La_Utility scale PV_tracker | B154: 2050 | C154: 9.556972435 | D154: 0 | E154: 5.165421994 | F154: 0 | G154: 0 | H154: 0 | I154: 0 | J154: 0 | K154: 0 | L154: 14.72239443
A155: 25WIN_OF_in Offshore wind AC incl. Grid | B155: 2020 | C155: 29.0552764 | D155: 0 | E155: 16.36363636 | F155: 0 | G155: 0 | H155: 0 | I155: 0 | J155: 0 | K155: 0 | L155: 45.41891277
A156: 25WIN_OF_in Offshore wind AC incl. Grid | B156: 2025 | C156: 36.51309807 | D156: 0 | E156: 14.41306267 | F156: 0 | G156: 0 | H156: 0 | I156: 0 | J156: 0 | K156: 0 | L156: 50.92616074
A157: 25WIN_OF_in Offshore wind AC incl. Grid | B157: 2030 | C157: 30.39319979 | D157: 0 | E157: 10.91922621 | F157: 0 | G157: 0 | H157: 0 | I157: 0 | J157: 0 | K157: 0 | L157: 41.312426
A158: 25WIN_OF_in Offshore wind AC incl. Grid | B158: 2035 | C158: 28.24246005 | D158: 0 | E158: 10.11815101 | F158: 0 | G158: 0 | H158: 0 | I158: 0 | J158: 0 | K158: 0 | L158: 38.36061105
A159: 25WIN_OF_in Offshore wind AC incl. Grid | B159: 2040 | C159: 26.60090456 | D159: 0 | E159: 9.444888493 | F159: 0 | G159: 0 | H159: 0 | I159: 0 | J159: 0 | K159: 0 | L159: 36.04579305
A160: 25WIN_OF_in Offshore wind AC incl. Grid | B160: 2050 | C160: 24.67629005 | D160: 0 | E160: 8.804736479 | F160: 0 | G160: 0 | H160: 0 | I160: 0 | J160: 0 | K160: 0 | L160: 33.48102653
A161: 25WIN_OF_ex Offshore wind excl. Grid | B161: 2020 | C161: 23.97458744 | D161: 0 | E161: 16.36363636 | F161: 0 | G161: 0 | H161: 0 | I161: 0 | J161: 0 | K161: 0 | L161: 40.3382238
A162: 25WIN_OF_ex Offshore wind AC excl. Grid | B162: 2025 | C162: 25.50121135 | D162: 0 | E162: 14.41306267 | F162: 0 | G162: 0 | H162: 0 | I162: 0 | J162: 0 | K162: 0 | L162: 39.91427402
A163: 25WIN_OF_ex Offshore wind AC excl. Grid | B163: 2030 | C163: 19.74434231 | D163: 0 | E163: 10.91922621 | F163: 0 | G163: 0 | H163: 0 | I163: 0 | J163: 0 | K163: 0 | L163: 30.66356851
A164: 25WIN_OF_ex Offshore wind AC excl. Grid | B164: 2035 | C164: 18.08970986 | D164: 0 | E164: 10.11815101 | F164: 0 | G164: 0 | H164: 0 | I164: 0 | J164: 0 | K164: 0 | L164: 28.20786087
A165: 25WIN_OF_ex Offshore wind AC excl. Grid | B165: 2040 | C165: 17.05241556 | D165: 0 | E165: 9.444888493 | F165: 0 | G165: 0 | H165: 0 | I165: 0 | J165: 0 | K165: 0 | L165: 26.49730405
A166: 25WIN_OF_ex Offshore wind AC excl. Grid | B166: 2050 | C166: 15.99916185 | D166: 0 | E166: 8.804736479 | F166: 0 | G166: 0 | H166: 0 | I166: 0 | J166: 0 | K166: 0 | L166: 24.80389833
A167: 25WIN_NS_in Nearshore wind incl. Grid | B167: 2020 | C167: 25.0498581 | D167: 0 | E167: 17.19512195 | F167: 0 | G167: 0 | H167: 0 | I167: 0 | J167: 0 | K167: 0 | L167: 42.24498005
A168: 25WIN_NS_in Nearshore wind incl. Grid | B168: 2025 | C168: 27.73715757 | D168: 0 | E168: 15.41 | F168: 0 | G168: 0 | H168: 0 | I168: 0 | J168: 0 | K168: 0 | L168: 43.14715757
A169: 25WIN_NS_in Nearshore wind incl. Grid | B169: 2030 | C169: 21.44338486 | D169: 0 | E169: 11.64277108 | F169: 0 | G169: 0 | H169: 0 | I169: 0 | J169: 0 | K169: 0 | L169: 33.08615595
A170: 25WIN_NS_in Nearshore wind incl. Grid | B170: 2035 | D170: 0 | K170: 0
A171: 25WIN_NS_in Nearshore wind incl. Grid | B171: 2040 | D171: 0 | K171: 0
A172: 25WIN_NS_in Nearshore wind incl. Grid | B172: 2050 | D172: 0 | K172: 0
A173: 25WIN_NS_ex Nearshore wind excl. Grid | B173: 2020 | C173: 23.90042339 | D173: 0 | E173: 17.19512195 | F173: 0 | G173: 0 | H173: 0 | I173: 0 | J173: 0 | K173: 0 | L173: 41.09554534
A174: 25WIN_NS_ex Nearshore wind excl. Grid | B174: 2025 | C174: 27.73715757 | D174: 0 | E174: 15.41 | F174: 0 | G174: 0 | H174: 0 | I174: 0 | J174: 0 | K174: 0 | L174: 43.14715757
A175: 25WIN_NS_ex Nearshore wind excl. Grid | B175: 2030 | C175: 21.44338486 | D175: 0 | E175: 11.64277108 | F175: 0 | G175: 0 | H175: 0 | I175: 0 | J175: 0 | K175: 0 | L175: 33.08615595
A176: 25WIN_NS_ex Nearshore wind excl. Grid | B176: 2035 | D176: 0 | K176: 0
A177: 25WIN_NS_ex Nearshore wind excl. Grid | B177: 2040 | D177: 0 | K177: 0
A178: 25WIN_NS_ex Nearshore wind excl. Grid | B178: 2050 | D178: 0 | K178: 0
A179: 25WIN_FOA_in Floating offshore AC incl. Grid | B179: 2020 | D179: 0 | F179: 0 | J179: 0 | K179: 0
A180: 25WIN_FOA_in Floating offshore AC incl. Grid | B180: 2025 | D180: 0 | F180: 0 | J180: 0 | K180: 0
A181: 25WIN_FOA_in Floating offshore AC incl. Grid | B181: 2030 | C181: 49.57042215 | D181: 0 | E181: 21.15975904 | F181: 0 | G181: 0 | H181: 0 | I181: 0 | J181: 0 | K181: 0 | L181: 70.73018119
A182: 25WIN_FOA_in Floating offshore AC incl. Grid | B182: 2035 | C182: 39.89968102 | D182: 0 | E182: 14.21 | F182: 0 | G182: 0 | H182: 0 | I182: 0 | J182: 0 | K182: 0 | L182: 54.10968102
A183: 25WIN_FOA_in Floating offshore AC incl. Grid | B183: 2040 | C183: 33.99161466 | D183: 0 | E183: 11.00470588 | F183: 0 | G183: 0 | H183: 0 | I183: 0 | J183: 0 | K183: 0 | L183: 44.99632055
A184: 25WIN_FOA_in Floating offshore AC incl. Grid | B184: 2050 | C184: 30.5924532 | D184: 0 | E184: 9.378235294 | F184: 0 | G184: 0 | H184: 0 | I184: 0 | J184: 0 | K184: 0 | L184: 39.97068849
A185: 25WIN_FOA_ex Floating offshore AC excl. Grid | B185: 2020 | D185: 0 | F185: 0 | J185: 0 | K185: 0
A186: 25WIN_FOA_ex Floating offshore AC excl. Grid | B186: 2025 | D186: 0 | F186: 0 | J186: 0 | K186: 0
A187: 25WIN_FOA_ex Floating offshore AC excl. Grid | B187: 2030 | C187: 39.12721524 | D187: 0 | E187: 21.15975904 | F187: 0 | G187: 0 | H187: 0 | I187: 0 | J187: 0 | K187: 0 | L187: 60.28697428
A188: 25WIN_FOA_ex Floating offshore AC excl. Grid | B188: 2035 | C188: 29.99355332 | D188: 0 | E188: 14.21 | F188: 0 | G188: 0 | H188: 0 | I188: 0 | J188: 0 | K188: 0 | L188: 44.20355332
A189: 25WIN_FOA_ex Floating offshore AC excl. Grid | B189: 2040 | C189: 24.60992902 | D189: 0 | E189: 11.00470588 | F189: 0 | G189: 0 | H189: 0 | I189: 0 | J189: 0 | K189: 0 | L189: 35.6146349
A190: 25WIN_FOA_ex Floating offshore AC excl. Grid | B190: 2050 | C190: 22.16253276 | D190: 0 | E190: 9.378235294 | F190: 0 | G190: 0 | H190: 0 | I190: 0 | J190: 0 | K190: 0 | L190: 31.54076805
A191: 25WIN_FSA_in Far Offshore AC incl. Grid | B191: 2020 | D191: 0 | F191: 0 | J191: 0 | K191: 0
A192: 25WIN_FSA_in Far Offshore AC incl. Grid | B192: 2025 | C192: 49.31050234 | D192: 0 | E192: 14.18777778 | F192: 0 | G192: 0 | H192: 0 | I192: 0 | J192: 0 | K192: 0 | L192: 63.49828012
A193: 25WIN_FSA_in Far Offshore AC incl. Grid | B193: 2030 | C193: 42.7490242 | D193: 0 | E193: 10.76182796 | F193: 0 | G193: 0 | H193: 0 | I193: 0 | J193: 0 | K193: 0 | L193: 53.51085216
A194: 25WIN_FSA_in Far Offshore AC incl. Grid | B194: 2035 | C194: 39.83527948 | D194: 0 | E194: 9.968510638 | F194: 0 | G194: 0 | H194: 0 | I194: 0 | J194: 0 | K194: 0 | L194: 49.80379012
A195: 25WIN_FSA_in Far Offshore AC incl. Grid | B195: 2040 | C195: 37.71280195 | D195: 0 | E195: 9.305789474 | F195: 0 | G195: 0 | H195: 0 | I195: 0 | J195: 0 | K195: 0 | L195: 47.01859143
A196: 25WIN_FSA_in Far Offshore AC incl. Grid | B196: 2050 | C196: 34.91475536 | D196: 0 | E196: 8.674736842 | F196: 0 | G196: 0 | H196: 0 | I196: 0 | J196: 0 | K196: 0 | L196: 43.5894922
A197: 25WIN_FSA_ex Far Offshore AC excl. Grid | B197: 2020 | D197: 0 | F197: 0 | J197: 0 | K197: 0
A198: 25WIN_FSA_ex Far Offshore AC excl. Grid | B198: 2025 | C198: 25.55414053 | D198: 0 | E198: 14.18777778 | F198: 0 | G198: 0 | H198: 0 | I198: 0 | J198: 0 | K198: 0 | L198: 39.74191831
A199: 25WIN_FSA_ex Far Offshore AC excl. Grid | B199: 2030 | C199: 19.75899665 | D199: 0 | E199: 10.76182796 | F199: 0 | G199: 0 | H199: 0 | I199: 0 | J199: 0 | K199: 0 | L199: 30.52082461
A200: 25WIN_FSA_ex Far Offshore AC excl. Grid | B200: 2035 | C200: 18.07341384 | D200: 0 | E200: 9.968510638 | F200: 0 | G200: 0 | H200: 0 | I200: 0 | J200: 0 | K200: 0 | L200: 28.04192448
... 34 more rows

Sheet Calculation
B2: Calculation
B4: User instruction
B5: In this sheet the levelised cost of energy is calculated.
B6: A summary of the calculation is shown at the top (white background)
B7: The settings and data background table draws the UserSettings&Results sheet and other
B8: background sheets to define data and settings to be used in the LCOE-calculation (blue background)
B9: The actual LCOE calculations are shown at the bottom (yellow background)
B10: To add new technologies or change existing technical data, go to the TechData sheet
B11: No changes should bo done in this sheet.
B13: Overview of the results
B15: Summary of the LCoE-calculation -more detailed overview can be found below in the complete calculation table
E16: =E31 -> 25WIN_OF_in Offshore wind AC incl. Grid | F16: =F31 -> 25WIN_NS_in Nearshore wind incl. Grid | G16: 24WIN_ON_in Onshore wind incl. Grid | H16: 22PV_La_Utility scale PV | I16: 22PV_La_Utility scale PV_tracker | J16: 22PV_Me_roof commercial industrial | K16: 22PV_Sm_roof residential | L16: 18Me BP WPE in_st 80 MW input, woodpellets storage for 10 days | M16: 18Me BP WCH in_st 80 MW input, woodchips storage for 10 days | N16: 16La REF_EX WCH_COA_Newboi_ no_inv_exipla Wood chips CHP refurb. Coal plants, new Boiler, no invest cost for existing plant | O16: 16La REF_EX WCH_COA_exi_exibo_no_inv_exipla Wood chips CHP refurb. Coal plants, existing boiler, no invest cost for existing plant | P16: 17La_EX_COA CHP coal 400-700 MWwe | Q16: 16 La EX LTE COA no_inv_exipla - Coal CHP Life time extension of coal power plant no invest cost for existing plant | R16: 16La EX CC NGA CC large CHP Gas Turbine combined Cycle natural Gas | S16: Nuclear INT | T16: Coal FGD INT | U16: Natural gas CCGT INT | V16: 19WIN_ON_in Onshore wind incl. Grid | W16: 0 | X16: 0 | Y16: 0 | Z16: 0 | AA16: 0 | AB16: 0 | AC16: 0 | AD16: 0 | AE16: =AE31 -> 0
C17: Capital cost | E17: =E98 -> 19.74434231 | F17: 20.19020003 | G17: 17.50957613 | H17: 10.6476432 | I17: 11.17887636 | J17: 23.70808531 | K17: 32.84524994 | L17: 52.21282405 | M17: 61.24651552 | N17: 36.38326622 | O17: 36.06769737 | P17: 29.15494289 | Q17: 5.2012482 | R17: 11.45751147 | S17: 27.32200231 | T17: 19.16901892 | U17: 9.047238537 | V17: 16.42621824
C18: Capital cost grid | E18: =E99 -> 10.64885749 | F18: =F99 -> 1.25318483 | G18: 0.2647312327 | H18: 1.568064381 | I18: 1.359725557 | J18: 1.569829466 | K18: 1.016431436 | L18: 0 | M18: 0 | N18: 0 | O18: 0 | P18: 0 | Q18: 0 | R18: 0 | S18: 0 | T18: 0 | U18: 0 | V18: 0.8296069818
C19: O&M costs | E19: =E100+E101 -> 10.91922621 | F19: 11.64277108 | G19: 6.603703366 | H19: =H100+H101 -> 6.402253593 | I19: 6.059676866 | J19: 7.257674319 | K19: 9.139293586 | L19: 34.83380415 | M19: 42.61607063 | N19: 13.63516543 | O19: 15.81839286 | P19: 10.28765046 | Q19: 10.80551688 | R19: 10.55182816 | S19: 14.4035425 | T19: 8.550006186 | U19: 6.883733407 | V19: 5.191350959
C20: Other costs | E20: =E102 -> 0 | F20: 0 | G20: 0 | H20: 0 | I20: 0 | J20: 0 | K20: 0 | L20: 0 | M20: 0 | N20: 0 | O20: 0 | P20: 0 | Q20: 0 | R20: 0 | S20: 4.524015662 | T20: 0 | U20: 0 | V20: 0
C21: Fuel cost | E21: =E103 -> 0 | F21: 0 | G21: 0 | H21: 0 | I21: 0 | J21: 0 | K21: 0 | L21: 61.74019535 | M21: 35.76419137 | N21: 51.35592459 | O21: 55.0805282 | P21: 18.69089327 | Q21: 21.99921553 | R21: 47.39349027 | S21: 6.640745384 | T21: 26.56299795 | U21: 57.01795381 | V21: 0
C22: Climate externalities | E22: =E104+E105+E106 -> 0 | F22: 0 | G22: 0 | H22: 0 | I22: 0 | J22: 0 | K22: 0 | L22: 0.1650782109 | M22: 0.08120579789 | N22: 0.7479984798 | O22: 0.9960681002 | P22: 50.4137191 | Q22: 46.79566626 | R22: 28.69155544 | S22: 0 | T22: 87.69020283 | U22: =U104+U105+U106 -> 37.32961878 | V22: 0
C23: Air pollution | E23: =E107+E108+E109 -> 0 | F23: 0 | G23: 0 | H23: 0 | I23: 0 | J23: 0 | K23: 0 | L23: 4.454102823 | M23: 3.913527361 | N23: 4.903707027 | O23: 5.245144835 | P23: 5.73307559 | Q23: 6.511890325 | R23: 1.11777299 | S23: 0 | T23: 43.09374732 | U23: 5.203324391 | V23: 0
C24: System costs | E24: =E110+E111 -> 0 | F24: =F110+F111 -> 0 | G24: 0 | H24: 0 | I24: 0 | J24: 0 | K24: 0 | L24: 0 | M24: 0 | N24: 0 | O24: 0 | P24: 0 | Q24: 0 | R24: 0 | S24: 0 | T24: 0 | U24: 0 | V24: 0
C25: Heat revenue | E25: =E112 -> 0 | F25: =F112 -> 0 | G25: 0 | H25: 0 | I25: 0 | J25: 0 | K25: 0 | L25: 0 | M25: 0 | N25: 0 | O25: 0 | P25: 0 | Q25: 0 | R25: 0 | S25: 0 | T25: 0 | U25: 0 | V25: 0 | W25: 0 | X25: 0 | Y25: 0 | Z25: 0 | AA25: 0 | AB25: 0 | AC25: 0 | AD25: 0 | AE25: =AE112 -> 0
B26: Total LCOE | C26: Levelized cost of electricity prod. | D26: =PriceYear&"-"&chosencurrency&"/MWh" -> 2020-EUR/MWh | E26: =SUM(E17:E25) -> 41.312426 | F26: =SUM(F17:F25) -> 33.08615595 | G26: 24.37801073 | H26: 18.61796118 | I26: 18.59827879 | J26: 32.53558909 | K26: 43.00097497 | L26: 153.4060046 | M26: 143.6215107 | N26: 107.0260618 | O26: 113.2078314 | P26: 114.2802813 | Q26: 91.31353719 | R26: 99.21215833 | S26: 52.89030586 | T26: 185.0659732 | U26: 115.4818689 | V26: 22.44717618
B28: Calculation of levelised cost of energy
E29: TechBase - 18La_EX_EXI_COA ex_inv_cost - Coal CHP existing, no investment cost - 2030
B30: Settings and data background
E31: ='UserSettings&Results'!D62 -> 25WIN_OF_in Offshore wind AC incl. Grid | F31: ='UserSettings&Results'!E62 -> 25WIN_NS_in Nearshore wind incl. Grid | G31: ='UserSettings&Results'!F62 -> 24WIN_ON_in Onshore wind incl. Grid | H31: ='UserSettings&Results'!G62 -> 22PV_La_Utility scale PV | I31: ='UserSettings&Results'!H62 -> 22PV_La_Utility scale PV_tracker | J31: ='UserSettings&Results'!I62 -> 22PV_Me_roof commercial industrial | K31: ='UserSettings&Results'!J62 -> 22PV_Sm_roof residential | L31: ='UserSettings&Results'!K62 -> 18Me BP WPE in_st 80 MW input, woodpellets storage for 10 days | M31: ='UserSettings&Results'!L62 -> 18Me BP WCH in_st 80 MW input, woodchips storage for 10 days | N31: ='UserSettings&Results'!M62 -> 16La REF_EX WCH_COA_Newboi_ no_inv_exipla Wood chips CHP refurb. Coal plants, new Boiler, no invest cost for existing plant | O31: ='UserSettings&Results'!N62 -> 16La REF_EX WCH_COA_exi_exibo_no_inv_exipla Wood chips CHP refurb. Coal plants, existing boiler, no invest cost for existing plant | P31: ='UserSettings&Results'!O62 -> 17La_EX_COA CHP coal 400-700 MWwe | Q31: ='UserSettings&Results'!P62 -> 16 La EX LTE COA no_inv_exipla - Coal CHP Life time extension of coal power plant no invest cost for existing plant | R31: ='UserSettings&Results'!Q62 -> 16La EX CC NGA CC large CHP Gas Turbine combined Cycle natural Gas | S31: ='UserSettings&Results'!R62 -> Nuclear INT | T31: ='UserSettings&Results'!S62 -> Coal FGD INT | U31: ='UserSettings&Results'!T62 -> Natural gas CCGT INT | V31: ='UserSettings&Results'!U62 -> 19WIN_ON_in Onshore wind incl. Grid | W31: ='UserSettings&Results'!V62 -> 0 | X31: ='UserSettings&Results'!W62 -> 0 | Y31: ='UserSettings&Results'!X62 -> 0 | Z31: ='UserSettings&Results'!Y62 -> 0 | AA31: ='UserSettings&Results'!Z62 -> 0 | AB31: ='UserSettings&Results'!AA62 -> 0 | AC31: ='UserSettings&Results'!AB62 -> 0 | AD31: ='UserSettings&Results'!AC62 -> 0 | AE31: ='UserSettings&Results'!AD62 -> 0
C32: Lookup-name | E32: =IF('UserSettings&Results'!D61="CurrentTech",TechScenario,"Standard")&" - "&E31&" - "&E33 -> TechBase - 25WIN_OF_in Offshore wind AC incl. Grid - 2030 | F32: =IF('UserSettings&Results'!E61="CurrentTech",TechScenario,"Standard")&" - "&F31&" - "&F33 -> TechBase - 25WIN_NS_in Nearshore wind incl. Grid - 2030 | G32: =IF('UserSettings&Results'!F61="CurrentTech",TechScenario,"Standard")&" - "&G31&" - "&G33 -> TechBase - 24WIN_ON_in Onshore wind incl. Grid - 2030 | H32: =IF('UserSettings&Results'!G61="CurrentTech",TechScenario,"Standard")&" - "&H31&" - "&H33 -> TechBase - 22PV_La_Utility scale PV - 2030 | I32: =IF('UserSettings&Results'!H61="CurrentTech",TechScenario,"Standard")&" - "&I31&" - "&I33 -> TechBase - 22PV_La_Utility scale PV_tracker - 2030 | J32: =IF('UserSettings&Results'!I61="CurrentTech",TechScenario,"Standard")&" - "&J31&" - "&J33 -> TechBase - 22PV_Me_roof commercial industrial - 2030 | K32: =IF('UserSettings&Results'!J61="CurrentTech",TechScenario,"Standard")&" - "&K31&" - "&K33 -> TechBase - 22PV_Sm_roof residential - 2030 | L32: =IF('UserSettings&Results'!K61="CurrentTech",TechScenario,"Standard")&" - "&L31&" - "&L33 -> TechBase - 18Me BP WPE in_st 80 MW input, woodpellets storage for 10 days - 2030 | M32: =IF('UserSettings&Results'!L61="CurrentTech",TechScenario,"Standard")&" - "&M31&" - "&M33 -> TechBase - 18Me BP WCH in_st 80 MW input, woodchips storage for 10 days - 2030 | N32: =IF('UserSettings&Results'!M61="CurrentTech",TechScenario,"Standard")&" - "&N31&" - "&N33 -> TechBase - 16La REF_EX WCH_COA_Newboi_ no_inv_exipla Wood chips CHP refurb. Coal plants, new Boiler, no invest cost for existing plant - 2030 | O32: =IF('UserSettings&Results'!N61="CurrentTech",TechScenario,"Standard")&" - "&O31&" - "&O33 -> TechBase - 16La REF_EX WCH_COA_exi_exibo_no_inv_exipla Wood chips CHP refurb. Coal plants, existing boiler, no invest cost for existing plant - 2030 | P32: =IF('UserSettings&Results'!O61="CurrentTech",TechScenario,"Standard")&" - "&P31&" - "&P33 -> TechBase - 17La_EX_COA CHP coal 400-700 MWwe - 2030 | Q32: =IF('UserSettings&Results'!P61="CurrentTech",TechScenario,"Standard")&" - "&Q31&" - "&Q33 -> TechBase - 16 La EX LTE COA no_inv_exipla - Coal CHP Life time extension of coal power plant no invest cost for existing plant - 2030 | R32: =IF('UserSettings&Results'!Q61="CurrentTech",TechScenario,"Standard")&" - "&R31&" - "&R33 -> TechBase - 16La EX CC NGA CC large CHP Gas Turbine combined Cycle natural Gas - 2030 | S32: =IF('UserSettings&Results'!R61="CurrentTech",TechScenario,"Standard")&" - "&S31&" - "&S33 -> TechBase - Nuclear INT - 2030 | T32: =IF('UserSettings&Results'!S61="CurrentTech",TechScenario,"Standard")&" - "&T31&" - "&T33 -> TechBase - Coal FGD INT - 2030 | U32: =IF('UserSettings&Results'!T61="CurrentTech",TechScenario,"Standard")&" - "&U31&" - "&U33 -> TechBase - Natural gas CCGT INT - 2030 | V32: =IF('UserSettings&Results'!U61="CurrentTech",TechScenario,"Standard")&" - "&V31&" - "&V33 -> TechBase - 19WIN_ON_in Onshore wind incl. Grid - 2030 | W32: =IF('UserSettings&Results'!V61="CurrentTech",TechScenario,"Standard")&" - "&W31&" - "&W33 -> Standard - 0 - 2030 | X32: =IF('UserSettings&Results'!W61="CurrentTech",TechScenario,"Standard")&" - "&X31&" - "&X33 -> Standard - 0 - 2030 | Y32: =IF('UserSettings&Results'!X61="CurrentTech",TechScenario,"Standard")&" - "&Y31&" - "&Y33 -> Standard - 0 - 2030 | Z32: =IF('UserSettings&Results'!Y61="CurrentTech",TechScenario,"Standard")&" - "&Z31&" - "&Z33 -> Standard - 0 - 2030 | AA32: =IF('UserSettings&Results'!Z61="CurrentTech",TechScenario,"Standard")&" - "&AA31&" - "&AA33 -> Standard - 0 - 2030 | AB32: =IF('UserSettings&Results'!AA61="CurrentTech",TechScenario,"Standard")&" - "&AB31&" - "&AB33 -> Standard - 0 - 2030 | AC32: =IF('UserSettings&Results'!AB61="CurrentTech",TechScenario,"Standard")&" - "&AC31&" - "&AC33 -> Standard - 0 - 2030 | AD32: =IF('UserSettings&Results'!AC61="CurrentTech",TechScenario,"Standard")&" - "&AD31&" - "&AD33 -> Standard - 0 - 2030 | AE32: =IF('UserSettings&Results'!AD61="CurrentTech",TechScenario,"Standard")&" - "&AE31&" - "&AE33 -> Standard - 0 - 2030
C33: Chosen technology year | E33: =IF(ISNUMBER('UserSettings&Results'!D63),'UserSettings&Results'!D63,TechYear) -> 2030 | F33: =IF(ISNUMBER('UserSettings&Results'!E63),'UserSettings&Results'!E63,TechYear) -> 2030 | G33: =IF(ISNUMBER('UserSettings&Results'!F63),'UserSettings&Results'!F63,TechYear) -> 2030 | H33: =IF(ISNUMBER('UserSettings&Results'!G63),'UserSettings&Results'!G63,TechYear) -> 2030 | I33: =IF(ISNUMBER('UserSettings&Results'!H63),'UserSettings&Results'!H63,TechYear) -> 2030 | J33: =IF(ISNUMBER('UserSettings&Results'!I63),'UserSettings&Results'!I63,TechYear) -> 2030 | K33: =IF(ISNUMBER('UserSettings&Results'!J63),'UserSettings&Results'!J63,TechYear) -> 2030 | L33: =IF(ISNUMBER('UserSettings&Results'!K63),'UserSettings&Results'!K63,TechYear) -> 2030 | M33: =IF(ISNUMBER('UserSettings&Results'!L63),'UserSettings&Results'!L63,TechYear) -> 2030 | N33: =IF(ISNUMBER('UserSettings&Results'!M63),'UserSettings&Results'!M63,TechYear) -> 2030 | O33: =IF(ISNUMBER('UserSettings&Results'!N63),'UserSettings&Results'!N63,TechYear) -> 2030 | P33: =IF(ISNUMBER('UserSettings&Results'!O63),'UserSettings&Results'!O63,TechYear) -> 2030 | Q33: =IF(ISNUMBER('UserSettings&Results'!P63),'UserSettings&Results'!P63,TechYear) -> 2030 | R33: =IF(ISNUMBER('UserSettings&Results'!Q63),'UserSettings&Results'!Q63,TechYear) -> 2030 | S33: =IF(ISNUMBER('UserSettings&Results'!R63),'UserSettings&Results'!R63,TechYear) -> 2030 | T33: =IF(ISNUMBER('UserSettings&Results'!S63),'UserSettings&Results'!S63,TechYear) -> 2030 | U33: =IF(ISNUMBER('UserSettings&Results'!T63),'UserSettings&Results'!T63,TechYear) -> 2030 | V33: =IF(ISNUMBER('UserSettings&Results'!U63),'UserSettings&Results'!U63,TechYear) -> 2030 | W33: =IF(ISNUMBER('UserSettings&Results'!V63),'UserSettings&Results'!V63,TechYear) -> 2030 | X33: =IF(ISNUMBER('UserSettings&Results'!W63),'UserSettings&Results'!W63,TechYear) -> 2030 | Y33: =IF(ISNUMBER('UserSettings&Results'!X63),'UserSettings&Results'!X63,TechYear) -> 2030 | Z33: =IF(ISNUMBER('UserSettings&Results'!Y63),'UserSettings&Results'!Y63,TechYear) -> 2030 | AA33: =IF(ISNUMBER('UserSettings&Results'!Z63),'UserSettings&Results'!Z63,TechYear) -> 2030 | AB33: =IF(ISNUMBER('UserSettings&Results'!AA63),'UserSettings&Results'!AA63,TechYear) -> 2030 | AC33: =IF(ISNUMBER('UserSettings&Results'!AB63),'UserSettings&Results'!AB63,TechYear) -> 2030 | AD33: =IF(ISNUMBER('UserSettings&Results'!AC63),'UserSettings&Results'!AC63,TechYear) -> 2030 | AE33: =IF(ISNUMBER('UserSettings&Results'!AD63),'UserSettings&Results'!AD63,TechYear) -> 2030
C34: Chosen first year of operation | E34: =IF(ISNUMBER('UserSettings&Results'!D64),'UserSettings&Results'!D64,CalcYear) -> 2025 | F34: =IF(ISNUMBER('UserSettings&Results'!E64),'UserSettings&Results'!E64,CalcYear) -> 2025 | G34: =IF(ISNUMBER('UserSettings&Results'!F64),'UserSettings&Results'!F64,CalcYear) -> 2025 | H34: =IF(ISNUMBER('UserSettings&Results'!G64),'UserSettings&Results'!G64,CalcYear) -> 2025 | I34: =IF(ISNUMBER('UserSettings&Results'!H64),'UserSettings&Results'!H64,CalcYear) -> 2025 | J34: =IF(ISNUMBER('UserSettings&Results'!I64),'UserSettings&Results'!I64,CalcYear) -> 2025 | K34: =IF(ISNUMBER('UserSettings&Results'!J64),'UserSettings&Results'!J64,CalcYear) -> 2025 | L34: =IF(ISNUMBER('UserSettings&Results'!K64),'UserSettings&Results'!K64,CalcYear) -> 2025 | M34: =IF(ISNUMBER('UserSettings&Results'!L64),'UserSettings&Results'!L64,CalcYear) -> 2025 | N34: =IF(ISNUMBER('UserSettings&Results'!M64),'UserSettings&Results'!M64,CalcYear) -> 2025 | O34: =IF(ISNUMBER('UserSettings&Results'!N64),'UserSettings&Results'!N64,CalcYear) -> 2025 | P34: =IF(ISNUMBER('UserSettings&Results'!O64),'UserSettings&Results'!O64,CalcYear) -> 2025 | Q34: =IF(ISNUMBER('UserSettings&Results'!P64),'UserSettings&Results'!P64,CalcYear) -> 2025 | R34: =IF(ISNUMBER('UserSettings&Results'!Q64),'UserSettings&Results'!Q64,CalcYear) -> 2025 | S34: =IF(ISNUMBER('UserSettings&Results'!R64),'UserSettings&Results'!R64,CalcYear) -> 2025 | T34: =IF(ISNUMBER('UserSettings&Results'!S64),'UserSettings&Results'!S64,CalcYear) -> 2025 | U34: =IF(ISNUMBER('UserSettings&Results'!T64),'UserSettings&Results'!T64,CalcYear) -> 2025 | V34: =IF(ISNUMBER('UserSettings&Results'!U64),'UserSettings&Results'!U64,CalcYear) -> 2025 | W34: =IF(ISNUMBER('UserSettings&Results'!V64),'UserSettings&Results'!V64,CalcYear) -> 2025 | X34: =IF(ISNUMBER('UserSettings&Results'!W64),'UserSettings&Results'!W64,CalcYear) -> 2025 | Y34: =IF(ISNUMBER('UserSettings&Results'!X64),'UserSettings&Results'!X64,CalcYear) -> 2025 | Z34: =IF(ISNUMBER('UserSettings&Results'!Y64),'UserSettings&Results'!Y64,CalcYear) -> 2025 | AA34: =IF(ISNUMBER('UserSettings&Results'!Z64),'UserSettings&Results'!Z64,CalcYear) -> 2025 | AB34: =IF(ISNUMBER('UserSettings&Results'!AA64),'UserSettings&Results'!AA64,CalcYear) -> 2025 | AC34: =IF(ISNUMBER('UserSettings&Results'!AB64),'UserSettings&Results'!AB64,CalcYear) -> 2025 | AD34: =IF(ISNUMBER('UserSettings&Results'!AC64),'UserSettings&Results'!AC64,CalcYear) -> 2025 | AE34: =IF(ISNUMBER('UserSettings&Results'!AD64),'UserSettings&Results'!AD64,CalcYear) -> 2025
C35: Reference | E35: =IF('UserSettings&Results'!D$61="CurrentTech",VLOOKUP(E$32,TechData,MATCH($C35,TechData_h,0),FALSE),IF('UserSettings&Results'!D$61="TestTech",VLOOKUP(E$32,TestData,MATCH($C35,TechData_h,0),FALSE),VLOOKUP(E$32,OldTechData,MATCH($C35,TechData_h,0),FALSE))) -> Tech Cat 2025 Update | F35: =IF('UserSettings&Results'!E$61="CurrentTech",VLOOKUP(F$32,TechData,MATCH($C35,TechData_h,0),FALSE),IF('UserSettings&Results'!E$61="TestTech",VLOOKUP(F$32,TestData,MATCH($C35,TechData_h,0),FALSE),VLOOKUP(F$32,OldTechData,MATCH($C35,TechData_h,0),FALSE))) -> Tech Cat 2025 Update | G35: =IF('UserSettings&Results'!F$61="CurrentTech",VLOOKUP(G$32,TechData,MATCH($C35,TechData_h,0),FALSE),IF('UserSettings&Results'!F$61="TestTech",VLOOKUP(G$32,TestData,MATCH($C35,TechData_h,0),FALSE),VLOOKUP(G$32,OldTechData,MATCH($C35,TechData_h,0),FALSE))) -> Tech Cat 2024 Update | H35: =IF('UserSettings&Results'!G$61="CurrentTech",VLOOKUP(H$32,TechData,MATCH($C35,TechData_h,0),FALSE),IF('UserSettings&Results'!G$61="TestTech",VLOOKUP(H$32,TestData,MATCH($C35,TechData_h,0),FALSE),VLOOKUP(H$32,OldTechData,MATCH($C35,TechData_h,0),FALSE))) -> Tech Cat 2022 Update | I35: =IF('UserSettings&Results'!H$61="CurrentTech",VLOOKUP(I$32,TechData,MATCH($C35,TechData_h,0),FALSE),IF('UserSettings&Results'!H$61="TestTech",VLOOKUP(I$32,TestData,MATCH($C35,TechData_h,0),FALSE),VLOOKUP(I$32,OldTechData,MATCH($C35,TechData_h,0),FALSE))) -> Tech Cat 2022 Update | J35: =IF('UserSettings&Results'!I$61="CurrentTech",VLOOKUP(J$32,TechData,MATCH($C35,TechData_h,0),FALSE),IF('UserSettings&Results'!I$61="TestTech",VLOOKUP(J$32,TestData,MATCH($C35,TechData_h,0),FALSE),VLOOKUP(J$32,OldTechData,MATCH($C35,TechData_h,0),FALSE))) -> Tech Cat 2022 Update | K35: =IF('UserSettings&Results'!J$61="CurrentTech",VLOOKUP(K$32,TechData,MATCH($C35,TechData_h,0),FALSE),IF('UserSettings&Results'!J$61="TestTech",VLOOKUP(K$32,TestData,MATCH($C35,TechData_h,0),FALSE),VLOOKUP(K$32,OldTechData,MATCH($C35,TechData_h,0),FALSE))) -> Tech Cat 2022 Update | L35: =IF('UserSettings&Results'!K$61="CurrentTech",VLOOKUP(L$32,TechData,MATCH($C35,TechData_h,0),FALSE),IF('UserSettings&Results'!K$61="TestTech",VLOOKUP(L$32,TestData,MATCH($C35,TechData_h,0),FALSE),VLOOKUP(L$32,OldTechData,MATCH($C35,TechData_h,0),FALSE))) -> Tech Cat 2018 Update | M35: =IF('UserSettings&Results'!L$61="CurrentTech",VLOOKUP(M$32,TechData,MATCH($C35,TechData_h,0),FALSE),IF('UserSettings&Results'!L$61="TestTech",VLOOKUP(M$32,TestData,MATCH($C35,TechData_h,0),FALSE),VLOOKUP(M$32,OldTechData,MATCH($C35,TechData_h,0),FALSE))) -> Tech Cat 2018 Update | N35: =IF('UserSettings&Results'!M$61="CurrentTech",VLOOKUP(N$32,TechData,MATCH($C35,TechData_h,0),FALSE),IF('UserSettings&Results'!M$61="TestTech",VLOOKUP(N$32,TestData,MATCH($C35,TechData_h,0),FALSE),VLOOKUP(N$32,OldTechData,MATCH($C35,TechData_h,0),FALSE))) -> Tech Cat Aug 2016, Coal Update 2017 | O35: =IF('UserSettings&Results'!N$61="CurrentTech",VLOOKUP(O$32,TechData,MATCH($C35,TechData_h,0),FALSE),IF('UserSettings&Results'!N$61="TestTech",VLOOKUP(O$32,TestData,MATCH($C35,TechData_h,0),FALSE),VLOOKUP(O$32,OldTechData,MATCH($C35,TechData_h,0),FALSE))) -> Tech Cat Aug 2016, Coal Update 2017 | P35: =IF('UserSettings&Results'!O$61="CurrentTech",VLOOKUP(P$32,TechData,MATCH($C35,TechData_h,0),FALSE),IF('UserSettings&Results'!O$61="TestTech",VLOOKUP(P$32,TestData,MATCH($C35,TechData_h,0),FALSE),VLOOKUP(P$32,OldTechData,MATCH($C35,TechData_h,0),FALSE))) -> Tech Cat Oct. 2017 update | Q35: =IF('UserSettings&Results'!P$61="CurrentTech",VLOOKUP(Q$32,TechData,MATCH($C35,TechData_h,0),FALSE),IF('UserSettings&Results'!P$61="TestTech",VLOOKUP(Q$32,TestData,MATCH($C35,TechData_h,0),FALSE),VLOOKUP(Q$32,OldTechData,MATCH($C35,TechData_h,0),FALSE))) -> Tech Cat Aug 2016, coal note 2017 data for ex. Plant | R35: =IF('UserSettings&Results'!Q$61="CurrentTech",VLOOKUP(R$32,TechData,MATCH($C35,TechData_h,0),FALSE),IF('UserSettings&Results'!Q$61="TestTech",VLOOKUP(R$32,TestData,MATCH($C35,TechData_h,0),FALSE),VLOOKUP(R$32,OldTechData,MATCH($C35,TechData_h,0),FALSE))) -> Tech Cat 2016 | S35: =IF('UserSettings&Results'!R$61="CurrentTech",VLOOKUP(S$32,TechData,MATCH($C35,TechData_h,0),FALSE),IF('UserSettings&Results'!R$61="TestTech",VLOOKUP(S$32,TestData,MATCH($C35,TechData_h,0),FALSE),VLOOKUP(S$32,OldTechData,MATCH($C35,TechData_h,0),FALSE))) -> IEA, 2015, Projected cost of generating electricity 2015” | T35: =IF('UserSettings&Results'!S$61="CurrentTech",VLOOKUP(T$32,TechData,MATCH($C35,TechData_h,0),FALSE),IF('UserSettings&Results'!S$61="TestTech",VLOOKUP(T$32,TestData,MATCH($C35,TechData_h,0),FALSE),VLOOKUP(T$32,OldTechData,MATCH($C35,TechData_h,0),FALSE))) -> IEA 2015, Projected cost of generating electricity 2015 | U35: =IF('UserSettings&Results'!T$61="CurrentTech",VLOOKUP(U$32,TechData,MATCH($C35,TechData_h,0),FALSE),IF('UserSettings&Results'!T$61="TestTech",VLOOKUP(U$32,TestData,MATCH($C35,TechData_h,0),FALSE),VLOOKUP(U$32,OldTechData,MATCH($C35,TechData_h,0),FALSE))) -> IEA, 2015, Projected cost of generating electricity 2015” | V35: =IF('UserSettings&Results'!U$61="CurrentTech",VLOOKUP(V$32,TechData,MATCH($C35,TechData_h,0),FALSE),IF('UserSettings&Results'!U$61="TestTech",VLOOKUP(V$32,TestData,MATCH($C35,TechData_h,0),FALSE),VLOOKUP(V$32,OldTechData,MATCH($C35,TechData_h,0),FALSE))) -> Tech Cat 2019 Update | W35: =IF('UserSettings&Results'!V$61="CurrentTech",VLOOKUP(W$32,TechData,MATCH($C35,TechData_h,0),FALSE),IF('UserSettings&Results'!V$61="TestTech",VLOOKUP(W$32,TestData,MATCH($C35,TechData_h,0),FALSE),VLOOKUP(W$32,OldTechData,MATCH($C35,TechData_h,0),FALSE))) ->  | X35: =IF('UserSettings&Results'!W$61="CurrentTech",VLOOKUP(X$32,TechData,MATCH($C35,TechData_h,0),FALSE),IF('UserSettings&Results'!W$61="TestTech",VLOOKUP(X$32,TestData,MATCH($C35,TechData_h,0),FALSE),VLOOKUP(X$32,OldTechData,MATCH($C35,TechData_h,0),FALSE))) ->  | Y35: =IF('UserSettings&Results'!X$61="CurrentTech",VLOOKUP(Y$32,TechData,MATCH($C35,TechData_h,0),FALSE),IF('UserSettings&Results'!X$61="TestTech",VLOOKUP(Y$32,TestData,MATCH($C35,TechData_h,0),FALSE),VLOOKUP(Y$32,OldTechData,MATCH($C35,TechData_h,0),FALSE))) ->  | Z35: =IF('UserSettings&Results'!Y$61="CurrentTech",VLOOKUP(Z$32,TechData,MATCH($C35,TechData_h,0),FALSE),IF('UserSettings&Results'!Y$61="TestTech",VLOOKUP(Z$32,TestData,MATCH($C35,TechData_h,0),FALSE),VLOOKUP(Z$32,OldTechData,MATCH($C35,TechData_h,0),FALSE))) ->  | AA35: =IF('UserSettings&Results'!Z$61="CurrentTech",VLOOKUP(AA$32,TechData,MATCH($C35,TechData_h,0),FALSE),IF('UserSettings&Results'!Z$61="TestTech",VLOOKUP(AA$32,TestData,MATCH($C35,TechData_h,0),FALSE),VLOOKUP(AA$32,OldTechData,MATCH($C35,TechData_h,0),FALSE))) ->  | AB35: =IF('UserSettings&Results'!AA$61="CurrentTech",VLOOKUP(AB$32,TechData,MATCH($C35,TechData_h,0),FALSE),IF('UserSettings&Results'!AA$61="TestTech",VLOOKUP(AB$32,TestData,MATCH($C35,TechData_h,0),FALSE),VLOOKUP(AB$32,OldTechData,MATCH($C35,TechData_h,0),FALSE))) ->  | AC35: =IF('UserSettings&Results'!AB$61="CurrentTech",VLOOKUP(AC$32,TechData,MATCH($C35,TechData_h,0),FALSE),IF('UserSettings&Results'!AB$61="TestTech",VLOOKUP(AC$32,TestData,MATCH($C35,TechData_h,0),FALSE),VLOOKUP(AC$32,OldTechData,MATCH($C35,TechData_h,0),FALSE))) ->  | AD35: =IF('UserSettings&Results'!AC$61="CurrentTech",VLOOKUP(AD$32,TechData,MATCH($C35,TechData_h,0),FALSE),IF('UserSettings&Results'!AC$61="TestTech",VLOOKUP(AD$32,TestData,MATCH($C35,TechData_h,0),FALSE),VLOOKUP(AD$32,OldTechData,MATCH($C35,TechData_h,0),FALSE))) ->  | AE35: =IF('UserSettings&Results'!AD$61="CurrentTech",VLOOKUP(AE$32,TechData,MATCH($C35,TechData_h,0),FALSE),IF('UserSettings&Results'!AD$61="TestTech",VLOOKUP(AE$32,TestData,MATCH($C35,TechData_h,0),FALSE),VLOOKUP(AE$32,OldTechData,MATCH($C35,TechData_h,0),FALSE))) -> 
B36: Basic technology definitions | C36: Combined heat and power (CHP) | E36: =IF('UserSettings&Results'!D$61="CurrentTech",VLOOKUP(E$32,TechData,MATCH($C36,TechData_h,0),FALSE),IF('UserSettings&Results'!D$61="TestTech",VLOOKUP(E$32,TestData,MATCH($C36,TechData_h,0),FALSE),VLOOKUP(E$32,OldTechData,MATCH($C36,TechData_h,0),FALSE))) -> NO | F36: =IF('UserSettings&Results'!E$61="CurrentTech",VLOOKUP(F$32,TechData,MATCH($C36,TechData_h,0),FALSE),IF('UserSettings&Results'!E$61="TestTech",VLOOKUP(F$32,TestData,MATCH($C36,TechData_h,0),FALSE),VLOOKUP(F$32,OldTechData,MATCH($C36,TechData_h,0),FALSE))) -> NO | G36: =IF('UserSettings&Results'!F$61="CurrentTech",VLOOKUP(G$32,TechData,MATCH($C36,TechData_h,0),FALSE),IF('UserSettings&Results'!F$61="TestTech",VLOOKUP(G$32,TestData,MATCH($C36,TechData_h,0),FALSE),VLOOKUP(G$32,OldTechData,MATCH($C36,TechData_h,0),FALSE))) -> NO | H36: =IF('UserSettings&Results'!G$61="CurrentTech",VLOOKUP(H$32,TechData,MATCH($C36,TechData_h,0),FALSE),IF('UserSettings&Results'!G$61="TestTech",VLOOKUP(H$32,TestData,MATCH($C36,TechData_h,0),FALSE),VLOOKUP(H$32,OldTechData,MATCH($C36,TechData_h,0),FALSE))) -> NO | I36: =IF('UserSettings&Results'!H$61="CurrentTech",VLOOKUP(I$32,TechData,MATCH($C36,TechData_h,0),FALSE),IF('UserSettings&Results'!H$61="TestTech",VLOOKUP(I$32,TestData,MATCH($C36,TechData_h,0),FALSE),VLOOKUP(I$32,OldTechData,MATCH($C36,TechData_h,0),FALSE))) -> NO | J36: =IF('UserSettings&Results'!I$61="CurrentTech",VLOOKUP(J$32,TechData,MATCH($C36,TechData_h,0),FALSE),IF('UserSettings&Results'!I$61="TestTech",VLOOKUP(J$32,TestData,MATCH($C36,TechData_h,0),FALSE),VLOOKUP(J$32,OldTechData,MATCH($C36,TechData_h,0),FALSE))) -> NO | K36: =IF('UserSettings&Results'!J$61="CurrentTech",VLOOKUP(K$32,TechData,MATCH($C36,TechData_h,0),FALSE),IF('UserSettings&Results'!J$61="TestTech",VLOOKUP(K$32,TestData,MATCH($C36,TechData_h,0),FALSE),VLOOKUP(K$32,OldTechData,MATCH($C36,TechData_h,0),FALSE))) -> NO | L36: =IF('UserSettings&Results'!K$61="CurrentTech",VLOOKUP(L$32,TechData,MATCH($C36,TechData_h,0),FALSE),IF('UserSettings&Results'!K$61="TestTech",VLOOKUP(L$32,TestData,MATCH($C36,TechData_h,0),FALSE),VLOOKUP(L$32,OldTechData,MATCH($C36,TechData_h,0),FALSE))) -> YES | M36: =IF('UserSettings&Results'!L$61="CurrentTech",VLOOKUP(M$32,TechData,MATCH($C36,TechData_h,0),FALSE),IF('UserSettings&Results'!L$61="TestTech",VLOOKUP(M$32,TestData,MATCH($C36,TechData_h,0),FALSE),VLOOKUP(M$32,OldTechData,MATCH($C36,TechData_h,0),FALSE))) -> YES | N36: =IF('UserSettings&Results'!M$61="CurrentTech",VLOOKUP(N$32,TechData,MATCH($C36,TechData_h,0),FALSE),IF('UserSettings&Results'!M$61="TestTech",VLOOKUP(N$32,TestData,MATCH($C36,TechData_h,0),FALSE),VLOOKUP(N$32,OldTechData,MATCH($C36,TechData_h,0),FALSE))) -> YES | O36: =IF('UserSettings&Results'!N$61="CurrentTech",VLOOKUP(O$32,TechData,MATCH($C36,TechData_h,0),FALSE),IF('UserSettings&Results'!N$61="TestTech",VLOOKUP(O$32,TestData,MATCH($C36,TechData_h,0),FALSE),VLOOKUP(O$32,OldTechData,MATCH($C36,TechData_h,0),FALSE))) -> YES | P36: =IF('UserSettings&Results'!O$61="CurrentTech",VLOOKUP(P$32,TechData,MATCH($C36,TechData_h,0),FALSE),IF('UserSettings&Results'!O$61="TestTech",VLOOKUP(P$32,TestData,MATCH($C36,TechData_h,0),FALSE),VLOOKUP(P$32,OldTechData,MATCH($C36,TechData_h,0),FALSE))) -> YES | Q36: =IF('UserSettings&Results'!P$61="CurrentTech",VLOOKUP(Q$32,TechData,MATCH($C36,TechData_h,0),FALSE),IF('UserSettings&Results'!P$61="TestTech",VLOOKUP(Q$32,TestData,MATCH($C36,TechData_h,0),FALSE),VLOOKUP(Q$32,OldTechData,MATCH($C36,TechData_h,0),FALSE))) -> YES | R36: =IF('UserSettings&Results'!Q$61="CurrentTech",VLOOKUP(R$32,TechData,MATCH($C36,TechData_h,0),FALSE),IF('UserSettings&Results'!Q$61="TestTech",VLOOKUP(R$32,TestData,MATCH($C36,TechData_h,0),FALSE),VLOOKUP(R$32,OldTechData,MATCH($C36,TechData_h,0),FALSE))) -> YES | S36: =IF('UserSettings&Results'!R$61="CurrentTech",VLOOKUP(S$32,TechData,MATCH($C36,TechData_h,0),FALSE),IF('UserSettings&Results'!R$61="TestTech",VLOOKUP(S$32,TestData,MATCH($C36,TechData_h,0),FALSE),VLOOKUP(S$32,OldTechData,MATCH($C36,TechData_h,0),FALSE))) -> NO | T36: =IF('UserSettings&Results'!S$61="CurrentTech",VLOOKUP(T$32,TechData,MATCH($C36,TechData_h,0),FALSE),IF('UserSettings&Results'!S$61="TestTech",VLOOKUP(T$32,TestData,MATCH($C36,TechData_h,0),FALSE),VLOOKUP(T$32,OldTechData,MATCH($C36,TechData_h,0),FALSE))) -> NO | U36: =IF('UserSettings&Results'!T$61="CurrentTech",VLOOKUP(U$32,TechData,MATCH($C36,TechData_h,0),FALSE),IF('UserSettings&Results'!T$61="TestTech",VLOOKUP(U$32,TestData,MATCH($C36,TechData_h,0),FALSE),VLOOKUP(U$32,OldTechData,MATCH($C36,TechData_h,0),FALSE))) -> NO | V36: =IF('UserSettings&Results'!U$61="CurrentTech",VLOOKUP(V$32,TechData,MATCH($C36,TechData_h,0),FALSE),IF('UserSettings&Results'!U$61="TestTech",VLOOKUP(V$32,TestData,MATCH($C36,TechData_h,0),FALSE),VLOOKUP(V$32,OldTechData,MATCH($C36,TechData_h,0),FALSE))) -> NO | W36: =IF('UserSettings&Results'!V$61="CurrentTech",VLOOKUP(W$32,TechData,MATCH($C36,TechData_h,0),FALSE),IF('UserSettings&Results'!V$61="TestTech",VLOOKUP(W$32,TestData,MATCH($C36,TechData_h,0),FALSE),VLOOKUP(W$32,OldTechData,MATCH($C36,TechData_h,0),FALSE))) ->  | X36: =IF('UserSettings&Results'!W$61="CurrentTech",VLOOKUP(X$32,TechData,MATCH($C36,TechData_h,0),FALSE),IF('UserSettings&Results'!W$61="TestTech",VLOOKUP(X$32,TestData,MATCH($C36,TechData_h,0),FALSE),VLOOKUP(X$32,OldTechData,MATCH($C36,TechData_h,0),FALSE))) ->  | Y36: =IF('UserSettings&Results'!X$61="CurrentTech",VLOOKUP(Y$32,TechData,MATCH($C36,TechData_h,0),FALSE),IF('UserSettings&Results'!X$61="TestTech",VLOOKUP(Y$32,TestData,MATCH($C36,TechData_h,0),FALSE),VLOOKUP(Y$32,OldTechData,MATCH($C36,TechData_h,0),FALSE))) ->  | Z36: =IF('UserSettings&Results'!Y$61="CurrentTech",VLOOKUP(Z$32,TechData,MATCH($C36,TechData_h,0),FALSE),IF('UserSettings&Results'!Y$61="TestTech",VLOOKUP(Z$32,TestData,MATCH($C36,TechData_h,0),FALSE),VLOOKUP(Z$32,OldTechData,MATCH($C36,TechData_h,0),FALSE))) ->  | AA36: =IF('UserSettings&Results'!Z$61="CurrentTech",VLOOKUP(AA$32,TechData,MATCH($C36,TechData_h,0),FALSE),IF('UserSettings&Results'!Z$61="TestTech",VLOOKUP(AA$32,TestData,MATCH($C36,TechData_h,0),FALSE),VLOOKUP(AA$32,OldTechData,MATCH($C36,TechData_h,0),FALSE))) ->  | AB36: =IF('UserSettings&Results'!AA$61="CurrentTech",VLOOKUP(AB$32,TechData,MATCH($C36,TechData_h,0),FALSE),IF('UserSettings&Results'!AA$61="TestTech",VLOOKUP(AB$32,TestData,MATCH($C36,TechData_h,0),FALSE),VLOOKUP(AB$32,OldTechData,MATCH($C36,TechData_h,0),FALSE))) ->  | AC36: =IF('UserSettings&Results'!AB$61="CurrentTech",VLOOKUP(AC$32,TechData,MATCH($C36,TechData_h,0),FALSE),IF('UserSettings&Results'!AB$61="TestTech",VLOOKUP(AC$32,TestData,MATCH($C36,TechData_h,0),FALSE),VLOOKUP(AC$32,OldTechData,MATCH($C36,TechData_h,0),FALSE))) ->  | AD36: =IF('UserSettings&Results'!AC$61="CurrentTech",VLOOKUP(AD$32,TechData,MATCH($C36,TechData_h,0),FALSE),IF('UserSettings&Results'!AC$61="TestTech",VLOOKUP(AD$32,TestData,MATCH($C36,TechData_h,0),FALSE),VLOOKUP(AD$32,OldTechData,MATCH($C36,TechData_h,0),FALSE))) ->  | AE36: =IF('UserSettings&Results'!AD$61="CurrentTech",VLOOKUP(AE$32,TechData,MATCH($C36,TechData_h,0),FALSE),IF('UserSettings&Results'!AD$61="TestTech",VLOOKUP(AE$32,TestData,MATCH($C36,TechData_h,0),FALSE),VLOOKUP(AE$32,OldTechData,MATCH($C36,TechData_h,0),FALSE))) ->  | AF36: =IF('UserSettings&Results'!#REF!="CurrentTech",VLOOKUP(AF$32,TechData,MATCH($C36,TechData_h,0),FALSE),IF('UserSettings&Results'!#REF!="TestTech",VLOOKUP(AF$32,TestData,MATCH($C36,TechData_h,0),FALSE),VLOOKUP(AF$32,OldTechData,MATCH($C36,TechData_h,0),FALSE))) -> 
C37: Fuel | E37: =IF('UserSettings&Results'!D61="CurrentTech",VLOOKUP(E$32,TechData,MATCH($C37,TechData_h,0),FALSE),IF('UserSettings&Results'!D61="TestTech",VLOOKUP(E$32,TestData,MATCH($C37,TechData_h,0),FALSE),VLOOKUP(E$32,OldTechData,MATCH($C37,TechData_h,0),FALSE))) -> Wind | F37: =IF('UserSettings&Results'!E61="CurrentTech",VLOOKUP(F$32,TechData,MATCH($C37,TechData_h,0),FALSE),IF('UserSettings&Results'!E61="TestTech",VLOOKUP(F$32,TestData,MATCH($C37,TechData_h,0),FALSE),VLOOKUP(F$32,OldTechData,MATCH($C37,TechData_h,0),FALSE))) -> Wind | G37: =IF('UserSettings&Results'!F61="CurrentTech",VLOOKUP(G$32,TechData,MATCH($C37,TechData_h,0),FALSE),IF('UserSettings&Results'!F61="TestTech",VLOOKUP(G$32,TestData,MATCH($C37,TechData_h,0),FALSE),VLOOKUP(G$32,OldTechData,MATCH($C37,TechData_h,0),FALSE))) -> Wind | H37: =IF('UserSettings&Results'!G61="CurrentTech",VLOOKUP(H$32,TechData,MATCH($C37,TechData_h,0),FALSE),IF('UserSettings&Results'!G61="TestTech",VLOOKUP(H$32,TestData,MATCH($C37,TechData_h,0),FALSE),VLOOKUP(H$32,OldTechData,MATCH($C37,TechData_h,0),FALSE))) -> solar | I37: =IF('UserSettings&Results'!H61="CurrentTech",VLOOKUP(I$32,TechData,MATCH($C37,TechData_h,0),FALSE),IF('UserSettings&Results'!H61="TestTech",VLOOKUP(I$32,TestData,MATCH($C37,TechData_h,0),FALSE),VLOOKUP(I$32,OldTechData,MATCH($C37,TechData_h,0),FALSE))) -> solar | J37: =IF('UserSettings&Results'!I61="CurrentTech",VLOOKUP(J$32,TechData,MATCH($C37,TechData_h,0),FALSE),IF('UserSettings&Results'!I61="TestTech",VLOOKUP(J$32,TestData,MATCH($C37,TechData_h,0),FALSE),VLOOKUP(J$32,OldTechData,MATCH($C37,TechData_h,0),FALSE))) -> solar | K37: =IF('UserSettings&Results'!J61="CurrentTech",VLOOKUP(K$32,TechData,MATCH($C37,TechData_h,0),FALSE),IF('UserSettings&Results'!J61="TestTech",VLOOKUP(K$32,TestData,MATCH($C37,TechData_h,0),FALSE),VLOOKUP(K$32,OldTechData,MATCH($C37,TechData_h,0),FALSE))) -> solar | L37: =IF('UserSettings&Results'!K61="CurrentTech",VLOOKUP(L$32,TechData,MATCH($C37,TechData_h,0),FALSE),IF('UserSettings&Results'!K61="TestTech",VLOOKUP(L$32,TestData,MATCH($C37,TechData_h,0),FALSE),VLOOKUP(L$32,OldTechData,MATCH($C37,TechData_h,0),FALSE))) -> Wood pellets | M37: =IF('UserSettings&Results'!L61="CurrentTech",VLOOKUP(M$32,TechData,MATCH($C37,TechData_h,0),FALSE),IF('UserSettings&Results'!L61="TestTech",VLOOKUP(M$32,TestData,MATCH($C37,TechData_h,0),FALSE),VLOOKUP(M$32,OldTechData,MATCH($C37,TechData_h,0),FALSE))) -> Wood chips | N37: =IF('UserSettings&Results'!M61="CurrentTech",VLOOKUP(N$32,TechData,MATCH($C37,TechData_h,0),FALSE),IF('UserSettings&Results'!M61="TestTech",VLOOKUP(N$32,TestData,MATCH($C37,TechData_h,0),FALSE),VLOOKUP(N$32,OldTechData,MATCH($C37,TechData_h,0),FALSE))) -> Wood chips | O37: =IF('UserSettings&Results'!N61="CurrentTech",VLOOKUP(O$32,TechData,MATCH($C37,TechData_h,0),FALSE),IF('UserSettings&Results'!N61="TestTech",VLOOKUP(O$32,TestData,MATCH($C37,TechData_h,0),FALSE),VLOOKUP(O$32,OldTechData,MATCH($C37,TechData_h,0),FALSE))) -> Wood chips | P37: =IF('UserSettings&Results'!O61="CurrentTech",VLOOKUP(P$32,TechData,MATCH($C37,TechData_h,0),FALSE),IF('UserSettings&Results'!O61="TestTech",VLOOKUP(P$32,TestData,MATCH($C37,TechData_h,0),FALSE),VLOOKUP(P$32,OldTechData,MATCH($C37,TechData_h,0),FALSE))) -> Coal | Q37: =IF('UserSettings&Results'!P61="CurrentTech",VLOOKUP(Q$32,TechData,MATCH($C37,TechData_h,0),FALSE),IF('UserSettings&Results'!P61="TestTech",VLOOKUP(Q$32,TestData,MATCH($C37,TechData_h,0),FALSE),VLOOKUP(Q$32,OldTechData,MATCH($C37,TechData_h,0),FALSE))) -> Coal | R37: =IF('UserSettings&Results'!Q61="CurrentTech",VLOOKUP(R$32,TechData,MATCH($C37,TechData_h,0),FALSE),IF('UserSettings&Results'!Q61="TestTech",VLOOKUP(R$32,TestData,MATCH($C37,TechData_h,0),FALSE),VLOOKUP(R$32,OldTechData,MATCH($C37,TechData_h,0),FALSE))) -> Natural gas | S37: =IF('UserSettings&Results'!R61="CurrentTech",VLOOKUP(S$32,TechData,MATCH($C37,TechData_h,0),FALSE),IF('UserSettings&Results'!R61="TestTech",VLOOKUP(S$32,TestData,MATCH($C37,TechData_h,0),FALSE),VLOOKUP(S$32,OldTechData,MATCH($C37,TechData_h,0),FALSE))) -> Uranium | T37: =IF('UserSettings&Results'!S61="CurrentTech",VLOOKUP(T$32,TechData,MATCH($C37,TechData_h,0),FALSE),IF('UserSettings&Results'!S61="TestTech",VLOOKUP(T$32,TestData,MATCH($C37,TechData_h,0),FALSE),VLOOKUP(T$32,OldTechData,MATCH($C37,TechData_h,0),FALSE))) -> Coal | U37: =IF('UserSettings&Results'!T61="CurrentTech",VLOOKUP(U$32,TechData,MATCH($C37,TechData_h,0),FALSE),IF('UserSettings&Results'!T61="TestTech",VLOOKUP(U$32,TestData,MATCH($C37,TechData_h,0),FALSE),VLOOKUP(U$32,OldTechData,MATCH($C37,TechData_h,0),FALSE))) -> Natural gas | V37: =IF('UserSettings&Results'!U61="CurrentTech",VLOOKUP(V$32,TechData,MATCH($C37,TechData_h,0),FALSE),IF('UserSettings&Results'!U61="TestTech",VLOOKUP(V$32,TestData,MATCH($C37,TechData_h,0),FALSE),VLOOKUP(V$32,OldTechData,MATCH($C37,TechData_h,0),FALSE))) -> Wind | W37: =IF('UserSettings&Results'!V61="CurrentTech",VLOOKUP(W$32,TechData,MATCH($C37,TechData_h,0),FALSE),IF('UserSettings&Results'!V61="TestTech",VLOOKUP(W$32,TestData,MATCH($C37,TechData_h,0),FALSE),VLOOKUP(W$32,OldTechData,MATCH($C37,TechData_h,0),FALSE))) ->  | X37: =IF('UserSettings&Results'!W61="CurrentTech",VLOOKUP(X$32,TechData,MATCH($C37,TechData_h,0),FALSE),IF('UserSettings&Results'!W61="TestTech",VLOOKUP(X$32,TestData,MATCH($C37,TechData_h,0),FALSE),VLOOKUP(X$32,OldTechData,MATCH($C37,TechData_h,0),FALSE))) ->  | Y37: =IF('UserSettings&Results'!X61="CurrentTech",VLOOKUP(Y$32,TechData,MATCH($C37,TechData_h,0),FALSE),IF('UserSettings&Results'!X61="TestTech",VLOOKUP(Y$32,TestData,MATCH($C37,TechData_h,0),FALSE),VLOOKUP(Y$32,OldTechData,MATCH($C37,TechData_h,0),FALSE))) ->  | Z37: =IF('UserSettings&Results'!Y61="CurrentTech",VLOOKUP(Z$32,TechData,MATCH($C37,TechData_h,0),FALSE),IF('UserSettings&Results'!Y61="TestTech",VLOOKUP(Z$32,TestData,MATCH($C37,TechData_h,0),FALSE),VLOOKUP(Z$32,OldTechData,MATCH($C37,TechData_h,0),FALSE))) ->  | AA37: =IF('UserSettings&Results'!Z61="CurrentTech",VLOOKUP(AA$32,TechData,MATCH($C37,TechData_h,0),FALSE),IF('UserSettings&Results'!Z61="TestTech",VLOOKUP(AA$32,TestData,MATCH($C37,TechData_h,0),FALSE),VLOOKUP(AA$32,OldTechData,MATCH($C37,TechData_h,0),FALSE))) ->  | AB37: =IF('UserSettings&Results'!AA61="CurrentTech",VLOOKUP(AB$32,TechData,MATCH($C37,TechData_h,0),FALSE),IF('UserSettings&Results'!AA61="TestTech",VLOOKUP(AB$32,TestData,MATCH($C37,TechData_h,0),FALSE),VLOOKUP(AB$32,OldTechData,MATCH($C37,TechData_h,0),FALSE))) ->  | AC37: =IF('UserSettings&Results'!AB61="CurrentTech",VLOOKUP(AC$32,TechData,MATCH($C37,TechData_h,0),FALSE),IF('UserSettings&Results'!AB61="TestTech",VLOOKUP(AC$32,TestData,MATCH($C37,TechData_h,0),FALSE),VLOOKUP(AC$32,OldTechData,MATCH($C37,TechData_h,0),FALSE))) ->  | AD37: =IF('UserSettings&Results'!AC61="CurrentTech",VLOOKUP(AD$32,TechData,MATCH($C37,TechData_h,0),FALSE),IF('UserSettings&Results'!AC61="TestTech",VLOOKUP(AD$32,TestData,MATCH($C37,TechData_h,0),FALSE),VLOOKUP(AD$32,OldTechData,MATCH($C37,TechData_h,0),FALSE))) ->  | AE37: =IF('UserSettings&Results'!AD61="CurrentTech",VLOOKUP(AE$32,TechData,MATCH($C37,TechData_h,0),FALSE),IF('UserSettings&Results'!AD61="TestTech",VLOOKUP(AE$32,TestData,MATCH($C37,TechData_h,0),FALSE),VLOOKUP(AE$32,OldTechData,MATCH($C37,TechData_h,0),FALSE))) -> 
C38: Technical lifetime | D38: years | E38: =IF('UserSettings&Results'!D61="CurrentTech",VLOOKUP(E$32,TechData,MATCH($C38,TechData_h,0),FALSE),IF('UserSettings&Results'!D61="TestTech",VLOOKUP(E$32,TestData,MATCH($C38,TechData_h,0),FALSE),VLOOKUP(E$32,OldTechData,MATCH($C38,TechData_h,0),FALSE))) -> 30 | F38: =IF('UserSettings&Results'!E61="CurrentTech",VLOOKUP(F$32,TechData,MATCH($C38,TechData_h,0),FALSE),IF('UserSettings&Results'!E61="TestTech",VLOOKUP(F$32,TestData,MATCH($C38,TechData_h,0),FALSE),VLOOKUP(F$32,OldTechData,MATCH($C38,TechData_h,0),FALSE))) -> 30 | G38: =IF('UserSettings&Results'!F61="CurrentTech",VLOOKUP(G$32,TechData,MATCH($C38,TechData_h,0),FALSE),IF('UserSettings&Results'!F61="TestTech",VLOOKUP(G$32,TestData,MATCH($C38,TechData_h,0),FALSE),VLOOKUP(G$32,OldTechData,MATCH($C38,TechData_h,0),FALSE))) -> 30 | H38: =IF('UserSettings&Results'!G61="CurrentTech",VLOOKUP(H$32,TechData,MATCH($C38,TechData_h,0),FALSE),IF('UserSettings&Results'!G61="TestTech",VLOOKUP(H$32,TestData,MATCH($C38,TechData_h,0),FALSE),VLOOKUP(H$32,OldTechData,MATCH($C38,TechData_h,0),FALSE))) -> 40 | I38: =IF('UserSettings&Results'!H61="CurrentTech",VLOOKUP(I$32,TechData,MATCH($C38,TechData_h,0),FALSE),IF('UserSettings&Results'!H61="TestTech",VLOOKUP(I$32,TestData,MATCH($C38,TechData_h,0),FALSE),VLOOKUP(I$32,OldTechData,MATCH($C38,TechData_h,0),FALSE))) -> 40 | J38: =IF('UserSettings&Results'!I61="CurrentTech",VLOOKUP(J$32,TechData,MATCH($C38,TechData_h,0),FALSE),IF('UserSettings&Results'!I61="TestTech",VLOOKUP(J$32,TestData,MATCH($C38,TechData_h,0),FALSE),VLOOKUP(J$32,OldTechData,MATCH($C38,TechData_h,0),FALSE))) -> 30 | K38: =IF('UserSettings&Results'!J61="CurrentTech",VLOOKUP(K$32,TechData,MATCH($C38,TechData_h,0),FALSE),IF('UserSettings&Results'!J61="TestTech",VLOOKUP(K$32,TestData,MATCH($C38,TechData_h,0),FALSE),VLOOKUP(K$32,OldTechData,MATCH($C38,TechData_h,0),FALSE))) -> 40 | L38: =IF('UserSettings&Results'!K61="CurrentTech",VLOOKUP(L$32,TechData,MATCH($C38,TechData_h,0),FALSE),IF('UserSettings&Results'!K61="TestTech",VLOOKUP(L$32,TestData,MATCH($C38,TechData_h,0),FALSE),VLOOKUP(L$32,OldTechData,MATCH($C38,TechData_h,0),FALSE))) -> 25 | M38: =IF('UserSettings&Results'!L61="CurrentTech",VLOOKUP(M$32,TechData,MATCH($C38,TechData_h,0),FALSE),IF('UserSettings&Results'!L61="TestTech",VLOOKUP(M$32,TestData,MATCH($C38,TechData_h,0),FALSE),VLOOKUP(M$32,OldTechData,MATCH($C38,TechData_h,0),FALSE))) -> 25 | N38: =IF('UserSettings&Results'!M61="CurrentTech",VLOOKUP(N$32,TechData,MATCH($C38,TechData_h,0),FALSE),IF('UserSettings&Results'!M61="TestTech",VLOOKUP(N$32,TestData,MATCH($C38,TechData_h,0),FALSE),VLOOKUP(N$32,OldTechData,MATCH($C38,TechData_h,0),FALSE))) -> 15 | O38: =IF('UserSettings&Results'!N61="CurrentTech",VLOOKUP(O$32,TechData,MATCH($C38,TechData_h,0),FALSE),IF('UserSettings&Results'!N61="TestTech",VLOOKUP(O$32,TestData,MATCH($C38,TechData_h,0),FALSE),VLOOKUP(O$32,OldTechData,MATCH($C38,TechData_h,0),FALSE))) -> 15 | P38: =IF('UserSettings&Results'!O61="CurrentTech",VLOOKUP(P$32,TechData,MATCH($C38,TechData_h,0),FALSE),IF('UserSettings&Results'!O61="TestTech",VLOOKUP(P$32,TestData,MATCH($C38,TechData_h,0),FALSE),VLOOKUP(P$32,OldTechData,MATCH($C38,TechData_h,0),FALSE))) -> 25 | Q38: =IF('UserSettings&Results'!P61="CurrentTech",VLOOKUP(Q$32,TechData,MATCH($C38,TechData_h,0),FALSE),IF('UserSettings&Results'!P61="TestTech",VLOOKUP(Q$32,TestData,MATCH($C38,TechData_h,0),FALSE),VLOOKUP(Q$32,OldTechData,MATCH($C38,TechData_h,0),FALSE))) -> 15 | R38: =IF('UserSettings&Results'!Q61="CurrentTech",VLOOKUP(R$32,TechData,MATCH($C38,TechData_h,0),FALSE),IF('UserSettings&Results'!Q61="TestTech",VLOOKUP(R$32,TestData,MATCH($C38,TechData_h,0),FALSE),VLOOKUP(R$32,OldTechData,MATCH($C38,TechData_h,0),FALSE))) -> 25 | S38: =IF('UserSettings&Results'!R61="CurrentTech",VLOOKUP(S$32,TechData,MATCH($C38,TechData_h,0),FALSE),IF('UserSettings&Results'!R61="TestTech",VLOOKUP(S$32,TestData,MATCH($C38,TechData_h,0),FALSE),VLOOKUP(S$32,OldTechData,MATCH($C38,TechData_h,0),FALSE))) -> 60 | T38: =IF('UserSettings&Results'!S61="CurrentTech",VLOOKUP(T$32,TechData,MATCH($C38,TechData_h,0),FALSE),IF('UserSettings&Results'!S61="TestTech",VLOOKUP(T$32,TestData,MATCH($C38,TechData_h,0),FALSE),VLOOKUP(T$32,OldTechData,MATCH($C38,TechData_h,0),FALSE))) -> 40 | U38: =IF('UserSettings&Results'!T61="CurrentTech",VLOOKUP(U$32,TechData,MATCH($C38,TechData_h,0),FALSE),IF('UserSettings&Results'!T61="TestTech",VLOOKUP(U$32,TestData,MATCH($C38,TechData_h,0),FALSE),VLOOKUP(U$32,OldTechData,MATCH($C38,TechData_h,0),FALSE))) -> 30 | V38: =IF('UserSettings&Results'!U61="CurrentTech",VLOOKUP(V$32,TechData,MATCH($C38,TechData_h,0),FALSE),IF('UserSettings&Results'!U61="TestTech",VLOOKUP(V$32,TestData,MATCH($C38,TechData_h,0),FALSE),VLOOKUP(V$32,OldTechData,MATCH($C38,TechData_h,0),FALSE))) -> 30 | W38: =IF('UserSettings&Results'!V61="CurrentTech",VLOOKUP(W$32,TechData,MATCH($C38,TechData_h,0),FALSE),IF('UserSettings&Results'!V61="TestTech",VLOOKUP(W$32,TestData,MATCH($C38,TechData_h,0),FALSE),VLOOKUP(W$32,OldTechData,MATCH($C38,TechData_h,0),FALSE))) ->  | X38: =IF('UserSettings&Results'!W61="CurrentTech",VLOOKUP(X$32,TechData,MATCH($C38,TechData_h,0),FALSE),IF('UserSettings&Results'!W61="TestTech",VLOOKUP(X$32,TestData,MATCH($C38,TechData_h,0),FALSE),VLOOKUP(X$32,OldTechData,MATCH($C38,TechData_h,0),FALSE))) ->  | Y38: =IF('UserSettings&Results'!X61="CurrentTech",VLOOKUP(Y$32,TechData,MATCH($C38,TechData_h,0),FALSE),IF('UserSettings&Results'!X61="TestTech",VLOOKUP(Y$32,TestData,MATCH($C38,TechData_h,0),FALSE),VLOOKUP(Y$32,OldTechData,MATCH($C38,TechData_h,0),FALSE))) ->  | Z38: =IF('UserSettings&Results'!Y61="CurrentTech",VLOOKUP(Z$32,TechData,MATCH($C38,TechData_h,0),FALSE),IF('UserSettings&Results'!Y61="TestTech",VLOOKUP(Z$32,TestData,MATCH($C38,TechData_h,0),FALSE),VLOOKUP(Z$32,OldTechData,MATCH($C38,TechData_h,0),FALSE))) ->  | AA38: =IF('UserSettings&Results'!Z61="CurrentTech",VLOOKUP(AA$32,TechData,MATCH($C38,TechData_h,0),FALSE),IF('UserSettings&Results'!Z61="TestTech",VLOOKUP(AA$32,TestData,MATCH($C38,TechData_h,0),FALSE),VLOOKUP(AA$32,OldTechData,MATCH($C38,TechData_h,0),FALSE))) ->  | AB38: =IF('UserSettings&Results'!AA61="CurrentTech",VLOOKUP(AB$32,TechData,MATCH($C38,TechData_h,0),FALSE),IF('UserSettings&Results'!AA61="TestTech",VLOOKUP(AB$32,TestData,MATCH($C38,TechData_h,0),FALSE),VLOOKUP(AB$32,OldTechData,MATCH($C38,TechData_h,0),FALSE))) ->  | AC38: =IF('UserSettings&Results'!AB61="CurrentTech",VLOOKUP(AC$32,TechData,MATCH($C38,TechData_h,0),FALSE),IF('UserSettings&Results'!AB61="TestTech",VLOOKUP(AC$32,TestData,MATCH($C38,TechData_h,0),FALSE),VLOOKUP(AC$32,OldTechData,MATCH($C38,TechData_h,0),FALSE))) ->  | AD38: =IF('UserSettings&Results'!AC61="CurrentTech",VLOOKUP(AD$32,TechData,MATCH($C38,TechData_h,0),FALSE),IF('UserSettings&Results'!AC61="TestTech",VLOOKUP(AD$32,TestData,MATCH($C38,TechData_h,0),FALSE),VLOOKUP(AD$32,OldTechData,MATCH($C38,TechData_h,0),FALSE))) ->  | AE38: =IF('UserSettings&Results'!AD61="CurrentTech",VLOOKUP(AE$32,TechData,MATCH($C38,TechData_h,0),FALSE),IF('UserSettings&Results'!AD61="TestTech",VLOOKUP(AE$32,TestData,MATCH($C38,TechData_h,0),FALSE),VLOOKUP(AE$32,OldTechData,MATCH($C38,TechData_h,0),FALSE))) -> 
C39: Economic lifetime | D39: years | E39: =IF(ISNUMBER(DeprecPer),DeprecPer,E38) -> 30 | F39: =IF(ISNUMBER(DeprecPer),DeprecPer,F38) -> 30 | G39: =IF(ISNUMBER(DeprecPer),DeprecPer,G38) -> 30 | H39: =IF(ISNUMBER(DeprecPer),DeprecPer,H38) -> 40 | I39: =IF(ISNUMBER(DeprecPer),DeprecPer,I38) -> 40 | J39: =IF(ISNUMBER(DeprecPer),DeprecPer,J38) -> 30 | K39: =IF(ISNUMBER(DeprecPer),DeprecPer,K38) -> 40 | L39: =IF(ISNUMBER(DeprecPer),DeprecPer,L38) -> 25 | M39: =IF(ISNUMBER(DeprecPer),DeprecPer,M38) -> 25 | N39: =IF(ISNUMBER(DeprecPer),DeprecPer,N38) -> 15 | O39: =IF(ISNUMBER(DeprecPer),DeprecPer,O38) -> 15 | P39: =IF(ISNUMBER(DeprecPer),DeprecPer,P38) -> 25 | Q39: =IF(ISNUMBER(DeprecPer),DeprecPer,Q38) -> 15 | R39: =IF(ISNUMBER(DeprecPer),DeprecPer,R38) -> 25 | S39: =IF(ISNUMBER(DeprecPer),DeprecPer,S38) -> 60 | T39: =IF(ISNUMBER(DeprecPer),DeprecPer,T38) -> 40 | U39: =IF(ISNUMBER(DeprecPer),DeprecPer,U38) -> 30 | V39: =IF(ISNUMBER(DeprecPer),DeprecPer,V38) -> 30 | W39: =IF(ISNUMBER(DeprecPer),DeprecPer,W38) ->  | X39: =IF(ISNUMBER(DeprecPer),DeprecPer,X38) ->  | Y39: =IF(ISNUMBER(DeprecPer),DeprecPer,Y38) ->  | Z39: =IF(ISNUMBER(DeprecPer),DeprecPer,Z38) ->  | AA39: =IF(ISNUMBER(DeprecPer),DeprecPer,AA38) ->  | AB39: =IF(ISNUMBER(DeprecPer),DeprecPer,AB38) ->  | AC39: =IF(ISNUMBER(DeprecPer),DeprecPer,AC38) ->  | AD39: =IF(ISNUMBER(DeprecPer),DeprecPer,AD38) ->  | AE39: =IF(ISNUMBER(DeprecPer),DeprecPer,AE38) -> 
C40: Lookout period | D40: years | E40: =IF(ISNUMBER(DiscountHorizon),DiscountHorizon,E38) -> 30 | F40: 30 | G40: 30 | H40: 40 | I40: 40 | J40: 30 | K40: 40 | L40: 25 | M40: 25 | N40: 15 | O40: 15 | P40: 25 | Q40: 15 | R40: 25 | S40: 60 | T40: 40 | U40: 30 | V40: 30
C41: Discounted amount (economic lifetime) | E41: =NPV(DiscountRate,OFFSET(Admin!$AD$4,0,0,E$39,1)) -> 18.39204541 | F41: =NPV(DiscountRate,OFFSET(Admin!$AD$4,0,0,F$39,1)) -> 18.39204541 | G41: =NPV(DiscountRate,OFFSET(Admin!$AD$4,0,0,G$39,1)) -> 18.39204541 | H41: =NPV(DiscountRate,OFFSET(Admin!$AD$4,0,0,H$39,1)) -> 21.35507234 | I41: =NPV(DiscountRate,OFFSET(Admin!$AD$4,0,0,I$39,1)) -> 21.35507234 | J41: =NPV(DiscountRate,OFFSET(Admin!$AD$4,0,0,J$39,1)) -> 18.39204541 | K41: =NPV(DiscountRate,OFFSET(Admin!$AD$4,0,0,K$39,1)) -> 21.35507234 | L41: =NPV(DiscountRate,OFFSET(Admin!$AD$4,0,0,L$39,1)) -> 16.48151459 | M41: =NPV(DiscountRate,OFFSET(Admin!$AD$4,0,0,M$39,1)) -> 16.48151459 | N41: =NPV(DiscountRate,OFFSET(Admin!$AD$4,0,0,N$39,1)) -> 11.5174109 | O41: =NPV(DiscountRate,OFFSET(Admin!$AD$4,0,0,O$39,1)) -> 11.5174109 | P41: =NPV(DiscountRate,OFFSET(Admin!$AD$4,0,0,P$39,1)) -> 16.48151459 | Q41: =NPV(DiscountRate,OFFSET(Admin!$AD$4,0,0,Q$39,1)) -> 11.5174109 | R41: =NPV(DiscountRate,OFFSET(Admin!$AD$4,0,0,R$39,1)) -> 16.48151459 | S41: =NPV(DiscountRate,OFFSET(Admin!$AD$4,0,0,S$39,1)) -> 23.45561787 | T41: =NPV(DiscountRate,OFFSET(Admin!$AD$4,0,0,T$39,1)) -> 21.35507234 | U41: =NPV(DiscountRate,OFFSET(Admin!$AD$4,0,0,U$39,1)) -> 18.39204541 | V41: =NPV(DiscountRate,OFFSET(Admin!$AD$4,0,0,V$39,1)) -> 18.39204541 | W41: =NPV(DiscountRate,OFFSET(Admin!$AD$4,0,0,W$39,1)) ->  | X41: =NPV(DiscountRate,OFFSET(Admin!$AD$4,0,0,X$39,1)) ->  | Y41: =NPV(DiscountRate,OFFSET(Admin!$AD$4,0,0,Y$39,1)) ->  | Z41: =NPV(DiscountRate,OFFSET(Admin!$AD$4,0,0,Z$39,1)) ->  | AA41: =NPV(DiscountRate,OFFSET(Admin!$AD$4,0,0,AA$39,1)) ->  | AB41: =NPV(DiscountRate,OFFSET(Admin!$AD$4,0,0,AB$39,1)) ->  | AC41: =NPV(DiscountRate,OFFSET(Admin!$AD$4,0,0,AC$39,1)) ->  | AD41: =NPV(DiscountRate,OFFSET(Admin!$AD$4,0,0,AD$39,1)) ->  | AE41: =NPV(DiscountRate,OFFSET(Admin!$AD$4,0,0,AE$39,1)) -> 
C42: Discounted amount (lookout period) | E42: =NPV(DiscountRate,OFFSET(Admin!$AD$4,0,0,E$40,1)) -> 18.39204541 | F42: =NPV(DiscountRate,OFFSET(Admin!$AD$4,0,0,F$40,1)) -> 18.39204541 | G42: =NPV(DiscountRate,OFFSET(Admin!$AD$4,0,0,G$40,1)) -> 18.39204541 | H42: =NPV(DiscountRate,OFFSET(Admin!$AD$4,0,0,H$40,1)) -> 21.35507234 | I42: =NPV(DiscountRate,OFFSET(Admin!$AD$4,0,0,I$40,1)) -> 21.35507234 | J42: =NPV(DiscountRate,OFFSET(Admin!$AD$4,0,0,J$40,1)) -> 18.39204541 | K42: =NPV(DiscountRate,OFFSET(Admin!$AD$4,0,0,K$40,1)) -> 21.35507234 | L42: =NPV(DiscountRate,OFFSET(Admin!$AD$4,0,0,L$40,1)) -> 16.48151459 | M42: =NPV(DiscountRate,OFFSET(Admin!$AD$4,0,0,M$40,1)) -> 16.48151459 | N42: =NPV(DiscountRate,OFFSET(Admin!$AD$4,0,0,N$40,1)) -> 11.5174109 | O42: =NPV(DiscountRate,OFFSET(Admin!$AD$4,0,0,O$40,1)) -> 11.5174109 | P42: =NPV(DiscountRate,OFFSET(Admin!$AD$4,0,0,P$40,1)) -> 16.48151459 | Q42: =NPV(DiscountRate,OFFSET(Admin!$AD$4,0,0,Q$40,1)) -> 11.5174109 | R42: =NPV(DiscountRate,OFFSET(Admin!$AD$4,0,0,R$40,1)) -> 16.48151459 | S42: =NPV(DiscountRate,OFFSET(Admin!$AD$4,0,0,S$40,1)) -> 23.45561787 | T42: =NPV(DiscountRate,OFFSET(Admin!$AD$4,0,0,T$40,1)) -> 21.35507234 | U42: =NPV(DiscountRate,OFFSET(Admin!$AD$4,0,0,U$40,1)) -> 18.39204541 | V42: =NPV(DiscountRate,OFFSET(Admin!$AD$4,0,0,V$40,1)) -> 18.39204541 | W42: =NPV(DiscountRate,OFFSET(Admin!$AD$4,0,0,W$40,1)) ->  | X42: =NPV(DiscountRate,OFFSET(Admin!$AD$4,0,0,X$40,1)) ->  | Y42: =NPV(DiscountRate,OFFSET(Admin!$AD$4,0,0,Y$40,1)) ->  | Z42: =NPV(DiscountRate,OFFSET(Admin!$AD$4,0,0,Z$40,1)) ->  | AA42: =NPV(DiscountRate,OFFSET(Admin!$AD$4,0,0,AA$40,1)) ->  | AB42: =NPV(DiscountRate,OFFSET(Admin!$AD$4,0,0,AB$40,1)) ->  | AC42: =NPV(DiscountRate,OFFSET(Admin!$AD$4,0,0,AC$40,1)) ->  | AD42: =NPV(DiscountRate,OFFSET(Admin!$AD$4,0,0,AD$40,1)) ->  | AE42: =NPV(DiscountRate,OFFSET(Admin!$AD$4,0,0,AE$40,1)) -> 
C43: Construction time | D43: years | E43: =IF('UserSettings&Results'!D61="CurrentTech",VLOOKUP(E$32,TechData,MATCH($C43,TechData_h,0),FALSE),IF('UserSettings&Results'!D61="TestTech",VLOOKUP(E$32,TestData,MATCH($C43,TechData_h,0),FALSE),VLOOKUP(E$32,OldTechData,MATCH($C43,TechData_h,0),FALSE))) -> 3.5 | F43: =IF('UserSettings&Results'!E61="CurrentTech",VLOOKUP(F$32,TechData,MATCH($C43,TechData_h,0),FALSE),IF('UserSettings&Results'!E61="TestTech",VLOOKUP(F$32,TestData,MATCH($C43,TechData_h,0),FALSE),VLOOKUP(F$32,OldTechData,MATCH($C43,TechData_h,0),FALSE))) -> 3.5 | G43: =IF('UserSettings&Results'!F61="CurrentTech",VLOOKUP(G$32,TechData,MATCH($C43,TechData_h,0),FALSE),IF('UserSettings&Results'!F61="TestTech",VLOOKUP(G$32,TestData,MATCH($C43,TechData_h,0),FALSE),VLOOKUP(G$32,OldTechData,MATCH($C43,TechData_h,0),FALSE))) -> 1.5 | H43: =IF('UserSettings&Results'!G61="CurrentTech",VLOOKUP(H$32,TechData,MATCH($C43,TechData_h,0),FALSE),IF('UserSettings&Results'!G61="TestTech",VLOOKUP(H$32,TestData,MATCH($C43,TechData_h,0),FALSE),VLOOKUP(H$32,OldTechData,MATCH($C43,TechData_h,0),FALSE))) -> 0.5 | I43: =IF('UserSettings&Results'!H61="CurrentTech",VLOOKUP(I$32,TechData,MATCH($C43,TechData_h,0),FALSE),IF('UserSettings&Results'!H61="TestTech",VLOOKUP(I$32,TestData,MATCH($C43,TechData_h,0),FALSE),VLOOKUP(I$32,OldTechData,MATCH($C43,TechData_h,0),FALSE))) -> 0.5 | J43: =IF('UserSettings&Results'!I61="CurrentTech",VLOOKUP(J$32,TechData,MATCH($C43,TechData_h,0),FALSE),IF('UserSettings&Results'!I61="TestTech",VLOOKUP(J$32,TestData,MATCH($C43,TechData_h,0),FALSE),VLOOKUP(J$32,OldTechData,MATCH($C43,TechData_h,0),FALSE))) -> 0.5 | K43: =IF('UserSettings&Results'!J61="CurrentTech",VLOOKUP(K$32,TechData,MATCH($C43,TechData_h,0),FALSE),IF('UserSettings&Results'!J61="TestTech",VLOOKUP(K$32,TestData,MATCH($C43,TechData_h,0),FALSE),VLOOKUP(K$32,OldTechData,MATCH($C43,TechData_h,0),FALSE))) -> 0.5 | L43: =IF('UserSettings&Results'!K61="CurrentTech",VLOOKUP(L$32,TechData,MATCH($C43,TechData_h,0),FALSE),IF('UserSettings&Results'!K61="TestTech",VLOOKUP(L$32,TestData,MATCH($C43,TechData_h,0),FALSE),VLOOKUP(L$32,OldTechData,MATCH($C43,TechData_h,0),FALSE))) -> 2.5 | M43: =IF('UserSettings&Results'!L61="CurrentTech",VLOOKUP(M$32,TechData,MATCH($C43,TechData_h,0),FALSE),IF('UserSettings&Results'!L61="TestTech",VLOOKUP(M$32,TestData,MATCH($C43,TechData_h,0),FALSE),VLOOKUP(M$32,OldTechData,MATCH($C43,TechData_h,0),FALSE))) -> 2.5 | N43: =IF('UserSettings&Results'!M61="CurrentTech",VLOOKUP(N$32,TechData,MATCH($C43,TechData_h,0),FALSE),IF('UserSettings&Results'!M61="TestTech",VLOOKUP(N$32,TestData,MATCH($C43,TechData_h,0),FALSE),VLOOKUP(N$32,OldTechData,MATCH($C43,TechData_h,0),FALSE))) -> 2.5 | O43: =IF('UserSettings&Results'!N61="CurrentTech",VLOOKUP(O$32,TechData,MATCH($C43,TechData_h,0),FALSE),IF('UserSettings&Results'!N61="TestTech",VLOOKUP(O$32,TestData,MATCH($C43,TechData_h,0),FALSE),VLOOKUP(O$32,OldTechData,MATCH($C43,TechData_h,0),FALSE))) -> 2 | P43: =IF('UserSettings&Results'!O61="CurrentTech",VLOOKUP(P$32,TechData,MATCH($C43,TechData_h,0),FALSE),IF('UserSettings&Results'!O61="TestTech",VLOOKUP(P$32,TestData,MATCH($C43,TechData_h,0),FALSE),VLOOKUP(P$32,OldTechData,MATCH($C43,TechData_h,0),FALSE))) -> 4.5 | Q43: =IF('UserSettings&Results'!P61="CurrentTech",VLOOKUP(Q$32,TechData,MATCH($C43,TechData_h,0),FALSE),IF('UserSettings&Results'!P61="TestTech",VLOOKUP(Q$32,TestData,MATCH($C43,TechData_h,0),FALSE),VLOOKUP(Q$32,OldTechData,MATCH($C43,TechData_h,0),FALSE))) -> 0.5 | R43: =IF('UserSettings&Results'!Q61="CurrentTech",VLOOKUP(R$32,TechData,MATCH($C43,TechData_h,0),FALSE),IF('UserSettings&Results'!Q61="TestTech",VLOOKUP(R$32,TestData,MATCH($C43,TechData_h,0),FALSE),VLOOKUP(R$32,OldTechData,MATCH($C43,TechData_h,0),FALSE))) -> 2.5 | S43: =IF('UserSettings&Results'!R61="CurrentTech",VLOOKUP(S$32,TechData,MATCH($C43,TechData_h,0),FALSE),IF('UserSettings&Results'!R61="TestTech",VLOOKUP(S$32,TestData,MATCH($C43,TechData_h,0),FALSE),VLOOKUP(S$32,OldTechData,MATCH($C43,TechData_h,0),FALSE))) -> 7 | T43: =IF('UserSettings&Results'!S61="CurrentTech",VLOOKUP(T$32,TechData,MATCH($C43,TechData_h,0),FALSE),IF('UserSettings&Results'!S61="TestTech",VLOOKUP(T$32,TestData,MATCH($C43,TechData_h,0),FALSE),VLOOKUP(T$32,OldTechData,MATCH($C43,TechData_h,0),FALSE))) -> 4 | U43: =IF('UserSettings&Results'!T61="CurrentTech",VLOOKUP(U$32,TechData,MATCH($C43,TechData_h,0),FALSE),IF('UserSettings&Results'!T61="TestTech",VLOOKUP(U$32,TestData,MATCH($C43,TechData_h,0),FALSE),VLOOKUP(U$32,OldTechData,MATCH($C43,TechData_h,0),FALSE))) -> 2 | V43: =IF('UserSettings&Results'!U61="CurrentTech",VLOOKUP(V$32,TechData,MATCH($C43,TechData_h,0),FALSE),IF('UserSettings&Results'!U61="TestTech",VLOOKUP(V$32,TestData,MATCH($C43,TechData_h,0),FALSE),VLOOKUP(V$32,OldTechData,MATCH($C43,TechData_h,0),FALSE))) -> 1.5 | W43: =IF('UserSettings&Results'!V61="CurrentTech",VLOOKUP(W$32,TechData,MATCH($C43,TechData_h,0),FALSE),IF('UserSettings&Results'!V61="TestTech",VLOOKUP(W$32,TestData,MATCH($C43,TechData_h,0),FALSE),VLOOKUP(W$32,OldTechData,MATCH($C43,TechData_h,0),FALSE))) ->  | X43: =IF('UserSettings&Results'!W61="CurrentTech",VLOOKUP(X$32,TechData,MATCH($C43,TechData_h,0),FALSE),IF('UserSettings&Results'!W61="TestTech",VLOOKUP(X$32,TestData,MATCH($C43,TechData_h,0),FALSE),VLOOKUP(X$32,OldTechData,MATCH($C43,TechData_h,0),FALSE))) ->  | Y43: =IF('UserSettings&Results'!X61="CurrentTech",VLOOKUP(Y$32,TechData,MATCH($C43,TechData_h,0),FALSE),IF('UserSettings&Results'!X61="TestTech",VLOOKUP(Y$32,TestData,MATCH($C43,TechData_h,0),FALSE),VLOOKUP(Y$32,OldTechData,MATCH($C43,TechData_h,0),FALSE))) ->  | Z43: =IF('UserSettings&Results'!Y61="CurrentTech",VLOOKUP(Z$32,TechData,MATCH($C43,TechData_h,0),FALSE),IF('UserSettings&Results'!Y61="TestTech",VLOOKUP(Z$32,TestData,MATCH($C43,TechData_h,0),FALSE),VLOOKUP(Z$32,OldTechData,MATCH($C43,TechData_h,0),FALSE))) ->  | AA43: =IF('UserSettings&Results'!Z61="CurrentTech",VLOOKUP(AA$32,TechData,MATCH($C43,TechData_h,0),FALSE),IF('UserSettings&Results'!Z61="TestTech",VLOOKUP(AA$32,TestData,MATCH($C43,TechData_h,0),FALSE),VLOOKUP(AA$32,OldTechData,MATCH($C43,TechData_h,0),FALSE))) ->  | AB43: =IF('UserSettings&Results'!AA61="CurrentTech",VLOOKUP(AB$32,TechData,MATCH($C43,TechData_h,0),FALSE),IF('UserSettings&Results'!AA61="TestTech",VLOOKUP(AB$32,TestData,MATCH($C43,TechData_h,0),FALSE),VLOOKUP(AB$32,OldTechData,MATCH($C43,TechData_h,0),FALSE))) ->  | AC43: =IF('UserSettings&Results'!AB61="CurrentTech",VLOOKUP(AC$32,TechData,MATCH($C43,TechData_h,0),FALSE),IF('UserSettings&Results'!AB61="TestTech",VLOOKUP(AC$32,TestData,MATCH($C43,TechData_h,0),FALSE),VLOOKUP(AC$32,OldTechData,MATCH($C43,TechData_h,0),FALSE))) ->  | AD43: =IF('UserSettings&Results'!AC61="CurrentTech",VLOOKUP(AD$32,TechData,MATCH($C43,TechData_h,0),FALSE),IF('UserSettings&Results'!AC61="TestTech",VLOOKUP(AD$32,TestData,MATCH($C43,TechData_h,0),FALSE),VLOOKUP(AD$32,OldTechData,MATCH($C43,TechData_h,0),FALSE))) ->  | AE43: =IF('UserSettings&Results'!AD61="CurrentTech",VLOOKUP(AE$32,TechData,MATCH($C43,TechData_h,0),FALSE),IF('UserSettings&Results'!AD61="TestTech",VLOOKUP(AE$32,TestData,MATCH($C43,TechData_h,0),FALSE),VLOOKUP(AE$32,OldTechData,MATCH($C43,TechData_h,0),FALSE))) -> 
C44: Geography | E44: =IF('UserSettings&Results'!D61="CurrentTech",VLOOKUP(E$32,TechData,MATCH($C44,TechData_h,0),FALSE),IF('UserSettings&Results'!D61="TestTech",VLOOKUP(E$32,TestData,MATCH($C44,TechData_h,0),FALSE),VLOOKUP(E$32,OldTechData,MATCH($C44,TechData_h,0),FALSE))) -> Central | F44: =IF('UserSettings&Results'!E61="CurrentTech",VLOOKUP(F$32,TechData,MATCH($C44,TechData_h,0),FALSE),IF('UserSettings&Results'!E61="TestTech",VLOOKUP(F$32,TestData,MATCH($C44,TechData_h,0),FALSE),VLOOKUP(F$32,OldTechData,MATCH($C44,TechData_h,0),FALSE))) -> Central | G44: =IF('UserSettings&Results'!F61="CurrentTech",VLOOKUP(G$32,TechData,MATCH($C44,TechData_h,0),FALSE),IF('UserSettings&Results'!F61="TestTech",VLOOKUP(G$32,TestData,MATCH($C44,TechData_h,0),FALSE),VLOOKUP(G$32,OldTechData,MATCH($C44,TechData_h,0),FALSE))) -> Central | H44: =IF('UserSettings&Results'!G61="CurrentTech",VLOOKUP(H$32,TechData,MATCH($C44,TechData_h,0),FALSE),IF('UserSettings&Results'!G61="TestTech",VLOOKUP(H$32,TestData,MATCH($C44,TechData_h,0),FALSE),VLOOKUP(H$32,OldTechData,MATCH($C44,TechData_h,0),FALSE))) -> Decentral | I44: =IF('UserSettings&Results'!H61="CurrentTech",VLOOKUP(I$32,TechData,MATCH($C44,TechData_h,0),FALSE),IF('UserSettings&Results'!H61="TestTech",VLOOKUP(I$32,TestData,MATCH($C44,TechData_h,0),FALSE),VLOOKUP(I$32,OldTechData,MATCH($C44,TechData_h,0),FALSE))) -> Decentral | J44: =IF('UserSettings&Results'!I61="CurrentTech",VLOOKUP(J$32,TechData,MATCH($C44,TechData_h,0),FALSE),IF('UserSettings&Results'!I61="TestTech",VLOOKUP(J$32,TestData,MATCH($C44,TechData_h,0),FALSE),VLOOKUP(J$32,OldTechData,MATCH($C44,TechData_h,0),FALSE))) -> Decentral | K44: =IF('UserSettings&Results'!J61="CurrentTech",VLOOKUP(K$32,TechData,MATCH($C44,TechData_h,0),FALSE),IF('UserSettings&Results'!J61="TestTech",VLOOKUP(K$32,TestData,MATCH($C44,TechData_h,0),FALSE),VLOOKUP(K$32,OldTechData,MATCH($C44,TechData_h,0),FALSE))) -> Decentral | L44: =IF('UserSettings&Results'!K61="CurrentTech",VLOOKUP(L$32,TechData,MATCH($C44,TechData_h,0),FALSE),IF('UserSettings&Results'!K61="TestTech",VLOOKUP(L$32,TestData,MATCH($C44,TechData_h,0),FALSE),VLOOKUP(L$32,OldTechData,MATCH($C44,TechData_h,0),FALSE))) -> Decentral | M44: =IF('UserSettings&Results'!L61="CurrentTech",VLOOKUP(M$32,TechData,MATCH($C44,TechData_h,0),FALSE),IF('UserSettings&Results'!L61="TestTech",VLOOKUP(M$32,TestData,MATCH($C44,TechData_h,0),FALSE),VLOOKUP(M$32,OldTechData,MATCH($C44,TechData_h,0),FALSE))) -> Central | N44: =IF('UserSettings&Results'!M61="CurrentTech",VLOOKUP(N$32,TechData,MATCH($C44,TechData_h,0),FALSE),IF('UserSettings&Results'!M61="TestTech",VLOOKUP(N$32,TestData,MATCH($C44,TechData_h,0),FALSE),VLOOKUP(N$32,OldTechData,MATCH($C44,TechData_h,0),FALSE))) -> Central | O44: =IF('UserSettings&Results'!N61="CurrentTech",VLOOKUP(O$32,TechData,MATCH($C44,TechData_h,0),FALSE),IF('UserSettings&Results'!N61="TestTech",VLOOKUP(O$32,TestData,MATCH($C44,TechData_h,0),FALSE),VLOOKUP(O$32,OldTechData,MATCH($C44,TechData_h,0),FALSE))) -> Central | P44: =IF('UserSettings&Results'!O61="CurrentTech",VLOOKUP(P$32,TechData,MATCH($C44,TechData_h,0),FALSE),IF('UserSettings&Results'!O61="TestTech",VLOOKUP(P$32,TestData,MATCH($C44,TechData_h,0),FALSE),VLOOKUP(P$32,OldTechData,MATCH($C44,TechData_h,0),FALSE))) -> Central | Q44: =IF('UserSettings&Results'!P61="CurrentTech",VLOOKUP(Q$32,TechData,MATCH($C44,TechData_h,0),FALSE),IF('UserSettings&Results'!P61="TestTech",VLOOKUP(Q$32,TestData,MATCH($C44,TechData_h,0),FALSE),VLOOKUP(Q$32,OldTechData,MATCH($C44,TechData_h,0),FALSE))) -> Central | R44: =IF('UserSettings&Results'!Q61="CurrentTech",VLOOKUP(R$32,TechData,MATCH($C44,TechData_h,0),FALSE),IF('UserSettings&Results'!Q61="TestTech",VLOOKUP(R$32,TestData,MATCH($C44,TechData_h,0),FALSE),VLOOKUP(R$32,OldTechData,MATCH($C44,TechData_h,0),FALSE))) -> Central | S44: =IF('UserSettings&Results'!R61="CurrentTech",VLOOKUP(S$32,TechData,MATCH($C44,TechData_h,0),FALSE),IF('UserSettings&Results'!R61="TestTech",VLOOKUP(S$32,TestData,MATCH($C44,TechData_h,0),FALSE),VLOOKUP(S$32,OldTechData,MATCH($C44,TechData_h,0),FALSE))) -> Central | T44: =IF('UserSettings&Results'!S61="CurrentTech",VLOOKUP(T$32,TechData,MATCH($C44,TechData_h,0),FALSE),IF('UserSettings&Results'!S61="TestTech",VLOOKUP(T$32,TestData,MATCH($C44,TechData_h,0),FALSE),VLOOKUP(T$32,OldTechData,MATCH($C44,TechData_h,0),FALSE))) -> Central | U44: =IF('UserSettings&Results'!T61="CurrentTech",VLOOKUP(U$32,TechData,MATCH($C44,TechData_h,0),FALSE),IF('UserSettings&Results'!T61="TestTech",VLOOKUP(U$32,TestData,MATCH($C44,TechData_h,0),FALSE),VLOOKUP(U$32,OldTechData,MATCH($C44,TechData_h,0),FALSE))) -> Central | V44: =IF('UserSettings&Results'!U61="CurrentTech",VLOOKUP(V$32,TechData,MATCH($C44,TechData_h,0),FALSE),IF('UserSettings&Results'!U61="TestTech",VLOOKUP(V$32,TestData,MATCH($C44,TechData_h,0),FALSE),VLOOKUP(V$32,OldTechData,MATCH($C44,TechData_h,0),FALSE))) -> Decentral | W44: =IF('UserSettings&Results'!V61="CurrentTech",VLOOKUP(W$32,TechData,MATCH($C44,TechData_h,0),FALSE),IF('UserSettings&Results'!V61="TestTech",VLOOKUP(W$32,TestData,MATCH($C44,TechData_h,0),FALSE),VLOOKUP(W$32,OldTechData,MATCH($C44,TechData_h,0),FALSE))) ->  | X44: =IF('UserSettings&Results'!W61="CurrentTech",VLOOKUP(X$32,TechData,MATCH($C44,TechData_h,0),FALSE),IF('UserSettings&Results'!W61="TestTech",VLOOKUP(X$32,TestData,MATCH($C44,TechData_h,0),FALSE),VLOOKUP(X$32,OldTechData,MATCH($C44,TechData_h,0),FALSE))) ->  | Y44: =IF('UserSettings&Results'!X61="CurrentTech",VLOOKUP(Y$32,TechData,MATCH($C44,TechData_h,0),FALSE),IF('UserSettings&Results'!X61="TestTech",VLOOKUP(Y$32,TestData,MATCH($C44,TechData_h,0),FALSE),VLOOKUP(Y$32,OldTechData,MATCH($C44,TechData_h,0),FALSE))) ->  | Z44: =IF('UserSettings&Results'!Y61="CurrentTech",VLOOKUP(Z$32,TechData,MATCH($C44,TechData_h,0),FALSE),IF('UserSettings&Results'!Y61="TestTech",VLOOKUP(Z$32,TestData,MATCH($C44,TechData_h,0),FALSE),VLOOKUP(Z$32,OldTechData,MATCH($C44,TechData_h,0),FALSE))) ->  | AA44: =IF('UserSettings&Results'!Z61="CurrentTech",VLOOKUP(AA$32,TechData,MATCH($C44,TechData_h,0),FALSE),IF('UserSettings&Results'!Z61="TestTech",VLOOKUP(AA$32,TestData,MATCH($C44,TechData_h,0),FALSE),VLOOKUP(AA$32,OldTechData,MATCH($C44,TechData_h,0),FALSE))) ->  | AB44: =IF('UserSettings&Results'!AA61="CurrentTech",VLOOKUP(AB$32,TechData,MATCH($C44,TechData_h,0),FALSE),IF('UserSettings&Results'!AA61="TestTech",VLOOKUP(AB$32,TestData,MATCH($C44,TechData_h,0),FALSE),VLOOKUP(AB$32,OldTechData,MATCH($C44,TechData_h,0),FALSE))) ->  | AC44: =IF('UserSettings&Results'!AB61="CurrentTech",VLOOKUP(AC$32,TechData,MATCH($C44,TechData_h,0),FALSE),IF('UserSettings&Results'!AB61="TestTech",VLOOKUP(AC$32,TestData,MATCH($C44,TechData_h,0),FALSE),VLOOKUP(AC$32,OldTechData,MATCH($C44,TechData_h,0),FALSE))) ->  | AD44: =IF('UserSettings&Results'!AC61="CurrentTech",VLOOKUP(AD$32,TechData,MATCH($C44,TechData_h,0),FALSE),IF('UserSettings&Results'!AC61="TestTech",VLOOKUP(AD$32,TestData,MATCH($C44,TechData_h,0),FALSE),VLOOKUP(AD$32,OldTechData,MATCH($C44,TechData_h,0),FALSE))) ->  | AE44: =IF('UserSettings&Results'!AD61="CurrentTech",VLOOKUP(AE$32,TechData,MATCH($C44,TechData_h,0),FALSE),IF('UserSettings&Results'!AD61="TestTech",VLOOKUP(AE$32,TestData,MATCH($C44,TechData_h,0),FALSE),VLOOKUP(AE$32,OldTechData,MATCH($C44,TechData_h,0),FALSE))) -> 
C45: Emission factor CO2 | D45: kg/GJ | E45: =IFERROR(VLOOKUP(E34,EmissionFactorsCO2,MATCH(E37,EmissionFactorsCO2_h,0),FALSE),0) -> 0 | F45: 0 | G45: 0 | H45: 0 | I45: 0 | J45: =IFERROR(VLOOKUP(J34,EmissionFactorsCO2,MATCH(J37,EmissionFactorsCO2_h,0),FALSE),0) -> 0 | K45: =IFERROR(VLOOKUP(K34,EmissionFactorsCO2,MATCH(K37,EmissionFactorsCO2_h,0),FALSE),0) -> 0 | L45: 0 | M45: 0 | N45: 0 | O45: 0 | P45: 94.3 | Q45: 94.3 | R45: 57 | S45: 0 | T45: 94.3 | U45: 57 | V45: 0 | W45: 0 | X45: 0 | Y45: 0 | Z45: 0 | AA45: 0 | AB45: 0 | AC45: 0 | AD45: 0 | AE45: 0
C46: Emission factor CH4 | D46: kg CO2-equivalent/GJ | E46: =IF('UserSettings&Results'!D61="CurrentTech",VLOOKUP(E$32,TechData,MATCH($C46,TechData_h,0),FALSE),IF('UserSettings&Results'!D61="TestTech",VLOOKUP(E$32,TestData,MATCH($C46,TechData_h,0),FALSE),VLOOKUP(E$32,OldTechData,MATCH($C46,TechData_h,0),FALSE)))/1000*VLOOKUP(E34,EmissionFactorsGHG,MATCH("CH4",EmissionFactorsGHG_h,0),FALSE) -> 0 | F46: =IF('UserSettings&Results'!E61="CurrentTech",VLOOKUP(F$32,TechData,MATCH($C46,TechData_h,0),FALSE),IF('UserSettings&Results'!E61="TestTech",VLOOKUP(F$32,TestData,MATCH($C46,TechData_h,0),FALSE),VLOOKUP(F$32,OldTechData,MATCH($C46,TechData_h,0),FALSE)))/1000*VLOOKUP(F34,EmissionFactorsGHG,MATCH("CH4",EmissionFactorsGHG_h,0),FALSE) -> 0 | G46: =IF('UserSettings&Results'!F61="CurrentTech",VLOOKUP(G$32,TechData,MATCH($C46,TechData_h,0),FALSE),IF('UserSettings&Results'!F61="TestTech",VLOOKUP(G$32,TestData,MATCH($C46,TechData_h,0),FALSE),VLOOKUP(G$32,OldTechData,MATCH($C46,TechData_h,0),FALSE)))/1000*VLOOKUP(G34,EmissionFactorsGHG,MATCH("CH4",EmissionFactorsGHG_h,0),FALSE) -> 0 | H46: =IF('UserSettings&Results'!G61="CurrentTech",VLOOKUP(H$32,TechData,MATCH($C46,TechData_h,0),FALSE),IF('UserSettings&Results'!G61="TestTech",VLOOKUP(H$32,TestData,MATCH($C46,TechData_h,0),FALSE),VLOOKUP(H$32,OldTechData,MATCH($C46,TechData_h,0),FALSE)))/1000*VLOOKUP(H34,EmissionFactorsGHG,MATCH("CH4",EmissionFactorsGHG_h,0),FALSE) -> 0 | I46: =IF('UserSettings&Results'!H61="CurrentTech",VLOOKUP(I$32,TechData,MATCH($C46,TechData_h,0),FALSE),IF('UserSettings&Results'!H61="TestTech",VLOOKUP(I$32,TestData,MATCH($C46,TechData_h,0),FALSE),VLOOKUP(I$32,OldTechData,MATCH($C46,TechData_h,0),FALSE)))/1000*VLOOKUP(I34,EmissionFactorsGHG,MATCH("CH4",EmissionFactorsGHG_h,0),FALSE) -> 0 | J46: =IF('UserSettings&Results'!I61="CurrentTech",VLOOKUP(J$32,TechData,MATCH($C46,TechData_h,0),FALSE),IF('UserSettings&Results'!I61="TestTech",VLOOKUP(J$32,TestData,MATCH($C46,TechData_h,0),FALSE),VLOOKUP(J$32,OldTechData,MATCH($C46,TechData_h,0),FALSE)))/1000*VLOOKUP(J34,EmissionFactorsGHG,MATCH("CH4",EmissionFactorsGHG_h,0),FALSE) -> 0 | K46: =IF('UserSettings&Results'!J61="CurrentTech",VLOOKUP(K$32,TechData,MATCH($C46,TechData_h,0),FALSE),IF('UserSettings&Results'!J61="TestTech",VLOOKUP(K$32,TestData,MATCH($C46,TechData_h,0),FALSE),VLOOKUP(K$32,OldTechData,MATCH($C46,TechData_h,0),FALSE)))/1000*VLOOKUP(K34,EmissionFactorsGHG,MATCH("CH4",EmissionFactorsGHG_h,0),FALSE) -> 0 | L46: =IF('UserSettings&Results'!K61="CurrentTech",VLOOKUP(L$32,TechData,MATCH($C46,TechData_h,0),FALSE),IF('UserSettings&Results'!K61="TestTech",VLOOKUP(L$32,TestData,MATCH($C46,TechData_h,0),FALSE),VLOOKUP(L$32,OldTechData,MATCH($C46,TechData_h,0),FALSE)))/1000*VLOOKUP(L34,EmissionFactorsGHG,MATCH("CH4",EmissionFactorsGHG_h,0),FALSE) -> 0 | M46: =IF('UserSettings&Results'!L61="CurrentTech",VLOOKUP(M$32,TechData,MATCH($C46,TechData_h,0),FALSE),IF('UserSettings&Results'!L61="TestTech",VLOOKUP(M$32,TestData,MATCH($C46,TechData_h,0),FALSE),VLOOKUP(M$32,OldTechData,MATCH($C46,TechData_h,0),FALSE)))/1000*VLOOKUP(M34,EmissionFactorsGHG,MATCH("CH4",EmissionFactorsGHG_h,0),FALSE) -> 0.037975 | N46: =IF('UserSettings&Results'!M61="CurrentTech",VLOOKUP(N$32,TechData,MATCH($C46,TechData_h,0),FALSE),IF('UserSettings&Results'!M61="TestTech",VLOOKUP(N$32,TestData,MATCH($C46,TechData_h,0),FALSE),VLOOKUP(N$32,OldTechData,MATCH($C46,TechData_h,0),FALSE)))/1000*VLOOKUP(N34,EmissionFactorsGHG,MATCH("CH4",EmissionFactorsGHG_h,0),FALSE) -> 0.0125 | O46: =IF('UserSettings&Results'!N61="CurrentTech",VLOOKUP(O$32,TechData,MATCH($C46,TechData_h,0),FALSE),IF('UserSettings&Results'!N61="TestTech",VLOOKUP(O$32,TestData,MATCH($C46,TechData_h,0),FALSE),VLOOKUP(O$32,OldTechData,MATCH($C46,TechData_h,0),FALSE)))/1000*VLOOKUP(O34,EmissionFactorsGHG,MATCH("CH4",EmissionFactorsGHG_h,0),FALSE) -> 0.0775 | P46: =IF('UserSettings&Results'!O61="CurrentTech",VLOOKUP(P$32,TechData,MATCH($C46,TechData_h,0),FALSE),IF('UserSettings&Results'!O61="TestTech",VLOOKUP(P$32,TestData,MATCH($C46,TechData_h,0),FALSE),VLOOKUP(P$32,OldTechData,MATCH($C46,TechData_h,0),FALSE)))/1000*VLOOKUP(P34,EmissionFactorsGHG,MATCH("CH4",EmissionFactorsGHG_h,0),FALSE) -> 0.0375 | Q46: =IF('UserSettings&Results'!P61="CurrentTech",VLOOKUP(Q$32,TechData,MATCH($C46,TechData_h,0),FALSE),IF('UserSettings&Results'!P61="TestTech",VLOOKUP(Q$32,TestData,MATCH($C46,TechData_h,0),FALSE),VLOOKUP(Q$32,OldTechData,MATCH($C46,TechData_h,0),FALSE)))/1000*VLOOKUP(Q34,EmissionFactorsGHG,MATCH("CH4",EmissionFactorsGHG_h,0),FALSE) -> 0.0375 | R46: =IF('UserSettings&Results'!Q61="CurrentTech",VLOOKUP(R$32,TechData,MATCH($C46,TechData_h,0),FALSE),IF('UserSettings&Results'!Q61="TestTech",VLOOKUP(R$32,TestData,MATCH($C46,TechData_h,0),FALSE),VLOOKUP(R$32,OldTechData,MATCH($C46,TechData_h,0),FALSE)))/1000*VLOOKUP(R34,EmissionFactorsGHG,MATCH("CH4",EmissionFactorsGHG_h,0),FALSE) -> 0.0375 | S46: =IF('UserSettings&Results'!R61="CurrentTech",VLOOKUP(S$32,TechData,MATCH($C46,TechData_h,0),FALSE),IF('UserSettings&Results'!R61="TestTech",VLOOKUP(S$32,TestData,MATCH($C46,TechData_h,0),FALSE),VLOOKUP(S$32,OldTechData,MATCH($C46,TechData_h,0),FALSE)))/1000*VLOOKUP(S34,EmissionFactorsGHG,MATCH("CH4",EmissionFactorsGHG_h,0),FALSE) -> 0 | T46: =IF('UserSettings&Results'!S61="CurrentTech",VLOOKUP(T$32,TechData,MATCH($C46,TechData_h,0),FALSE),IF('UserSettings&Results'!S61="TestTech",VLOOKUP(T$32,TestData,MATCH($C46,TechData_h,0),FALSE),VLOOKUP(T$32,OldTechData,MATCH($C46,TechData_h,0),FALSE)))/1000*VLOOKUP(T34,EmissionFactorsGHG,MATCH("CH4",EmissionFactorsGHG_h,0),FALSE) -> 0.0375 | U46: =IF('UserSettings&Results'!T61="CurrentTech",VLOOKUP(U$32,TechData,MATCH($C46,TechData_h,0),FALSE),IF('UserSettings&Results'!T61="TestTech",VLOOKUP(U$32,TestData,MATCH($C46,TechData_h,0),FALSE),VLOOKUP(U$32,OldTechData,MATCH($C46,TechData_h,0),FALSE)))/1000*VLOOKUP(U34,EmissionFactorsGHG,MATCH("CH4",EmissionFactorsGHG_h,0),FALSE) -> 0.05 | V46: =IF('UserSettings&Results'!U61="CurrentTech",VLOOKUP(V$32,TechData,MATCH($C46,TechData_h,0),FALSE),IF('UserSettings&Results'!U61="TestTech",VLOOKUP(V$32,TestData,MATCH($C46,TechData_h,0),FALSE),VLOOKUP(V$32,OldTechData,MATCH($C46,TechData_h,0),FALSE)))/1000*VLOOKUP(V34,EmissionFactorsGHG,MATCH("CH4",EmissionFactorsGHG_h,0),FALSE) -> 0 | W46: =IF('UserSettings&Results'!V61="CurrentTech",VLOOKUP(W$32,TechData,MATCH($C46,TechData_h,0),FALSE),IF('UserSettings&Results'!V61="TestTech",VLOOKUP(W$32,TestData,MATCH($C46,TechData_h,0),FALSE),VLOOKUP(W$32,OldTechData,MATCH($C46,TechData_h,0),FALSE)))/1000*VLOOKUP(W34,EmissionFactorsGHG,MATCH("CH4",EmissionFactorsGHG_h,0),FALSE) ->  | X46: =IF('UserSettings&Results'!W61="CurrentTech",VLOOKUP(X$32,TechData,MATCH($C46,TechData_h,0),FALSE),IF('UserSettings&Results'!W61="TestTech",VLOOKUP(X$32,TestData,MATCH($C46,TechData_h,0),FALSE),VLOOKUP(X$32,OldTechData,MATCH($C46,TechData_h,0),FALSE)))/1000*VLOOKUP(X34,EmissionFactorsGHG,MATCH("CH4",EmissionFactorsGHG_h,0),FALSE) ->  | Y46: =IF('UserSettings&Results'!X61="CurrentTech",VLOOKUP(Y$32,TechData,MATCH($C46,TechData_h,0),FALSE),IF('UserSettings&Results'!X61="TestTech",VLOOKUP(Y$32,TestData,MATCH($C46,TechData_h,0),FALSE),VLOOKUP(Y$32,OldTechData,MATCH($C46,TechData_h,0),FALSE)))/1000*VLOOKUP(Y34,EmissionFactorsGHG,MATCH("CH4",EmissionFactorsGHG_h,0),FALSE) ->  | Z46: =IF('UserSettings&Results'!Y61="CurrentTech",VLOOKUP(Z$32,TechData,MATCH($C46,TechData_h,0),FALSE),IF('UserSettings&Results'!Y61="TestTech",VLOOKUP(Z$32,TestData,MATCH($C46,TechData_h,0),FALSE),VLOOKUP(Z$32,OldTechData,MATCH($C46,TechData_h,0),FALSE)))/1000*VLOOKUP(Z34,EmissionFactorsGHG,MATCH("CH4",EmissionFactorsGHG_h,0),FALSE) ->  | AA46: =IF('UserSettings&Results'!Z61="CurrentTech",VLOOKUP(AA$32,TechData,MATCH($C46,TechData_h,0),FALSE),IF('UserSettings&Results'!Z61="TestTech",VLOOKUP(AA$32,TestData,MATCH($C46,TechData_h,0),FALSE),VLOOKUP(AA$32,OldTechData,MATCH($C46,TechData_h,0),FALSE)))/1000*VLOOKUP(AA34,EmissionFactorsGHG,MATCH("CH4",EmissionFactorsGHG_h,0),FALSE) ->  | AB46: =IF('UserSettings&Results'!AA61="CurrentTech",VLOOKUP(AB$32,TechData,MATCH($C46,TechData_h,0),FALSE),IF('UserSettings&Results'!AA61="TestTech",VLOOKUP(AB$32,TestData,MATCH($C46,TechData_h,0),FALSE),VLOOKUP(AB$32,OldTechData,MATCH($C46,TechData_h,0),FALSE)))/1000*VLOOKUP(AB34,EmissionFactorsGHG,MATCH("CH4",EmissionFactorsGHG_h,0),FALSE) ->  | AC46: =IF('UserSettings&Results'!AB61="CurrentTech",VLOOKUP(AC$32,TechData,MATCH($C46,TechData_h,0),FALSE),IF('UserSettings&Results'!AB61="TestTech",VLOOKUP(AC$32,TestData,MATCH($C46,TechData_h,0),FALSE),VLOOKUP(AC$32,OldTechData,MATCH($C46,TechData_h,0),FALSE)))/1000*VLOOKUP(AC34,EmissionFactorsGHG,MATCH("CH4",EmissionFactorsGHG_h,0),FALSE) ->  | AD46: =IF('UserSettings&Results'!AC61="CurrentTech",VLOOKUP(AD$32,TechData,MATCH($C46,TechData_h,0),FALSE),IF('UserSettings&Results'!AC61="TestTech",VLOOKUP(AD$32,TestData,MATCH($C46,TechData_h,0),FALSE),VLOOKUP(AD$32,OldTechData,MATCH($C46,TechData_h,0),FALSE)))/1000*VLOOKUP(AD34,EmissionFactorsGHG,MATCH("CH4",EmissionFactorsGHG_h,0),FALSE) ->  | AE46: =IF('UserSettings&Results'!AD61="CurrentTech",VLOOKUP(AE$32,TechData,MATCH($C46,TechData_h,0),FALSE),IF('UserSettings&Results'!AD61="TestTech",VLOOKUP(AE$32,TestData,MATCH($C46,TechData_h,0),FALSE),VLOOKUP(AE$32,OldTechData,MATCH($C46,TechData_h,0),FALSE)))/1000*VLOOKUP(AE34,EmissionFactorsGHG,MATCH("CH4",EmissionFactorsGHG_h,0),FALSE) -> 
C47: Emission factor N2O | D47: kg CO2-equivalent/GJ | E47: =IF('UserSettings&Results'!D61="CurrentTech",VLOOKUP(E$32,TechData,MATCH($C47,TechData_h,0),FALSE),IF('UserSettings&Results'!D61="TestTech",VLOOKUP(E$32,TestData,MATCH($C47,TechData_h,0),FALSE),VLOOKUP(E$32,OldTechData,MATCH($C47,TechData_h,0),FALSE)))/1000*VLOOKUP(E34,EmissionFactorsGHG,MATCH("N2O",EmissionFactorsGHG_h,0),FALSE) -> 0 | F47: =IF('UserSettings&Results'!E61="CurrentTech",VLOOKUP(F$32,TechData,MATCH($C47,TechData_h,0),FALSE),IF('UserSettings&Results'!E61="TestTech",VLOOKUP(F$32,TestData,MATCH($C47,TechData_h,0),FALSE),VLOOKUP(F$32,OldTechData,MATCH($C47,TechData_h,0),FALSE)))/1000*VLOOKUP(F34,EmissionFactorsGHG,MATCH("N2O",EmissionFactorsGHG_h,0),FALSE) -> 0 | G47: =IF('UserSettings&Results'!F61="CurrentTech",VLOOKUP(G$32,TechData,MATCH($C47,TechData_h,0),FALSE),IF('UserSettings&Results'!F61="TestTech",VLOOKUP(G$32,TestData,MATCH($C47,TechData_h,0),FALSE),VLOOKUP(G$32,OldTechData,MATCH($C47,TechData_h,0),FALSE)))/1000*VLOOKUP(G34,EmissionFactorsGHG,MATCH("N2O",EmissionFactorsGHG_h,0),FALSE) -> 0 | H47: =IF('UserSettings&Results'!G61="CurrentTech",VLOOKUP(H$32,TechData,MATCH($C47,TechData_h,0),FALSE),IF('UserSettings&Results'!G61="TestTech",VLOOKUP(H$32,TestData,MATCH($C47,TechData_h,0),FALSE),VLOOKUP(H$32,OldTechData,MATCH($C47,TechData_h,0),FALSE)))/1000*VLOOKUP(H34,EmissionFactorsGHG,MATCH("N2O",EmissionFactorsGHG_h,0),FALSE) -> 0 | I47: =IF('UserSettings&Results'!H61="CurrentTech",VLOOKUP(I$32,TechData,MATCH($C47,TechData_h,0),FALSE),IF('UserSettings&Results'!H61="TestTech",VLOOKUP(I$32,TestData,MATCH($C47,TechData_h,0),FALSE),VLOOKUP(I$32,OldTechData,MATCH($C47,TechData_h,0),FALSE)))/1000*VLOOKUP(I34,EmissionFactorsGHG,MATCH("N2O",EmissionFactorsGHG_h,0),FALSE) -> 0 | J47: =IF('UserSettings&Results'!I61="CurrentTech",VLOOKUP(J$32,TechData,MATCH($C47,TechData_h,0),FALSE),IF('UserSettings&Results'!I61="TestTech",VLOOKUP(J$32,TestData,MATCH($C47,TechData_h,0),FALSE),VLOOKUP(J$32,OldTechData,MATCH($C47,TechData_h,0),FALSE)))/1000*VLOOKUP(J34,EmissionFactorsGHG,MATCH("N2O",EmissionFactorsGHG_h,0),FALSE) -> 0 | K47: =IF('UserSettings&Results'!J61="CurrentTech",VLOOKUP(K$32,TechData,MATCH($C47,TechData_h,0),FALSE),IF('UserSettings&Results'!J61="TestTech",VLOOKUP(K$32,TestData,MATCH($C47,TechData_h,0),FALSE),VLOOKUP(K$32,OldTechData,MATCH($C47,TechData_h,0),FALSE)))/1000*VLOOKUP(K34,EmissionFactorsGHG,MATCH("N2O",EmissionFactorsGHG_h,0),FALSE) -> 0 | L47: =IF('UserSettings&Results'!K61="CurrentTech",VLOOKUP(L$32,TechData,MATCH($C47,TechData_h,0),FALSE),IF('UserSettings&Results'!K61="TestTech",VLOOKUP(L$32,TestData,MATCH($C47,TechData_h,0),FALSE),VLOOKUP(L$32,OldTechData,MATCH($C47,TechData_h,0),FALSE)))/1000*VLOOKUP(L34,EmissionFactorsGHG,MATCH("N2O",EmissionFactorsGHG_h,0),FALSE) -> 0.298 | M47: =IF('UserSettings&Results'!L61="CurrentTech",VLOOKUP(M$32,TechData,MATCH($C47,TechData_h,0),FALSE),IF('UserSettings&Results'!L61="TestTech",VLOOKUP(M$32,TestData,MATCH($C47,TechData_h,0),FALSE),VLOOKUP(M$32,OldTechData,MATCH($C47,TechData_h,0),FALSE)))/1000*VLOOKUP(M34,EmissionFactorsGHG,MATCH("N2O",EmissionFactorsGHG_h,0),FALSE) -> 0.15486464 | N47: =IF('UserSettings&Results'!M61="CurrentTech",VLOOKUP(N$32,TechData,MATCH($C47,TechData_h,0),FALSE),IF('UserSettings&Results'!M61="TestTech",VLOOKUP(N$32,TestData,MATCH($C47,TechData_h,0),FALSE),VLOOKUP(N$32,OldTechData,MATCH($C47,TechData_h,0),FALSE)))/1000*VLOOKUP(N34,EmissionFactorsGHG,MATCH("N2O",EmissionFactorsGHG_h,0),FALSE) -> 1.49 | O47: =IF('UserSettings&Results'!N61="CurrentTech",VLOOKUP(O$32,TechData,MATCH($C47,TechData_h,0),FALSE),IF('UserSettings&Results'!N61="TestTech",VLOOKUP(O$32,TestData,MATCH($C47,TechData_h,0),FALSE),VLOOKUP(O$32,OldTechData,MATCH($C47,TechData_h,0),FALSE)))/1000*VLOOKUP(O34,EmissionFactorsGHG,MATCH("N2O",EmissionFactorsGHG_h,0),FALSE) -> 1.788 | P47: =IF('UserSettings&Results'!O61="CurrentTech",VLOOKUP(P$32,TechData,MATCH($C47,TechData_h,0),FALSE),IF('UserSettings&Results'!O61="TestTech",VLOOKUP(P$32,TestData,MATCH($C47,TechData_h,0),FALSE),VLOOKUP(P$32,OldTechData,MATCH($C47,TechData_h,0),FALSE)))/1000*VLOOKUP(P34,EmissionFactorsGHG,MATCH("N2O",EmissionFactorsGHG_h,0),FALSE) -> 0.2384 | Q47: =IF('UserSettings&Results'!P61="CurrentTech",VLOOKUP(Q$32,TechData,MATCH($C47,TechData_h,0),FALSE),IF('UserSettings&Results'!P61="TestTech",VLOOKUP(Q$32,TestData,MATCH($C47,TechData_h,0),FALSE),VLOOKUP(Q$32,OldTechData,MATCH($C47,TechData_h,0),FALSE)))/1000*VLOOKUP(Q34,EmissionFactorsGHG,MATCH("N2O",EmissionFactorsGHG_h,0),FALSE) -> 0.2384 | R47: =IF('UserSettings&Results'!Q61="CurrentTech",VLOOKUP(R$32,TechData,MATCH($C47,TechData_h,0),FALSE),IF('UserSettings&Results'!Q61="TestTech",VLOOKUP(R$32,TestData,MATCH($C47,TechData_h,0),FALSE),VLOOKUP(R$32,OldTechData,MATCH($C47,TechData_h,0),FALSE)))/1000*VLOOKUP(R34,EmissionFactorsGHG,MATCH("N2O",EmissionFactorsGHG_h,0),FALSE) -> 0.298 | S47: =IF('UserSettings&Results'!R61="CurrentTech",VLOOKUP(S$32,TechData,MATCH($C47,TechData_h,0),FALSE),IF('UserSettings&Results'!R61="TestTech",VLOOKUP(S$32,TestData,MATCH($C47,TechData_h,0),FALSE),VLOOKUP(S$32,OldTechData,MATCH($C47,TechData_h,0),FALSE)))/1000*VLOOKUP(S34,EmissionFactorsGHG,MATCH("N2O",EmissionFactorsGHG_h,0),FALSE) -> 0 | T47: =IF('UserSettings&Results'!S61="CurrentTech",VLOOKUP(T$32,TechData,MATCH($C47,TechData_h,0),FALSE),IF('UserSettings&Results'!S61="TestTech",VLOOKUP(T$32,TestData,MATCH($C47,TechData_h,0),FALSE),VLOOKUP(T$32,OldTechData,MATCH($C47,TechData_h,0),FALSE)))/1000*VLOOKUP(T34,EmissionFactorsGHG,MATCH("N2O",EmissionFactorsGHG_h,0),FALSE) -> 0.2384 | U47: =IF('UserSettings&Results'!T61="CurrentTech",VLOOKUP(U$32,TechData,MATCH($C47,TechData_h,0),FALSE),IF('UserSettings&Results'!T61="TestTech",VLOOKUP(U$32,TestData,MATCH($C47,TechData_h,0),FALSE),VLOOKUP(U$32,OldTechData,MATCH($C47,TechData_h,0),FALSE)))/1000*VLOOKUP(U34,EmissionFactorsGHG,MATCH("N2O",EmissionFactorsGHG_h,0),FALSE) -> 0.298 | V47: =IF('UserSettings&Results'!U61="CurrentTech",VLOOKUP(V$32,TechData,MATCH($C47,TechData_h,0),FALSE),IF('UserSettings&Results'!U61="TestTech",VLOOKUP(V$32,TestData,MATCH($C47,TechData_h,0),FALSE),VLOOKUP(V$32,OldTechData,MATCH($C47,TechData_h,0),FALSE)))/1000*VLOOKUP(V34,EmissionFactorsGHG,MATCH("N2O",EmissionFactorsGHG_h,0),FALSE) -> 0 | W47: =IF('UserSettings&Results'!V61="CurrentTech",VLOOKUP(W$32,TechData,MATCH($C47,TechData_h,0),FALSE),IF('UserSettings&Results'!V61="TestTech",VLOOKUP(W$32,TestData,MATCH($C47,TechData_h,0),FALSE),VLOOKUP(W$32,OldTechData,MATCH($C47,TechData_h,0),FALSE)))/1000*VLOOKUP(W34,EmissionFactorsGHG,MATCH("N2O",EmissionFactorsGHG_h,0),FALSE) ->  | X47: =IF('UserSettings&Results'!W61="CurrentTech",VLOOKUP(X$32,TechData,MATCH($C47,TechData_h,0),FALSE),IF('UserSettings&Results'!W61="TestTech",VLOOKUP(X$32,TestData,MATCH($C47,TechData_h,0),FALSE),VLOOKUP(X$32,OldTechData,MATCH($C47,TechData_h,0),FALSE)))/1000*VLOOKUP(X34,EmissionFactorsGHG,MATCH("N2O",EmissionFactorsGHG_h,0),FALSE) ->  | Y47: =IF('UserSettings&Results'!X61="CurrentTech",VLOOKUP(Y$32,TechData,MATCH($C47,TechData_h,0),FALSE),IF('UserSettings&Results'!X61="TestTech",VLOOKUP(Y$32,TestData,MATCH($C47,TechData_h,0),FALSE),VLOOKUP(Y$32,OldTechData,MATCH($C47,TechData_h,0),FALSE)))/1000*VLOOKUP(Y34,EmissionFactorsGHG,MATCH("N2O",EmissionFactorsGHG_h,0),FALSE) ->  | Z47: =IF('UserSettings&Results'!Y61="CurrentTech",VLOOKUP(Z$32,TechData,MATCH($C47,TechData_h,0),FALSE),IF('UserSettings&Results'!Y61="TestTech",VLOOKUP(Z$32,TestData,MATCH($C47,TechData_h,0),FALSE),VLOOKUP(Z$32,OldTechData,MATCH($C47,TechData_h,0),FALSE)))/1000*VLOOKUP(Z34,EmissionFactorsGHG,MATCH("N2O",EmissionFactorsGHG_h,0),FALSE) ->  | AA47: =IF('UserSettings&Results'!Z61="CurrentTech",VLOOKUP(AA$32,TechData,MATCH($C47,TechData_h,0),FALSE),IF('UserSettings&Results'!Z61="TestTech",VLOOKUP(AA$32,TestData,MATCH($C47,TechData_h,0),FALSE),VLOOKUP(AA$32,OldTechData,MATCH($C47,TechData_h,0),FALSE)))/1000*VLOOKUP(AA34,EmissionFactorsGHG,MATCH("N2O",EmissionFactorsGHG_h,0),FALSE) ->  | AB47: =IF('UserSettings&Results'!AA61="CurrentTech",VLOOKUP(AB$32,TechData,MATCH($C47,TechData_h,0),FALSE),IF('UserSettings&Results'!AA61="TestTech",VLOOKUP(AB$32,TestData,MATCH($C47,TechData_h,0),FALSE),VLOOKUP(AB$32,OldTechData,MATCH($C47,TechData_h,0),FALSE)))/1000*VLOOKUP(AB34,EmissionFactorsGHG,MATCH("N2O",EmissionFactorsGHG_h,0),FALSE) ->  | AC47: =IF('UserSettings&Results'!AB61="CurrentTech",VLOOKUP(AC$32,TechData,MATCH($C47,TechData_h,0),FALSE),IF('UserSettings&Results'!AB61="TestTech",VLOOKUP(AC$32,TestData,MATCH($C47,TechData_h,0),FALSE),VLOOKUP(AC$32,OldTechData,MATCH($C47,TechData_h,0),FALSE)))/1000*VLOOKUP(AC34,EmissionFactorsGHG,MATCH("N2O",EmissionFactorsGHG_h,0),FALSE) ->  | AD47: =IF('UserSettings&Results'!AC61="CurrentTech",VLOOKUP(AD$32,TechData,MATCH($C47,TechData_h,0),FALSE),IF('UserSettings&Results'!AC61="TestTech",VLOOKUP(AD$32,TestData,MATCH($C47,TechData_h,0),FALSE),VLOOKUP(AD$32,OldTechData,MATCH($C47,TechData_h,0),FALSE)))/1000*VLOOKUP(AD34,EmissionFactorsGHG,MATCH("N2O",EmissionFactorsGHG_h,0),FALSE) ->  | AE47: =IF('UserSettings&Results'!AD61="CurrentTech",VLOOKUP(AE$32,TechData,MATCH($C47,TechData_h,0),FALSE),IF('UserSettings&Results'!AD61="TestTech",VLOOKUP(AE$32,TestData,MATCH($C47,TechData_h,0),FALSE),VLOOKUP(AE$32,OldTechData,MATCH($C47,TechData_h,0),FALSE)))/1000*VLOOKUP(AE34,EmissionFactorsGHG,MATCH("N2O",EmissionFactorsGHG_h,0),FALSE) -> 
C48: Desulphur | D48: % | E48: =IF('UserSettings&Results'!D61="CurrentTech",VLOOKUP(E$32,TechData,MATCH($C48,TechData_h,0),FALSE),IF('UserSettings&Results'!D61="TestTech",VLOOKUP(E$32,TestData,MATCH($C48,TechData_h,0),FALSE),VLOOKUP(E$32,OldTechData,MATCH($C48,TechData_h,0),FALSE))) -> 0 | F48: =IF('UserSettings&Results'!E61="CurrentTech",VLOOKUP(F$32,TechData,MATCH($C48,TechData_h,0),FALSE),IF('UserSettings&Results'!E61="TestTech",VLOOKUP(F$32,TestData,MATCH($C48,TechData_h,0),FALSE),VLOOKUP(F$32,OldTechData,MATCH($C48,TechData_h,0),FALSE))) -> 0 | G48: =IF('UserSettings&Results'!F61="CurrentTech",VLOOKUP(G$32,TechData,MATCH($C48,TechData_h,0),FALSE),IF('UserSettings&Results'!F61="TestTech",VLOOKUP(G$32,TestData,MATCH($C48,TechData_h,0),FALSE),VLOOKUP(G$32,OldTechData,MATCH($C48,TechData_h,0),FALSE))) -> 0 | H48: =IF('UserSettings&Results'!G61="CurrentTech",VLOOKUP(H$32,TechData,MATCH($C48,TechData_h,0),FALSE),IF('UserSettings&Results'!G61="TestTech",VLOOKUP(H$32,TestData,MATCH($C48,TechData_h,0),FALSE),VLOOKUP(H$32,OldTechData,MATCH($C48,TechData_h,0),FALSE))) -> 0 | I48: =IF('UserSettings&Results'!H61="CurrentTech",VLOOKUP(I$32,TechData,MATCH($C48,TechData_h,0),FALSE),IF('UserSettings&Results'!H61="TestTech",VLOOKUP(I$32,TestData,MATCH($C48,TechData_h,0),FALSE),VLOOKUP(I$32,OldTechData,MATCH($C48,TechData_h,0),FALSE))) -> 0 | J48: =IF('UserSettings&Results'!I61="CurrentTech",VLOOKUP(J$32,TechData,MATCH($C48,TechData_h,0),FALSE),IF('UserSettings&Results'!I61="TestTech",VLOOKUP(J$32,TestData,MATCH($C48,TechData_h,0),FALSE),VLOOKUP(J$32,OldTechData,MATCH($C48,TechData_h,0),FALSE))) -> 0 | K48: =IF('UserSettings&Results'!J61="CurrentTech",VLOOKUP(K$32,TechData,MATCH($C48,TechData_h,0),FALSE),IF('UserSettings&Results'!J61="TestTech",VLOOKUP(K$32,TestData,MATCH($C48,TechData_h,0),FALSE),VLOOKUP(K$32,OldTechData,MATCH($C48,TechData_h,0),FALSE))) -> 0 | L48: =IF('UserSettings&Results'!K61="CurrentTech",VLOOKUP(L$32,TechData,MATCH($C48,TechData_h,0),FALSE),IF('UserSettings&Results'!K61="TestTech",VLOOKUP(L$32,TestData,MATCH($C48,TechData_h,0),FALSE),VLOOKUP(L$32,OldTechData,MATCH($C48,TechData_h,0),FALSE))) -> 0.9825 | M48: =IF('UserSettings&Results'!L61="CurrentTech",VLOOKUP(M$32,TechData,MATCH($C48,TechData_h,0),FALSE),IF('UserSettings&Results'!L61="TestTech",VLOOKUP(M$32,TestData,MATCH($C48,TechData_h,0),FALSE),VLOOKUP(M$32,OldTechData,MATCH($C48,TechData_h,0),FALSE))) -> 0.9797 | N48: =IF('UserSettings&Results'!M61="CurrentTech",VLOOKUP(N$32,TechData,MATCH($C48,TechData_h,0),FALSE),IF('UserSettings&Results'!M61="TestTech",VLOOKUP(N$32,TestData,MATCH($C48,TechData_h,0),FALSE),VLOOKUP(N$32,OldTechData,MATCH($C48,TechData_h,0),FALSE))) -> 0.97 | O48: =IF('UserSettings&Results'!N61="CurrentTech",VLOOKUP(O$32,TechData,MATCH($C48,TechData_h,0),FALSE),IF('UserSettings&Results'!N61="TestTech",VLOOKUP(O$32,TestData,MATCH($C48,TechData_h,0),FALSE),VLOOKUP(O$32,OldTechData,MATCH($C48,TechData_h,0),FALSE))) -> 1 | P48: =IF('UserSettings&Results'!O61="CurrentTech",VLOOKUP(P$32,TechData,MATCH($C48,TechData_h,0),FALSE),IF('UserSettings&Results'!O61="TestTech",VLOOKUP(P$32,TestData,MATCH($C48,TechData_h,0),FALSE),VLOOKUP(P$32,OldTechData,MATCH($C48,TechData_h,0),FALSE))) -> 0.97 | Q48: =IF('UserSettings&Results'!P61="CurrentTech",VLOOKUP(Q$32,TechData,MATCH($C48,TechData_h,0),FALSE),IF('UserSettings&Results'!P61="TestTech",VLOOKUP(Q$32,TestData,MATCH($C48,TechData_h,0),FALSE),VLOOKUP(Q$32,OldTechData,MATCH($C48,TechData_h,0),FALSE))) -> 0.97 | R48: =IF('UserSettings&Results'!Q61="CurrentTech",VLOOKUP(R$32,TechData,MATCH($C48,TechData_h,0),FALSE),IF('UserSettings&Results'!Q61="TestTech",VLOOKUP(R$32,TestData,MATCH($C48,TechData_h,0),FALSE),VLOOKUP(R$32,OldTechData,MATCH($C48,TechData_h,0),FALSE))) -> 0 | S48: =IF('UserSettings&Results'!R61="CurrentTech",VLOOKUP(S$32,TechData,MATCH($C48,TechData_h,0),FALSE),IF('UserSettings&Results'!R61="TestTech",VLOOKUP(S$32,TestData,MATCH($C48,TechData_h,0),FALSE),VLOOKUP(S$32,OldTechData,MATCH($C48,TechData_h,0),FALSE))) -> 0 | T48: =IF('UserSettings&Results'!S61="CurrentTech",VLOOKUP(T$32,TechData,MATCH($C48,TechData_h,0),FALSE),IF('UserSettings&Results'!S61="TestTech",VLOOKUP(T$32,TestData,MATCH($C48,TechData_h,0),FALSE),VLOOKUP(T$32,OldTechData,MATCH($C48,TechData_h,0),FALSE))) -> 0.95 | U48: =IF('UserSettings&Results'!T61="CurrentTech",VLOOKUP(U$32,TechData,MATCH($C48,TechData_h,0),FALSE),IF('UserSettings&Results'!T61="TestTech",VLOOKUP(U$32,TestData,MATCH($C48,TechData_h,0),FALSE),VLOOKUP(U$32,OldTechData,MATCH($C48,TechData_h,0),FALSE))) -> 0 | V48: =IF('UserSettings&Results'!U61="CurrentTech",VLOOKUP(V$32,TechData,MATCH($C48,TechData_h,0),FALSE),IF('UserSettings&Results'!U61="TestTech",VLOOKUP(V$32,TestData,MATCH($C48,TechData_h,0),FALSE),VLOOKUP(V$32,OldTechData,MATCH($C48,TechData_h,0),FALSE))) -> 0 | W48: =IF('UserSettings&Results'!V61="CurrentTech",VLOOKUP(W$32,TechData,MATCH($C48,TechData_h,0),FALSE),IF('UserSettings&Results'!V61="TestTech",VLOOKUP(W$32,TestData,MATCH($C48,TechData_h,0),FALSE),VLOOKUP(W$32,OldTechData,MATCH($C48,TechData_h,0),FALSE))) ->  | X48: =IF('UserSettings&Results'!W61="CurrentTech",VLOOKUP(X$32,TechData,MATCH($C48,TechData_h,0),FALSE),IF('UserSettings&Results'!W61="TestTech",VLOOKUP(X$32,TestData,MATCH($C48,TechData_h,0),FALSE),VLOOKUP(X$32,OldTechData,MATCH($C48,TechData_h,0),FALSE))) ->  | Y48: =IF('UserSettings&Results'!X61="CurrentTech",VLOOKUP(Y$32,TechData,MATCH($C48,TechData_h,0),FALSE),IF('UserSettings&Results'!X61="TestTech",VLOOKUP(Y$32,TestData,MATCH($C48,TechData_h,0),FALSE),VLOOKUP(Y$32,OldTechData,MATCH($C48,TechData_h,0),FALSE))) ->  | Z48: =IF('UserSettings&Results'!Y61="CurrentTech",VLOOKUP(Z$32,TechData,MATCH($C48,TechData_h,0),FALSE),IF('UserSettings&Results'!Y61="TestTech",VLOOKUP(Z$32,TestData,MATCH($C48,TechData_h,0),FALSE),VLOOKUP(Z$32,OldTechData,MATCH($C48,TechData_h,0),FALSE))) ->  | AA48: =IF('UserSettings&Results'!Z61="CurrentTech",VLOOKUP(AA$32,TechData,MATCH($C48,TechData_h,0),FALSE),IF('UserSettings&Results'!Z61="TestTech",VLOOKUP(AA$32,TestData,MATCH($C48,TechData_h,0),FALSE),VLOOKUP(AA$32,OldTechData,MATCH($C48,TechData_h,0),FALSE))) ->  | AB48: =IF('UserSettings&Results'!AA61="CurrentTech",VLOOKUP(AB$32,TechData,MATCH($C48,TechData_h,0),FALSE),IF('UserSettings&Results'!AA61="TestTech",VLOOKUP(AB$32,TestData,MATCH($C48,TechData_h,0),FALSE),VLOOKUP(AB$32,OldTechData,MATCH($C48,TechData_h,0),FALSE))) ->  | AC48: =IF('UserSettings&Results'!AB61="CurrentTech",VLOOKUP(AC$32,TechData,MATCH($C48,TechData_h,0),FALSE),IF('UserSettings&Results'!AB61="TestTech",VLOOKUP(AC$32,TestData,MATCH($C48,TechData_h,0),FALSE),VLOOKUP(AC$32,OldTechData,MATCH($C48,TechData_h,0),FALSE))) ->  | AD48: =IF('UserSettings&Results'!AC61="CurrentTech",VLOOKUP(AD$32,TechData,MATCH($C48,TechData_h,0),FALSE),IF('UserSettings&Results'!AC61="TestTech",VLOOKUP(AD$32,TestData,MATCH($C48,TechData_h,0),FALSE),VLOOKUP(AD$32,OldTechData,MATCH($C48,TechData_h,0),FALSE))) ->  | AE48: =IF('UserSettings&Results'!AD61="CurrentTech",VLOOKUP(AE$32,TechData,MATCH($C48,TechData_h,0),FALSE),IF('UserSettings&Results'!AD61="TestTech",VLOOKUP(AE$32,TestData,MATCH($C48,TechData_h,0),FALSE),VLOOKUP(AE$32,OldTechData,MATCH($C48,TechData_h,0),FALSE))) -> 
C49: Emission factor NOx | D49: g/GJ | E49: =IF('UserSettings&Results'!D61="CurrentTech",VLOOKUP(E$32,TechData,MATCH($C49,TechData_h,0),FALSE),IF('UserSettings&Results'!D61="TestTech",VLOOKUP(E$32,TestData,MATCH($C49,TechData_h,0),FALSE),VLOOKUP(E$32,OldTechData,MATCH($C49,TechData_h,0),FALSE))) -> 0 | F49: =IF('UserSettings&Results'!E61="CurrentTech",VLOOKUP(F$32,TechData,MATCH($C49,TechData_h,0),FALSE),IF('UserSettings&Results'!E61="TestTech",VLOOKUP(F$32,TestData,MATCH($C49,TechData_h,0),FALSE),VLOOKUP(F$32,OldTechData,MATCH($C49,TechData_h,0),FALSE))) -> 0 | G49: =IF('UserSettings&Results'!F61="CurrentTech",VLOOKUP(G$32,TechData,MATCH($C49,TechData_h,0),FALSE),IF('UserSettings&Results'!F61="TestTech",VLOOKUP(G$32,TestData,MATCH($C49,TechData_h,0),FALSE),VLOOKUP(G$32,OldTechData,MATCH($C49,TechData_h,0),FALSE))) -> 0 | H49: =IF('UserSettings&Results'!G61="CurrentTech",VLOOKUP(H$32,TechData,MATCH($C49,TechData_h,0),FALSE),IF('UserSettings&Results'!G61="TestTech",VLOOKUP(H$32,TestData,MATCH($C49,TechData_h,0),FALSE),VLOOKUP(H$32,OldTechData,MATCH($C49,TechData_h,0),FALSE))) -> 0 | I49: =IF('UserSettings&Results'!H61="CurrentTech",VLOOKUP(I$32,TechData,MATCH($C49,TechData_h,0),FALSE),IF('UserSettings&Results'!H61="TestTech",VLOOKUP(I$32,TestData,MATCH($C49,TechData_h,0),FALSE),VLOOKUP(I$32,OldTechData,MATCH($C49,TechData_h,0),FALSE))) -> 0 | J49: =IF('UserSettings&Results'!I61="CurrentTech",VLOOKUP(J$32,TechData,MATCH($C49,TechData_h,0),FALSE),IF('UserSettings&Results'!I61="TestTech",VLOOKUP(J$32,TestData,MATCH($C49,TechData_h,0),FALSE),VLOOKUP(J$32,OldTechData,MATCH($C49,TechData_h,0),FALSE))) -> 0 | K49: =IF('UserSettings&Results'!J61="CurrentTech",VLOOKUP(K$32,TechData,MATCH($C49,TechData_h,0),FALSE),IF('UserSettings&Results'!J61="TestTech",VLOOKUP(K$32,TestData,MATCH($C49,TechData_h,0),FALSE),VLOOKUP(K$32,OldTechData,MATCH($C49,TechData_h,0),FALSE))) -> 0 | L49: =IF('UserSettings&Results'!K61="CurrentTech",VLOOKUP(L$32,TechData,MATCH($C49,TechData_h,0),FALSE),IF('UserSettings&Results'!K61="TestTech",VLOOKUP(L$32,TestData,MATCH($C49,TechData_h,0),FALSE),VLOOKUP(L$32,OldTechData,MATCH($C49,TechData_h,0),FALSE))) -> 35 | M49: =IF('UserSettings&Results'!L61="CurrentTech",VLOOKUP(M$32,TechData,MATCH($C49,TechData_h,0),FALSE),IF('UserSettings&Results'!L61="TestTech",VLOOKUP(M$32,TestData,MATCH($C49,TechData_h,0),FALSE),VLOOKUP(M$32,OldTechData,MATCH($C49,TechData_h,0),FALSE))) -> 40.6 | N49: =IF('UserSettings&Results'!M61="CurrentTech",VLOOKUP(N$32,TechData,MATCH($C49,TechData_h,0),FALSE),IF('UserSettings&Results'!M61="TestTech",VLOOKUP(N$32,TestData,MATCH($C49,TechData_h,0),FALSE),VLOOKUP(N$32,OldTechData,MATCH($C49,TechData_h,0),FALSE))) -> 35 | O49: =IF('UserSettings&Results'!N61="CurrentTech",VLOOKUP(O$32,TechData,MATCH($C49,TechData_h,0),FALSE),IF('UserSettings&Results'!N61="TestTech",VLOOKUP(O$32,TestData,MATCH($C49,TechData_h,0),FALSE),VLOOKUP(O$32,OldTechData,MATCH($C49,TechData_h,0),FALSE))) -> 35 | P49: =IF('UserSettings&Results'!O61="CurrentTech",VLOOKUP(P$32,TechData,MATCH($C49,TechData_h,0),FALSE),IF('UserSettings&Results'!O61="TestTech",VLOOKUP(P$32,TestData,MATCH($C49,TechData_h,0),FALSE),VLOOKUP(P$32,OldTechData,MATCH($C49,TechData_h,0),FALSE))) -> 35 | Q49: =IF('UserSettings&Results'!P61="CurrentTech",VLOOKUP(Q$32,TechData,MATCH($C49,TechData_h,0),FALSE),IF('UserSettings&Results'!P61="TestTech",VLOOKUP(Q$32,TestData,MATCH($C49,TechData_h,0),FALSE),VLOOKUP(Q$32,OldTechData,MATCH($C49,TechData_h,0),FALSE))) -> 35 | R49: =IF('UserSettings&Results'!Q61="CurrentTech",VLOOKUP(R$32,TechData,MATCH($C49,TechData_h,0),FALSE),IF('UserSettings&Results'!Q61="TestTech",VLOOKUP(R$32,TestData,MATCH($C49,TechData_h,0),FALSE),VLOOKUP(R$32,OldTechData,MATCH($C49,TechData_h,0),FALSE))) -> 10 | S49: =IF('UserSettings&Results'!R61="CurrentTech",VLOOKUP(S$32,TechData,MATCH($C49,TechData_h,0),FALSE),IF('UserSettings&Results'!R61="TestTech",VLOOKUP(S$32,TestData,MATCH($C49,TechData_h,0),FALSE),VLOOKUP(S$32,OldTechData,MATCH($C49,TechData_h,0),FALSE))) -> 0 | T49: =IF('UserSettings&Results'!S61="CurrentTech",VLOOKUP(T$32,TechData,MATCH($C49,TechData_h,0),FALSE),IF('UserSettings&Results'!S61="TestTech",VLOOKUP(T$32,TestData,MATCH($C49,TechData_h,0),FALSE),VLOOKUP(T$32,OldTechData,MATCH($C49,TechData_h,0),FALSE))) -> 196.3055556 | U49: =IF('UserSettings&Results'!T61="CurrentTech",VLOOKUP(U$32,TechData,MATCH($C49,TechData_h,0),FALSE),IF('UserSettings&Results'!T61="TestTech",VLOOKUP(U$32,TestData,MATCH($C49,TechData_h,0),FALSE),VLOOKUP(U$32,OldTechData,MATCH($C49,TechData_h,0),FALSE))) -> 39 | V49: =IF('UserSettings&Results'!U61="CurrentTech",VLOOKUP(V$32,TechData,MATCH($C49,TechData_h,0),FALSE),IF('UserSettings&Results'!U61="TestTech",VLOOKUP(V$32,TestData,MATCH($C49,TechData_h,0),FALSE),VLOOKUP(V$32,OldTechData,MATCH($C49,TechData_h,0),FALSE))) -> 0 | W49: =IF('UserSettings&Results'!V61="CurrentTech",VLOOKUP(W$32,TechData,MATCH($C49,TechData_h,0),FALSE),IF('UserSettings&Results'!V61="TestTech",VLOOKUP(W$32,TestData,MATCH($C49,TechData_h,0),FALSE),VLOOKUP(W$32,OldTechData,MATCH($C49,TechData_h,0),FALSE))) ->  | X49: =IF('UserSettings&Results'!W61="CurrentTech",VLOOKUP(X$32,TechData,MATCH($C49,TechData_h,0),FALSE),IF('UserSettings&Results'!W61="TestTech",VLOOKUP(X$32,TestData,MATCH($C49,TechData_h,0),FALSE),VLOOKUP(X$32,OldTechData,MATCH($C49,TechData_h,0),FALSE))) ->  | Y49: =IF('UserSettings&Results'!X61="CurrentTech",VLOOKUP(Y$32,TechData,MATCH($C49,TechData_h,0),FALSE),IF('UserSettings&Results'!X61="TestTech",VLOOKUP(Y$32,TestData,MATCH($C49,TechData_h,0),FALSE),VLOOKUP(Y$32,OldTechData,MATCH($C49,TechData_h,0),FALSE))) ->  | Z49: =IF('UserSettings&Results'!Y61="CurrentTech",VLOOKUP(Z$32,TechData,MATCH($C49,TechData_h,0),FALSE),IF('UserSettings&Results'!Y61="TestTech",VLOOKUP(Z$32,TestData,MATCH($C49,TechData_h,0),FALSE),VLOOKUP(Z$32,OldTechData,MATCH($C49,TechData_h,0),FALSE))) ->  | AA49: =IF('UserSettings&Results'!Z61="CurrentTech",VLOOKUP(AA$32,TechData,MATCH($C49,TechData_h,0),FALSE),IF('UserSettings&Results'!Z61="TestTech",VLOOKUP(AA$32,TestData,MATCH($C49,TechData_h,0),FALSE),VLOOKUP(AA$32,OldTechData,MATCH($C49,TechData_h,0),FALSE))) ->  | AB49: =IF('UserSettings&Results'!AA61="CurrentTech",VLOOKUP(AB$32,TechData,MATCH($C49,TechData_h,0),FALSE),IF('UserSettings&Results'!AA61="TestTech",VLOOKUP(AB$32,TestData,MATCH($C49,TechData_h,0),FALSE),VLOOKUP(AB$32,OldTechData,MATCH($C49,TechData_h,0),FALSE))) ->  | AC49: =IF('UserSettings&Results'!AB61="CurrentTech",VLOOKUP(AC$32,TechData,MATCH($C49,TechData_h,0),FALSE),IF('UserSettings&Results'!AB61="TestTech",VLOOKUP(AC$32,TestData,MATCH($C49,TechData_h,0),FALSE),VLOOKUP(AC$32,OldTechData,MATCH($C49,TechData_h,0),FALSE))) ->  | AD49: =IF('UserSettings&Results'!AC61="CurrentTech",VLOOKUP(AD$32,TechData,MATCH($C49,TechData_h,0),FALSE),IF('UserSettings&Results'!AC61="TestTech",VLOOKUP(AD$32,TestData,MATCH($C49,TechData_h,0),FALSE),VLOOKUP(AD$32,OldTechData,MATCH($C49,TechData_h,0),FALSE))) ->  | AE49: =IF('UserSettings&Results'!AD61="CurrentTech",VLOOKUP(AE$32,TechData,MATCH($C49,TechData_h,0),FALSE),IF('UserSettings&Results'!AD61="TestTech",VLOOKUP(AE$32,TestData,MATCH($C49,TechData_h,0),FALSE),VLOOKUP(AE$32,OldTechData,MATCH($C49,TechData_h,0),FALSE))) -> 
C50: Emission factor PM2,5 | D50: g/GJ | E50: =IF('UserSettings&Results'!D61="CurrentTech",VLOOKUP(E$32,TechData,MATCH($C50,TechData_h,0),FALSE),IF('UserSettings&Results'!D61="TestTech",VLOOKUP(E$32,TestData,MATCH($C50,TechData_h,0),FALSE),VLOOKUP(E$32,OldTechData,MATCH($C50,TechData_h,0),FALSE))) -> 0 | F50: =IF('UserSettings&Results'!E61="CurrentTech",VLOOKUP(F$32,TechData,MATCH($C50,TechData_h,0),FALSE),IF('UserSettings&Results'!E61="TestTech",VLOOKUP(F$32,TestData,MATCH($C50,TechData_h,0),FALSE),VLOOKUP(F$32,OldTechData,MATCH($C50,TechData_h,0),FALSE))) -> 0 | G50: =IF('UserSettings&Results'!F61="CurrentTech",VLOOKUP(G$32,TechData,MATCH($C50,TechData_h,0),FALSE),IF('UserSettings&Results'!F61="TestTech",VLOOKUP(G$32,TestData,MATCH($C50,TechData_h,0),FALSE),VLOOKUP(G$32,OldTechData,MATCH($C50,TechData_h,0),FALSE))) -> 0 | H50: =IF('UserSettings&Results'!G61="CurrentTech",VLOOKUP(H$32,TechData,MATCH($C50,TechData_h,0),FALSE),IF('UserSettings&Results'!G61="TestTech",VLOOKUP(H$32,TestData,MATCH($C50,TechData_h,0),FALSE),VLOOKUP(H$32,OldTechData,MATCH($C50,TechData_h,0),FALSE))) -> 0 | I50: =IF('UserSettings&Results'!H61="CurrentTech",VLOOKUP(I$32,TechData,MATCH($C50,TechData_h,0),FALSE),IF('UserSettings&Results'!H61="TestTech",VLOOKUP(I$32,TestData,MATCH($C50,TechData_h,0),FALSE),VLOOKUP(I$32,OldTechData,MATCH($C50,TechData_h,0),FALSE))) -> 0 | J50: =IF('UserSettings&Results'!I61="CurrentTech",VLOOKUP(J$32,TechData,MATCH($C50,TechData_h,0),FALSE),IF('UserSettings&Results'!I61="TestTech",VLOOKUP(J$32,TestData,MATCH($C50,TechData_h,0),FALSE),VLOOKUP(J$32,OldTechData,MATCH($C50,TechData_h,0),FALSE))) -> 0 | K50: =IF('UserSettings&Results'!J61="CurrentTech",VLOOKUP(K$32,TechData,MATCH($C50,TechData_h,0),FALSE),IF('UserSettings&Results'!J61="TestTech",VLOOKUP(K$32,TestData,MATCH($C50,TechData_h,0),FALSE),VLOOKUP(K$32,OldTechData,MATCH($C50,TechData_h,0),FALSE))) -> 0 | L50: =IF('UserSettings&Results'!K61="CurrentTech",VLOOKUP(L$32,TechData,MATCH($C50,TechData_h,0),FALSE),IF('UserSettings&Results'!K61="TestTech",VLOOKUP(L$32,TestData,MATCH($C50,TechData_h,0),FALSE),VLOOKUP(L$32,OldTechData,MATCH($C50,TechData_h,0),FALSE))) -> 0.3 | M50: =IF('UserSettings&Results'!L61="CurrentTech",VLOOKUP(M$32,TechData,MATCH($C50,TechData_h,0),FALSE),IF('UserSettings&Results'!L61="TestTech",VLOOKUP(M$32,TestData,MATCH($C50,TechData_h,0),FALSE),VLOOKUP(M$32,OldTechData,MATCH($C50,TechData_h,0),FALSE))) -> 0.3 | N50: =IF('UserSettings&Results'!M61="CurrentTech",VLOOKUP(N$32,TechData,MATCH($C50,TechData_h,0),FALSE),IF('UserSettings&Results'!M61="TestTech",VLOOKUP(N$32,TestData,MATCH($C50,TechData_h,0),FALSE),VLOOKUP(N$32,OldTechData,MATCH($C50,TechData_h,0),FALSE))) -> 0.3 | O50: =IF('UserSettings&Results'!N61="CurrentTech",VLOOKUP(O$32,TechData,MATCH($C50,TechData_h,0),FALSE),IF('UserSettings&Results'!N61="TestTech",VLOOKUP(O$32,TestData,MATCH($C50,TechData_h,0),FALSE),VLOOKUP(O$32,OldTechData,MATCH($C50,TechData_h,0),FALSE))) -> 0.3 | P50: =IF('UserSettings&Results'!O61="CurrentTech",VLOOKUP(P$32,TechData,MATCH($C50,TechData_h,0),FALSE),IF('UserSettings&Results'!O61="TestTech",VLOOKUP(P$32,TestData,MATCH($C50,TechData_h,0),FALSE),VLOOKUP(P$32,OldTechData,MATCH($C50,TechData_h,0),FALSE))) -> 2.1 | Q50: =IF('UserSettings&Results'!P61="CurrentTech",VLOOKUP(Q$32,TechData,MATCH($C50,TechData_h,0),FALSE),IF('UserSettings&Results'!P61="TestTech",VLOOKUP(Q$32,TestData,MATCH($C50,TechData_h,0),FALSE),VLOOKUP(Q$32,OldTechData,MATCH($C50,TechData_h,0),FALSE))) -> 2.1 | R50: =IF('UserSettings&Results'!Q61="CurrentTech",VLOOKUP(R$32,TechData,MATCH($C50,TechData_h,0),FALSE),IF('UserSettings&Results'!Q61="TestTech",VLOOKUP(R$32,TestData,MATCH($C50,TechData_h,0),FALSE),VLOOKUP(R$32,OldTechData,MATCH($C50,TechData_h,0),FALSE))) -> 0 | S50: =IF('UserSettings&Results'!R61="CurrentTech",VLOOKUP(S$32,TechData,MATCH($C50,TechData_h,0),FALSE),IF('UserSettings&Results'!R61="TestTech",VLOOKUP(S$32,TestData,MATCH($C50,TechData_h,0),FALSE),VLOOKUP(S$32,OldTechData,MATCH($C50,TechData_h,0),FALSE))) -> 0 | T50: =IF('UserSettings&Results'!S61="CurrentTech",VLOOKUP(T$32,TechData,MATCH($C50,TechData_h,0),FALSE),IF('UserSettings&Results'!S61="TestTech",VLOOKUP(T$32,TestData,MATCH($C50,TechData_h,0),FALSE),VLOOKUP(T$32,OldTechData,MATCH($C50,TechData_h,0),FALSE))) -> 13.36111111 | U50: =IF('UserSettings&Results'!T61="CurrentTech",VLOOKUP(U$32,TechData,MATCH($C50,TechData_h,0),FALSE),IF('UserSettings&Results'!T61="TestTech",VLOOKUP(U$32,TestData,MATCH($C50,TechData_h,0),FALSE),VLOOKUP(U$32,OldTechData,MATCH($C50,TechData_h,0),FALSE))) -> 0 | V50: =IF('UserSettings&Results'!U61="CurrentTech",VLOOKUP(V$32,TechData,MATCH($C50,TechData_h,0),FALSE),IF('UserSettings&Results'!U61="TestTech",VLOOKUP(V$32,TestData,MATCH($C50,TechData_h,0),FALSE),VLOOKUP(V$32,OldTechData,MATCH($C50,TechData_h,0),FALSE))) -> 0 | W50: =IF('UserSettings&Results'!V61="CurrentTech",VLOOKUP(W$32,TechData,MATCH($C50,TechData_h,0),FALSE),IF('UserSettings&Results'!V61="TestTech",VLOOKUP(W$32,TestData,MATCH($C50,TechData_h,0),FALSE),VLOOKUP(W$32,OldTechData,MATCH($C50,TechData_h,0),FALSE))) ->  | X50: =IF('UserSettings&Results'!W61="CurrentTech",VLOOKUP(X$32,TechData,MATCH($C50,TechData_h,0),FALSE),IF('UserSettings&Results'!W61="TestTech",VLOOKUP(X$32,TestData,MATCH($C50,TechData_h,0),FALSE),VLOOKUP(X$32,OldTechData,MATCH($C50,TechData_h,0),FALSE))) ->  | Y50: =IF('UserSettings&Results'!X61="CurrentTech",VLOOKUP(Y$32,TechData,MATCH($C50,TechData_h,0),FALSE),IF('UserSettings&Results'!X61="TestTech",VLOOKUP(Y$32,TestData,MATCH($C50,TechData_h,0),FALSE),VLOOKUP(Y$32,OldTechData,MATCH($C50,TechData_h,0),FALSE))) ->  | Z50: =IF('UserSettings&Results'!Y61="CurrentTech",VLOOKUP(Z$32,TechData,MATCH($C50,TechData_h,0),FALSE),IF('UserSettings&Results'!Y61="TestTech",VLOOKUP(Z$32,TestData,MATCH($C50,TechData_h,0),FALSE),VLOOKUP(Z$32,OldTechData,MATCH($C50,TechData_h,0),FALSE))) ->  | AA50: =IF('UserSettings&Results'!Z61="CurrentTech",VLOOKUP(AA$32,TechData,MATCH($C50,TechData_h,0),FALSE),IF('UserSettings&Results'!Z61="TestTech",VLOOKUP(AA$32,TestData,MATCH($C50,TechData_h,0),FALSE),VLOOKUP(AA$32,OldTechData,MATCH($C50,TechData_h,0),FALSE))) ->  | AB50: =IF('UserSettings&Results'!AA61="CurrentTech",VLOOKUP(AB$32,TechData,MATCH($C50,TechData_h,0),FALSE),IF('UserSettings&Results'!AA61="TestTech",VLOOKUP(AB$32,TestData,MATCH($C50,TechData_h,0),FALSE),VLOOKUP(AB$32,OldTechData,MATCH($C50,TechData_h,0),FALSE))) ->  | AC50: =IF('UserSettings&Results'!AB61="CurrentTech",VLOOKUP(AC$32,TechData,MATCH($C50,TechData_h,0),FALSE),IF('UserSettings&Results'!AB61="TestTech",VLOOKUP(AC$32,TestData,MATCH($C50,TechData_h,0),FALSE),VLOOKUP(AC$32,OldTechData,MATCH($C50,TechData_h,0),FALSE))) ->  | AD50: =IF('UserSettings&Results'!AC61="CurrentTech",VLOOKUP(AD$32,TechData,MATCH($C50,TechData_h,0),FALSE),IF('UserSettings&Results'!AC61="TestTech",VLOOKUP(AD$32,TestData,MATCH($C50,TechData_h,0),FALSE),VLOOKUP(AD$32,OldTechData,MATCH($C50,TechData_h,0),FALSE))) ->  | AE50: =IF('UserSettings&Results'!AD61="CurrentTech",VLOOKUP(AE$32,TechData,MATCH($C50,TechData_h,0),FALSE),IF('UserSettings&Results'!AD61="TestTech",VLOOKUP(AE$32,TestData,MATCH($C50,TechData_h,0),FALSE),VLOOKUP(AE$32,OldTechData,MATCH($C50,TechData_h,0),FALSE))) -> 
B52: Economy data | C52: Investment | D52: ="mio."&chosencurrency&"/MW" -> mio.EUR/MW | E52: =IF('UserSettings&Results'!D$61="CurrentTech",VLOOKUP(E$32,TechData,MATCH($C52,TechData_h,0),FALSE),IF('UserSettings&Results'!D$61="TestTech",VLOOKUP(E$32,TestData,MATCH($C52,TechData_h,0),FALSE),VLOOKUP(E$32,OldTechData,MATCH($C52,TechData_h,0),FALSE))) -> 1.554652581 | F52: =IF('UserSettings&Results'!E$61="CurrentTech",VLOOKUP(F$32,TechData,MATCH($C52,TechData_h,0),FALSE),IF('UserSettings&Results'!E$61="TestTech",VLOOKUP(F$32,TestData,MATCH($C52,TechData_h,0),FALSE),VLOOKUP(F$32,OldTechData,MATCH($C52,TechData_h,0),FALSE))) -> 1.45 | G52: =IF('UserSettings&Results'!F$61="CurrentTech",VLOOKUP(G$32,TechData,MATCH($C52,TechData_h,0),FALSE),IF('UserSettings&Results'!F$61="TestTech",VLOOKUP(G$32,TestData,MATCH($C52,TechData_h,0),FALSE),VLOOKUP(G$32,OldTechData,MATCH($C52,TechData_h,0),FALSE))) -> 1.129566725 | H52: =IF('UserSettings&Results'!G$61="CurrentTech",VLOOKUP(H$32,TechData,MATCH($C52,TechData_h,0),FALSE),IF('UserSettings&Results'!G$61="TestTech",VLOOKUP(H$32,TestData,MATCH($C52,TechData_h,0),FALSE),VLOOKUP(H$32,OldTechData,MATCH($C52,TechData_h,0),FALSE))) -> 0.2675789759 | I52: =IF('UserSettings&Results'!H$61="CurrentTech",VLOOKUP(I$32,TechData,MATCH($C52,TechData_h,0),FALSE),IF('UserSettings&Results'!H$61="TestTech",VLOOKUP(I$32,TestData,MATCH($C52,TechData_h,0),FALSE),VLOOKUP(I$32,OldTechData,MATCH($C52,TechData_h,0),FALSE))) -> 0.3241489038 | J52: =IF('UserSettings&Results'!I$61="CurrentTech",VLOOKUP(J$32,TechData,MATCH($C52,TechData_h,0),FALSE),IF('UserSettings&Results'!I$61="TestTech",VLOOKUP(J$32,TestData,MATCH($C52,TechData_h,0),FALSE),VLOOKUP(J$32,OldTechData,MATCH($C52,TechData_h,0),FALSE))) -> 0.482426089 | K52: =IF('UserSettings&Results'!J$61="CurrentTech",VLOOKUP(K$32,TechData,MATCH($C52,TechData_h,0),FALSE),IF('UserSettings&Results'!J$61="TestTech",VLOOKUP(K$32,TestData,MATCH($C52,TechData_h,0),FALSE),VLOOKUP(K$32,OldTechData,MATCH($C52,TechData_h,0),FALSE))) -> 0.7760288945 | L52: =IF('UserSettings&Results'!K$61="CurrentTech",VLOOKUP(L$32,TechData,MATCH($C52,TechData_h,0),FALSE),IF('UserSettings&Results'!K$61="TestTech",VLOOKUP(L$32,TestData,MATCH($C52,TechData_h,0),FALSE),VLOOKUP(L$32,OldTechData,MATCH($C52,TechData_h,0),FALSE))) -> 3.295961965 | M52: =IF('UserSettings&Results'!L$61="CurrentTech",VLOOKUP(M$32,TechData,MATCH($C52,TechData_h,0),FALSE),IF('UserSettings&Results'!L$61="TestTech",VLOOKUP(M$32,TestData,MATCH($C52,TechData_h,0),FALSE),VLOOKUP(M$32,OldTechData,MATCH($C52,TechData_h,0),FALSE))) -> 3.866218488 | N52: =IF('UserSettings&Results'!M$61="CurrentTech",VLOOKUP(N$32,TechData,MATCH($C52,TechData_h,0),FALSE),IF('UserSettings&Results'!M$61="TestTech",VLOOKUP(N$32,TestData,MATCH($C52,TechData_h,0),FALSE),VLOOKUP(N$32,OldTechData,MATCH($C52,TechData_h,0),FALSE))) -> 1.712610626 | O52: =IF('UserSettings&Results'!N$61="CurrentTech",VLOOKUP(O$32,TechData,MATCH($C52,TechData_h,0),FALSE),IF('UserSettings&Results'!N$61="TestTech",VLOOKUP(O$32,TestData,MATCH($C52,TechData_h,0),FALSE),VLOOKUP(O$32,OldTechData,MATCH($C52,TechData_h,0),FALSE))) -> 1.712610626 | P52: =IF('UserSettings&Results'!O$61="CurrentTech",VLOOKUP(P$32,TechData,MATCH($C52,TechData_h,0),FALSE),IF('UserSettings&Results'!O$61="TestTech",VLOOKUP(P$32,TestData,MATCH($C52,TechData_h,0),FALSE),VLOOKUP(P$32,OldTechData,MATCH($C52,TechData_h,0),FALSE))) -> 1.991418232 | Q52: =IF('UserSettings&Results'!P$61="CurrentTech",VLOOKUP(Q$32,TechData,MATCH($C52,TechData_h,0),FALSE),IF('UserSettings&Results'!P$61="TestTech",VLOOKUP(Q$32,TestData,MATCH($C52,TechData_h,0),FALSE),VLOOKUP(Q$32,OldTechData,MATCH($C52,TechData_h,0),FALSE))) -> 0.2568915939 | R52: =IF('UserSettings&Results'!Q$61="CurrentTech",VLOOKUP(R$32,TechData,MATCH($C52,TechData_h,0),FALSE),IF('UserSettings&Results'!Q$61="TestTech",VLOOKUP(R$32,TestData,MATCH($C52,TechData_h,0),FALSE),VLOOKUP(R$32,OldTechData,MATCH($C52,TechData_h,0),FALSE))) -> 0.8884167621 | S52: =IF('UserSettings&Results'!R$61="CurrentTech",VLOOKUP(S$32,TechData,MATCH($C52,TechData_h,0),FALSE),IF('UserSettings&Results'!R$61="TestTech",VLOOKUP(S$32,TestData,MATCH($C52,TechData_h,0),FALSE),VLOOKUP(S$32,OldTechData,MATCH($C52,TechData_h,0),FALSE))) -> 4.218971032 | T52: =IF('UserSettings&Results'!S$61="CurrentTech",VLOOKUP(T$32,TechData,MATCH($C52,TechData_h,0),FALSE),IF('UserSettings&Results'!S$61="TestTech",VLOOKUP(T$32,TestData,MATCH($C52,TechData_h,0),FALSE),VLOOKUP(T$32,OldTechData,MATCH($C52,TechData_h,0),FALSE))) -> 1.908995118 | U52: =IF('UserSettings&Results'!T$61="CurrentTech",VLOOKUP(U$32,TechData,MATCH($C52,TechData_h,0),FALSE),IF('UserSettings&Results'!T$61="TestTech",VLOOKUP(U$32,TestData,MATCH($C52,TechData_h,0),FALSE),VLOOKUP(U$32,OldTechData,MATCH($C52,TechData_h,0),FALSE))) -> 0.8036135299 | V52: =IF('UserSettings&Results'!U$61="CurrentTech",VLOOKUP(V$32,TechData,MATCH($C52,TechData_h,0),FALSE),IF('UserSettings&Results'!U$61="TestTech",VLOOKUP(V$32,TestData,MATCH($C52,TechData_h,0),FALSE),VLOOKUP(V$32,OldTechData,MATCH($C52,TechData_h,0),FALSE))) -> 1.059677825 | W52: =IF('UserSettings&Results'!V$61="CurrentTech",VLOOKUP(W$32,TechData,MATCH($C52,TechData_h,0),FALSE),IF('UserSettings&Results'!V$61="TestTech",VLOOKUP(W$32,TestData,MATCH($C52,TechData_h,0),FALSE),VLOOKUP(W$32,OldTechData,MATCH($C52,TechData_h,0),FALSE))) ->  | X52: =IF('UserSettings&Results'!W$61="CurrentTech",VLOOKUP(X$32,TechData,MATCH($C52,TechData_h,0),FALSE),IF('UserSettings&Results'!W$61="TestTech",VLOOKUP(X$32,TestData,MATCH($C52,TechData_h,0),FALSE),VLOOKUP(X$32,OldTechData,MATCH($C52,TechData_h,0),FALSE))) ->  | Y52: =IF('UserSettings&Results'!X$61="CurrentTech",VLOOKUP(Y$32,TechData,MATCH($C52,TechData_h,0),FALSE),IF('UserSettings&Results'!X$61="TestTech",VLOOKUP(Y$32,TestData,MATCH($C52,TechData_h,0),FALSE),VLOOKUP(Y$32,OldTechData,MATCH($C52,TechData_h,0),FALSE))) ->  | Z52: =IF('UserSettings&Results'!Y$61="CurrentTech",VLOOKUP(Z$32,TechData,MATCH($C52,TechData_h,0),FALSE),IF('UserSettings&Results'!Y$61="TestTech",VLOOKUP(Z$32,TestData,MATCH($C52,TechData_h,0),FALSE),VLOOKUP(Z$32,OldTechData,MATCH($C52,TechData_h,0),FALSE))) ->  | AA52: =IF('UserSettings&Results'!Z$61="CurrentTech",VLOOKUP(AA$32,TechData,MATCH($C52,TechData_h,0),FALSE),IF('UserSettings&Results'!Z$61="TestTech",VLOOKUP(AA$32,TestData,MATCH($C52,TechData_h,0),FALSE),VLOOKUP(AA$32,OldTechData,MATCH($C52,TechData_h,0),FALSE))) ->  | AB52: =IF('UserSettings&Results'!AA$61="CurrentTech",VLOOKUP(AB$32,TechData,MATCH($C52,TechData_h,0),FALSE),IF('UserSettings&Results'!AA$61="TestTech",VLOOKUP(AB$32,TestData,MATCH($C52,TechData_h,0),FALSE),VLOOKUP(AB$32,OldTechData,MATCH($C52,TechData_h,0),FALSE))) ->  | AC52: =IF('UserSettings&Results'!AB$61="CurrentTech",VLOOKUP(AC$32,TechData,MATCH($C52,TechData_h,0),FALSE),IF('UserSettings&Results'!AB$61="TestTech",VLOOKUP(AC$32,TestData,MATCH($C52,TechData_h,0),FALSE),VLOOKUP(AC$32,OldTechData,MATCH($C52,TechData_h,0),FALSE))) ->  | AD52: =IF('UserSettings&Results'!AC$61="CurrentTech",VLOOKUP(AD$32,TechData,MATCH($C52,TechData_h,0),FALSE),IF('UserSettings&Results'!AC$61="TestTech",VLOOKUP(AD$32,TestData,MATCH($C52,TechData_h,0),FALSE),VLOOKUP(AD$32,OldTechData,MATCH($C52,TechData_h,0),FALSE))) ->  | AE52: =IF('UserSettings&Results'!AD$61="CurrentTech",VLOOKUP(AE$32,TechData,MATCH($C52,TechData_h,0),FALSE),IF('UserSettings&Results'!AD$61="TestTech",VLOOKUP(AE$32,TestData,MATCH($C52,TechData_h,0),FALSE),VLOOKUP(AE$32,OldTechData,MATCH($C52,TechData_h,0),FALSE))) -> 
C53: Grid investment | D53: ="mio."&chosencurrency&"/MW" -> mio.EUR/MW | E53: =IF('UserSettings&Results'!D$61="CurrentTech",VLOOKUP(E$32,TechData,MATCH($C53,TechData_h,0),FALSE),IF('UserSettings&Results'!D$61="TestTech",VLOOKUP(E$32,TestData,MATCH($C53,TechData_h,0),FALSE),VLOOKUP(E$32,OldTechData,MATCH($C53,TechData_h,0),FALSE))) -> 0.8384819064 | F53: =IF('UserSettings&Results'!E$61="CurrentTech",VLOOKUP(F$32,TechData,MATCH($C53,TechData_h,0),FALSE),IF('UserSettings&Results'!E$61="TestTech",VLOOKUP(F$32,TestData,MATCH($C53,TechData_h,0),FALSE),VLOOKUP(F$32,OldTechData,MATCH($C53,TechData_h,0),FALSE))) -> 0.09 | G53: =IF('UserSettings&Results'!F$61="CurrentTech",VLOOKUP(G$32,TechData,MATCH($C53,TechData_h,0),FALSE),IF('UserSettings&Results'!F$61="TestTech",VLOOKUP(G$32,TestData,MATCH($C53,TechData_h,0),FALSE),VLOOKUP(G$32,OldTechData,MATCH($C53,TechData_h,0),FALSE))) -> 0.01707817421 | H53: =IF('UserSettings&Results'!G$61="CurrentTech",VLOOKUP(H$32,TechData,MATCH($C53,TechData_h,0),FALSE),IF('UserSettings&Results'!G$61="TestTech",VLOOKUP(H$32,TestData,MATCH($C53,TechData_h,0),FALSE),VLOOKUP(H$32,OldTechData,MATCH($C53,TechData_h,0),FALSE))) -> 0.03940600312 | I53: =IF('UserSettings&Results'!H$61="CurrentTech",VLOOKUP(I$32,TechData,MATCH($C53,TechData_h,0),FALSE),IF('UserSettings&Results'!H$61="TestTech",VLOOKUP(I$32,TestData,MATCH($C53,TechData_h,0),FALSE),VLOOKUP(I$32,OldTechData,MATCH($C53,TechData_h,0),FALSE))) -> 0.03942735697 | J53: =IF('UserSettings&Results'!I$61="CurrentTech",VLOOKUP(J$32,TechData,MATCH($C53,TechData_h,0),FALSE),IF('UserSettings&Results'!I$61="TestTech",VLOOKUP(J$32,TestData,MATCH($C53,TechData_h,0),FALSE),VLOOKUP(J$32,OldTechData,MATCH($C53,TechData_h,0),FALSE))) -> 0.03194381495 | K53: =IF('UserSettings&Results'!J$61="CurrentTech",VLOOKUP(K$32,TechData,MATCH($C53,TechData_h,0),FALSE),IF('UserSettings&Results'!J$61="TestTech",VLOOKUP(K$32,TestData,MATCH($C53,TechData_h,0),FALSE),VLOOKUP(K$32,OldTechData,MATCH($C53,TechData_h,0),FALSE))) -> 0.02401504526 | L53: =IF('UserSettings&Results'!K$61="CurrentTech",VLOOKUP(L$32,TechData,MATCH($C53,TechData_h,0),FALSE),IF('UserSettings&Results'!K$61="TestTech",VLOOKUP(L$32,TestData,MATCH($C53,TechData_h,0),FALSE),VLOOKUP(L$32,OldTechData,MATCH($C53,TechData_h,0),FALSE))) -> 0 | M53: =IF('UserSettings&Results'!L$61="CurrentTech",VLOOKUP(M$32,TechData,MATCH($C53,TechData_h,0),FALSE),IF('UserSettings&Results'!L$61="TestTech",VLOOKUP(M$32,TestData,MATCH($C53,TechData_h,0),FALSE),VLOOKUP(M$32,OldTechData,MATCH($C53,TechData_h,0),FALSE))) -> 0 | N53: =IF('UserSettings&Results'!M$61="CurrentTech",VLOOKUP(N$32,TechData,MATCH($C53,TechData_h,0),FALSE),IF('UserSettings&Results'!M$61="TestTech",VLOOKUP(N$32,TestData,MATCH($C53,TechData_h,0),FALSE),VLOOKUP(N$32,OldTechData,MATCH($C53,TechData_h,0),FALSE))) -> 0 | O53: =IF('UserSettings&Results'!N$61="CurrentTech",VLOOKUP(O$32,TechData,MATCH($C53,TechData_h,0),FALSE),IF('UserSettings&Results'!N$61="TestTech",VLOOKUP(O$32,TestData,MATCH($C53,TechData_h,0),FALSE),VLOOKUP(O$32,OldTechData,MATCH($C53,TechData_h,0),FALSE))) -> 0 | P53: =IF('UserSettings&Results'!O$61="CurrentTech",VLOOKUP(P$32,TechData,MATCH($C53,TechData_h,0),FALSE),IF('UserSettings&Results'!O$61="TestTech",VLOOKUP(P$32,TestData,MATCH($C53,TechData_h,0),FALSE),VLOOKUP(P$32,OldTechData,MATCH($C53,TechData_h,0),FALSE))) -> 0 | Q53: =IF('UserSettings&Results'!P$61="CurrentTech",VLOOKUP(Q$32,TechData,MATCH($C53,TechData_h,0),FALSE),IF('UserSettings&Results'!P$61="TestTech",VLOOKUP(Q$32,TestData,MATCH($C53,TechData_h,0),FALSE),VLOOKUP(Q$32,OldTechData,MATCH($C53,TechData_h,0),FALSE))) -> 0 | R53: =IF('UserSettings&Results'!Q$61="CurrentTech",VLOOKUP(R$32,TechData,MATCH($C53,TechData_h,0),FALSE),IF('UserSettings&Results'!Q$61="TestTech",VLOOKUP(R$32,TestData,MATCH($C53,TechData_h,0),FALSE),VLOOKUP(R$32,OldTechData,MATCH($C53,TechData_h,0),FALSE))) -> 0 | S53: =IF('UserSettings&Results'!R$61="CurrentTech",VLOOKUP(S$32,TechData,MATCH($C53,TechData_h,0),FALSE),IF('UserSettings&Results'!R$61="TestTech",VLOOKUP(S$32,TestData,MATCH($C53,TechData_h,0),FALSE),VLOOKUP(S$32,OldTechData,MATCH($C53,TechData_h,0),FALSE))) -> 0 | T53: =IF('UserSettings&Results'!S$61="CurrentTech",VLOOKUP(T$32,TechData,MATCH($C53,TechData_h,0),FALSE),IF('UserSettings&Results'!S$61="TestTech",VLOOKUP(T$32,TestData,MATCH($C53,TechData_h,0),FALSE),VLOOKUP(T$32,OldTechData,MATCH($C53,TechData_h,0),FALSE))) -> 0 | U53: =IF('UserSettings&Results'!T$61="CurrentTech",VLOOKUP(U$32,TechData,MATCH($C53,TechData_h,0),FALSE),IF('UserSettings&Results'!T$61="TestTech",VLOOKUP(U$32,TestData,MATCH($C53,TechData_h,0),FALSE),VLOOKUP(U$32,OldTechData,MATCH($C53,TechData_h,0),FALSE))) -> 0 | V53: =IF('UserSettings&Results'!U$61="CurrentTech",VLOOKUP(V$32,TechData,MATCH($C53,TechData_h,0),FALSE),IF('UserSettings&Results'!U$61="TestTech",VLOOKUP(V$32,TestData,MATCH($C53,TechData_h,0),FALSE),VLOOKUP(V$32,OldTechData,MATCH($C53,TechData_h,0),FALSE))) -> 0.05351908205 | W53: =IF('UserSettings&Results'!V$61="CurrentTech",VLOOKUP(W$32,TechData,MATCH($C53,TechData_h,0),FALSE),IF('UserSettings&Results'!V$61="TestTech",VLOOKUP(W$32,TestData,MATCH($C53,TechData_h,0),FALSE),VLOOKUP(W$32,OldTechData,MATCH($C53,TechData_h,0),FALSE))) ->  | X53: =IF('UserSettings&Results'!W$61="CurrentTech",VLOOKUP(X$32,TechData,MATCH($C53,TechData_h,0),FALSE),IF('UserSettings&Results'!W$61="TestTech",VLOOKUP(X$32,TestData,MATCH($C53,TechData_h,0),FALSE),VLOOKUP(X$32,OldTechData,MATCH($C53,TechData_h,0),FALSE))) ->  | Y53: =IF('UserSettings&Results'!X$61="CurrentTech",VLOOKUP(Y$32,TechData,MATCH($C53,TechData_h,0),FALSE),IF('UserSettings&Results'!X$61="TestTech",VLOOKUP(Y$32,TestData,MATCH($C53,TechData_h,0),FALSE),VLOOKUP(Y$32,OldTechData,MATCH($C53,TechData_h,0),FALSE))) ->  | Z53: =IF('UserSettings&Results'!Y$61="CurrentTech",VLOOKUP(Z$32,TechData,MATCH($C53,TechData_h,0),FALSE),IF('UserSettings&Results'!Y$61="TestTech",VLOOKUP(Z$32,TestData,MATCH($C53,TechData_h,0),FALSE),VLOOKUP(Z$32,OldTechData,MATCH($C53,TechData_h,0),FALSE))) ->  | AA53: =IF('UserSettings&Results'!Z$61="CurrentTech",VLOOKUP(AA$32,TechData,MATCH($C53,TechData_h,0),FALSE),IF('UserSettings&Results'!Z$61="TestTech",VLOOKUP(AA$32,TestData,MATCH($C53,TechData_h,0),FALSE),VLOOKUP(AA$32,OldTechData,MATCH($C53,TechData_h,0),FALSE))) ->  | AB53: =IF('UserSettings&Results'!AA$61="CurrentTech",VLOOKUP(AB$32,TechData,MATCH($C53,TechData_h,0),FALSE),IF('UserSettings&Results'!AA$61="TestTech",VLOOKUP(AB$32,TestData,MATCH($C53,TechData_h,0),FALSE),VLOOKUP(AB$32,OldTechData,MATCH($C53,TechData_h,0),FALSE))) ->  | AC53: =IF('UserSettings&Results'!AB$61="CurrentTech",VLOOKUP(AC$32,TechData,MATCH($C53,TechData_h,0),FALSE),IF('UserSettings&Results'!AB$61="TestTech",VLOOKUP(AC$32,TestData,MATCH($C53,TechData_h,0),FALSE),VLOOKUP(AC$32,OldTechData,MATCH($C53,TechData_h,0),FALSE))) ->  | AD53: =IF('UserSettings&Results'!AC$61="CurrentTech",VLOOKUP(AD$32,TechData,MATCH($C53,TechData_h,0),FALSE),IF('UserSettings&Results'!AC$61="TestTech",VLOOKUP(AD$32,TestData,MATCH($C53,TechData_h,0),FALSE),VLOOKUP(AD$32,OldTechData,MATCH($C53,TechData_h,0),FALSE))) ->  | AE53: =IF('UserSettings&Results'!AD$61="CurrentTech",VLOOKUP(AE$32,TechData,MATCH($C53,TechData_h,0),FALSE),IF('UserSettings&Results'!AD$61="TestTech",VLOOKUP(AE$32,TestData,MATCH($C53,TechData_h,0),FALSE),VLOOKUP(AE$32,OldTechData,MATCH($C53,TechData_h,0),FALSE))) -> 
C54: Interest during construction | D54: % of investment | E54: =IF(IDC="YES",1*((1+DiscountRate)^E43-1)/(DiscountRate*E43)*(1+DiscountRate/2)-1,0) -> 0.06279804484 | F54: =IF(IDC="YES",1*((1+DiscountRate)^F43-1)/(DiscountRate*F43)*(1+DiscountRate/2)-1,0) -> 0.06279804484 | G54: 0.02635186006 | H54: 0.008749352828 | I54: 0.008749352828 | J54: 0.008749352828 | K54: 0.008749352828 | L54: 0.0443645051 | M54: 0.0443645051 | N54: 0.0443645051 | O54: 0.03530625 | P54: 0.08166353721 | Q54: 0.008749352828 | R54: 0.0443645051 | S54: 0.1307924484 | T54: 0.07217609383 | U54: 0.03530625 | V54: 0.02635186006
C55: Investment incl. IDC | D55: ="mio."&chosencurrency&"/MW" -> mio.EUR/MW | E55: =E52*(1+E$54) -> 1.652281723 | F55: =F52*(1+F$54) -> 1.541057165 | G55: 1.15933291 | H55: 0.2699201187 | I55: 0.3269849969 | J55: 0.486647005 | K55: 0.7828186451 | L55: 3.442185686 | M55: 4.037741357 | N55: 1.788589749 | O55: 1.773076485 | P55: 2.154044488 | Q55: 0.2591392291 | R55: 0.9278309321 | S55: 4.770780583 | T55: 2.046778928 | U55: 0.8319861101 | V55: 1.087602306
C56: Grid Investment incl. IDC | D56: ="mio."&chosencurrency&"/MW" -> mio.EUR/MW | E56: =E53*(1+E$54) -> 0.8911369308 | F56: =F53*(1+F$54) -> 0.09565182404 | G56: 0.01752821587 | H56: 0.03975078014 | I56: 0.03977232082 | J56: 0.03222330266 | K56: 0.02422516136 | L56: 0 | M56: 0 | N56: 0 | O56: 0 | P56: 0 | Q56: 0 | R56: 0 | S56: 0 | T56: 0 | U56: 0 | V56: 0.05492940942
C57: Fixed O&M | D57: =chosencurrency&"/MW electricty" -> EUR/MW electricty | E57: =IF('UserSettings&Results'!D61="CurrentTech",VLOOKUP(E$32,TechData,MATCH($C57,TechData_h,0),FALSE),IF('UserSettings&Results'!D61="TestTech",VLOOKUP(E$32,TestData,MATCH($C57,TechData_h,0),FALSE),VLOOKUP(E$32,OldTechData,MATCH($C57,TechData_h,0),FALSE))) -> 34000 | F57: =IF('UserSettings&Results'!E61="CurrentTech",VLOOKUP(F$32,TechData,MATCH($C57,TechData_h,0),FALSE),IF('UserSettings&Results'!E61="TestTech",VLOOKUP(F$32,TestData,MATCH($C57,TechData_h,0),FALSE),VLOOKUP(F$32,OldTechData,MATCH($C57,TechData_h,0),FALSE))) -> 34000 | G57: =IF('UserSettings&Results'!F61="CurrentTech",VLOOKUP(G$32,TechData,MATCH($C57,TechData_h,0),FALSE),IF('UserSettings&Results'!F61="TestTech",VLOOKUP(G$32,TestData,MATCH($C57,TechData_h,0),FALSE),VLOOKUP(G$32,OldTechData,MATCH($C57,TechData_h,0),FALSE))) -> 16662.66796 | H57: =IF('UserSettings&Results'!G61="CurrentTech",VLOOKUP(H$32,TechData,MATCH($C57,TechData_h,0),FALSE),IF('UserSettings&Results'!G61="TestTech",VLOOKUP(H$32,TestData,MATCH($C57,TechData_h,0),FALSE),VLOOKUP(H$32,OldTechData,MATCH($C57,TechData_h,0),FALSE))) -> 7600 | I57: =IF('UserSettings&Results'!H61="CurrentTech",VLOOKUP(I$32,TechData,MATCH($C57,TechData_h,0),FALSE),IF('UserSettings&Results'!H61="TestTech",VLOOKUP(I$32,TestData,MATCH($C57,TechData_h,0),FALSE),VLOOKUP(I$32,OldTechData,MATCH($C57,TechData_h,0),FALSE))) -> 8300 | J57: =IF('UserSettings&Results'!I61="CurrentTech",VLOOKUP(J$32,TechData,MATCH($C57,TechData_h,0),FALSE),IF('UserSettings&Results'!I61="TestTech",VLOOKUP(J$32,TestData,MATCH($C57,TechData_h,0),FALSE),VLOOKUP(J$32,OldTechData,MATCH($C57,TechData_h,0),FALSE))) -> 8100 | K57: =IF('UserSettings&Results'!J61="CurrentTech",VLOOKUP(K$32,TechData,MATCH($C57,TechData_h,0),FALSE),IF('UserSettings&Results'!J61="TestTech",VLOOKUP(K$32,TestData,MATCH($C57,TechData_h,0),FALSE),VLOOKUP(K$32,OldTechData,MATCH($C57,TechData_h,0),FALSE))) -> 10200 | L57: =IF('UserSettings&Results'!K61="CurrentTech",VLOOKUP(L$32,TechData,MATCH($C57,TechData_h,0),FALSE),IF('UserSettings&Results'!K61="TestTech",VLOOKUP(L$32,TestData,MATCH($C57,TechData_h,0),FALSE),VLOOKUP(L$32,OldTechData,MATCH($C57,TechData_h,0),FALSE))) -> 132020.8399 | M57: =IF('UserSettings&Results'!L61="CurrentTech",VLOOKUP(M$32,TechData,MATCH($C57,TechData_h,0),FALSE),IF('UserSettings&Results'!L61="TestTech",VLOOKUP(M$32,TestData,MATCH($C57,TechData_h,0),FALSE),VLOOKUP(M$32,OldTechData,MATCH($C57,TechData_h,0),FALSE))) -> 154134.9563 | N57: =IF('UserSettings&Results'!M61="CurrentTech",VLOOKUP(N$32,TechData,MATCH($C57,TechData_h,0),FALSE),IF('UserSettings&Results'!M61="TestTech",VLOOKUP(N$32,TestData,MATCH($C57,TechData_h,0),FALSE),VLOOKUP(N$32,OldTechData,MATCH($C57,TechData_h,0),FALSE))) -> 38268.20294 | O57: =IF('UserSettings&Results'!N61="CurrentTech",VLOOKUP(O$32,TechData,MATCH($C57,TechData_h,0),FALSE),IF('UserSettings&Results'!N61="TestTech",VLOOKUP(O$32,TestData,MATCH($C57,TechData_h,0),FALSE),VLOOKUP(O$32,OldTechData,MATCH($C57,TechData_h,0),FALSE))) -> 48251.21241 | P57: =IF('UserSettings&Results'!O61="CurrentTech",VLOOKUP(P$32,TechData,MATCH($C57,TechData_h,0),FALSE),IF('UserSettings&Results'!O61="TestTech",VLOOKUP(P$32,TestData,MATCH($C57,TechData_h,0),FALSE),VLOOKUP(P$32,OldTechData,MATCH($C57,TechData_h,0),FALSE))) -> 32491.56062 | Q57: =IF('UserSettings&Results'!P61="CurrentTech",VLOOKUP(Q$32,TechData,MATCH($C57,TechData_h,0),FALSE),IF('UserSettings&Results'!P61="TestTech",VLOOKUP(Q$32,TestData,MATCH($C57,TechData_h,0),FALSE),VLOOKUP(Q$32,OldTechData,MATCH($C57,TechData_h,0),FALSE))) -> 33276.69821 | R57: =IF('UserSettings&Results'!Q61="CurrentTech",VLOOKUP(R$32,TechData,MATCH($C57,TechData_h,0),FALSE),IF('UserSettings&Results'!Q61="TestTech",VLOOKUP(R$32,TestData,MATCH($C57,TechData_h,0),FALSE),VLOOKUP(R$32,OldTechData,MATCH($C57,TechData_h,0),FALSE))) -> 29756.60962 | S57: =IF('UserSettings&Results'!R61="CurrentTech",VLOOKUP(S$32,TechData,MATCH($C57,TechData_h,0),FALSE),IF('UserSettings&Results'!R61="TestTech",VLOOKUP(S$32,TestData,MATCH($C57,TechData_h,0),FALSE),VLOOKUP(S$32,OldTechData,MATCH($C57,TechData_h,0),FALSE))) -> 59237.79735 | T57: =IF('UserSettings&Results'!S61="CurrentTech",VLOOKUP(T$32,TechData,MATCH($C57,TechData_h,0),FALSE),IF('UserSettings&Results'!S61="TestTech",VLOOKUP(T$32,TestData,MATCH($C57,TechData_h,0),FALSE),VLOOKUP(T$32,OldTechData,MATCH($C57,TechData_h,0),FALSE))) -> 28660.20613 | U57: =IF('UserSettings&Results'!T61="CurrentTech",VLOOKUP(U$32,TechData,MATCH($C57,TechData_h,0),FALSE),IF('UserSettings&Results'!T61="TestTech",VLOOKUP(U$32,TestData,MATCH($C57,TechData_h,0),FALSE),VLOOKUP(U$32,OldTechData,MATCH($C57,TechData_h,0),FALSE))) -> 23569.88438 | V57: =IF('UserSettings&Results'!U61="CurrentTech",VLOOKUP(V$32,TechData,MATCH($C57,TechData_h,0),FALSE),IF('UserSettings&Results'!U61="TestTech",VLOOKUP(V$32,TestData,MATCH($C57,TechData_h,0),FALSE),VLOOKUP(V$32,OldTechData,MATCH($C57,TechData_h,0),FALSE))) -> 13486.80868 | W57: =IF('UserSettings&Results'!V61="CurrentTech",VLOOKUP(W$32,TechData,MATCH($C57,TechData_h,0),FALSE),IF('UserSettings&Results'!V61="TestTech",VLOOKUP(W$32,TestData,MATCH($C57,TechData_h,0),FALSE),VLOOKUP(W$32,OldTechData,MATCH($C57,TechData_h,0),FALSE))) ->  | X57: =IF('UserSettings&Results'!W61="CurrentTech",VLOOKUP(X$32,TechData,MATCH($C57,TechData_h,0),FALSE),IF('UserSettings&Results'!W61="TestTech",VLOOKUP(X$32,TestData,MATCH($C57,TechData_h,0),FALSE),VLOOKUP(X$32,OldTechData,MATCH($C57,TechData_h,0),FALSE))) ->  | Y57: =IF('UserSettings&Results'!X61="CurrentTech",VLOOKUP(Y$32,TechData,MATCH($C57,TechData_h,0),FALSE),IF('UserSettings&Results'!X61="TestTech",VLOOKUP(Y$32,TestData,MATCH($C57,TechData_h,0),FALSE),VLOOKUP(Y$32,OldTechData,MATCH($C57,TechData_h,0),FALSE))) ->  | Z57: =IF('UserSettings&Results'!Y61="CurrentTech",VLOOKUP(Z$32,TechData,MATCH($C57,TechData_h,0),FALSE),IF('UserSettings&Results'!Y61="TestTech",VLOOKUP(Z$32,TestData,MATCH($C57,TechData_h,0),FALSE),VLOOKUP(Z$32,OldTechData,MATCH($C57,TechData_h,0),FALSE))) ->  | AA57: =IF('UserSettings&Results'!Z61="CurrentTech",VLOOKUP(AA$32,TechData,MATCH($C57,TechData_h,0),FALSE),IF('UserSettings&Results'!Z61="TestTech",VLOOKUP(AA$32,TestData,MATCH($C57,TechData_h,0),FALSE),VLOOKUP(AA$32,OldTechData,MATCH($C57,TechData_h,0),FALSE))) ->  | AB57: =IF('UserSettings&Results'!AA61="CurrentTech",VLOOKUP(AB$32,TechData,MATCH($C57,TechData_h,0),FALSE),IF('UserSettings&Results'!AA61="TestTech",VLOOKUP(AB$32,TestData,MATCH($C57,TechData_h,0),FALSE),VLOOKUP(AB$32,OldTechData,MATCH($C57,TechData_h,0),FALSE))) ->  | AC57: =IF('UserSettings&Results'!AB61="CurrentTech",VLOOKUP(AC$32,TechData,MATCH($C57,TechData_h,0),FALSE),IF('UserSettings&Results'!AB61="TestTech",VLOOKUP(AC$32,TestData,MATCH($C57,TechData_h,0),FALSE),VLOOKUP(AC$32,OldTechData,MATCH($C57,TechData_h,0),FALSE))) ->  | AD57: =IF('UserSettings&Results'!AC61="CurrentTech",VLOOKUP(AD$32,TechData,MATCH($C57,TechData_h,0),FALSE),IF('UserSettings&Results'!AC61="TestTech",VLOOKUP(AD$32,TestData,MATCH($C57,TechData_h,0),FALSE),VLOOKUP(AD$32,OldTechData,MATCH($C57,TechData_h,0),FALSE))) ->  | AE57: =IF('UserSettings&Results'!AD61="CurrentTech",VLOOKUP(AE$32,TechData,MATCH($C57,TechData_h,0),FALSE),IF('UserSettings&Results'!AD61="TestTech",VLOOKUP(AE$32,TestData,MATCH($C57,TechData_h,0),FALSE),VLOOKUP(AE$32,OldTechData,MATCH($C57,TechData_h,0),FALSE))) -> 
C58: Var. O&M | D58: =chosencurrency&"/MWh" -> EUR/MWh | E58: =IF('UserSettings&Results'!D61="CurrentTech",VLOOKUP(E$32,TechData,MATCH($C58,TechData_h,0),FALSE),IF('UserSettings&Results'!D61="TestTech",VLOOKUP(E$32,TestData,MATCH($C58,TechData_h,0),FALSE),VLOOKUP(E$32,OldTechData,MATCH($C58,TechData_h,0),FALSE))) -> 3.446698733 | F58: =IF('UserSettings&Results'!E61="CurrentTech",VLOOKUP(F$32,TechData,MATCH($C58,TechData_h,0),FALSE),IF('UserSettings&Results'!E61="TestTech",VLOOKUP(F$32,TestData,MATCH($C58,TechData_h,0),FALSE),VLOOKUP(F$32,OldTechData,MATCH($C58,TechData_h,0),FALSE))) -> 3.45 | G58: =IF('UserSettings&Results'!F61="CurrentTech",VLOOKUP(G$32,TechData,MATCH($C58,TechData_h,0),FALSE),IF('UserSettings&Results'!F61="TestTech",VLOOKUP(G$32,TestData,MATCH($C58,TechData_h,0),FALSE),VLOOKUP(G$32,OldTechData,MATCH($C58,TechData_h,0),FALSE))) -> 1.975184487 | H58: =IF('UserSettings&Results'!G61="CurrentTech",VLOOKUP(H$32,TechData,MATCH($C58,TechData_h,0),FALSE),IF('UserSettings&Results'!G61="TestTech",VLOOKUP(H$32,TestData,MATCH($C58,TechData_h,0),FALSE),VLOOKUP(H$32,OldTechData,MATCH($C58,TechData_h,0),FALSE))) -> 0 | I58: =IF('UserSettings&Results'!H61="CurrentTech",VLOOKUP(I$32,TechData,MATCH($C58,TechData_h,0),FALSE),IF('UserSettings&Results'!H61="TestTech",VLOOKUP(I$32,TestData,MATCH($C58,TechData_h,0),FALSE),VLOOKUP(I$32,OldTechData,MATCH($C58,TechData_h,0),FALSE))) -> 0 | J58: =IF('UserSettings&Results'!I61="CurrentTech",VLOOKUP(J$32,TechData,MATCH($C58,TechData_h,0),FALSE),IF('UserSettings&Results'!I61="TestTech",VLOOKUP(J$32,TestData,MATCH($C58,TechData_h,0),FALSE),VLOOKUP(J$32,OldTechData,MATCH($C58,TechData_h,0),FALSE))) -> 0 | K58: =IF('UserSettings&Results'!J61="CurrentTech",VLOOKUP(K$32,TechData,MATCH($C58,TechData_h,0),FALSE),IF('UserSettings&Results'!J61="TestTech",VLOOKUP(K$32,TestData,MATCH($C58,TechData_h,0),FALSE),VLOOKUP(K$32,OldTechData,MATCH($C58,TechData_h,0),FALSE))) -> 0 | L58: =IF('UserSettings&Results'!K61="CurrentTech",VLOOKUP(L$32,TechData,MATCH($C58,TechData_h,0),FALSE),IF('UserSettings&Results'!K61="TestTech",VLOOKUP(L$32,TestData,MATCH($C58,TechData_h,0),FALSE),VLOOKUP(L$32,OldTechData,MATCH($C58,TechData_h,0),FALSE))) -> 1.828594172 | M58: =IF('UserSettings&Results'!L61="CurrentTech",VLOOKUP(M$32,TechData,MATCH($C58,TechData_h,0),FALSE),IF('UserSettings&Results'!L61="TestTech",VLOOKUP(M$32,TestData,MATCH($C58,TechData_h,0),FALSE),VLOOKUP(M$32,OldTechData,MATCH($C58,TechData_h,0),FALSE))) -> 4.08233155 | N58: =IF('UserSettings&Results'!M61="CurrentTech",VLOOKUP(N$32,TechData,MATCH($C58,TechData_h,0),FALSE),IF('UserSettings&Results'!M61="TestTech",VLOOKUP(N$32,TestData,MATCH($C58,TechData_h,0),FALSE),VLOOKUP(N$32,OldTechData,MATCH($C58,TechData_h,0),FALSE))) -> 4.669472168 | O58: =IF('UserSettings&Results'!N61="CurrentTech",VLOOKUP(O$32,TechData,MATCH($C58,TechData_h,0),FALSE),IF('UserSettings&Results'!N61="TestTech",VLOOKUP(O$32,TestData,MATCH($C58,TechData_h,0),FALSE),VLOOKUP(O$32,OldTechData,MATCH($C58,TechData_h,0),FALSE))) -> 4.513823096 | P58: =IF('UserSettings&Results'!O61="CurrentTech",VLOOKUP(P$32,TechData,MATCH($C58,TechData_h,0),FALSE),IF('UserSettings&Results'!O61="TestTech",VLOOKUP(P$32,TestData,MATCH($C58,TechData_h,0),FALSE),VLOOKUP(P$32,OldTechData,MATCH($C58,TechData_h,0),FALSE))) -> 3.03953309 | Q58: =IF('UserSettings&Results'!P61="CurrentTech",VLOOKUP(Q$32,TechData,MATCH($C58,TechData_h,0),FALSE),IF('UserSettings&Results'!P61="TestTech",VLOOKUP(Q$32,TestData,MATCH($C58,TechData_h,0),FALSE),VLOOKUP(Q$32,OldTechData,MATCH($C58,TechData_h,0),FALSE))) -> 3.112981446 | R58: =IF('UserSettings&Results'!Q61="CurrentTech",VLOOKUP(R$32,TechData,MATCH($C58,TechData_h,0),FALSE),IF('UserSettings&Results'!Q61="TestTech",VLOOKUP(R$32,TestData,MATCH($C58,TechData_h,0),FALSE),VLOOKUP(R$32,OldTechData,MATCH($C58,TechData_h,0),FALSE))) -> 4.495602893 | S58: =IF('UserSettings&Results'!R61="CurrentTech",VLOOKUP(S$32,TechData,MATCH($C58,TechData_h,0),FALSE),IF('UserSettings&Results'!R61="TestTech",VLOOKUP(S$32,TestData,MATCH($C58,TechData_h,0),FALSE),VLOOKUP(S$32,OldTechData,MATCH($C58,TechData_h,0),FALSE))) -> 5.941000025 | T58: =IF('UserSettings&Results'!S61="CurrentTech",VLOOKUP(T$32,TechData,MATCH($C58,TechData_h,0),FALSE),IF('UserSettings&Results'!S61="TestTech",VLOOKUP(T$32,TestData,MATCH($C58,TechData_h,0),FALSE),VLOOKUP(T$32,OldTechData,MATCH($C58,TechData_h,0),FALSE))) -> 2.817964961 | U58: =IF('UserSettings&Results'!T61="CurrentTech",VLOOKUP(U$32,TechData,MATCH($C58,TechData_h,0),FALSE),IF('UserSettings&Results'!T61="TestTech",VLOOKUP(U$32,TestData,MATCH($C58,TechData_h,0),FALSE),VLOOKUP(U$32,OldTechData,MATCH($C58,TechData_h,0),FALSE))) -> 2.169756531 | V58: =IF('UserSettings&Results'!U61="CurrentTech",VLOOKUP(V$32,TechData,MATCH($C58,TechData_h,0),FALSE),IF('UserSettings&Results'!U61="TestTech",VLOOKUP(V$32,TestData,MATCH($C58,TechData_h,0),FALSE),VLOOKUP(V$32,OldTechData,MATCH($C58,TechData_h,0),FALSE))) -> 1.445015215 | W58: =IF('UserSettings&Results'!V61="CurrentTech",VLOOKUP(W$32,TechData,MATCH($C58,TechData_h,0),FALSE),IF('UserSettings&Results'!V61="TestTech",VLOOKUP(W$32,TestData,MATCH($C58,TechData_h,0),FALSE),VLOOKUP(W$32,OldTechData,MATCH($C58,TechData_h,0),FALSE))) ->  | X58: =IF('UserSettings&Results'!W61="CurrentTech",VLOOKUP(X$32,TechData,MATCH($C58,TechData_h,0),FALSE),IF('UserSettings&Results'!W61="TestTech",VLOOKUP(X$32,TestData,MATCH($C58,TechData_h,0),FALSE),VLOOKUP(X$32,OldTechData,MATCH($C58,TechData_h,0),FALSE))) ->  | Y58: =IF('UserSettings&Results'!X61="CurrentTech",VLOOKUP(Y$32,TechData,MATCH($C58,TechData_h,0),FALSE),IF('UserSettings&Results'!X61="TestTech",VLOOKUP(Y$32,TestData,MATCH($C58,TechData_h,0),FALSE),VLOOKUP(Y$32,OldTechData,MATCH($C58,TechData_h,0),FALSE))) ->  | Z58: =IF('UserSettings&Results'!Y61="CurrentTech",VLOOKUP(Z$32,TechData,MATCH($C58,TechData_h,0),FALSE),IF('UserSettings&Results'!Y61="TestTech",VLOOKUP(Z$32,TestData,MATCH($C58,TechData_h,0),FALSE),VLOOKUP(Z$32,OldTechData,MATCH($C58,TechData_h,0),FALSE))) ->  | AA58: =IF('UserSettings&Results'!Z61="CurrentTech",VLOOKUP(AA$32,TechData,MATCH($C58,TechData_h,0),FALSE),IF('UserSettings&Results'!Z61="TestTech",VLOOKUP(AA$32,TestData,MATCH($C58,TechData_h,0),FALSE),VLOOKUP(AA$32,OldTechData,MATCH($C58,TechData_h,0),FALSE))) ->  | AB58: =IF('UserSettings&Results'!AA61="CurrentTech",VLOOKUP(AB$32,TechData,MATCH($C58,TechData_h,0),FALSE),IF('UserSettings&Results'!AA61="TestTech",VLOOKUP(AB$32,TestData,MATCH($C58,TechData_h,0),FALSE),VLOOKUP(AB$32,OldTechData,MATCH($C58,TechData_h,0),FALSE))) ->  | AC58: =IF('UserSettings&Results'!AB61="CurrentTech",VLOOKUP(AC$32,TechData,MATCH($C58,TechData_h,0),FALSE),IF('UserSettings&Results'!AB61="TestTech",VLOOKUP(AC$32,TestData,MATCH($C58,TechData_h,0),FALSE),VLOOKUP(AC$32,OldTechData,MATCH($C58,TechData_h,0),FALSE))) ->  | AD58: =IF('UserSettings&Results'!AC61="CurrentTech",VLOOKUP(AD$32,TechData,MATCH($C58,TechData_h,0),FALSE),IF('UserSettings&Results'!AC61="TestTech",VLOOKUP(AD$32,TestData,MATCH($C58,TechData_h,0),FALSE),VLOOKUP(AD$32,OldTechData,MATCH($C58,TechData_h,0),FALSE))) ->  | AE58: =IF('UserSettings&Results'!AD61="CurrentTech",VLOOKUP(AE$32,TechData,MATCH($C58,TechData_h,0),FALSE),IF('UserSettings&Results'!AD61="TestTech",VLOOKUP(AE$32,TestData,MATCH($C58,TechData_h,0),FALSE),VLOOKUP(AE$32,OldTechData,MATCH($C58,TechData_h,0),FALSE))) -> 
C59: Other costs | D59: =chosencurrency&"/MWh" -> EUR/MWh | E59: =IF('UserSettings&Results'!D61="CurrentTech",VLOOKUP(E$32,TechData,MATCH($C59,TechData_h,0),FALSE),IF('UserSettings&Results'!D61="TestTech",VLOOKUP(E$32,TestData,MATCH($C59,TechData_h,0),FALSE),VLOOKUP(E$32,OldTechData,MATCH($C59,TechData_h,0),FALSE))) -> 0 | F59: =IF('UserSettings&Results'!E61="CurrentTech",VLOOKUP(F$32,TechData,MATCH($C59,TechData_h,0),FALSE),IF('UserSettings&Results'!E61="TestTech",VLOOKUP(F$32,TestData,MATCH($C59,TechData_h,0),FALSE),VLOOKUP(F$32,OldTechData,MATCH($C59,TechData_h,0),FALSE))) -> 0 | G59: =IF('UserSettings&Results'!F61="CurrentTech",VLOOKUP(G$32,TechData,MATCH($C59,TechData_h,0),FALSE),IF('UserSettings&Results'!F61="TestTech",VLOOKUP(G$32,TestData,MATCH($C59,TechData_h,0),FALSE),VLOOKUP(G$32,OldTechData,MATCH($C59,TechData_h,0),FALSE))) -> 0 | H59: =IF('UserSettings&Results'!G61="CurrentTech",VLOOKUP(H$32,TechData,MATCH($C59,TechData_h,0),FALSE),IF('UserSettings&Results'!G61="TestTech",VLOOKUP(H$32,TestData,MATCH($C59,TechData_h,0),FALSE),VLOOKUP(H$32,OldTechData,MATCH($C59,TechData_h,0),FALSE))) -> 0 | I59: =IF('UserSettings&Results'!H61="CurrentTech",VLOOKUP(I$32,TechData,MATCH($C59,TechData_h,0),FALSE),IF('UserSettings&Results'!H61="TestTech",VLOOKUP(I$32,TestData,MATCH($C59,TechData_h,0),FALSE),VLOOKUP(I$32,OldTechData,MATCH($C59,TechData_h,0),FALSE))) -> 0 | J59: =IF('UserSettings&Results'!I61="CurrentTech",VLOOKUP(J$32,TechData,MATCH($C59,TechData_h,0),FALSE),IF('UserSettings&Results'!I61="TestTech",VLOOKUP(J$32,TestData,MATCH($C59,TechData_h,0),FALSE),VLOOKUP(J$32,OldTechData,MATCH($C59,TechData_h,0),FALSE))) -> 0 | K59: =IF('UserSettings&Results'!J61="CurrentTech",VLOOKUP(K$32,TechData,MATCH($C59,TechData_h,0),FALSE),IF('UserSettings&Results'!J61="TestTech",VLOOKUP(K$32,TestData,MATCH($C59,TechData_h,0),FALSE),VLOOKUP(K$32,OldTechData,MATCH($C59,TechData_h,0),FALSE))) -> 0 | L59: =IF('UserSettings&Results'!K61="CurrentTech",VLOOKUP(L$32,TechData,MATCH($C59,TechData_h,0),FALSE),IF('UserSettings&Results'!K61="TestTech",VLOOKUP(L$32,TestData,MATCH($C59,TechData_h,0),FALSE),VLOOKUP(L$32,OldTechData,MATCH($C59,TechData_h,0),FALSE))) -> 0 | M59: =IF('UserSettings&Results'!L61="CurrentTech",VLOOKUP(M$32,TechData,MATCH($C59,TechData_h,0),FALSE),IF('UserSettings&Results'!L61="TestTech",VLOOKUP(M$32,TestData,MATCH($C59,TechData_h,0),FALSE),VLOOKUP(M$32,OldTechData,MATCH($C59,TechData_h,0),FALSE))) -> 0 | N59: =IF('UserSettings&Results'!M61="CurrentTech",VLOOKUP(N$32,TechData,MATCH($C59,TechData_h,0),FALSE),IF('UserSettings&Results'!M61="TestTech",VLOOKUP(N$32,TestData,MATCH($C59,TechData_h,0),FALSE),VLOOKUP(N$32,OldTechData,MATCH($C59,TechData_h,0),FALSE))) -> 0 | O59: =IF('UserSettings&Results'!N61="CurrentTech",VLOOKUP(O$32,TechData,MATCH($C59,TechData_h,0),FALSE),IF('UserSettings&Results'!N61="TestTech",VLOOKUP(O$32,TestData,MATCH($C59,TechData_h,0),FALSE),VLOOKUP(O$32,OldTechData,MATCH($C59,TechData_h,0),FALSE))) -> 0 | P59: =IF('UserSettings&Results'!O61="CurrentTech",VLOOKUP(P$32,TechData,MATCH($C59,TechData_h,0),FALSE),IF('UserSettings&Results'!O61="TestTech",VLOOKUP(P$32,TestData,MATCH($C59,TechData_h,0),FALSE),VLOOKUP(P$32,OldTechData,MATCH($C59,TechData_h,0),FALSE))) -> 0 | Q59: =IF('UserSettings&Results'!P61="CurrentTech",VLOOKUP(Q$32,TechData,MATCH($C59,TechData_h,0),FALSE),IF('UserSettings&Results'!P61="TestTech",VLOOKUP(Q$32,TestData,MATCH($C59,TechData_h,0),FALSE),VLOOKUP(Q$32,OldTechData,MATCH($C59,TechData_h,0),FALSE))) -> 0 | R59: =IF('UserSettings&Results'!Q61="CurrentTech",VLOOKUP(R$32,TechData,MATCH($C59,TechData_h,0),FALSE),IF('UserSettings&Results'!Q61="TestTech",VLOOKUP(R$32,TestData,MATCH($C59,TechData_h,0),FALSE),VLOOKUP(R$32,OldTechData,MATCH($C59,TechData_h,0),FALSE))) -> 0 | S59: =IF('UserSettings&Results'!R61="CurrentTech",VLOOKUP(S$32,TechData,MATCH($C59,TechData_h,0),FALSE),IF('UserSettings&Results'!R61="TestTech",VLOOKUP(S$32,TestData,MATCH($C59,TechData_h,0),FALSE),VLOOKUP(S$32,OldTechData,MATCH($C59,TechData_h,0),FALSE))) -> 4.524015662 | T59: =IF('UserSettings&Results'!S61="CurrentTech",VLOOKUP(T$32,TechData,MATCH($C59,TechData_h,0),FALSE),IF('UserSettings&Results'!S61="TestTech",VLOOKUP(T$32,TestData,MATCH($C59,TechData_h,0),FALSE),VLOOKUP(T$32,OldTechData,MATCH($C59,TechData_h,0),FALSE))) -> 0 | U59: =IF('UserSettings&Results'!T61="CurrentTech",VLOOKUP(U$32,TechData,MATCH($C59,TechData_h,0),FALSE),IF('UserSettings&Results'!T61="TestTech",VLOOKUP(U$32,TestData,MATCH($C59,TechData_h,0),FALSE),VLOOKUP(U$32,OldTechData,MATCH($C59,TechData_h,0),FALSE))) -> 0 | V59: =IF('UserSettings&Results'!U61="CurrentTech",VLOOKUP(V$32,TechData,MATCH($C59,TechData_h,0),FALSE),IF('UserSettings&Results'!U61="TestTech",VLOOKUP(V$32,TestData,MATCH($C59,TechData_h,0),FALSE),VLOOKUP(V$32,OldTechData,MATCH($C59,TechData_h,0),FALSE))) -> 0 | W59: =IF('UserSettings&Results'!V61="CurrentTech",VLOOKUP(W$32,TechData,MATCH($C59,TechData_h,0),FALSE),IF('UserSettings&Results'!V61="TestTech",VLOOKUP(W$32,TestData,MATCH($C59,TechData_h,0),FALSE),VLOOKUP(W$32,OldTechData,MATCH($C59,TechData_h,0),FALSE))) ->  | X59: =IF('UserSettings&Results'!W61="CurrentTech",VLOOKUP(X$32,TechData,MATCH($C59,TechData_h,0),FALSE),IF('UserSettings&Results'!W61="TestTech",VLOOKUP(X$32,TestData,MATCH($C59,TechData_h,0),FALSE),VLOOKUP(X$32,OldTechData,MATCH($C59,TechData_h,0),FALSE))) ->  | Y59: =IF('UserSettings&Results'!X61="CurrentTech",VLOOKUP(Y$32,TechData,MATCH($C59,TechData_h,0),FALSE),IF('UserSettings&Results'!X61="TestTech",VLOOKUP(Y$32,TestData,MATCH($C59,TechData_h,0),FALSE),VLOOKUP(Y$32,OldTechData,MATCH($C59,TechData_h,0),FALSE))) ->  | Z59: =IF('UserSettings&Results'!Y61="CurrentTech",VLOOKUP(Z$32,TechData,MATCH($C59,TechData_h,0),FALSE),IF('UserSettings&Results'!Y61="TestTech",VLOOKUP(Z$32,TestData,MATCH($C59,TechData_h,0),FALSE),VLOOKUP(Z$32,OldTechData,MATCH($C59,TechData_h,0),FALSE))) ->  | AA59: =IF('UserSettings&Results'!Z61="CurrentTech",VLOOKUP(AA$32,TechData,MATCH($C59,TechData_h,0),FALSE),IF('UserSettings&Results'!Z61="TestTech",VLOOKUP(AA$32,TestData,MATCH($C59,TechData_h,0),FALSE),VLOOKUP(AA$32,OldTechData,MATCH($C59,TechData_h,0),FALSE))) ->  | AB59: =IF('UserSettings&Results'!AA61="CurrentTech",VLOOKUP(AB$32,TechData,MATCH($C59,TechData_h,0),FALSE),IF('UserSettings&Results'!AA61="TestTech",VLOOKUP(AB$32,TestData,MATCH($C59,TechData_h,0),FALSE),VLOOKUP(AB$32,OldTechData,MATCH($C59,TechData_h,0),FALSE))) ->  | AC59: =IF('UserSettings&Results'!AB61="CurrentTech",VLOOKUP(AC$32,TechData,MATCH($C59,TechData_h,0),FALSE),IF('UserSettings&Results'!AB61="TestTech",VLOOKUP(AC$32,TestData,MATCH($C59,TechData_h,0),FALSE),VLOOKUP(AC$32,OldTechData,MATCH($C59,TechData_h,0),FALSE))) ->  | AD59: =IF('UserSettings&Results'!AC61="CurrentTech",VLOOKUP(AD$32,TechData,MATCH($C59,TechData_h,0),FALSE),IF('UserSettings&Results'!AC61="TestTech",VLOOKUP(AD$32,TestData,MATCH($C59,TechData_h,0),FALSE),VLOOKUP(AD$32,OldTechData,MATCH($C59,TechData_h,0),FALSE))) ->  | AE59: =IF('UserSettings&Results'!AD61="CurrentTech",VLOOKUP(AE$32,TechData,MATCH($C59,TechData_h,0),FALSE),IF('UserSettings&Results'!AD61="TestTech",VLOOKUP(AE$32,TestData,MATCH($C59,TechData_h,0),FALSE),VLOOKUP(AE$32,OldTechData,MATCH($C59,TechData_h,0),FALSE))) -> 
C60: Profile costs | D60: =chosencurrency&"/MWh" -> EUR/MWh | E60: =IF('UserSettings&Results'!D61="CurrentTech",VLOOKUP(E$32,TechData,MATCH($C60,TechData_h,0),FALSE),IF('UserSettings&Results'!D61="TestTech",VLOOKUP(E$32,TestData,MATCH($C60,TechData_h,0),FALSE),VLOOKUP(E$32,OldTechData,MATCH($C60,TechData_h,0),FALSE))) -> 0 | F60: =IF('UserSettings&Results'!E61="CurrentTech",VLOOKUP(F$32,TechData,MATCH($C60,TechData_h,0),FALSE),IF('UserSettings&Results'!E61="TestTech",VLOOKUP(F$32,TestData,MATCH($C60,TechData_h,0),FALSE),VLOOKUP(F$32,OldTechData,MATCH($C60,TechData_h,0),FALSE))) -> 0 | G60: =IF('UserSettings&Results'!F61="CurrentTech",VLOOKUP(G$32,TechData,MATCH($C60,TechData_h,0),FALSE),IF('UserSettings&Results'!F61="TestTech",VLOOKUP(G$32,TestData,MATCH($C60,TechData_h,0),FALSE),VLOOKUP(G$32,OldTechData,MATCH($C60,TechData_h,0),FALSE))) -> 0 | H60: =IF('UserSettings&Results'!G61="CurrentTech",VLOOKUP(H$32,TechData,MATCH($C60,TechData_h,0),FALSE),IF('UserSettings&Results'!G61="TestTech",VLOOKUP(H$32,TestData,MATCH($C60,TechData_h,0),FALSE),VLOOKUP(H$32,OldTechData,MATCH($C60,TechData_h,0),FALSE))) -> 0 | I60: =IF('UserSettings&Results'!H61="CurrentTech",VLOOKUP(I$32,TechData,MATCH($C60,TechData_h,0),FALSE),IF('UserSettings&Results'!H61="TestTech",VLOOKUP(I$32,TestData,MATCH($C60,TechData_h,0),FALSE),VLOOKUP(I$32,OldTechData,MATCH($C60,TechData_h,0),FALSE))) -> 0 | J60: =IF('UserSettings&Results'!I61="CurrentTech",VLOOKUP(J$32,TechData,MATCH($C60,TechData_h,0),FALSE),IF('UserSettings&Results'!I61="TestTech",VLOOKUP(J$32,TestData,MATCH($C60,TechData_h,0),FALSE),VLOOKUP(J$32,OldTechData,MATCH($C60,TechData_h,0),FALSE))) -> 0 | K60: =IF('UserSettings&Results'!J61="CurrentTech",VLOOKUP(K$32,TechData,MATCH($C60,TechData_h,0),FALSE),IF('UserSettings&Results'!J61="TestTech",VLOOKUP(K$32,TestData,MATCH($C60,TechData_h,0),FALSE),VLOOKUP(K$32,OldTechData,MATCH($C60,TechData_h,0),FALSE))) -> 0 | L60: =IF('UserSettings&Results'!K61="CurrentTech",VLOOKUP(L$32,TechData,MATCH($C60,TechData_h,0),FALSE),IF('UserSettings&Results'!K61="TestTech",VLOOKUP(L$32,TestData,MATCH($C60,TechData_h,0),FALSE),VLOOKUP(L$32,OldTechData,MATCH($C60,TechData_h,0),FALSE))) -> 0 | M60: =IF('UserSettings&Results'!L61="CurrentTech",VLOOKUP(M$32,TechData,MATCH($C60,TechData_h,0),FALSE),IF('UserSettings&Results'!L61="TestTech",VLOOKUP(M$32,TestData,MATCH($C60,TechData_h,0),FALSE),VLOOKUP(M$32,OldTechData,MATCH($C60,TechData_h,0),FALSE))) -> 0 | N60: =IF('UserSettings&Results'!M61="CurrentTech",VLOOKUP(N$32,TechData,MATCH($C60,TechData_h,0),FALSE),IF('UserSettings&Results'!M61="TestTech",VLOOKUP(N$32,TestData,MATCH($C60,TechData_h,0),FALSE),VLOOKUP(N$32,OldTechData,MATCH($C60,TechData_h,0),FALSE))) -> 0 | O60: =IF('UserSettings&Results'!N61="CurrentTech",VLOOKUP(O$32,TechData,MATCH($C60,TechData_h,0),FALSE),IF('UserSettings&Results'!N61="TestTech",VLOOKUP(O$32,TestData,MATCH($C60,TechData_h,0),FALSE),VLOOKUP(O$32,OldTechData,MATCH($C60,TechData_h,0),FALSE))) -> 0 | P60: =IF('UserSettings&Results'!O61="CurrentTech",VLOOKUP(P$32,TechData,MATCH($C60,TechData_h,0),FALSE),IF('UserSettings&Results'!O61="TestTech",VLOOKUP(P$32,TestData,MATCH($C60,TechData_h,0),FALSE),VLOOKUP(P$32,OldTechData,MATCH($C60,TechData_h,0),FALSE))) -> 0 | Q60: =IF('UserSettings&Results'!P61="CurrentTech",VLOOKUP(Q$32,TechData,MATCH($C60,TechData_h,0),FALSE),IF('UserSettings&Results'!P61="TestTech",VLOOKUP(Q$32,TestData,MATCH($C60,TechData_h,0),FALSE),VLOOKUP(Q$32,OldTechData,MATCH($C60,TechData_h,0),FALSE))) -> 0 | R60: =IF('UserSettings&Results'!Q61="CurrentTech",VLOOKUP(R$32,TechData,MATCH($C60,TechData_h,0),FALSE),IF('UserSettings&Results'!Q61="TestTech",VLOOKUP(R$32,TestData,MATCH($C60,TechData_h,0),FALSE),VLOOKUP(R$32,OldTechData,MATCH($C60,TechData_h,0),FALSE))) -> 0 | S60: =IF('UserSettings&Results'!R61="CurrentTech",VLOOKUP(S$32,TechData,MATCH($C60,TechData_h,0),FALSE),IF('UserSettings&Results'!R61="TestTech",VLOOKUP(S$32,TestData,MATCH($C60,TechData_h,0),FALSE),VLOOKUP(S$32,OldTechData,MATCH($C60,TechData_h,0),FALSE))) -> 0 | T60: =IF('UserSettings&Results'!S61="CurrentTech",VLOOKUP(T$32,TechData,MATCH($C60,TechData_h,0),FALSE),IF('UserSettings&Results'!S61="TestTech",VLOOKUP(T$32,TestData,MATCH($C60,TechData_h,0),FALSE),VLOOKUP(T$32,OldTechData,MATCH($C60,TechData_h,0),FALSE))) -> 0 | U60: =IF('UserSettings&Results'!T61="CurrentTech",VLOOKUP(U$32,TechData,MATCH($C60,TechData_h,0),FALSE),IF('UserSettings&Results'!T61="TestTech",VLOOKUP(U$32,TestData,MATCH($C60,TechData_h,0),FALSE),VLOOKUP(U$32,OldTechData,MATCH($C60,TechData_h,0),FALSE))) -> 0 | V60: =IF('UserSettings&Results'!U61="CurrentTech",VLOOKUP(V$32,TechData,MATCH($C60,TechData_h,0),FALSE),IF('UserSettings&Results'!U61="TestTech",VLOOKUP(V$32,TestData,MATCH($C60,TechData_h,0),FALSE),VLOOKUP(V$32,OldTechData,MATCH($C60,TechData_h,0),FALSE))) -> 0 | W60: =IF('UserSettings&Results'!V61="CurrentTech",VLOOKUP(W$32,TechData,MATCH($C60,TechData_h,0),FALSE),IF('UserSettings&Results'!V61="TestTech",VLOOKUP(W$32,TestData,MATCH($C60,TechData_h,0),FALSE),VLOOKUP(W$32,OldTechData,MATCH($C60,TechData_h,0),FALSE))) ->  | X60: =IF('UserSettings&Results'!W61="CurrentTech",VLOOKUP(X$32,TechData,MATCH($C60,TechData_h,0),FALSE),IF('UserSettings&Results'!W61="TestTech",VLOOKUP(X$32,TestData,MATCH($C60,TechData_h,0),FALSE),VLOOKUP(X$32,OldTechData,MATCH($C60,TechData_h,0),FALSE))) ->  | Y60: =IF('UserSettings&Results'!X61="CurrentTech",VLOOKUP(Y$32,TechData,MATCH($C60,TechData_h,0),FALSE),IF('UserSettings&Results'!X61="TestTech",VLOOKUP(Y$32,TestData,MATCH($C60,TechData_h,0),FALSE),VLOOKUP(Y$32,OldTechData,MATCH($C60,TechData_h,0),FALSE))) ->  | Z60: =IF('UserSettings&Results'!Y61="CurrentTech",VLOOKUP(Z$32,TechData,MATCH($C60,TechData_h,0),FALSE),IF('UserSettings&Results'!Y61="TestTech",VLOOKUP(Z$32,TestData,MATCH($C60,TechData_h,0),FALSE),VLOOKUP(Z$32,OldTechData,MATCH($C60,TechData_h,0),FALSE))) ->  | AA60: =IF('UserSettings&Results'!Z61="CurrentTech",VLOOKUP(AA$32,TechData,MATCH($C60,TechData_h,0),FALSE),IF('UserSettings&Results'!Z61="TestTech",VLOOKUP(AA$32,TestData,MATCH($C60,TechData_h,0),FALSE),VLOOKUP(AA$32,OldTechData,MATCH($C60,TechData_h,0),FALSE))) ->  | AB60: =IF('UserSettings&Results'!AA61="CurrentTech",VLOOKUP(AB$32,TechData,MATCH($C60,TechData_h,0),FALSE),IF('UserSettings&Results'!AA61="TestTech",VLOOKUP(AB$32,TestData,MATCH($C60,TechData_h,0),FALSE),VLOOKUP(AB$32,OldTechData,MATCH($C60,TechData_h,0),FALSE))) ->  | AC60: =IF('UserSettings&Results'!AB61="CurrentTech",VLOOKUP(AC$32,TechData,MATCH($C60,TechData_h,0),FALSE),IF('UserSettings&Results'!AB61="TestTech",VLOOKUP(AC$32,TestData,MATCH($C60,TechData_h,0),FALSE),VLOOKUP(AC$32,OldTechData,MATCH($C60,TechData_h,0),FALSE))) ->  | AD60: =IF('UserSettings&Results'!AC61="CurrentTech",VLOOKUP(AD$32,TechData,MATCH($C60,TechData_h,0),FALSE),IF('UserSettings&Results'!AC61="TestTech",VLOOKUP(AD$32,TestData,MATCH($C60,TechData_h,0),FALSE),VLOOKUP(AD$32,OldTechData,MATCH($C60,TechData_h,0),FALSE))) ->  | AE60: =IF('UserSettings&Results'!AD61="CurrentTech",VLOOKUP(AE$32,TechData,MATCH($C60,TechData_h,0),FALSE),IF('UserSettings&Results'!AD61="TestTech",VLOOKUP(AE$32,TestData,MATCH($C60,TechData_h,0),FALSE),VLOOKUP(AE$32,OldTechData,MATCH($C60,TechData_h,0),FALSE))) -> 
C61: Balancing costs | D61: =chosencurrency&"/MWh" -> EUR/MWh | E61: =IF('UserSettings&Results'!D61="CurrentTech",VLOOKUP(E$32,TechData,MATCH($C61,TechData_h,0),FALSE),IF('UserSettings&Results'!D61="TestTech",VLOOKUP(E$32,TestData,MATCH($C61,TechData_h,0),FALSE),VLOOKUP(E$32,OldTechData,MATCH($C61,TechData_h,0),FALSE))) -> 0 | F61: =IF('UserSettings&Results'!E61="CurrentTech",VLOOKUP(F$32,TechData,MATCH($C61,TechData_h,0),FALSE),IF('UserSettings&Results'!E61="TestTech",VLOOKUP(F$32,TestData,MATCH($C61,TechData_h,0),FALSE),VLOOKUP(F$32,OldTechData,MATCH($C61,TechData_h,0),FALSE))) -> 0 | G61: =IF('UserSettings&Results'!F61="CurrentTech",VLOOKUP(G$32,TechData,MATCH($C61,TechData_h,0),FALSE),IF('UserSettings&Results'!F61="TestTech",VLOOKUP(G$32,TestData,MATCH($C61,TechData_h,0),FALSE),VLOOKUP(G$32,OldTechData,MATCH($C61,TechData_h,0),FALSE))) -> 0 | H61: =IF('UserSettings&Results'!G61="CurrentTech",VLOOKUP(H$32,TechData,MATCH($C61,TechData_h,0),FALSE),IF('UserSettings&Results'!G61="TestTech",VLOOKUP(H$32,TestData,MATCH($C61,TechData_h,0),FALSE),VLOOKUP(H$32,OldTechData,MATCH($C61,TechData_h,0),FALSE))) -> 0 | I61: =IF('UserSettings&Results'!H61="CurrentTech",VLOOKUP(I$32,TechData,MATCH($C61,TechData_h,0),FALSE),IF('UserSettings&Results'!H61="TestTech",VLOOKUP(I$32,TestData,MATCH($C61,TechData_h,0),FALSE),VLOOKUP(I$32,OldTechData,MATCH($C61,TechData_h,0),FALSE))) -> 0 | J61: =IF('UserSettings&Results'!I61="CurrentTech",VLOOKUP(J$32,TechData,MATCH($C61,TechData_h,0),FALSE),IF('UserSettings&Results'!I61="TestTech",VLOOKUP(J$32,TestData,MATCH($C61,TechData_h,0),FALSE),VLOOKUP(J$32,OldTechData,MATCH($C61,TechData_h,0),FALSE))) -> 0 | K61: =IF('UserSettings&Results'!J61="CurrentTech",VLOOKUP(K$32,TechData,MATCH($C61,TechData_h,0),FALSE),IF('UserSettings&Results'!J61="TestTech",VLOOKUP(K$32,TestData,MATCH($C61,TechData_h,0),FALSE),VLOOKUP(K$32,OldTechData,MATCH($C61,TechData_h,0),FALSE))) -> 0 | L61: =IF('UserSettings&Results'!K61="CurrentTech",VLOOKUP(L$32,TechData,MATCH($C61,TechData_h,0),FALSE),IF('UserSettings&Results'!K61="TestTech",VLOOKUP(L$32,TestData,MATCH($C61,TechData_h,0),FALSE),VLOOKUP(L$32,OldTechData,MATCH($C61,TechData_h,0),FALSE))) -> 0 | M61: =IF('UserSettings&Results'!L61="CurrentTech",VLOOKUP(M$32,TechData,MATCH($C61,TechData_h,0),FALSE),IF('UserSettings&Results'!L61="TestTech",VLOOKUP(M$32,TestData,MATCH($C61,TechData_h,0),FALSE),VLOOKUP(M$32,OldTechData,MATCH($C61,TechData_h,0),FALSE))) -> 0 | N61: =IF('UserSettings&Results'!M61="CurrentTech",VLOOKUP(N$32,TechData,MATCH($C61,TechData_h,0),FALSE),IF('UserSettings&Results'!M61="TestTech",VLOOKUP(N$32,TestData,MATCH($C61,TechData_h,0),FALSE),VLOOKUP(N$32,OldTechData,MATCH($C61,TechData_h,0),FALSE))) -> 0 | O61: =IF('UserSettings&Results'!N61="CurrentTech",VLOOKUP(O$32,TechData,MATCH($C61,TechData_h,0),FALSE),IF('UserSettings&Results'!N61="TestTech",VLOOKUP(O$32,TestData,MATCH($C61,TechData_h,0),FALSE),VLOOKUP(O$32,OldTechData,MATCH($C61,TechData_h,0),FALSE))) -> 0 | P61: =IF('UserSettings&Results'!O61="CurrentTech",VLOOKUP(P$32,TechData,MATCH($C61,TechData_h,0),FALSE),IF('UserSettings&Results'!O61="TestTech",VLOOKUP(P$32,TestData,MATCH($C61,TechData_h,0),FALSE),VLOOKUP(P$32,OldTechData,MATCH($C61,TechData_h,0),FALSE))) -> 0 | Q61: =IF('UserSettings&Results'!P61="CurrentTech",VLOOKUP(Q$32,TechData,MATCH($C61,TechData_h,0),FALSE),IF('UserSettings&Results'!P61="TestTech",VLOOKUP(Q$32,TestData,MATCH($C61,TechData_h,0),FALSE),VLOOKUP(Q$32,OldTechData,MATCH($C61,TechData_h,0),FALSE))) -> 0 | R61: =IF('UserSettings&Results'!Q61="CurrentTech",VLOOKUP(R$32,TechData,MATCH($C61,TechData_h,0),FALSE),IF('UserSettings&Results'!Q61="TestTech",VLOOKUP(R$32,TestData,MATCH($C61,TechData_h,0),FALSE),VLOOKUP(R$32,OldTechData,MATCH($C61,TechData_h,0),FALSE))) -> 0 | S61: =IF('UserSettings&Results'!R61="CurrentTech",VLOOKUP(S$32,TechData,MATCH($C61,TechData_h,0),FALSE),IF('UserSettings&Results'!R61="TestTech",VLOOKUP(S$32,TestData,MATCH($C61,TechData_h,0),FALSE),VLOOKUP(S$32,OldTechData,MATCH($C61,TechData_h,0),FALSE))) -> 0 | T61: =IF('UserSettings&Results'!S61="CurrentTech",VLOOKUP(T$32,TechData,MATCH($C61,TechData_h,0),FALSE),IF('UserSettings&Results'!S61="TestTech",VLOOKUP(T$32,TestData,MATCH($C61,TechData_h,0),FALSE),VLOOKUP(T$32,OldTechData,MATCH($C61,TechData_h,0),FALSE))) -> 0 | U61: =IF('UserSettings&Results'!T61="CurrentTech",VLOOKUP(U$32,TechData,MATCH($C61,TechData_h,0),FALSE),IF('UserSettings&Results'!T61="TestTech",VLOOKUP(U$32,TestData,MATCH($C61,TechData_h,0),FALSE),VLOOKUP(U$32,OldTechData,MATCH($C61,TechData_h,0),FALSE))) -> 0 | V61: =IF('UserSettings&Results'!U61="CurrentTech",VLOOKUP(V$32,TechData,MATCH($C61,TechData_h,0),FALSE),IF('UserSettings&Results'!U61="TestTech",VLOOKUP(V$32,TestData,MATCH($C61,TechData_h,0),FALSE),VLOOKUP(V$32,OldTechData,MATCH($C61,TechData_h,0),FALSE))) -> 0 | W61: =IF('UserSettings&Results'!V61="CurrentTech",VLOOKUP(W$32,TechData,MATCH($C61,TechData_h,0),FALSE),IF('UserSettings&Results'!V61="TestTech",VLOOKUP(W$32,TestData,MATCH($C61,TechData_h,0),FALSE),VLOOKUP(W$32,OldTechData,MATCH($C61,TechData_h,0),FALSE))) ->  | X61: =IF('UserSettings&Results'!W61="CurrentTech",VLOOKUP(X$32,TechData,MATCH($C61,TechData_h,0),FALSE),IF('UserSettings&Results'!W61="TestTech",VLOOKUP(X$32,TestData,MATCH($C61,TechData_h,0),FALSE),VLOOKUP(X$32,OldTechData,MATCH($C61,TechData_h,0),FALSE))) ->  | Y61: =IF('UserSettings&Results'!X61="CurrentTech",VLOOKUP(Y$32,TechData,MATCH($C61,TechData_h,0),FALSE),IF('UserSettings&Results'!X61="TestTech",VLOOKUP(Y$32,TestData,MATCH($C61,TechData_h,0),FALSE),VLOOKUP(Y$32,OldTechData,MATCH($C61,TechData_h,0),FALSE))) ->  | Z61: =IF('UserSettings&Results'!Y61="CurrentTech",VLOOKUP(Z$32,TechData,MATCH($C61,TechData_h,0),FALSE),IF('UserSettings&Results'!Y61="TestTech",VLOOKUP(Z$32,TestData,MATCH($C61,TechData_h,0),FALSE),VLOOKUP(Z$32,OldTechData,MATCH($C61,TechData_h,0),FALSE))) ->  | AA61: =IF('UserSettings&Results'!Z61="CurrentTech",VLOOKUP(AA$32,TechData,MATCH($C61,TechData_h,0),FALSE),IF('UserSettings&Results'!Z61="TestTech",VLOOKUP(AA$32,TestData,MATCH($C61,TechData_h,0),FALSE),VLOOKUP(AA$32,OldTechData,MATCH($C61,TechData_h,0),FALSE))) ->  | AB61: =IF('UserSettings&Results'!AA61="CurrentTech",VLOOKUP(AB$32,TechData,MATCH($C61,TechData_h,0),FALSE),IF('UserSettings&Results'!AA61="TestTech",VLOOKUP(AB$32,TestData,MATCH($C61,TechData_h,0),FALSE),VLOOKUP(AB$32,OldTechData,MATCH($C61,TechData_h,0),FALSE))) ->  | AC61: =IF('UserSettings&Results'!AB61="CurrentTech",VLOOKUP(AC$32,TechData,MATCH($C61,TechData_h,0),FALSE),IF('UserSettings&Results'!AB61="TestTech",VLOOKUP(AC$32,TestData,MATCH($C61,TechData_h,0),FALSE),VLOOKUP(AC$32,OldTechData,MATCH($C61,TechData_h,0),FALSE))) ->  | AD61: =IF('UserSettings&Results'!AC61="CurrentTech",VLOOKUP(AD$32,TechData,MATCH($C61,TechData_h,0),FALSE),IF('UserSettings&Results'!AC61="TestTech",VLOOKUP(AD$32,TestData,MATCH($C61,TechData_h,0),FALSE),VLOOKUP(AD$32,OldTechData,MATCH($C61,TechData_h,0),FALSE))) ->  | AE61: =IF('UserSettings&Results'!AD61="CurrentTech",VLOOKUP(AE$32,TechData,MATCH($C61,TechData_h,0),FALSE),IF('UserSettings&Results'!AD61="TestTech",VLOOKUP(AE$32,TestData,MATCH($C61,TechData_h,0),FALSE),VLOOKUP(AE$32,OldTechData,MATCH($C61,TechData_h,0),FALSE))) -> 
C62: Fuel price | D62: =chosencurrency&"/GJ fuel" -> EUR/GJ fuel | E62: =IFERROR(IF(DiscountPrices="YES",NPV(DiscountRate,OFFSET(FuelPrices!$C$42,MATCH(E34,FuelPrices_v,0)-1,MATCH(E44 &"-" &E37,FuelPrices_h,0)-1,Calculation!E$40,1))/E$42,VLOOKUP(E34,FuelPrices,MATCH(E44 &"-" &E37,FuelPrices_h,0),FALSE)),0) -> 0 | F62: =IFERROR(IF(DiscountPrices="YES",NPV(DiscountRate,OFFSET(FuelPrices!$C$42,MATCH(F34,FuelPrices_v,0)-1,MATCH(F44 &"-" &F37,FuelPrices_h,0)-1,Calculation!F$40,1))/F$42,VLOOKUP(F34,FuelPrices,MATCH(F44 &"-" &F37,FuelPrices_h,0),FALSE)),0) -> 0 | G62: =IFERROR(IF(DiscountPrices="YES",NPV(DiscountRate,OFFSET(FuelPrices!$C$42,MATCH(G34,FuelPrices_v,0)-1,MATCH(G44 &"-" &G37,FuelPrices_h,0)-1,Calculation!G$40,1))/G$42,VLOOKUP(G34,FuelPrices,MATCH(G44 &"-" &G37,FuelPrices_h,0),FALSE)),0) -> 0 | H62: =IFERROR(IF(DiscountPrices="YES",NPV(DiscountRate,OFFSET(FuelPrices!$C$42,MATCH(H34,FuelPrices_v,0)-1,MATCH(H44 &"-" &H37,FuelPrices_h,0)-1,Calculation!H$40,1))/H$42,VLOOKUP(H34,FuelPrices,MATCH(H44 &"-" &H37,FuelPrices_h,0),FALSE)),0) -> 0 | I62: =IFERROR(IF(DiscountPrices="YES",NPV(DiscountRate,OFFSET(FuelPrices!$C$42,MATCH(I34,FuelPrices_v,0)-1,MATCH(I44 &"-" &I37,FuelPrices_h,0)-1,Calculation!I$40,1))/I$42,VLOOKUP(I34,FuelPrices,MATCH(I44 &"-" &I37,FuelPrices_h,0),FALSE)),0) -> 0 | J62: =IFERROR(IF(DiscountPrices="YES",NPV(DiscountRate,OFFSET(FuelPrices!$C$42,MATCH(J34,FuelPrices_v,0)-1,MATCH(J44 &"-" &J37,FuelPrices_h,0)-1,Calculation!J$40,1))/J$42,VLOOKUP(J34,FuelPrices,MATCH(J44 &"-" &J37,FuelPrices_h,0),FALSE)),0) -> 0 | K62: =IFERROR(IF(DiscountPrices="YES",NPV(DiscountRate,OFFSET(FuelPrices!$C$42,MATCH(K34,FuelPrices_v,0)-1,MATCH(K44 &"-" &K37,FuelPrices_h,0)-1,Calculation!K$40,1))/K$42,VLOOKUP(K34,FuelPrices,MATCH(K44 &"-" &K37,FuelPrices_h,0),FALSE)),0) -> 0 | L62: =IFERROR(IF(DiscountPrices="YES",NPV(DiscountRate,OFFSET(FuelPrices!$C$42,MATCH(L34,FuelPrices_v,0)-1,MATCH(L44 &"-" &L37,FuelPrices_h,0)-1,Calculation!L$40,1))/L$42,VLOOKUP(L34,FuelPrices,MATCH(L44 &"-" &L37,FuelPrices_h,0),FALSE)),0) -> 10.78912987 | M62: =IFERROR(IF(DiscountPrices="YES",NPV(DiscountRate,OFFSET(FuelPrices!$C$42,MATCH(M34,FuelPrices_v,0)-1,MATCH(M44 &"-" &M37,FuelPrices_h,0)-1,Calculation!M$40,1))/M$42,VLOOKUP(M34,FuelPrices,MATCH(M44 &"-" &M37,FuelPrices_h,0),FALSE)),0) -> 8.221472246 | N62: =IFERROR(IF(DiscountPrices="YES",NPV(DiscountRate,OFFSET(FuelPrices!$C$42,MATCH(N34,FuelPrices_v,0)-1,MATCH(N44 &"-" &N37,FuelPrices_h,0)-1,Calculation!N$40,1))/N$42,VLOOKUP(N34,FuelPrices,MATCH(N44 &"-" &N37,FuelPrices_h,0),FALSE)),0) -> 8.160818462 | O62: =IFERROR(IF(DiscountPrices="YES",NPV(DiscountRate,OFFSET(FuelPrices!$C$42,MATCH(O34,FuelPrices_v,0)-1,MATCH(O44 &"-" &O37,FuelPrices_h,0)-1,Calculation!O$40,1))/O$42,VLOOKUP(O34,FuelPrices,MATCH(O44 &"-" &O37,FuelPrices_h,0),FALSE)),0) -> 8.160818462 | P62: =IFERROR(IF(DiscountPrices="YES",NPV(DiscountRate,OFFSET(FuelPrices!$C$42,MATCH(P34,FuelPrices_v,0)-1,MATCH(P44 &"-" &P37,FuelPrices_h,0)-1,Calculation!P$40,1))/P$42,VLOOKUP(P34,FuelPrices,MATCH(P44 &"-" &P37,FuelPrices_h,0),FALSE)),0) -> 3.394327276 | Q62: =IFERROR(IF(DiscountPrices="YES",NPV(DiscountRate,OFFSET(FuelPrices!$C$42,MATCH(Q34,FuelPrices_v,0)-1,MATCH(Q44 &"-" &Q37,FuelPrices_h,0)-1,Calculation!Q$40,1))/Q$42,VLOOKUP(Q34,FuelPrices,MATCH(Q44 &"-" &Q37,FuelPrices_h,0),FALSE)),0) -> 3.517316437 | R62: =IFERROR(IF(DiscountPrices="YES",NPV(DiscountRate,OFFSET(FuelPrices!$C$42,MATCH(R34,FuelPrices_v,0)-1,MATCH(R44 &"-" &R37,FuelPrices_h,0)-1,Calculation!R$40,1))/R$42,VLOOKUP(R34,FuelPrices,MATCH(R44 &"-" &R37,FuelPrices_h,0),FALSE)),0) -> 9.168116329 | S62: =IFERROR(IF(DiscountPrices="YES",NPV(DiscountRate,OFFSET(FuelPrices!$C$42,MATCH(S34,FuelPrices_v,0)-1,MATCH(S44 &"-" &S37,FuelPrices_h,0)-1,Calculation!S$40,1))/S$42,VLOOKUP(S34,FuelPrices,MATCH(S44 &"-" &S37,FuelPrices_h,0),FALSE)),0) -> 1.844651496 | T62: =IFERROR(IF(DiscountPrices="YES",NPV(DiscountRate,OFFSET(FuelPrices!$C$42,MATCH(T34,FuelPrices_v,0)-1,MATCH(T44 &"-" &T37,FuelPrices_h,0)-1,Calculation!T$40,1))/T$42,VLOOKUP(T34,FuelPrices,MATCH(T44 &"-" &T37,FuelPrices_h,0),FALSE)),0) -> 3.320374744 | U62: =IFERROR(IF(DiscountPrices="YES",NPV(DiscountRate,OFFSET(FuelPrices!$C$42,MATCH(U34,FuelPrices_v,0)-1,MATCH(U44 &"-" &U37,FuelPrices_h,0)-1,Calculation!U$40,1))/U$42,VLOOKUP(U34,FuelPrices,MATCH(U44 &"-" &U37,FuelPrices_h,0),FALSE)),0) -> 9.240816915 | V62: =IFERROR(IF(DiscountPrices="YES",NPV(DiscountRate,OFFSET(FuelPrices!$C$42,MATCH(V34,FuelPrices_v,0)-1,MATCH(V44 &"-" &V37,FuelPrices_h,0)-1,Calculation!V$40,1))/V$42,VLOOKUP(V34,FuelPrices,MATCH(V44 &"-" &V37,FuelPrices_h,0),FALSE)),0) -> 0 | W62: =IFERROR(IF(DiscountPrices="YES",NPV(DiscountRate,OFFSET(FuelPrices!$C$42,MATCH(W34,FuelPrices_v,0)-1,MATCH(W44 &"-" &W37,FuelPrices_h,0)-1,Calculation!W$40,1))/W$42,VLOOKUP(W34,FuelPrices,MATCH(W44 &"-" &W37,FuelPrices_h,0),FALSE)),0) -> 0 | X62: =IFERROR(IF(DiscountPrices="YES",NPV(DiscountRate,OFFSET(FuelPrices!$C$42,MATCH(X34,FuelPrices_v,0)-1,MATCH(X44 &"-" &X37,FuelPrices_h,0)-1,Calculation!X$40,1))/X$42,VLOOKUP(X34,FuelPrices,MATCH(X44 &"-" &X37,FuelPrices_h,0),FALSE)),0) -> 0 | Y62: =IFERROR(IF(DiscountPrices="YES",NPV(DiscountRate,OFFSET(FuelPrices!$C$42,MATCH(Y34,FuelPrices_v,0)-1,MATCH(Y44 &"-" &Y37,FuelPrices_h,0)-1,Calculation!Y$40,1))/Y$42,VLOOKUP(Y34,FuelPrices,MATCH(Y44 &"-" &Y37,FuelPrices_h,0),FALSE)),0) -> 0 | Z62: =IFERROR(IF(DiscountPrices="YES",NPV(DiscountRate,OFFSET(FuelPrices!$C$42,MATCH(Z34,FuelPrices_v,0)-1,MATCH(Z44 &"-" &Z37,FuelPrices_h,0)-1,Calculation!Z$40,1))/Z$42,VLOOKUP(Z34,FuelPrices,MATCH(Z44 &"-" &Z37,FuelPrices_h,0),FALSE)),0) -> 0 | AA62: =IFERROR(IF(DiscountPrices="YES",NPV(DiscountRate,OFFSET(FuelPrices!$C$42,MATCH(AA34,FuelPrices_v,0)-1,MATCH(AA44 &"-" &AA37,FuelPrices_h,0)-1,Calculation!AA$40,1))/AA$42,VLOOKUP(AA34,FuelPrices,MATCH(AA44 &"-" &AA37,FuelPrices_h,0),FALSE)),0) -> 0 | AB62: =IFERROR(IF(DiscountPrices="YES",NPV(DiscountRate,OFFSET(FuelPrices!$C$42,MATCH(AB34,FuelPrices_v,0)-1,MATCH(AB44 &"-" &AB37,FuelPrices_h,0)-1,Calculation!AB$40,1))/AB$42,VLOOKUP(AB34,FuelPrices,MATCH(AB44 &"-" &AB37,FuelPrices_h,0),FALSE)),0) -> 0 | AC62: =IFERROR(IF(DiscountPrices="YES",NPV(DiscountRate,OFFSET(FuelPrices!$C$42,MATCH(AC34,FuelPrices_v,0)-1,MATCH(AC44 &"-" &AC37,FuelPrices_h,0)-1,Calculation!AC$40,1))/AC$42,VLOOKUP(AC34,FuelPrices,MATCH(AC44 &"-" &AC37,FuelPrices_h,0),FALSE)),0) -> 0 | AD62: =IFERROR(IF(DiscountPrices="YES",NPV(DiscountRate,OFFSET(FuelPrices!$C$42,MATCH(AD34,FuelPrices_v,0)-1,MATCH(AD44 &"-" &AD37,FuelPrices_h,0)-1,Calculation!AD$40,1))/AD$42,VLOOKUP(AD34,FuelPrices,MATCH(AD44 &"-" &AD37,FuelPrices_h,0),FALSE)),0) -> 0 | AE62: =IFERROR(IF(DiscountPrices="YES",NPV(DiscountRate,OFFSET(FuelPrices!$C$42,MATCH(AE34,FuelPrices_v,0)-1,MATCH(AE44 &"-" &AE37,FuelPrices_h,0)-1,Calculation!AE$40,1))/AE$42,VLOOKUP(AE34,FuelPrices,MATCH(AE44 &"-" &AE37,FuelPrices_h,0),FALSE)),0) -> 0
C63: CO2-price | D63: =chosencurrency&"/ton" -> EUR/ton | E63: =IF(DiscountPrices="YES",NPV(DiscountRate,OFFSET(EmissionPrices!$C$38,MATCH(E34,EmissionPrices_v,0)-1,MATCH($C63,EmissionPrices_h,0)-1,E$40,1))/E$42,VLOOKUP(E34,EmissionPrices,MATCH($C63,EmissionPrices_h,0),FALSE)) -> 105.4955198 | F63: =IF(DiscountPrices="YES",NPV(DiscountRate,OFFSET(EmissionPrices!$C$38,MATCH(F34,EmissionPrices_v,0)-1,MATCH($C63,EmissionPrices_h,0)-1,F$40,1))/F$42,VLOOKUP(F34,EmissionPrices,MATCH($C63,EmissionPrices_h,0),FALSE)) -> 105.4955198 | G63: =IF(DiscountPrices="YES",NPV(DiscountRate,OFFSET(EmissionPrices!$C$38,MATCH(G34,EmissionPrices_v,0)-1,MATCH($C63,EmissionPrices_h,0)-1,G$40,1))/G$42,VLOOKUP(G34,EmissionPrices,MATCH($C63,EmissionPrices_h,0),FALSE)) -> 105.4955198 | H63: =IF(DiscountPrices="YES",NPV(DiscountRate,OFFSET(EmissionPrices!$C$38,MATCH(H34,EmissionPrices_v,0)-1,MATCH($C63,EmissionPrices_h,0)-1,H$40,1))/H$42,VLOOKUP(H34,EmissionPrices,MATCH($C63,EmissionPrices_h,0),FALSE)) -> 115.8992445 | I63: =IF(DiscountPrices="YES",NPV(DiscountRate,OFFSET(EmissionPrices!$C$38,MATCH(I34,EmissionPrices_v,0)-1,MATCH($C63,EmissionPrices_h,0)-1,I$40,1))/I$42,VLOOKUP(I34,EmissionPrices,MATCH($C63,EmissionPrices_h,0),FALSE)) -> 115.8992445 | J63: =IF(DiscountPrices="YES",NPV(DiscountRate,OFFSET(EmissionPrices!$C$38,MATCH(J34,EmissionPrices_v,0)-1,MATCH($C63,EmissionPrices_h,0)-1,J$40,1))/J$42,VLOOKUP(J34,EmissionPrices,MATCH($C63,EmissionPrices_h,0),FALSE)) -> 105.4955198 | K63: =IF(DiscountPrices="YES",NPV(DiscountRate,OFFSET(EmissionPrices!$C$38,MATCH(K34,EmissionPrices_v,0)-1,MATCH($C63,EmissionPrices_h,0)-1,K$40,1))/K$42,VLOOKUP(K34,EmissionPrices,MATCH($C63,EmissionPrices_h,0),FALSE)) -> 115.8992445 | L63: =IF(DiscountPrices="YES",NPV(DiscountRate,OFFSET(EmissionPrices!$C$38,MATCH(L34,EmissionPrices_v,0)-1,MATCH($C63,EmissionPrices_h,0)-1,L$40,1))/L$42,VLOOKUP(L34,EmissionPrices,MATCH($C63,EmissionPrices_h,0),FALSE)) -> 96.80368969 | M63: =IF(DiscountPrices="YES",NPV(DiscountRate,OFFSET(EmissionPrices!$C$38,MATCH(M34,EmissionPrices_v,0)-1,MATCH($C63,EmissionPrices_h,0)-1,M$40,1))/M$42,VLOOKUP(M34,EmissionPrices,MATCH($C63,EmissionPrices_h,0),FALSE)) -> 96.80368969 | N63: =IF(DiscountPrices="YES",NPV(DiscountRate,OFFSET(EmissionPrices!$C$38,MATCH(N34,EmissionPrices_v,0)-1,MATCH($C63,EmissionPrices_h,0)-1,N$40,1))/N$42,VLOOKUP(N34,EmissionPrices,MATCH($C63,EmissionPrices_h,0),FALSE)) -> 79.10963834 | O63: =IF(DiscountPrices="YES",NPV(DiscountRate,OFFSET(EmissionPrices!$C$38,MATCH(O34,EmissionPrices_v,0)-1,MATCH($C63,EmissionPrices_h,0)-1,O$40,1))/O$42,VLOOKUP(O34,EmissionPrices,MATCH($C63,EmissionPrices_h,0),FALSE)) -> 79.10963834 | P63: =IF(DiscountPrices="YES",NPV(DiscountRate,OFFSET(EmissionPrices!$C$38,MATCH(P34,EmissionPrices_v,0)-1,MATCH($C63,EmissionPrices_h,0)-1,P$40,1))/P$42,VLOOKUP(P34,EmissionPrices,MATCH($C63,EmissionPrices_h,0),FALSE)) -> 96.80368969 | Q63: =IF(DiscountPrices="YES",NPV(DiscountRate,OFFSET(EmissionPrices!$C$38,MATCH(Q34,EmissionPrices_v,0)-1,MATCH($C63,EmissionPrices_h,0)-1,Q$40,1))/Q$42,VLOOKUP(Q34,EmissionPrices,MATCH($C63,EmissionPrices_h,0),FALSE)) -> 79.10963834 | R63: =IF(DiscountPrices="YES",NPV(DiscountRate,OFFSET(EmissionPrices!$C$38,MATCH(R34,EmissionPrices_v,0)-1,MATCH($C63,EmissionPrices_h,0)-1,R$40,1))/R$42,VLOOKUP(R34,EmissionPrices,MATCH($C63,EmissionPrices_h,0),FALSE)) -> 96.80368969 | S63: =IF(DiscountPrices="YES",NPV(DiscountRate,OFFSET(EmissionPrices!$C$38,MATCH(S34,EmissionPrices_v,0)-1,MATCH($C63,EmissionPrices_h,0)-1,S$40,1))/S$42,VLOOKUP(S34,EmissionPrices,MATCH($C63,EmissionPrices_h,0),FALSE)) -> 123.1417478 | T63: =IF(DiscountPrices="YES",NPV(DiscountRate,OFFSET(EmissionPrices!$C$38,MATCH(T34,EmissionPrices_v,0)-1,MATCH($C63,EmissionPrices_h,0)-1,T$40,1))/T$42,VLOOKUP(T34,EmissionPrices,MATCH($C63,EmissionPrices_h,0),FALSE)) -> 115.8992445 | U63: =IF(DiscountPrices="YES",NPV(DiscountRate,OFFSET(EmissionPrices!$C$38,MATCH(U34,EmissionPrices_v,0)-1,MATCH($C63,EmissionPrices_h,0)-1,U$40,1))/U$42,VLOOKUP(U34,EmissionPrices,MATCH($C63,EmissionPrices_h,0),FALSE)) -> 105.4955198 | V63: =IF(DiscountPrices="YES",NPV(DiscountRate,OFFSET(EmissionPrices!$C$38,MATCH(V34,EmissionPrices_v,0)-1,MATCH($C63,EmissionPrices_h,0)-1,V$40,1))/V$42,VLOOKUP(V34,EmissionPrices,MATCH($C63,EmissionPrices_h,0),FALSE)) -> 105.4955198 | W63: =IF(DiscountPrices="YES",NPV(DiscountRate,OFFSET(EmissionPrices!$C$38,MATCH(W34,EmissionPrices_v,0)-1,MATCH($C63,EmissionPrices_h,0)-1,W$40,1))/W$42,VLOOKUP(W34,EmissionPrices,MATCH($C63,EmissionPrices_h,0),FALSE)) ->  | X63: =IF(DiscountPrices="YES",NPV(DiscountRate,OFFSET(EmissionPrices!$C$38,MATCH(X34,EmissionPrices_v,0)-1,MATCH($C63,EmissionPrices_h,0)-1,X$40,1))/X$42,VLOOKUP(X34,EmissionPrices,MATCH($C63,EmissionPrices_h,0),FALSE)) ->  | Y63: =IF(DiscountPrices="YES",NPV(DiscountRate,OFFSET(EmissionPrices!$C$38,MATCH(Y34,EmissionPrices_v,0)-1,MATCH($C63,EmissionPrices_h,0)-1,Y$40,1))/Y$42,VLOOKUP(Y34,EmissionPrices,MATCH($C63,EmissionPrices_h,0),FALSE)) ->  | Z63: =IF(DiscountPrices="YES",NPV(DiscountRate,OFFSET(EmissionPrices!$C$38,MATCH(Z34,EmissionPrices_v,0)-1,MATCH($C63,EmissionPrices_h,0)-1,Z$40,1))/Z$42,VLOOKUP(Z34,EmissionPrices,MATCH($C63,EmissionPrices_h,0),FALSE)) ->  | AA63: =IF(DiscountPrices="YES",NPV(DiscountRate,OFFSET(EmissionPrices!$C$38,MATCH(AA34,EmissionPrices_v,0)-1,MATCH($C63,EmissionPrices_h,0)-1,AA$40,1))/AA$42,VLOOKUP(AA34,EmissionPrices,MATCH($C63,EmissionPrices_h,0),FALSE)) ->  | AB63: =IF(DiscountPrices="YES",NPV(DiscountRate,OFFSET(EmissionPrices!$C$38,MATCH(AB34,EmissionPrices_v,0)-1,MATCH($C63,EmissionPrices_h,0)-1,AB$40,1))/AB$42,VLOOKUP(AB34,EmissionPrices,MATCH($C63,EmissionPrices_h,0),FALSE)) ->  | AC63: =IF(DiscountPrices="YES",NPV(DiscountRate,OFFSET(EmissionPrices!$C$38,MATCH(AC34,EmissionPrices_v,0)-1,MATCH($C63,EmissionPrices_h,0)-1,AC$40,1))/AC$42,VLOOKUP(AC34,EmissionPrices,MATCH($C63,EmissionPrices_h,0),FALSE)) ->  | AD63: =IF(DiscountPrices="YES",NPV(DiscountRate,OFFSET(EmissionPrices!$C$38,MATCH(AD34,EmissionPrices_v,0)-1,MATCH($C63,EmissionPrices_h,0)-1,AD$40,1))/AD$42,VLOOKUP(AD34,EmissionPrices,MATCH($C63,EmissionPrices_h,0),FALSE)) ->  | AE63: =IF(DiscountPrices="YES",NPV(DiscountRate,OFFSET(EmissionPrices!$C$38,MATCH(AE34,EmissionPrices_v,0)-1,MATCH($C63,EmissionPrices_h,0)-1,AE$40,1))/AE$42,VLOOKUP(AE34,EmissionPrices,MATCH($C63,EmissionPrices_h,0),FALSE)) -> 
C64: CO2-price | D64: =chosencurrency&"/GJ fuel" -> EUR/GJ fuel | E64: =E63*E45/1000 -> 0 | F64: =F63*F45/1000 -> 0 | G64: 0 | H64: 0 | I64: 0 | J64: 0 | K64: 0 | L64: 0 | M64: 0 | N64: 0 | O64: 0 | P64: 9.128587937 | Q64: 7.460038896 | R64: 5.517810312 | S64: 0 | T64: 10.92929875 | U64: 6.013244627 | V64: 0
C65: Fuel + CO2 price | D65: =chosencurrency&"/GJ fuel" -> EUR/GJ fuel | E65: =E62+E64 -> 0 | F65: =F62+F64 -> 0 | G65: 0 | H65: 0 | I65: 0 | J65: 0 | K65: 0 | L65: 10.78912987 | M65: 8.221472246 | N65: 8.160818462 | O65: 8.160818462 | P65: 12.52291521 | Q65: 10.97735533 | R65: 14.68592664 | S65: 1.844651496 | T65: 14.2496735 | U65: 15.25406154 | V65: 0
C66: CH4-price | D66: =chosencurrency&"/GJ fuel" -> EUR/GJ fuel | E66: =IF('UserSettings&Results'!$E$40="YES",E$63*E46/1000,0) -> 0 | F66: =IF('UserSettings&Results'!$E$40="YES",F$63*F46/1000,0) -> 0 | G66: =IF('UserSettings&Results'!$E$40="YES",G$63*G46/1000,0) -> 0 | H66: =IF('UserSettings&Results'!$E$40="YES",H$63*H46/1000,0) -> 0 | I66: =IF('UserSettings&Results'!$E$40="YES",I$63*I46/1000,0) -> 0 | J66: =IF('UserSettings&Results'!$E$40="YES",J$63*J46/1000,0) -> 0 | K66: =IF('UserSettings&Results'!$E$40="YES",K$63*K46/1000,0) -> 0 | L66: =IF('UserSettings&Results'!$E$40="YES",L$63*L46/1000,0) -> 0 | M66: =IF('UserSettings&Results'!$E$40="YES",M$63*M46/1000,0) -> 0.003676120116 | N66: =IF('UserSettings&Results'!$E$40="YES",N$63*N46/1000,0) -> 0.0009888704793 | O66: =IF('UserSettings&Results'!$E$40="YES",O$63*O46/1000,0) -> 0.006130996971 | P66: =IF('UserSettings&Results'!$E$40="YES",P$63*P46/1000,0) -> 0.003630138363 | Q66: =IF('UserSettings&Results'!$E$40="YES",Q$63*Q46/1000,0) -> 0.002966611438 | R66: =IF('UserSettings&Results'!$E$40="YES",R$63*R46/1000,0) -> 0.003630138363 | S66: =IF('UserSettings&Results'!$E$40="YES",S$63*S46/1000,0) -> 0 | T66: =IF('UserSettings&Results'!$E$40="YES",T$63*T46/1000,0) -> 0.004346221667 | U66: =IF('UserSettings&Results'!$E$40="YES",U$63*U46/1000,0) -> 0.005274775989 | V66: =IF('UserSettings&Results'!$E$40="YES",V$63*V46/1000,0) -> 0 | W66: =IF('UserSettings&Results'!$E$40="YES",W$63*W46/1000,0) ->  | X66: =IF('UserSettings&Results'!$E$40="YES",X$63*X46/1000,0) ->  | Y66: =IF('UserSettings&Results'!$E$40="YES",Y$63*Y46/1000,0) ->  | Z66: =IF('UserSettings&Results'!$E$40="YES",Z$63*Z46/1000,0) ->  | AA66: =IF('UserSettings&Results'!$E$40="YES",AA$63*AA46/1000,0) ->  | AB66: =IF('UserSettings&Results'!$E$40="YES",AB$63*AB46/1000,0) ->  | AC66: =IF('UserSettings&Results'!$E$40="YES",AC$63*AC46/1000,0) ->  | AD66: =IF('UserSettings&Results'!$E$40="YES",AD$63*AD46/1000,0) ->  | AE66: =IF('UserSettings&Results'!$E$40="YES",AE$63*AE46/1000,0) -> 
C67: N2O-price | D67: =chosencurrency&"/GJ fuel" -> EUR/GJ fuel | E67: =IF('UserSettings&Results'!$E$40="YES",E$63*E47/1000,0) -> 0 | F67: =IF('UserSettings&Results'!$E$40="YES",F$63*F47/1000,0) -> 0 | G67: =IF('UserSettings&Results'!$E$40="YES",G$63*G47/1000,0) -> 0 | H67: =IF('UserSettings&Results'!$E$40="YES",H$63*H47/1000,0) -> 0 | I67: =IF('UserSettings&Results'!$E$40="YES",I$63*I47/1000,0) -> 0 | J67: =IF('UserSettings&Results'!$E$40="YES",J$63*J47/1000,0) -> 0 | K67: =IF('UserSettings&Results'!$E$40="YES",K$63*K47/1000,0) -> 0 | L67: =IF('UserSettings&Results'!$E$40="YES",L$63*L47/1000,0) -> 0.02884749953 | M67: =IF('UserSettings&Results'!$E$40="YES",M$63*M47/1000,0) -> 0.01499146855 | N67: =IF('UserSettings&Results'!$E$40="YES",N$63*N47/1000,0) -> 0.1178733611 | O67: =IF('UserSettings&Results'!$E$40="YES",O$63*O47/1000,0) -> 0.1414480334 | P67: =IF('UserSettings&Results'!$E$40="YES",P$63*P47/1000,0) -> 0.02307799962 | Q67: =IF('UserSettings&Results'!$E$40="YES",Q$63*Q47/1000,0) -> 0.01885973778 | R67: =IF('UserSettings&Results'!$E$40="YES",R$63*R47/1000,0) -> 0.02884749953 | S67: =IF('UserSettings&Results'!$E$40="YES",S$63*S47/1000,0) -> 0 | T67: =IF('UserSettings&Results'!$E$40="YES",T$63*T47/1000,0) -> 0.02763037988 | U67: =IF('UserSettings&Results'!$E$40="YES",U$63*U47/1000,0) -> 0.03143766489 | V67: =IF('UserSettings&Results'!$E$40="YES",V$63*V47/1000,0) -> 0 | W67: =IF('UserSettings&Results'!$E$40="YES",W$63*W47/1000,0) ->  | X67: =IF('UserSettings&Results'!$E$40="YES",X$63*X47/1000,0) ->  | Y67: =IF('UserSettings&Results'!$E$40="YES",Y$63*Y47/1000,0) ->  | Z67: =IF('UserSettings&Results'!$E$40="YES",Z$63*Z47/1000,0) ->  | AA67: =IF('UserSettings&Results'!$E$40="YES",AA$63*AA47/1000,0) ->  | AB67: =IF('UserSettings&Results'!$E$40="YES",AB$63*AB47/1000,0) ->  | AC67: =IF('UserSettings&Results'!$E$40="YES",AC$63*AC47/1000,0) ->  | AD67: =IF('UserSettings&Results'!$E$40="YES",AD$63*AD47/1000,0) ->  | AE67: =IF('UserSettings&Results'!$E$40="YES",AE$63*AE47/1000,0) -> 
C68: SO2-price | D68: =chosencurrency&"/kg" -> EUR/kg | E68: =IF('UserSettings&Results'!$E$40="YES",IF(DiscountPrices="YES",NPV(DiscountRate,OFFSET(EmissionPrices!$C$38,MATCH(E34,EmissionPrices_v,0)-1,MATCH($C68,EmissionPrices_h,0)-1,E$40,1))/E$42,VLOOKUP(E34,EmissionPrices,MATCH($C68,EmissionPrices_h,0),FALSE)),0) -> 17.53861859 | F68: =IF('UserSettings&Results'!$E$40="YES",IF(DiscountPrices="YES",NPV(DiscountRate,OFFSET(EmissionPrices!$C$38,MATCH(F34,EmissionPrices_v,0)-1,MATCH($C68,EmissionPrices_h,0)-1,F$40,1))/F$42,VLOOKUP(F34,EmissionPrices,MATCH($C68,EmissionPrices_h,0),FALSE)),0) -> 17.53861859 | G68: =IF('UserSettings&Results'!$E$40="YES",IF(DiscountPrices="YES",NPV(DiscountRate,OFFSET(EmissionPrices!$C$38,MATCH(G34,EmissionPrices_v,0)-1,MATCH($C68,EmissionPrices_h,0)-1,G$40,1))/G$42,VLOOKUP(G34,EmissionPrices,MATCH($C68,EmissionPrices_h,0),FALSE)),0) -> 17.53861859 | H68: =IF('UserSettings&Results'!$E$40="YES",IF(DiscountPrices="YES",NPV(DiscountRate,OFFSET(EmissionPrices!$C$38,MATCH(H34,EmissionPrices_v,0)-1,MATCH($C68,EmissionPrices_h,0)-1,H$40,1))/H$42,VLOOKUP(H34,EmissionPrices,MATCH($C68,EmissionPrices_h,0),FALSE)),0) -> 17.53861859 | I68: =IF('UserSettings&Results'!$E$40="YES",IF(DiscountPrices="YES",NPV(DiscountRate,OFFSET(EmissionPrices!$C$38,MATCH(I34,EmissionPrices_v,0)-1,MATCH($C68,EmissionPrices_h,0)-1,I$40,1))/I$42,VLOOKUP(I34,EmissionPrices,MATCH($C68,EmissionPrices_h,0),FALSE)),0) -> 17.53861859 | J68: =IF('UserSettings&Results'!$E$40="YES",IF(DiscountPrices="YES",NPV(DiscountRate,OFFSET(EmissionPrices!$C$38,MATCH(J34,EmissionPrices_v,0)-1,MATCH($C68,EmissionPrices_h,0)-1,J$40,1))/J$42,VLOOKUP(J34,EmissionPrices,MATCH($C68,EmissionPrices_h,0),FALSE)),0) -> 17.53861859 | K68: =IF('UserSettings&Results'!$E$40="YES",IF(DiscountPrices="YES",NPV(DiscountRate,OFFSET(EmissionPrices!$C$38,MATCH(K34,EmissionPrices_v,0)-1,MATCH($C68,EmissionPrices_h,0)-1,K$40,1))/K$42,VLOOKUP(K34,EmissionPrices,MATCH($C68,EmissionPrices_h,0),FALSE)),0) -> 17.53861859 | L68: =IF('UserSettings&Results'!$E$40="YES",IF(DiscountPrices="YES",NPV(DiscountRate,OFFSET(EmissionPrices!$C$38,MATCH(L34,EmissionPrices_v,0)-1,MATCH($C68,EmissionPrices_h,0)-1,L$40,1))/L$42,VLOOKUP(L34,EmissionPrices,MATCH($C68,EmissionPrices_h,0),FALSE)),0) -> 17.53861859 | M68: =IF('UserSettings&Results'!$E$40="YES",IF(DiscountPrices="YES",NPV(DiscountRate,OFFSET(EmissionPrices!$C$38,MATCH(M34,EmissionPrices_v,0)-1,MATCH($C68,EmissionPrices_h,0)-1,M$40,1))/M$42,VLOOKUP(M34,EmissionPrices,MATCH($C68,EmissionPrices_h,0),FALSE)),0) -> 17.53861859 | N68: =IF('UserSettings&Results'!$E$40="YES",IF(DiscountPrices="YES",NPV(DiscountRate,OFFSET(EmissionPrices!$C$38,MATCH(N34,EmissionPrices_v,0)-1,MATCH($C68,EmissionPrices_h,0)-1,N$40,1))/N$42,VLOOKUP(N34,EmissionPrices,MATCH($C68,EmissionPrices_h,0),FALSE)),0) -> 17.53861859 | O68: =IF('UserSettings&Results'!$E$40="YES",IF(DiscountPrices="YES",NPV(DiscountRate,OFFSET(EmissionPrices!$C$38,MATCH(O34,EmissionPrices_v,0)-1,MATCH($C68,EmissionPrices_h,0)-1,O$40,1))/O$42,VLOOKUP(O34,EmissionPrices,MATCH($C68,EmissionPrices_h,0),FALSE)),0) -> 17.53861859 | P68: =IF('UserSettings&Results'!$E$40="YES",IF(DiscountPrices="YES",NPV(DiscountRate,OFFSET(EmissionPrices!$C$38,MATCH(P34,EmissionPrices_v,0)-1,MATCH($C68,EmissionPrices_h,0)-1,P$40,1))/P$42,VLOOKUP(P34,EmissionPrices,MATCH($C68,EmissionPrices_h,0),FALSE)),0) -> 17.53861859 | Q68: =IF('UserSettings&Results'!$E$40="YES",IF(DiscountPrices="YES",NPV(DiscountRate,OFFSET(EmissionPrices!$C$38,MATCH(Q34,EmissionPrices_v,0)-1,MATCH($C68,EmissionPrices_h,0)-1,Q$40,1))/Q$42,VLOOKUP(Q34,EmissionPrices,MATCH($C68,EmissionPrices_h,0),FALSE)),0) -> 17.53861859 | R68: =IF('UserSettings&Results'!$E$40="YES",IF(DiscountPrices="YES",NPV(DiscountRate,OFFSET(EmissionPrices!$C$38,MATCH(R34,EmissionPrices_v,0)-1,MATCH($C68,EmissionPrices_h,0)-1,R$40,1))/R$42,VLOOKUP(R34,EmissionPrices,MATCH($C68,EmissionPrices_h,0),FALSE)),0) -> 17.53861859 | S68: =IF('UserSettings&Results'!$E$40="YES",IF(DiscountPrices="YES",NPV(DiscountRate,OFFSET(EmissionPrices!$C$38,MATCH(S34,EmissionPrices_v,0)-1,MATCH($C68,EmissionPrices_h,0)-1,S$40,1))/S$42,VLOOKUP(S34,EmissionPrices,MATCH($C68,EmissionPrices_h,0),FALSE)),0) -> 17.7979367 | T68: =IF('UserSettings&Results'!$E$40="YES",IF(DiscountPrices="YES",NPV(DiscountRate,OFFSET(EmissionPrices!$C$38,MATCH(T34,EmissionPrices_v,0)-1,MATCH($C68,EmissionPrices_h,0)-1,T$40,1))/T$42,VLOOKUP(T34,EmissionPrices,MATCH($C68,EmissionPrices_h,0),FALSE)),0) -> 17.53861859 | U68: =IF('UserSettings&Results'!$E$40="YES",IF(DiscountPrices="YES",NPV(DiscountRate,OFFSET(EmissionPrices!$C$38,MATCH(U34,EmissionPrices_v,0)-1,MATCH($C68,EmissionPrices_h,0)-1,U$40,1))/U$42,VLOOKUP(U34,EmissionPrices,MATCH($C68,EmissionPrices_h,0),FALSE)),0) -> 17.53861859 | V68: =IF('UserSettings&Results'!$E$40="YES",IF(DiscountPrices="YES",NPV(DiscountRate,OFFSET(EmissionPrices!$C$38,MATCH(V34,EmissionPrices_v,0)-1,MATCH($C68,EmissionPrices_h,0)-1,V$40,1))/V$42,VLOOKUP(V34,EmissionPrices,MATCH($C68,EmissionPrices_h,0),FALSE)),0) -> 17.53861859 | W68: =IF('UserSettings&Results'!$E$40="YES",IF(DiscountPrices="YES",NPV(DiscountRate,OFFSET(EmissionPrices!$C$38,MATCH(W34,EmissionPrices_v,0)-1,MATCH($C68,EmissionPrices_h,0)-1,W$40,1))/W$42,VLOOKUP(W34,EmissionPrices,MATCH($C68,EmissionPrices_h,0),FALSE)),0) ->  | X68: =IF('UserSettings&Results'!$E$40="YES",IF(DiscountPrices="YES",NPV(DiscountRate,OFFSET(EmissionPrices!$C$38,MATCH(X34,EmissionPrices_v,0)-1,MATCH($C68,EmissionPrices_h,0)-1,X$40,1))/X$42,VLOOKUP(X34,EmissionPrices,MATCH($C68,EmissionPrices_h,0),FALSE)),0) ->  | Y68: =IF('UserSettings&Results'!$E$40="YES",IF(DiscountPrices="YES",NPV(DiscountRate,OFFSET(EmissionPrices!$C$38,MATCH(Y34,EmissionPrices_v,0)-1,MATCH($C68,EmissionPrices_h,0)-1,Y$40,1))/Y$42,VLOOKUP(Y34,EmissionPrices,MATCH($C68,EmissionPrices_h,0),FALSE)),0) ->  | Z68: =IF('UserSettings&Results'!$E$40="YES",IF(DiscountPrices="YES",NPV(DiscountRate,OFFSET(EmissionPrices!$C$38,MATCH(Z34,EmissionPrices_v,0)-1,MATCH($C68,EmissionPrices_h,0)-1,Z$40,1))/Z$42,VLOOKUP(Z34,EmissionPrices,MATCH($C68,EmissionPrices_h,0),FALSE)),0) ->  | AA68: =IF('UserSettings&Results'!$E$40="YES",IF(DiscountPrices="YES",NPV(DiscountRate,OFFSET(EmissionPrices!$C$38,MATCH(AA34,EmissionPrices_v,0)-1,MATCH($C68,EmissionPrices_h,0)-1,AA$40,1))/AA$42,VLOOKUP(AA34,EmissionPrices,MATCH($C68,EmissionPrices_h,0),FALSE)),0) ->  | AB68: =IF('UserSettings&Results'!$E$40="YES",IF(DiscountPrices="YES",NPV(DiscountRate,OFFSET(EmissionPrices!$C$38,MATCH(AB34,EmissionPrices_v,0)-1,MATCH($C68,EmissionPrices_h,0)-1,AB$40,1))/AB$42,VLOOKUP(AB34,EmissionPrices,MATCH($C68,EmissionPrices_h,0),FALSE)),0) ->  | AC68: =IF('UserSettings&Results'!$E$40="YES",IF(DiscountPrices="YES",NPV(DiscountRate,OFFSET(EmissionPrices!$C$38,MATCH(AC34,EmissionPrices_v,0)-1,MATCH($C68,EmissionPrices_h,0)-1,AC$40,1))/AC$42,VLOOKUP(AC34,EmissionPrices,MATCH($C68,EmissionPrices_h,0),FALSE)),0) ->  | AD68: =IF('UserSettings&Results'!$E$40="YES",IF(DiscountPrices="YES",NPV(DiscountRate,OFFSET(EmissionPrices!$C$38,MATCH(AD34,EmissionPrices_v,0)-1,MATCH($C68,EmissionPrices_h,0)-1,AD$40,1))/AD$42,VLOOKUP(AD34,EmissionPrices,MATCH($C68,EmissionPrices_h,0),FALSE)),0) ->  | AE68: =IF('UserSettings&Results'!$E$40="YES",IF(DiscountPrices="YES",NPV(DiscountRate,OFFSET(EmissionPrices!$C$38,MATCH(AE34,EmissionPrices_v,0)-1,MATCH($C68,EmissionPrices_h,0)-1,AE$40,1))/AE$42,VLOOKUP(AE34,EmissionPrices,MATCH($C68,EmissionPrices_h,0),FALSE)),0) -> 
C69: SO2-price | D69: =chosencurrency&"/GJ fuel" -> EUR/GJ fuel | E69: =E$68*(1-E48)*IFERROR(VLOOKUP(E34,EmissionFactorsSO2,MATCH(E$37,EmissionFactorsSO2_h,0),FALSE),0) -> 0 | F69: =F$68*(1-F48)*IFERROR(VLOOKUP(F34,EmissionFactorsSO2,MATCH(F$37,EmissionFactorsSO2_h,0),FALSE),0) -> 0 | G69: 0 | H69: 0 | I69: 0 | J69: 0 | K69: 0 | L69: 0.001227703301 | M69: 0.001424135829 | N69: 0.002104634231 | O69: 0 | P69: 0.1420628106 | Q69: 0.1420628106 | R69: 0 | S69: 0 | T69: 0.2367713509 | U69: 0 | V69: 0
C70: NOx-price | D70: =chosencurrency&"/kg" -> EUR/kg | E70: =IF('UserSettings&Results'!$E$40="YES",IF(DiscountPrices="YES",NPV(DiscountRate,OFFSET(EmissionPrices!$C$38,MATCH(E34,EmissionPrices_v,0)-1,MATCH($C70,EmissionPrices_h,0)-1,E$40,1))/E$42,VLOOKUP(E34,EmissionPrices,MATCH($C70,EmissionPrices_h,0),FALSE)),0) -> 21.62295442 | F70: =IF('UserSettings&Results'!$E$40="YES",IF(DiscountPrices="YES",NPV(DiscountRate,OFFSET(EmissionPrices!$C$38,MATCH(F34,EmissionPrices_v,0)-1,MATCH($C70,EmissionPrices_h,0)-1,F$40,1))/F$42,VLOOKUP(F34,EmissionPrices,MATCH($C70,EmissionPrices_h,0),FALSE)),0) -> 21.62295442 | G70: =IF('UserSettings&Results'!$E$40="YES",IF(DiscountPrices="YES",NPV(DiscountRate,OFFSET(EmissionPrices!$C$38,MATCH(G34,EmissionPrices_v,0)-1,MATCH($C70,EmissionPrices_h,0)-1,G$40,1))/G$42,VLOOKUP(G34,EmissionPrices,MATCH($C70,EmissionPrices_h,0),FALSE)),0) -> 21.62295442 | H70: =IF('UserSettings&Results'!$E$40="YES",IF(DiscountPrices="YES",NPV(DiscountRate,OFFSET(EmissionPrices!$C$38,MATCH(H34,EmissionPrices_v,0)-1,MATCH($C70,EmissionPrices_h,0)-1,H$40,1))/H$42,VLOOKUP(H34,EmissionPrices,MATCH($C70,EmissionPrices_h,0),FALSE)),0) -> 21.62295442 | I70: =IF('UserSettings&Results'!$E$40="YES",IF(DiscountPrices="YES",NPV(DiscountRate,OFFSET(EmissionPrices!$C$38,MATCH(I34,EmissionPrices_v,0)-1,MATCH($C70,EmissionPrices_h,0)-1,I$40,1))/I$42,VLOOKUP(I34,EmissionPrices,MATCH($C70,EmissionPrices_h,0),FALSE)),0) -> 21.62295442 | J70: =IF('UserSettings&Results'!$E$40="YES",IF(DiscountPrices="YES",NPV(DiscountRate,OFFSET(EmissionPrices!$C$38,MATCH(J34,EmissionPrices_v,0)-1,MATCH($C70,EmissionPrices_h,0)-1,J$40,1))/J$42,VLOOKUP(J34,EmissionPrices,MATCH($C70,EmissionPrices_h,0),FALSE)),0) -> 21.62295442 | K70: =IF('UserSettings&Results'!$E$40="YES",IF(DiscountPrices="YES",NPV(DiscountRate,OFFSET(EmissionPrices!$C$38,MATCH(K34,EmissionPrices_v,0)-1,MATCH($C70,EmissionPrices_h,0)-1,K$40,1))/K$42,VLOOKUP(K34,EmissionPrices,MATCH($C70,EmissionPrices_h,0),FALSE)),0) -> 21.62295442 | L70: =IF('UserSettings&Results'!$E$40="YES",IF(DiscountPrices="YES",NPV(DiscountRate,OFFSET(EmissionPrices!$C$38,MATCH(L34,EmissionPrices_v,0)-1,MATCH($C70,EmissionPrices_h,0)-1,L$40,1))/L$42,VLOOKUP(L34,EmissionPrices,MATCH($C70,EmissionPrices_h,0),FALSE)),0) -> 21.62295442 | M70: =IF('UserSettings&Results'!$E$40="YES",IF(DiscountPrices="YES",NPV(DiscountRate,OFFSET(EmissionPrices!$C$38,MATCH(M34,EmissionPrices_v,0)-1,MATCH($C70,EmissionPrices_h,0)-1,M$40,1))/M$42,VLOOKUP(M34,EmissionPrices,MATCH($C70,EmissionPrices_h,0),FALSE)),0) -> 21.62295442 | N70: =IF('UserSettings&Results'!$E$40="YES",IF(DiscountPrices="YES",NPV(DiscountRate,OFFSET(EmissionPrices!$C$38,MATCH(N34,EmissionPrices_v,0)-1,MATCH($C70,EmissionPrices_h,0)-1,N$40,1))/N$42,VLOOKUP(N34,EmissionPrices,MATCH($C70,EmissionPrices_h,0),FALSE)),0) -> 21.62295442 | O70: =IF('UserSettings&Results'!$E$40="YES",IF(DiscountPrices="YES",NPV(DiscountRate,OFFSET(EmissionPrices!$C$38,MATCH(O34,EmissionPrices_v,0)-1,MATCH($C70,EmissionPrices_h,0)-1,O$40,1))/O$42,VLOOKUP(O34,EmissionPrices,MATCH($C70,EmissionPrices_h,0),FALSE)),0) -> 21.62295442 | P70: =IF('UserSettings&Results'!$E$40="YES",IF(DiscountPrices="YES",NPV(DiscountRate,OFFSET(EmissionPrices!$C$38,MATCH(P34,EmissionPrices_v,0)-1,MATCH($C70,EmissionPrices_h,0)-1,P$40,1))/P$42,VLOOKUP(P34,EmissionPrices,MATCH($C70,EmissionPrices_h,0),FALSE)),0) -> 21.62295442 | Q70: =IF('UserSettings&Results'!$E$40="YES",IF(DiscountPrices="YES",NPV(DiscountRate,OFFSET(EmissionPrices!$C$38,MATCH(Q34,EmissionPrices_v,0)-1,MATCH($C70,EmissionPrices_h,0)-1,Q$40,1))/Q$42,VLOOKUP(Q34,EmissionPrices,MATCH($C70,EmissionPrices_h,0),FALSE)),0) -> 21.62295442 | R70: =IF('UserSettings&Results'!$E$40="YES",IF(DiscountPrices="YES",NPV(DiscountRate,OFFSET(EmissionPrices!$C$38,MATCH(R34,EmissionPrices_v,0)-1,MATCH($C70,EmissionPrices_h,0)-1,R$40,1))/R$42,VLOOKUP(R34,EmissionPrices,MATCH($C70,EmissionPrices_h,0),FALSE)),0) -> 21.62295442 | S70: =IF('UserSettings&Results'!$E$40="YES",IF(DiscountPrices="YES",NPV(DiscountRate,OFFSET(EmissionPrices!$C$38,MATCH(S34,EmissionPrices_v,0)-1,MATCH($C70,EmissionPrices_h,0)-1,S$40,1))/S$42,VLOOKUP(S34,EmissionPrices,MATCH($C70,EmissionPrices_h,0),FALSE)),0) -> 21.91239682 | T70: =IF('UserSettings&Results'!$E$40="YES",IF(DiscountPrices="YES",NPV(DiscountRate,OFFSET(EmissionPrices!$C$38,MATCH(T34,EmissionPrices_v,0)-1,MATCH($C70,EmissionPrices_h,0)-1,T$40,1))/T$42,VLOOKUP(T34,EmissionPrices,MATCH($C70,EmissionPrices_h,0),FALSE)),0) -> 21.62295442 | U70: =IF('UserSettings&Results'!$E$40="YES",IF(DiscountPrices="YES",NPV(DiscountRate,OFFSET(EmissionPrices!$C$38,MATCH(U34,EmissionPrices_v,0)-1,MATCH($C70,EmissionPrices_h,0)-1,U$40,1))/U$42,VLOOKUP(U34,EmissionPrices,MATCH($C70,EmissionPrices_h,0),FALSE)),0) -> 21.62295442 | V70: =IF('UserSettings&Results'!$E$40="YES",IF(DiscountPrices="YES",NPV(DiscountRate,OFFSET(EmissionPrices!$C$38,MATCH(V34,EmissionPrices_v,0)-1,MATCH($C70,EmissionPrices_h,0)-1,V$40,1))/V$42,VLOOKUP(V34,EmissionPrices,MATCH($C70,EmissionPrices_h,0),FALSE)),0) -> 21.62295442 | W70: =IF('UserSettings&Results'!$E$40="YES",IF(DiscountPrices="YES",NPV(DiscountRate,OFFSET(EmissionPrices!$C$38,MATCH(W34,EmissionPrices_v,0)-1,MATCH($C70,EmissionPrices_h,0)-1,W$40,1))/W$42,VLOOKUP(W34,EmissionPrices,MATCH($C70,EmissionPrices_h,0),FALSE)),0) ->  | X70: =IF('UserSettings&Results'!$E$40="YES",IF(DiscountPrices="YES",NPV(DiscountRate,OFFSET(EmissionPrices!$C$38,MATCH(X34,EmissionPrices_v,0)-1,MATCH($C70,EmissionPrices_h,0)-1,X$40,1))/X$42,VLOOKUP(X34,EmissionPrices,MATCH($C70,EmissionPrices_h,0),FALSE)),0) ->  | Y70: =IF('UserSettings&Results'!$E$40="YES",IF(DiscountPrices="YES",NPV(DiscountRate,OFFSET(EmissionPrices!$C$38,MATCH(Y34,EmissionPrices_v,0)-1,MATCH($C70,EmissionPrices_h,0)-1,Y$40,1))/Y$42,VLOOKUP(Y34,EmissionPrices,MATCH($C70,EmissionPrices_h,0),FALSE)),0) ->  | Z70: =IF('UserSettings&Results'!$E$40="YES",IF(DiscountPrices="YES",NPV(DiscountRate,OFFSET(EmissionPrices!$C$38,MATCH(Z34,EmissionPrices_v,0)-1,MATCH($C70,EmissionPrices_h,0)-1,Z$40,1))/Z$42,VLOOKUP(Z34,EmissionPrices,MATCH($C70,EmissionPrices_h,0),FALSE)),0) ->  | AA70: =IF('UserSettings&Results'!$E$40="YES",IF(DiscountPrices="YES",NPV(DiscountRate,OFFSET(EmissionPrices!$C$38,MATCH(AA34,EmissionPrices_v,0)-1,MATCH($C70,EmissionPrices_h,0)-1,AA$40,1))/AA$42,VLOOKUP(AA34,EmissionPrices,MATCH($C70,EmissionPrices_h,0),FALSE)),0) ->  | AB70: =IF('UserSettings&Results'!$E$40="YES",IF(DiscountPrices="YES",NPV(DiscountRate,OFFSET(EmissionPrices!$C$38,MATCH(AB34,EmissionPrices_v,0)-1,MATCH($C70,EmissionPrices_h,0)-1,AB$40,1))/AB$42,VLOOKUP(AB34,EmissionPrices,MATCH($C70,EmissionPrices_h,0),FALSE)),0) ->  | AC70: =IF('UserSettings&Results'!$E$40="YES",IF(DiscountPrices="YES",NPV(DiscountRate,OFFSET(EmissionPrices!$C$38,MATCH(AC34,EmissionPrices_v,0)-1,MATCH($C70,EmissionPrices_h,0)-1,AC$40,1))/AC$42,VLOOKUP(AC34,EmissionPrices,MATCH($C70,EmissionPrices_h,0),FALSE)),0) ->  | AD70: =IF('UserSettings&Results'!$E$40="YES",IF(DiscountPrices="YES",NPV(DiscountRate,OFFSET(EmissionPrices!$C$38,MATCH(AD34,EmissionPrices_v,0)-1,MATCH($C70,EmissionPrices_h,0)-1,AD$40,1))/AD$42,VLOOKUP(AD34,EmissionPrices,MATCH($C70,EmissionPrices_h,0),FALSE)),0) ->  | AE70: =IF('UserSettings&Results'!$E$40="YES",IF(DiscountPrices="YES",NPV(DiscountRate,OFFSET(EmissionPrices!$C$38,MATCH(AE34,EmissionPrices_v,0)-1,MATCH($C70,EmissionPrices_h,0)-1,AE$40,1))/AE$42,VLOOKUP(AE34,EmissionPrices,MATCH($C70,EmissionPrices_h,0),FALSE)),0) -> 
C71: NOx-price | D71: =chosencurrency&"/GJ fuel" -> EUR/GJ fuel | E71: =E$70*E49/1000 -> 0 | F71: =F$70*F49/1000 -> 0 | G71: 0 | H71: 0 | I71: 0 | J71: 0 | K71: 0 | L71: 0.7568034048 | M71: 0.8778919496 | N71: 0.7568034048 | O71: 0.7568034048 | P71: 0.7568034048 | Q71: 0.7568034048 | R71: 0.2162295442 | S71: 0 | T71: 4.244706081 | U71: 0.8432952225 | V71: 0
